Workbook

Sheet 試験問題（関数）
A1: ='関数（書き）'!$C$2 -> 13 | B1: ='関数（書き）'!$C$3 -> 182 | C1: ='関数（書き）'!$C$4 -> 26 | D1: ='関数（書き）'!$C$5 -> 191 | E1: ='関数（書き）'!$C$6 -> 159 | F1: ='関数（書き）'!$C$7 -> 74 | G1: ='関数（書き）'!$C$8 -> 181 | H1: ='関数（書き）'!$C$9 -> 58 | I1: ='関数（書き）'!$C$10 -> 24 | J1: ='関数（書き）'!$C$11 -> 107 | K1: ='関数（読み）'!$C$2 -> 167 | L1: ='関数（読み）'!$C$3 -> 240 | M1: ='関数（読み）'!$C$4 -> 215 | N1: ='関数（読み）'!$C$5 -> 198 | O1: ='関数（読み）'!$C$6 -> 143 | P1: ='関数（読み）'!$C$7 -> 207 | Q1: ='関数（読み）'!$C$8 -> 184 | R1: ='関数（読み）'!$C$9 -> 235 | S1: ='関数（読み）'!$C$10 -> 224 | T1: ='関数（読み）'!$C$11 -> 146
A2: ⑳ | B2: ⑲ | C2: ⑱ | D2: ⑰ | E2: ⑯ | F2: ⑮ | G2: ⑭ | H2: ⑬ | I2: ⑫ | J2: ⑪ | K2: ⑩ | L2: ⑨ | M2: ⑧ | N2: ⑦ | O2: ⑥ | P2: ⑤ | Q2: ④ | R2: ③ | S2: ② | T2: ① | U2: 次の［ ］の部分の漢字には読みがなをひらがなで書き、カタカナは漢字に直しなさい。 | V2: 12 | W2: 「漢字の博士検定試験」練習問題
A3: =IF(A1="","",VLOOKUP(A1,漢字書き!$A$2:$N$506,6,0)) -> 君とはかん［ケイ］ない | B3: =IF(B1="","",VLOOKUP(B1,漢字書き!$A$2:$N$506,6,0)) -> はん［タイ］の意見 | C3: =IF(C1="","",VLOOKUP(C1,漢字書き!$A$2:$N$506,6,0)) -> [ケン]しゅうを受ける | D3: =IF(D1="","",VLOOKUP(D1,漢字書き!$A$2:$N$506,6,0)) -> ［セキタン］をもやす | E3: =IF(E1="","",VLOOKUP(E1,漢字書き!$A$2:$N$506,6,0)) -> ふくそうを［トトノ］える | F3: =IF(F1="","",VLOOKUP(F1,漢字書き!$A$2:$N$506,6,0)) -> ［ニュウガクシキ］に出る | G3: =IF(G1="","",VLOOKUP(G1,漢字書き!$A$2:$N$506,6,0)) -> ヒットを［ウ］つ | H3: =IF(H1="","",VLOOKUP(H1,漢字書き!$A$2:$N$506,6,0)) -> そうじを［ハジ］める | I3: =IF(I1="","",VLOOKUP(I1,漢字書き!$A$2:$N$506,6,0)) -> せきを［キ］める | J3: =IF(J1="","",VLOOKUP(J1,漢字書き!$A$2:$N$506,6,0)) -> 空手を［ナラ］う | K3: =IF(K1="","",VLOOKUP(K1,漢字読み!$A$2:$O$506,6,0)) -> ［息］をはく | L3: =IF(L1="","",VLOOKUP(L1,漢字読み!$A$2:$O$506,6,0)) -> ［豆］ふを食べる | M3: =IF(M1="","",VLOOKUP(M1,漢字読み!$A$2:$O$506,6,0)) -> ［定番］のおかず | N3: =IF(N1="","",VLOOKUP(N1,漢字読み!$A$2:$O$506,6,0)) -> 駅に［着］く | O3: =IF(O1="","",VLOOKUP(O1,漢字読み!$A$2:$O$506,6,0)) -> ［真］っ暗やみ | P3: =IF(P1="","",VLOOKUP(P1,漢字読み!$A$2:$O$506,6,0)) -> ほう[丁]で切る | Q3: =IF(Q1="","",VLOOKUP(Q1,漢字読み!$A$2:$O$506,6,0)) -> ［交代］をする | R3: =IF(R1="","",VLOOKUP(R1,漢字読み!$A$2:$O$506,6,0)) -> 日本の［都］ | S3: =IF(S1="","",VLOOKUP(S1,漢字読み!$A$2:$O$506,6,0)) -> ［笛］の音 | T3: =IF(T1="","",VLOOKUP(T1,漢字読み!$A$2:$O$506,6,0)) -> ［深］い谷のそこ | V3: 級
V4: 名前
A5: =IF(A1="","",IF(VLOOKUP(A1,漢字書き!$A$2:$N$502,7,0)=0,"",VLOOKUP(A1,漢字書き!$A$2:$N$502,7,0))) -> ない | B5: =IF(B1="","",IF(VLOOKUP(B1,漢字書き!$A$2:$N$502,7,0)=0,"",VLOOKUP(B1,漢字書き!$A$2:$N$502,7,0))) ->  | C5: =IF(C1="","",IF(VLOOKUP(C1,漢字書き!$A$2:$N$502,7,0)=0,"",VLOOKUP(C1,漢字書き!$A$2:$N$502,7,0))) -> しゅう | D5: =IF(D1="","",IF(VLOOKUP(D1,漢字書き!$A$2:$N$502,7,0)=0,"",VLOOKUP(D1,漢字書き!$A$2:$N$502,7,0))) ->  | E5: =IF(E1="","",IF(VLOOKUP(E1,漢字書き!$A$2:$N$502,7,0)=0,"",VLOOKUP(E1,漢字書き!$A$2:$N$502,7,0))) -> える | F5: =IF(F1="","",IF(VLOOKUP(F1,漢字書き!$A$2:$N$502,7,0)=0,"",VLOOKUP(F1,漢字書き!$A$2:$N$502,7,0))) ->  | G5: =IF(G1="","",IF(VLOOKUP(G1,漢字書き!$A$2:$N$502,7,0)=0,"",VLOOKUP(G1,漢字書き!$A$2:$N$502,7,0))) -> つ | H5: =IF(H1="","",IF(VLOOKUP(H1,漢字書き!$A$2:$N$502,7,0)=0,"",VLOOKUP(H1,漢字書き!$A$2:$N$502,7,0))) -> める | I5: =IF(I1="","",IF(VLOOKUP(I1,漢字書き!$A$2:$N$502,7,0)=0,"",VLOOKUP(I1,漢字書き!$A$2:$N$502,7,0))) -> める | J5: =IF(J1="","",IF(VLOOKUP(J1,漢字書き!$A$2:$N$502,7,0)=0,"",VLOOKUP(J1,漢字書き!$A$2:$N$502,7,0))) -> う | K5: =IF(K1="","",IF(VLOOKUP(K1,漢字読み!$A$2:$O$502,7,0)=0,"",VLOOKUP(K1,漢字読み!$A$2:$O$502,7,0))) ->  | L5: =IF(L1="","",IF(VLOOKUP(L1,漢字読み!$A$2:$O$502,7,0)=0,"",VLOOKUP(L1,漢字読み!$A$2:$O$502,7,0))) -> ふ | M5: =IF(M1="","",IF(VLOOKUP(M1,漢字読み!$A$2:$O$502,7,0)=0,"",VLOOKUP(M1,漢字読み!$A$2:$O$502,7,0))) ->  | N5: =IF(N1="","",IF(VLOOKUP(N1,漢字読み!$A$2:$O$502,7,0)=0,"",VLOOKUP(N1,漢字読み!$A$2:$O$502,7,0))) -> く | O5: =IF(O1="","",IF(VLOOKUP(O1,漢字読み!$A$2:$O$502,7,0)=0,"",VLOOKUP(O1,漢字読み!$A$2:$O$502,7,0))) -> っ暗 | P5: =IF(P1="","",IF(VLOOKUP(P1,漢字読み!$A$2:$O$502,7,0)=0,"",VLOOKUP(P1,漢字読み!$A$2:$O$502,7,0))) ->  | Q5: =IF(Q1="","",IF(VLOOKUP(Q1,漢字読み!$A$2:$O$502,7,0)=0,"",VLOOKUP(Q1,漢字読み!$A$2:$O$502,7,0))) ->  | R5: =IF(R1="","",IF(VLOOKUP(R1,漢字読み!$A$2:$O$502,7,0)=0,"",VLOOKUP(R1,漢字読み!$A$2:$O$502,7,0))) ->  | S5: =IF(S1="","",IF(VLOOKUP(S1,漢字読み!$A$2:$O$502,7,0)=0,"",VLOOKUP(S1,漢字読み!$A$2:$O$502,7,0))) ->  | T5: =IF(T1="","",IF(VLOOKUP(T1,漢字読み!$A$2:$O$502,7,0)=0,"",VLOOKUP(T1,漢字読み!$A$2:$O$502,7,0))) -> い | W5: 和歌山県教育委員会
A6: ='関数（書き）'!$C$12 -> 93 | B6: ='関数（書き）'!$C$13 -> 78 | C6: ='関数（書き）'!$C$14 -> 194 | D6: ='関数（書き）'!$C$15 -> 196 | E6: ='関数（書き）'!$C$16 -> 85 | F6: ='関数（書き）'!$C$17 -> 170 | G6: ='関数（書き）'!$C$18 -> 193 | H6: ='関数（書き）'!$C$19 -> 178 | I6: ='関数（書き）'!$C$20 -> 79 | J6: ='関数（書き）'!$C$21 -> 184 | K6: ='関数（読み）'!$C$12 -> 162 | L6: ='関数（読み）'!$C$13 -> 177 | M6: ='関数（読み）'!$C$14 -> 2 | N6: ='関数（読み）'!$C$15 -> 179 | O6: ='関数（読み）'!$C$16 -> 148 | P6: ='関数（読み）'!$C$17 -> 160 | Q6: ='関数（読み）'!$C$18 -> 71 | R6: ='関数（読み）'!$C$19 -> 107 | S6: ='関数（読み）'!$C$20 -> 55 | T6: ='関数（読み）'!$C$21 -> 174
A7: ⑳ | B7: ⑲ | C7: ⑱ | D7: ⑰ | E7: ⑯ | F7: ⑮ | G7: ⑭ | H7: ⑬ | I7: ⑫ | J7: ⑪ | K7: ⑩ | L7: ⑨ | M7: ⑧ | N7: ⑦ | O7: ⑥ | P7: ⑤ | Q7: ④ | R7: ③ | S7: ② | T7: ① | U7: 次の［ ］の部分の漢字には読みがなをひらがなで書き、カタカナは漢字に直しなさい。 | V7: 12 | W7: 「漢字の博士検定試験」練習問題
A8: =IF(A6="","",VLOOKUP(A6,漢字書き!$A$2:$N$506,6,0)) -> うめ［シュ］を作る | B8: =IF(B6="","",VLOOKUP(B6,漢字書き!$A$2:$N$506,6,0)) -> くだものの［ミ］がなる | C8: =IF(C6="","",VLOOKUP(C6,漢字書き!$A$2:$N$506,6,0)) -> 長所と［タンショ］ | D8: =IF(D6="","",VLOOKUP(D6,漢字書き!$A$2:$N$506,6,0)) -> ［ダンワ］室に入る | E8: =IF(E6="","",VLOOKUP(E6,漢字書き!$A$2:$N$506,6,0)) -> ［シュジン］にしたがう | F8: =IF(F6="","",VLOOKUP(F6,漢字書き!$A$2:$N$506,6,0)) -> ［キュウソク］をとる | G8: =IF(G6="","",VLOOKUP(G6,漢字書き!$A$2:$N$506,6,0)) -> ［スミビ］で魚をやく | H8: =IF(H6="","",VLOOKUP(H6,漢字書き!$A$2:$N$506,6,0)) -> その［タ］大ぜい | I8: =IF(I6="","",VLOOKUP(I6,漢字書き!$A$2:$N$506,6,0)) -> ［ミノ］りの秋 | J8: =IF(J6="","",VLOOKUP(J6,漢字書き!$A$2:$N$506,6,0)) -> ［キタイ］をよせる | K8: =IF(K6="","",VLOOKUP(K6,漢字読み!$A$2:$O$506,6,0)) -> 車で［送］げいしてもらう | L8: =IF(L6="","",VLOOKUP(L6,漢字読み!$A$2:$O$506,6,0)) -> ３［対］１で勝つ | M8: =IF(M6="","",VLOOKUP(M6,漢字読み!$A$2:$O$506,6,0)) -> 一めんの［銀世界］ | N8: =IF(N6="","",VLOOKUP(N6,漢字読み!$A$2:$O$506,6,0)) -> ［期待］して見守る | O8: =IF(O6="","",VLOOKUP(O6,漢字読み!$A$2:$O$506,6,0)) -> どんどん［進］む | P8: =IF(P6="","",VLOOKUP(P6,漢字読み!$A$2:$O$506,6,0)) -> グループで［相談］する | Q8: =IF(Q6="","",VLOOKUP(Q6,漢字読み!$A$2:$O$506,6,0)) -> [次回]ちょうせんする | R8: =IF(R6="","",VLOOKUP(R6,漢字読み!$A$2:$O$506,6,0)) -> 人がたくさん［集］まる | S8: =IF(S6="","",VLOOKUP(S6,漢字読み!$A$2:$O$506,6,0)) -> 祭りの［使者］ | T8: =IF(T6="","",VLOOKUP(T6,漢字読み!$A$2:$O$506,6,0)) -> ［打開］さくを考える | V8: 級
V9: 名前
A10: =IF(A6="","",IF(VLOOKUP(A6,漢字書き!$A$2:$N$502,7,0)=0,"",VLOOKUP(A6,漢字書き!$A$2:$N$502,7,0))) ->  | B10: =IF(B6="","",IF(VLOOKUP(B6,漢字書き!$A$2:$N$502,7,0)=0,"",VLOOKUP(B6,漢字書き!$A$2:$N$502,7,0))) ->  | C10: =IF(C6="","",IF(VLOOKUP(C6,漢字書き!$A$2:$N$502,7,0)=0,"",VLOOKUP(C6,漢字書き!$A$2:$N$502,7,0))) ->  | D10: =IF(D6="","",IF(VLOOKUP(D6,漢字書き!$A$2:$N$502,7,0)=0,"",VLOOKUP(D6,漢字書き!$A$2:$N$502,7,0))) -> 室 | E10: =IF(E6="","",IF(VLOOKUP(E6,漢字書き!$A$2:$N$502,7,0)=0,"",VLOOKUP(E6,漢字書き!$A$2:$N$502,7,0))) ->  | F10: =IF(F6="","",IF(VLOOKUP(F6,漢字書き!$A$2:$N$502,7,0)=0,"",VLOOKUP(F6,漢字書き!$A$2:$N$502,7,0))) ->  | G10: =IF(G6="","",IF(VLOOKUP(G6,漢字書き!$A$2:$N$502,7,0)=0,"",VLOOKUP(G6,漢字書き!$A$2:$N$502,7,0))) ->  | H10: =IF(H6="","",IF(VLOOKUP(H6,漢字書き!$A$2:$N$502,7,0)=0,"",VLOOKUP(H6,漢字書き!$A$2:$N$502,7,0))) ->  | I10: =IF(I6="","",IF(VLOOKUP(I6,漢字書き!$A$2:$N$502,7,0)=0,"",VLOOKUP(I6,漢字書き!$A$2:$N$502,7,0))) -> り | J10: =IF(J6="","",IF(VLOOKUP(J6,漢字書き!$A$2:$N$502,7,0)=0,"",VLOOKUP(J6,漢字書き!$A$2:$N$502,7,0))) ->  | K10: =IF(K6="","",IF(VLOOKUP(K6,漢字読み!$A$2:$O$502,7,0)=0,"",VLOOKUP(K6,漢字読み!$A$2:$O$502,7,0))) -> げい | L10: =IF(L6="","",IF(VLOOKUP(L6,漢字読み!$A$2:$O$502,7,0)=0,"",VLOOKUP(L6,漢字読み!$A$2:$O$502,7,0))) ->  | M10: =IF(M6="","",IF(VLOOKUP(M6,漢字読み!$A$2:$O$502,7,0)=0,"",VLOOKUP(M6,漢字読み!$A$2:$O$502,7,0))) ->  | N10: =IF(N6="","",IF(VLOOKUP(N6,漢字読み!$A$2:$O$502,7,0)=0,"",VLOOKUP(N6,漢字読み!$A$2:$O$502,7,0))) -> して | O10: =IF(O6="","",IF(VLOOKUP(O6,漢字読み!$A$2:$O$502,7,0)=0,"",VLOOKUP(O6,漢字読み!$A$2:$O$502,7,0))) -> む | P10: =IF(P6="","",IF(VLOOKUP(P6,漢字読み!$A$2:$O$502,7,0)=0,"",VLOOKUP(P6,漢字読み!$A$2:$O$502,7,0))) -> する | Q10: =IF(Q6="","",IF(VLOOKUP(Q6,漢字読み!$A$2:$O$502,7,0)=0,"",VLOOKUP(Q6,漢字読み!$A$2:$O$502,7,0))) ->  | R10: =IF(R6="","",IF(VLOOKUP(R6,漢字読み!$A$2:$O$502,7,0)=0,"",VLOOKUP(R6,漢字読み!$A$2:$O$502,7,0))) -> まる | S10: =IF(S6="","",IF(VLOOKUP(S6,漢字読み!$A$2:$O$502,7,0)=0,"",VLOOKUP(S6,漢字読み!$A$2:$O$502,7,0))) ->  | T10: =IF(T6="","",IF(VLOOKUP(T6,漢字読み!$A$2:$O$502,7,0)=0,"",VLOOKUP(T6,漢字読み!$A$2:$O$502,7,0))) -> さく | W10: 和歌山県教育委員会
A11: ='関数（書き）'!$C$2 -> 13 | B11: ='関数（書き）'!$C$3 -> 182 | C11: ='関数（書き）'!$C$4 -> 26 | D11: ='関数（書き）'!$C$5 -> 191 | E11: ='関数（書き）'!$C$6 -> 159 | F11: ='関数（書き）'!$C$7 -> 74 | G11: ='関数（書き）'!$C$8 -> 181 | H11: ='関数（書き）'!$C$9 -> 58 | I11: ='関数（書き）'!$C$10 -> 24 | J11: ='関数（書き）'!$C$11 -> 107 | K11: ='関数（読み）'!$C$2 -> 167 | L11: ='関数（読み）'!$C$3 -> 240 | M11: ='関数（読み）'!$C$4 -> 215 | N11: ='関数（読み）'!$C$5 -> 198 | O11: ='関数（読み）'!$C$6 -> 143 | P11: ='関数（読み）'!$C$7 -> 207 | Q11: ='関数（読み）'!$C$8 -> 184 | R11: ='関数（読み）'!$C$9 -> 235 | S11: ='関数（読み）'!$C$10 -> 224 | T11: ='関数（読み）'!$C$11 -> 146
A12: ⑳ | B12: ⑲ | C12: ⑱ | D12: ⑰ | E12: ⑯ | F12: ⑮ | G12: ⑭ | H12: ⑬ | I12: ⑫ | J12: ⑪ | K12: ⑩ | L12: ⑨ | M12: ⑧ | N12: ⑦ | O12: ⑥ | P12: ⑤ | Q12: ④ | R12: ③ | S12: ② | T12: ① | U12: 次の［ ］の部分の漢字には読みがなをひらがなで書き、カタカナは漢字に直しなさい。 | V12: 12 | W12: 「漢字の博士検定試験」練習問題
A13: =IF(A11="","",VLOOKUP(A11,漢字書き!$A$2:$N$506,6,0)) -> 君とはかん［ケイ］ない | B13: =IF(B11="","",VLOOKUP(B11,漢字書き!$A$2:$N$506,6,0)) -> はん［タイ］の意見 | C13: =IF(C11="","",VLOOKUP(C11,漢字書き!$A$2:$N$506,6,0)) -> [ケン]しゅうを受ける | D13: =IF(D11="","",VLOOKUP(D11,漢字書き!$A$2:$N$506,6,0)) -> ［セキタン］をもやす | E13: =IF(E11="","",VLOOKUP(E11,漢字書き!$A$2:$N$506,6,0)) -> ふくそうを［トトノ］える | F13: =IF(F11="","",VLOOKUP(F11,漢字書き!$A$2:$N$506,6,0)) -> ［ニュウガクシキ］に出る | G13: =IF(G11="","",VLOOKUP(G11,漢字書き!$A$2:$N$506,6,0)) -> ヒットを［ウ］つ | H13: =IF(H11="","",VLOOKUP(H11,漢字書き!$A$2:$N$506,6,0)) -> そうじを［ハジ］める | I13: =IF(I11="","",VLOOKUP(I11,漢字書き!$A$2:$N$506,6,0)) -> せきを［キ］める | J13: =IF(J11="","",VLOOKUP(J11,漢字書き!$A$2:$N$506,6,0)) -> 空手を［ナラ］う | K13: =IF(K11="","",VLOOKUP(K11,漢字読み!$A$2:$O$506,6,0)) -> ［息］をはく | L13: =IF(L11="","",VLOOKUP(L11,漢字読み!$A$2:$O$506,6,0)) -> ［豆］ふを食べる | M13: =IF(M11="","",VLOOKUP(M11,漢字読み!$A$2:$O$506,6,0)) -> ［定番］のおかず | N13: =IF(N11="","",VLOOKUP(N11,漢字読み!$A$2:$O$506,6,0)) -> 駅に［着］く | O13: =IF(O11="","",VLOOKUP(O11,漢字読み!$A$2:$O$506,6,0)) -> ［真］っ暗やみ | P13: =IF(P11="","",VLOOKUP(P11,漢字読み!$A$2:$O$506,6,0)) -> ほう[丁]で切る | Q13: =IF(Q11="","",VLOOKUP(Q11,漢字読み!$A$2:$O$506,6,0)) -> ［交代］をする | R13: =IF(R11="","",VLOOKUP(R11,漢字読み!$A$2:$O$506,6,0)) -> 日本の［都］ | S13: =IF(S11="","",VLOOKUP(S11,漢字読み!$A$2:$O$506,6,0)) -> ［笛］の音 | T13: =IF(T11="","",VLOOKUP(T11,漢字読み!$A$2:$O$506,6,0)) -> ［深］い谷のそこ | V13: 級
A14: =IF(A11="","",VLOOKUP(A11,漢字書き!$A$2:$N$506,8,0)) -> 係 | B14: =IF(B11="","",VLOOKUP(B11,漢字書き!$A$2:$N$506,8,0)) -> 対 | C14: =IF(C11="","",VLOOKUP(C11,漢字書き!$A$2:$N$506,8,0)) -> 研 | D14: =IF(D11="","",VLOOKUP(D11,漢字書き!$A$2:$N$506,8,0)) -> 石炭 | E14: =IF(E11="","",VLOOKUP(E11,漢字書き!$A$2:$N$506,8,0)) -> 整 | F14: =IF(F11="","",VLOOKUP(F11,漢字書き!$A$2:$N$506,8,0)) -> 入学式 | G14: =IF(G11="","",VLOOKUP(G11,漢字書き!$A$2:$N$506,8,0)) -> 打 | H14: =IF(H11="","",VLOOKUP(H11,漢字書き!$A$2:$N$506,8,0)) -> 始 | I14: =IF(I11="","",VLOOKUP(I11,漢字書き!$A$2:$N$506,8,0)) -> 決 | J14: =IF(J11="","",VLOOKUP(J11,漢字書き!$A$2:$N$506,8,0)) -> 習 | K14: =IF(K11="","",VLOOKUP(K11,漢字読み!$A$2:$O$506,8,0)) -> いき | L14: =IF(L11="","",VLOOKUP(L11,漢字読み!$A$2:$O$506,8,0)) -> とう | M14: =IF(M11="","",VLOOKUP(M11,漢字読み!$A$2:$O$506,8,0)) -> ていばん | N14: =IF(N11="","",VLOOKUP(N11,漢字読み!$A$2:$O$506,8,0)) -> つ | O14: =IF(O11="","",VLOOKUP(O11,漢字読み!$A$2:$O$506,8,0)) -> ま | P14: =IF(P11="","",VLOOKUP(P11,漢字読み!$A$2:$O$506,8,0)) -> ちょう | Q14: =IF(Q11="","",VLOOKUP(Q11,漢字読み!$A$2:$O$506,8,0)) -> こうたい | R14: =IF(R11="","",VLOOKUP(R11,漢字読み!$A$2:$O$506,8,0)) -> みやこ | S14: =IF(S11="","",VLOOKUP(S11,漢字読み!$A$2:$O$506,8,0)) -> ふえ | T14: =IF(T11="","",VLOOKUP(T11,漢字読み!$A$2:$O$506,8,0)) -> ふか | V14: 名前
A15: =IF(A11="","",IF(VLOOKUP(A11,漢字書き!$A$2:$N$502,7,0)=0,"",VLOOKUP(A11,漢字書き!$A$2:$N$502,7,0))) -> ない | B15: =IF(B11="","",IF(VLOOKUP(B11,漢字書き!$A$2:$N$502,7,0)=0,"",VLOOKUP(B11,漢字書き!$A$2:$N$502,7,0))) ->  | C15: =IF(C11="","",IF(VLOOKUP(C11,漢字書き!$A$2:$N$502,7,0)=0,"",VLOOKUP(C11,漢字書き!$A$2:$N$502,7,0))) -> しゅう | D15: =IF(D11="","",IF(VLOOKUP(D11,漢字書き!$A$2:$N$502,7,0)=0,"",VLOOKUP(D11,漢字書き!$A$2:$N$502,7,0))) ->  | E15: =IF(E11="","",IF(VLOOKUP(E11,漢字書き!$A$2:$N$502,7,0)=0,"",VLOOKUP(E11,漢字書き!$A$2:$N$502,7,0))) -> える | F15: =IF(F11="","",IF(VLOOKUP(F11,漢字書き!$A$2:$N$502,7,0)=0,"",VLOOKUP(F11,漢字書き!$A$2:$N$502,7,0))) ->  | G15: =IF(G11="","",IF(VLOOKUP(G11,漢字書き!$A$2:$N$502,7,0)=0,"",VLOOKUP(G11,漢字書き!$A$2:$N$502,7,0))) -> つ | H15: =IF(H11="","",IF(VLOOKUP(H11,漢字書き!$A$2:$N$502,7,0)=0,"",VLOOKUP(H11,漢字書き!$A$2:$N$502,7,0))) -> める | I15: =IF(I11="","",IF(VLOOKUP(I11,漢字書き!$A$2:$N$502,7,0)=0,"",VLOOKUP(I11,漢字書き!$A$2:$N$502,7,0))) -> める | J15: =IF(J11="","",IF(VLOOKUP(J11,漢字書き!$A$2:$N$502,7,0)=0,"",VLOOKUP(J11,漢字書き!$A$2:$N$502,7,0))) -> う | K15: =IF(K11="","",IF(VLOOKUP(K11,漢字読み!$A$2:$O$502,7,0)=0,"",VLOOKUP(K11,漢字読み!$A$2:$O$502,7,0))) ->  | L15: =IF(L11="","",IF(VLOOKUP(L11,漢字読み!$A$2:$O$502,7,0)=0,"",VLOOKUP(L11,漢字読み!$A$2:$O$502,7,0))) -> ふ | M15: =IF(M11="","",IF(VLOOKUP(M11,漢字読み!$A$2:$O$502,7,0)=0,"",VLOOKUP(M11,漢字読み!$A$2:$O$502,7,0))) ->  | N15: =IF(N11="","",IF(VLOOKUP(N11,漢字読み!$A$2:$O$502,7,0)=0,"",VLOOKUP(N11,漢字読み!$A$2:$O$502,7,0))) -> く | O15: =IF(O11="","",IF(VLOOKUP(O11,漢字読み!$A$2:$O$502,7,0)=0,"",VLOOKUP(O11,漢字読み!$A$2:$O$502,7,0))) -> っ暗 | P15: =IF(P11="","",IF(VLOOKUP(P11,漢字読み!$A$2:$O$502,7,0)=0,"",VLOOKUP(P11,漢字読み!$A$2:$O$502,7,0))) ->  | Q15: =IF(Q11="","",IF(VLOOKUP(Q11,漢字読み!$A$2:$O$502,7,0)=0,"",VLOOKUP(Q11,漢字読み!$A$2:$O$502,7,0))) ->  | R15: =IF(R11="","",IF(VLOOKUP(R11,漢字読み!$A$2:$O$502,7,0)=0,"",VLOOKUP(R11,漢字読み!$A$2:$O$502,7,0))) ->  | S15: =IF(S11="","",IF(VLOOKUP(S11,漢字読み!$A$2:$O$502,7,0)=0,"",VLOOKUP(S11,漢字読み!$A$2:$O$502,7,0))) ->  | T15: =IF(T11="","",IF(VLOOKUP(T11,漢字読み!$A$2:$O$502,7,0)=0,"",VLOOKUP(T11,漢字読み!$A$2:$O$502,7,0))) -> い | W15: 和歌山県教育委員会
A16: ='関数（書き）'!$C$12 -> 93 | B16: ='関数（書き）'!$C$13 -> 78 | C16: ='関数（書き）'!$C$14 -> 194 | D16: ='関数（書き）'!$C$15 -> 196 | E16: ='関数（書き）'!$C$16 -> 85 | F16: ='関数（書き）'!$C$17 -> 170 | G16: ='関数（書き）'!$C$18 -> 193 | H16: ='関数（書き）'!$C$19 -> 178 | I16: ='関数（書き）'!$C$20 -> 79 | J16: ='関数（書き）'!$C$21 -> 184 | K16: ='関数（読み）'!$C$12 -> 162 | L16: ='関数（読み）'!$C$13 -> 177 | M16: ='関数（読み）'!$C$14 -> 2 | N16: ='関数（読み）'!$C$15 -> 179 | O16: ='関数（読み）'!$C$16 -> 148 | P16: ='関数（読み）'!$C$17 -> 160 | Q16: ='関数（読み）'!$C$18 -> 71 | R16: ='関数（読み）'!$C$19 -> 107 | S16: ='関数（読み）'!$C$20 -> 55 | T16: ='関数（読み）'!$C$21 -> 174
A17: ⑳ | B17: ⑲ | C17: ⑱ | D17: ⑰ | E17: ⑯ | F17: ⑮ | G17: ⑭ | H17: ⑬ | I17: ⑫ | J17: ⑪ | K17: ⑩ | L17: ⑨ | M17: ⑧ | N17: ⑦ | O17: ⑥ | P17: ⑤ | Q17: ④ | R17: ③ | S17: ② | T17: ① | U17: 次の［ ］の部分の漢字には読みがなをひらがなで書き、カタカナは漢字に直しなさい。 | V17: 12 | W17: 「漢字の博士検定試験」練習問題
A18: =IF(A16="","",VLOOKUP(A16,漢字書き!$A$2:$N$506,6,0)) -> うめ［シュ］を作る | B18: =IF(B16="","",VLOOKUP(B16,漢字書き!$A$2:$N$506,6,0)) -> くだものの［ミ］がなる | C18: =IF(C16="","",VLOOKUP(C16,漢字書き!$A$2:$N$506,6,0)) -> 長所と［タンショ］ | D18: =IF(D16="","",VLOOKUP(D16,漢字書き!$A$2:$N$506,6,0)) -> ［ダンワ］室に入る | E18: =IF(E16="","",VLOOKUP(E16,漢字書き!$A$2:$N$506,6,0)) -> ［シュジン］にしたがう | F18: =IF(F16="","",VLOOKUP(F16,漢字書き!$A$2:$N$506,6,0)) -> ［キュウソク］をとる | G18: =IF(G16="","",VLOOKUP(G16,漢字書き!$A$2:$N$506,6,0)) -> ［スミビ］で魚をやく | H18: =IF(H16="","",VLOOKUP(H16,漢字書き!$A$2:$N$506,6,0)) -> その［タ］大ぜい | I18: =IF(I16="","",VLOOKUP(I16,漢字書き!$A$2:$N$506,6,0)) -> ［ミノ］りの秋 | J18: =IF(J16="","",VLOOKUP(J16,漢字書き!$A$2:$N$506,6,0)) -> ［キタイ］をよせる | K18: =IF(K16="","",VLOOKUP(K16,漢字読み!$A$2:$O$506,6,0)) -> 車で［送］げいしてもらう | L18: =IF(L16="","",VLOOKUP(L16,漢字読み!$A$2:$O$506,6,0)) -> ３［対］１で勝つ | M18: =IF(M16="","",VLOOKUP(M16,漢字読み!$A$2:$O$506,6,0)) -> 一めんの［銀世界］ | N18: =IF(N16="","",VLOOKUP(N16,漢字読み!$A$2:$O$506,6,0)) -> ［期待］して見守る | O18: =IF(O16="","",VLOOKUP(O16,漢字読み!$A$2:$O$506,6,0)) -> どんどん［進］む | P18: =IF(P16="","",VLOOKUP(P16,漢字読み!$A$2:$O$506,6,0)) -> グループで［相談］する | Q18: =IF(Q16="","",VLOOKUP(Q16,漢字読み!$A$2:$O$506,6,0)) -> [次回]ちょうせんする | R18: =IF(R16="","",VLOOKUP(R16,漢字読み!$A$2:$O$506,6,0)) -> 人がたくさん［集］まる | S18: =IF(S16="","",VLOOKUP(S16,漢字読み!$A$2:$O$506,6,0)) -> 祭りの［使者］ | T18: =IF(T16="","",VLOOKUP(T16,漢字読み!$A$2:$O$506,6,0)) -> ［打開］さくを考える | V18: 級
A19: =IF(A16="","",VLOOKUP(A16,漢字書き!$A$2:$O$506,8,0)) -> 酒 | B19: =IF(B16="","",VLOOKUP(B16,漢字書き!$A$2:$O$506,8,0)) -> 実 | C19: =IF(C16="","",VLOOKUP(C16,漢字書き!$A$2:$O$506,8,0)) -> 短所 | D19: =IF(D16="","",VLOOKUP(D16,漢字書き!$A$2:$O$506,8,0)) -> 談話 | E19: =IF(E16="","",VLOOKUP(E16,漢字書き!$A$2:$O$506,8,0)) -> 主人 | F19: =IF(F16="","",VLOOKUP(F16,漢字書き!$A$2:$O$506,8,0)) -> 休息 | G19: =IF(G16="","",VLOOKUP(G16,漢字書き!$A$2:$O$506,8,0)) -> 炭火 | H19: =IF(H16="","",VLOOKUP(H16,漢字書き!$A$2:$O$506,8,0)) -> 他 | I19: =IF(I16="","",VLOOKUP(I16,漢字書き!$A$2:$O$506,8,0)) -> 実 | J19: =IF(J16="","",VLOOKUP(J16,漢字書き!$A$2:$O$506,8,0)) -> 期待 | K19: =IF(K16="","",VLOOKUP(K16,漢字読み!$A$2:$O$506,8,0)) -> そう | L19: =IF(L16="","",VLOOKUP(L16,漢字読み!$A$2:$O$506,8,0)) -> たい | M19: =IF(M16="","",VLOOKUP(M16,漢字読み!$A$2:$O$506,8,0)) -> ぎんせかい | N19: =IF(N16="","",VLOOKUP(N16,漢字読み!$A$2:$O$506,8,0)) -> きたい | O19: =IF(O16="","",VLOOKUP(O16,漢字読み!$A$2:$O$506,8,0)) -> すす | P19: =IF(P16="","",VLOOKUP(P16,漢字読み!$A$2:$O$506,8,0)) -> そうだん | Q19: =IF(Q16="","",VLOOKUP(Q16,漢字読み!$A$2:$O$506,8,0)) -> じかい | R19: =IF(R16="","",VLOOKUP(R16,漢字読み!$A$2:$O$506,8,0)) -> あつ | S19: =IF(S16="","",VLOOKUP(S16,漢字読み!$A$2:$O$506,8,0)) -> ししゃ | T19: =IF(T16="","",VLOOKUP(T16,漢字読み!$A$2:$O$506,8,0)) -> だかい | V19: 名前
A20: =IF(A16="","",IF(VLOOKUP(A16,漢字書き!$A$2:$N$502,7,0)=0,"",VLOOKUP(A16,漢字書き!$A$2:$N$502,7,0))) ->  | B20: =IF(B16="","",IF(VLOOKUP(B16,漢字書き!$A$2:$N$502,7,0)=0,"",VLOOKUP(B16,漢字書き!$A$2:$N$502,7,0))) ->  | C20: =IF(C16="","",IF(VLOOKUP(C16,漢字書き!$A$2:$N$502,7,0)=0,"",VLOOKUP(C16,漢字書き!$A$2:$N$502,7,0))) ->  | D20: =IF(D16="","",IF(VLOOKUP(D16,漢字書き!$A$2:$N$502,7,0)=0,"",VLOOKUP(D16,漢字書き!$A$2:$N$502,7,0))) -> 室 | E20: =IF(E16="","",IF(VLOOKUP(E16,漢字書き!$A$2:$N$502,7,0)=0,"",VLOOKUP(E16,漢字書き!$A$2:$N$502,7,0))) ->  | F20: =IF(F16="","",IF(VLOOKUP(F16,漢字書き!$A$2:$N$502,7,0)=0,"",VLOOKUP(F16,漢字書き!$A$2:$N$502,7,0))) ->  | G20: =IF(G16="","",IF(VLOOKUP(G16,漢字書き!$A$2:$N$502,7,0)=0,"",VLOOKUP(G16,漢字書き!$A$2:$N$502,7,0))) ->  | H20: =IF(H16="","",IF(VLOOKUP(H16,漢字書き!$A$2:$N$502,7,0)=0,"",VLOOKUP(H16,漢字書き!$A$2:$N$502,7,0))) ->  | I20: =IF(I16="","",IF(VLOOKUP(I16,漢字書き!$A$2:$N$502,7,0)=0,"",VLOOKUP(I16,漢字書き!$A$2:$N$502,7,0))) -> り | J20: =IF(J16="","",IF(VLOOKUP(J16,漢字書き!$A$2:$N$502,7,0)=0,"",VLOOKUP(J16,漢字書き!$A$2:$N$502,7,0))) ->  | K20: =IF(K16="","",IF(VLOOKUP(K16,漢字読み!$A$2:$O$502,7,0)=0,"",VLOOKUP(K16,漢字読み!$A$2:$O$502,7,0))) -> げい | L20: =IF(L16="","",IF(VLOOKUP(L16,漢字読み!$A$2:$O$502,7,0)=0,"",VLOOKUP(L16,漢字読み!$A$2:$O$502,7,0))) ->  | M20: =IF(M16="","",IF(VLOOKUP(M16,漢字読み!$A$2:$O$502,7,0)=0,"",VLOOKUP(M16,漢字読み!$A$2:$O$502,7,0))) ->  | N20: =IF(N16="","",IF(VLOOKUP(N16,漢字読み!$A$2:$O$502,7,0)=0,"",VLOOKUP(N16,漢字読み!$A$2:$O$502,7,0))) -> して | O20: =IF(O16="","",IF(VLOOKUP(O16,漢字読み!$A$2:$O$502,7,0)=0,"",VLOOKUP(O16,漢字読み!$A$2:$O$502,7,0))) -> む | P20: =IF(P16="","",IF(VLOOKUP(P16,漢字読み!$A$2:$O$502,7,0)=0,"",VLOOKUP(P16,漢字読み!$A$2:$O$502,7,0))) -> する | Q20: =IF(Q16="","",IF(VLOOKUP(Q16,漢字読み!$A$2:$O$502,7,0)=0,"",VLOOKUP(Q16,漢字読み!$A$2:$O$502,7,0))) ->  | R20: =IF(R16="","",IF(VLOOKUP(R16,漢字読み!$A$2:$O$502,7,0)=0,"",VLOOKUP(R16,漢字読み!$A$2:$O$502,7,0))) -> まる | S20: =IF(S16="","",IF(VLOOKUP(S16,漢字読み!$A$2:$O$502,7,0)=0,"",VLOOKUP(S16,漢字読み!$A$2:$O$502,7,0))) ->  | T20: =IF(T16="","",IF(VLOOKUP(T16,漢字読み!$A$2:$O$502,7,0)=0,"",VLOOKUP(T16,漢字読み!$A$2:$O$502,7,0))) -> さく | W20: 和歌山県教育委員会

Sheet 網羅問題（関数）
A1: =INDIRECT("'関数（書き）'!C" & COLUMN(B$1)+SUM($AD$2:$AD2)) -> 13 | B1: =INDIRECT("'関数（書き）'!C" & COLUMN(C$1)+SUM($AD$2:$AD2)) -> 182 | C1: =INDIRECT("'関数（書き）'!C" & COLUMN(D$1)+SUM($AD$2:$AD2)) -> 26 | D1: =INDIRECT("'関数（書き）'!C" & COLUMN(E$1)+SUM($AD$2:$AD2)) -> 191 | E1: =INDIRECT("'関数（書き）'!C" & COLUMN(F$1)+SUM($AD$2:$AD2)) -> 159 | F1: =INDIRECT("'関数（書き）'!C" & COLUMN(G$1)+SUM($AD$2:$AD2)) -> 74 | G1: =INDIRECT("'関数（書き）'!C" & COLUMN(H$1)+SUM($AD$2:$AD2)) -> 181 | H1: =INDIRECT("'関数（書き）'!C" & COLUMN(I$1)+SUM($AD$2:$AD2)) -> 58 | I1: =INDIRECT("'関数（書き）'!C" & COLUMN(J$1)+SUM($AD$2:$AD2)) -> 24 | J1: =INDIRECT("'関数（書き）'!C" & COLUMN(K$1)+SUM($AD$2:$AD2)) -> 107 | K1: =INDIRECT("'関数（読み）'!C" & COLUMN(B$1)+SUM($AD$2:$AD2)) -> 167 | L1: =INDIRECT("'関数（読み）'!C" & COLUMN(C$1)+SUM($AD$2:$AD2)) -> 240 | M1: =INDIRECT("'関数（読み）'!C" & COLUMN(D$1)+SUM($AD$2:$AD2)) -> 215 | N1: =INDIRECT("'関数（読み）'!C" & COLUMN(E$1)+SUM($AD$2:$AD2)) -> 198 | O1: =INDIRECT("'関数（読み）'!C" & COLUMN(F$1)+SUM($AD$2:$AD2)) -> 143 | P1: =INDIRECT("'関数（読み）'!C" & COLUMN(G$1)+SUM($AD$2:$AD2)) -> 207 | Q1: =INDIRECT("'関数（読み）'!C" & COLUMN(H$1)+SUM($AD$2:$AD2)) -> 184 | R1: =INDIRECT("'関数（読み）'!C" & COLUMN(I$1)+SUM($AD$2:$AD2)) -> 235 | S1: =INDIRECT("'関数（読み）'!C" & COLUMN(J$1)+SUM($AD$2:$AD2)) -> 224 | T1: =INDIRECT("'関数（読み）'!C" & COLUMN(K$1)+SUM($AD$2:$AD2)) -> 146
A2: ⑳ | B2: ⑲ | C2: ⑱ | D2: ⑰ | E2: ⑯ | F2: ⑮ | G2: ⑭ | H2: ⑬ | I2: ⑫ | J2: ⑪ | K2: ⑩ | L2: ⑨ | M2: ⑧ | N2: ⑦ | O2: ⑥ | P2: ⑤ | Q2: ④ | R2: ③ | S2: ② | T2: ① | U2: 次の［ ］の部分の漢字には読みがなをひらがなで書き、カタカナは漢字に直しなさい。 | V2: 12 | W2: 「漢字の博士検定試験」練習問題 | AD2: 0 | AE2: 問 | AF2: 1 | AG2: ～ | AH2: =SUM($AD$2:$AD2)+10 -> 10 | AI2: 問まで | AJ2: =COUNTIF($A$1:$T$200,T3) -> 2
A3: =IF(A1="","",VLOOKUP(A1,漢字書き!$A$2:$N$506,6,0)) -> 君とはかん［ケイ］ない | B3: =IF(B1="","",VLOOKUP(B1,漢字書き!$A$2:$N$506,6,0)) -> はん［タイ］の意見 | C3: =IF(C1="","",VLOOKUP(C1,漢字書き!$A$2:$N$506,6,0)) -> [ケン]しゅうを受ける | D3: =IF(D1="","",VLOOKUP(D1,漢字書き!$A$2:$N$506,6,0)) -> ［セキタン］をもやす | E3: =IF(E1="","",VLOOKUP(E1,漢字書き!$A$2:$N$506,6,0)) -> ふくそうを［トトノ］える | F3: =IF(F1="","",VLOOKUP(F1,漢字書き!$A$2:$N$506,6,0)) -> ［ニュウガクシキ］に出る | G3: =IF(G1="","",VLOOKUP(G1,漢字書き!$A$2:$N$506,6,0)) -> ヒットを［ウ］つ | H3: =IF(H1="","",VLOOKUP(H1,漢字書き!$A$2:$N$506,6,0)) -> そうじを［ハジ］める | I3: =IF(I1="","",VLOOKUP(I1,漢字書き!$A$2:$N$506,6,0)) -> せきを［キ］める | J3: =IF(J1="","",VLOOKUP(J1,漢字書き!$A$2:$N$506,6,0)) -> 空手を［ナラ］う | K3: =IF(K1="","",VLOOKUP(K1,漢字読み!$A$2:$O$506,6,0)) -> ［息］をはく | L3: =IF(L1="","",VLOOKUP(L1,漢字読み!$A$2:$O$506,6,0)) -> ［豆］ふを食べる | M3: =IF(M1="","",VLOOKUP(M1,漢字読み!$A$2:$O$506,6,0)) -> ［定番］のおかず | N3: =IF(N1="","",VLOOKUP(N1,漢字読み!$A$2:$O$506,6,0)) -> 駅に［着］く | O3: =IF(O1="","",VLOOKUP(O1,漢字読み!$A$2:$O$506,6,0)) -> ［真］っ暗やみ | P3: =IF(P1="","",VLOOKUP(P1,漢字読み!$A$2:$O$506,6,0)) -> ほう[丁]で切る | Q3: =IF(Q1="","",VLOOKUP(Q1,漢字読み!$A$2:$O$506,6,0)) -> ［交代］をする | R3: =IF(R1="","",VLOOKUP(R1,漢字読み!$A$2:$O$506,6,0)) -> 日本の［都］ | S3: =IF(S1="","",VLOOKUP(S1,漢字読み!$A$2:$O$506,6,0)) -> ［笛］の音 | T3: =IF(T1="","",VLOOKUP(T1,漢字読み!$A$2:$O$506,6,0)) -> ［深］い谷のそこ | V3: 級
V4: 名前
A5: =IF(A1="","",IF(VLOOKUP(A1,漢字書き!$A$2:$N$502,7,0)=0,"",VLOOKUP(A1,漢字書き!$A$2:$N$502,7,0))) -> ない | B5: =IF(B1="","",IF(VLOOKUP(B1,漢字書き!$A$2:$N$502,7,0)=0,"",VLOOKUP(B1,漢字書き!$A$2:$N$502,7,0))) ->  | C5: =IF(C1="","",IF(VLOOKUP(C1,漢字書き!$A$2:$N$502,7,0)=0,"",VLOOKUP(C1,漢字書き!$A$2:$N$502,7,0))) -> しゅう | D5: =IF(D1="","",IF(VLOOKUP(D1,漢字書き!$A$2:$N$502,7,0)=0,"",VLOOKUP(D1,漢字書き!$A$2:$N$502,7,0))) ->  | E5: =IF(E1="","",IF(VLOOKUP(E1,漢字書き!$A$2:$N$502,7,0)=0,"",VLOOKUP(E1,漢字書き!$A$2:$N$502,7,0))) -> える | F5: =IF(F1="","",IF(VLOOKUP(F1,漢字書き!$A$2:$N$502,7,0)=0,"",VLOOKUP(F1,漢字書き!$A$2:$N$502,7,0))) ->  | G5: =IF(G1="","",IF(VLOOKUP(G1,漢字書き!$A$2:$N$502,7,0)=0,"",VLOOKUP(G1,漢字書き!$A$2:$N$502,7,0))) -> つ | H5: =IF(H1="","",IF(VLOOKUP(H1,漢字書き!$A$2:$N$502,7,0)=0,"",VLOOKUP(H1,漢字書き!$A$2:$N$502,7,0))) -> める | I5: =IF(I1="","",IF(VLOOKUP(I1,漢字書き!$A$2:$N$502,7,0)=0,"",VLOOKUP(I1,漢字書き!$A$2:$N$502,7,0))) -> める | J5: =IF(J1="","",IF(VLOOKUP(J1,漢字書き!$A$2:$N$502,7,0)=0,"",VLOOKUP(J1,漢字書き!$A$2:$N$502,7,0))) -> う | K5: =IF(K1="","",IF(VLOOKUP(K1,漢字読み!$A$2:$O$502,7,0)=0,"",VLOOKUP(K1,漢字読み!$A$2:$O$502,7,0))) ->  | L5: =IF(L1="","",IF(VLOOKUP(L1,漢字読み!$A$2:$O$502,7,0)=0,"",VLOOKUP(L1,漢字読み!$A$2:$O$502,7,0))) -> ふ | M5: =IF(M1="","",IF(VLOOKUP(M1,漢字読み!$A$2:$O$502,7,0)=0,"",VLOOKUP(M1,漢字読み!$A$2:$O$502,7,0))) ->  | N5: =IF(N1="","",IF(VLOOKUP(N1,漢字読み!$A$2:$O$502,7,0)=0,"",VLOOKUP(N1,漢字読み!$A$2:$O$502,7,0))) -> く | O5: =IF(O1="","",IF(VLOOKUP(O1,漢字読み!$A$2:$O$502,7,0)=0,"",VLOOKUP(O1,漢字読み!$A$2:$O$502,7,0))) -> っ暗 | P5: =IF(P1="","",IF(VLOOKUP(P1,漢字読み!$A$2:$O$502,7,0)=0,"",VLOOKUP(P1,漢字読み!$A$2:$O$502,7,0))) ->  | Q5: =IF(Q1="","",IF(VLOOKUP(Q1,漢字読み!$A$2:$O$502,7,0)=0,"",VLOOKUP(Q1,漢字読み!$A$2:$O$502,7,0))) ->  | R5: =IF(R1="","",IF(VLOOKUP(R1,漢字読み!$A$2:$O$502,7,0)=0,"",VLOOKUP(R1,漢字読み!$A$2:$O$502,7,0))) ->  | S5: =IF(S1="","",IF(VLOOKUP(S1,漢字読み!$A$2:$O$502,7,0)=0,"",VLOOKUP(S1,漢字読み!$A$2:$O$502,7,0))) ->  | T5: =IF(T1="","",IF(VLOOKUP(T1,漢字読み!$A$2:$O$502,7,0)=0,"",VLOOKUP(T1,漢字読み!$A$2:$O$502,7,0))) -> い | W5: 和歌山県教育委員会
A6: =INDIRECT("'関数（書き）'!C" & COLUMN(B$1)+SUM($AD$2:$AD7)) -> 93 | B6: =INDIRECT("'関数（書き）'!C" & COLUMN(C$1)+SUM($AD$2:$AD7)) -> 78 | C6: =INDIRECT("'関数（書き）'!C" & COLUMN(D$1)+SUM($AD$2:$AD7)) -> 194 | D6: =INDIRECT("'関数（書き）'!C" & COLUMN(E$1)+SUM($AD$2:$AD7)) -> 196 | E6: =INDIRECT("'関数（書き）'!C" & COLUMN(F$1)+SUM($AD$2:$AD7)) -> 85 | F6: =INDIRECT("'関数（書き）'!C" & COLUMN(G$1)+SUM($AD$2:$AD7)) -> 170 | G6: =INDIRECT("'関数（書き）'!C" & COLUMN(H$1)+SUM($AD$2:$AD7)) -> 193 | H6: =INDIRECT("'関数（書き）'!C" & COLUMN(I$1)+SUM($AD$2:$AD7)) -> 178 | I6: =INDIRECT("'関数（書き）'!C" & COLUMN(J$1)+SUM($AD$2:$AD7)) -> 79 | J6: =INDIRECT("'関数（書き）'!C" & COLUMN(K$1)+SUM($AD$2:$AD7)) -> 184 | K6: =INDIRECT("'関数（読み）'!C" & COLUMN(B$1)+SUM($AD$2:$AD7)) -> 162 | L6: =INDIRECT("'関数（読み）'!C" & COLUMN(C$1)+SUM($AD$2:$AD7)) -> 177 | M6: =INDIRECT("'関数（読み）'!C" & COLUMN(D$1)+SUM($AD$2:$AD7)) -> 2 | N6: =INDIRECT("'関数（読み）'!C" & COLUMN(E$1)+SUM($AD$2:$AD7)) -> 179 | O6: =INDIRECT("'関数（読み）'!C" & COLUMN(F$1)+SUM($AD$2:$AD7)) -> 148 | P6: =INDIRECT("'関数（読み）'!C" & COLUMN(G$1)+SUM($AD$2:$AD7)) -> 160 | Q6: =INDIRECT("'関数（読み）'!C" & COLUMN(H$1)+SUM($AD$2:$AD7)) -> 71 | R6: =INDIRECT("'関数（読み）'!C" & COLUMN(I$1)+SUM($AD$2:$AD7)) -> 107 | S6: =INDIRECT("'関数（読み）'!C" & COLUMN(J$1)+SUM($AD$2:$AD7)) -> 55 | T6: =INDIRECT("'関数（読み）'!C" & COLUMN(K$1)+SUM($AD$2:$AD7)) -> 174
A7: ⑳ | B7: ⑲ | C7: ⑱ | D7: ⑰ | E7: ⑯ | F7: ⑮ | G7: ⑭ | H7: ⑬ | I7: ⑫ | J7: ⑪ | K7: ⑩ | L7: ⑨ | M7: ⑧ | N7: ⑦ | O7: ⑥ | P7: ⑤ | Q7: ④ | R7: ③ | S7: ② | T7: ① | U7: 次の［ ］の部分の漢字には読みがなをひらがなで書き、カタカナは漢字に直しなさい。 | V7: 12 | W7: 「漢字の博士検定試験」練習問題 | AC7: ← | AD7: 10 | AE7: 問 | AF7: =AH2+1 -> 11 | AG7: ～ | AH7: =SUM($AD$2:$AD7)+10 -> 20 | AI7: 問まで | AJ7: =COUNTIF($A$1:$T$200,T8) -> 2
A8: =IF(A6="","",VLOOKUP(A6,漢字書き!$A$2:$N$506,6,0)) -> うめ［シュ］を作る | B8: =IF(B6="","",VLOOKUP(B6,漢字書き!$A$2:$N$506,6,0)) -> くだものの［ミ］がなる | C8: =IF(C6="","",VLOOKUP(C6,漢字書き!$A$2:$N$506,6,0)) -> 長所と［タンショ］ | D8: =IF(D6="","",VLOOKUP(D6,漢字書き!$A$2:$N$506,6,0)) -> ［ダンワ］室に入る | E8: =IF(E6="","",VLOOKUP(E6,漢字書き!$A$2:$N$506,6,0)) -> ［シュジン］にしたがう | F8: =IF(F6="","",VLOOKUP(F6,漢字書き!$A$2:$N$506,6,0)) -> ［キュウソク］をとる | G8: =IF(G6="","",VLOOKUP(G6,漢字書き!$A$2:$N$506,6,0)) -> ［スミビ］で魚をやく | H8: =IF(H6="","",VLOOKUP(H6,漢字書き!$A$2:$N$506,6,0)) -> その［タ］大ぜい | I8: =IF(I6="","",VLOOKUP(I6,漢字書き!$A$2:$N$506,6,0)) -> ［ミノ］りの秋 | J8: =IF(J6="","",VLOOKUP(J6,漢字書き!$A$2:$N$506,6,0)) -> ［キタイ］をよせる | K8: =IF(K6="","",VLOOKUP(K6,漢字読み!$A$2:$O$506,6,0)) -> 車で［送］げいしてもらう | L8: =IF(L6="","",VLOOKUP(L6,漢字読み!$A$2:$O$506,6,0)) -> ３［対］１で勝つ | M8: =IF(M6="","",VLOOKUP(M6,漢字読み!$A$2:$O$506,6,0)) -> 一めんの［銀世界］ | N8: =IF(N6="","",VLOOKUP(N6,漢字読み!$A$2:$O$506,6,0)) -> ［期待］して見守る | O8: =IF(O6="","",VLOOKUP(O6,漢字読み!$A$2:$O$506,6,0)) -> どんどん［進］む | P8: =IF(P6="","",VLOOKUP(P6,漢字読み!$A$2:$O$506,6,0)) -> グループで［相談］する | Q8: =IF(Q6="","",VLOOKUP(Q6,漢字読み!$A$2:$O$506,6,0)) -> [次回]ちょうせんする | R8: =IF(R6="","",VLOOKUP(R6,漢字読み!$A$2:$O$506,6,0)) -> 人がたくさん［集］まる | S8: =IF(S6="","",VLOOKUP(S6,漢字読み!$A$2:$O$506,6,0)) -> 祭りの［使者］ | T8: =IF(T6="","",VLOOKUP(T6,漢字読み!$A$2:$O$506,6,0)) -> ［打開］さくを考える | V8: 級
V9: 名前
A10: =IF(A6="","",IF(VLOOKUP(A6,漢字書き!$A$2:$N$502,7,0)=0,"",VLOOKUP(A6,漢字書き!$A$2:$N$502,7,0))) ->  | B10: =IF(B6="","",IF(VLOOKUP(B6,漢字書き!$A$2:$N$502,7,0)=0,"",VLOOKUP(B6,漢字書き!$A$2:$N$502,7,0))) ->  | C10: =IF(C6="","",IF(VLOOKUP(C6,漢字書き!$A$2:$N$502,7,0)=0,"",VLOOKUP(C6,漢字書き!$A$2:$N$502,7,0))) ->  | D10: =IF(D6="","",IF(VLOOKUP(D6,漢字書き!$A$2:$N$502,7,0)=0,"",VLOOKUP(D6,漢字書き!$A$2:$N$502,7,0))) -> 室 | E10: =IF(E6="","",IF(VLOOKUP(E6,漢字書き!$A$2:$N$502,7,0)=0,"",VLOOKUP(E6,漢字書き!$A$2:$N$502,7,0))) ->  | F10: =IF(F6="","",IF(VLOOKUP(F6,漢字書き!$A$2:$N$502,7,0)=0,"",VLOOKUP(F6,漢字書き!$A$2:$N$502,7,0))) ->  | G10: =IF(G6="","",IF(VLOOKUP(G6,漢字書き!$A$2:$N$502,7,0)=0,"",VLOOKUP(G6,漢字書き!$A$2:$N$502,7,0))) ->  | H10: =IF(H6="","",IF(VLOOKUP(H6,漢字書き!$A$2:$N$502,7,0)=0,"",VLOOKUP(H6,漢字書き!$A$2:$N$502,7,0))) ->  | I10: =IF(I6="","",IF(VLOOKUP(I6,漢字書き!$A$2:$N$502,7,0)=0,"",VLOOKUP(I6,漢字書き!$A$2:$N$502,7,0))) -> り | J10: =IF(J6="","",IF(VLOOKUP(J6,漢字書き!$A$2:$N$502,7,0)=0,"",VLOOKUP(J6,漢字書き!$A$2:$N$502,7,0))) ->  | K10: =IF(K6="","",IF(VLOOKUP(K6,漢字読み!$A$2:$O$502,7,0)=0,"",VLOOKUP(K6,漢字読み!$A$2:$O$502,7,0))) -> げい | L10: =IF(L6="","",IF(VLOOKUP(L6,漢字読み!$A$2:$O$502,7,0)=0,"",VLOOKUP(L6,漢字読み!$A$2:$O$502,7,0))) ->  | M10: =IF(M6="","",IF(VLOOKUP(M6,漢字読み!$A$2:$O$502,7,0)=0,"",VLOOKUP(M6,漢字読み!$A$2:$O$502,7,0))) ->  | N10: =IF(N6="","",IF(VLOOKUP(N6,漢字読み!$A$2:$O$502,7,0)=0,"",VLOOKUP(N6,漢字読み!$A$2:$O$502,7,0))) -> して | O10: =IF(O6="","",IF(VLOOKUP(O6,漢字読み!$A$2:$O$502,7,0)=0,"",VLOOKUP(O6,漢字読み!$A$2:$O$502,7,0))) -> む | P10: =IF(P6="","",IF(VLOOKUP(P6,漢字読み!$A$2:$O$502,7,0)=0,"",VLOOKUP(P6,漢字読み!$A$2:$O$502,7,0))) -> する | Q10: =IF(Q6="","",IF(VLOOKUP(Q6,漢字読み!$A$2:$O$502,7,0)=0,"",VLOOKUP(Q6,漢字読み!$A$2:$O$502,7,0))) ->  | R10: =IF(R6="","",IF(VLOOKUP(R6,漢字読み!$A$2:$O$502,7,0)=0,"",VLOOKUP(R6,漢字読み!$A$2:$O$502,7,0))) -> まる | S10: =IF(S6="","",IF(VLOOKUP(S6,漢字読み!$A$2:$O$502,7,0)=0,"",VLOOKUP(S6,漢字読み!$A$2:$O$502,7,0))) ->  | T10: =IF(T6="","",IF(VLOOKUP(T6,漢字読み!$A$2:$O$502,7,0)=0,"",VLOOKUP(T6,漢字読み!$A$2:$O$502,7,0))) -> さく | W10: 和歌山県教育委員会
A11: =A1 -> 13 | B11: 182 | C11: 26 | D11: 191 | E11: 159 | F11: 74 | G11: 181 | H11: 58 | I11: 24 | J11: 107 | K11: 167 | L11: 240 | M11: 215 | N11: 198 | O11: 143 | P11: 207 | Q11: 184 | R11: 235 | S11: 224 | T11: 146
A12: ⑳ | B12: ⑲ | C12: ⑱ | D12: ⑰ | E12: ⑯ | F12: ⑮ | G12: ⑭ | H12: ⑬ | I12: ⑫ | J12: ⑪ | K12: ⑩ | L12: ⑨ | M12: ⑧ | N12: ⑦ | O12: ⑥ | P12: ⑤ | Q12: ④ | R12: ③ | S12: ② | T12: ① | U12: 次の［ ］の部分の漢字には読みがなをひらがなで書き、カタカナは漢字に直しなさい。 | V12: 12 | W12: 「漢字の博士検定試験」練習問題
A13: =IF(A11="","",VLOOKUP(A11,漢字書き!$A$2:$N$506,6,0)) -> 君とはかん［ケイ］ない | B13: =IF(B11="","",VLOOKUP(B11,漢字書き!$A$2:$N$506,6,0)) -> はん［タイ］の意見 | C13: =IF(C11="","",VLOOKUP(C11,漢字書き!$A$2:$N$506,6,0)) -> [ケン]しゅうを受ける | D13: =IF(D11="","",VLOOKUP(D11,漢字書き!$A$2:$N$506,6,0)) -> ［セキタン］をもやす | E13: =IF(E11="","",VLOOKUP(E11,漢字書き!$A$2:$N$506,6,0)) -> ふくそうを［トトノ］える | F13: =IF(F11="","",VLOOKUP(F11,漢字書き!$A$2:$N$506,6,0)) -> ［ニュウガクシキ］に出る | G13: =IF(G11="","",VLOOKUP(G11,漢字書き!$A$2:$N$506,6,0)) -> ヒットを［ウ］つ | H13: =IF(H11="","",VLOOKUP(H11,漢字書き!$A$2:$N$506,6,0)) -> そうじを［ハジ］める | I13: =IF(I11="","",VLOOKUP(I11,漢字書き!$A$2:$N$506,6,0)) -> せきを［キ］める | J13: =IF(J11="","",VLOOKUP(J11,漢字書き!$A$2:$N$506,6,0)) -> 空手を［ナラ］う | K13: =IF(K11="","",VLOOKUP(K11,漢字読み!$A$2:$O$506,6,0)) -> ［息］をはく | L13: =IF(L11="","",VLOOKUP(L11,漢字読み!$A$2:$O$506,6,0)) -> ［豆］ふを食べる | M13: =IF(M11="","",VLOOKUP(M11,漢字読み!$A$2:$O$506,6,0)) -> ［定番］のおかず | N13: =IF(N11="","",VLOOKUP(N11,漢字読み!$A$2:$O$506,6,0)) -> 駅に［着］く | O13: =IF(O11="","",VLOOKUP(O11,漢字読み!$A$2:$O$506,6,0)) -> ［真］っ暗やみ | P13: =IF(P11="","",VLOOKUP(P11,漢字読み!$A$2:$O$506,6,0)) -> ほう[丁]で切る | Q13: =IF(Q11="","",VLOOKUP(Q11,漢字読み!$A$2:$O$506,6,0)) -> ［交代］をする | R13: =IF(R11="","",VLOOKUP(R11,漢字読み!$A$2:$O$506,6,0)) -> 日本の［都］ | S13: =IF(S11="","",VLOOKUP(S11,漢字読み!$A$2:$O$506,6,0)) -> ［笛］の音 | T13: =IF(T11="","",VLOOKUP(T11,漢字読み!$A$2:$O$506,6,0)) -> ［深］い谷のそこ | V13: 級
A14: =IF(A$11="","",VLOOKUP(A11,漢字書き!$A$2:$O$506,8,0)) -> 係 | B14: =IF(B$11="","",VLOOKUP(B11,漢字書き!$A$2:$O$506,8,0)) -> 対 | C14: =IF(C$11="","",VLOOKUP(C11,漢字書き!$A$2:$O$506,8,0)) -> 研 | D14: =IF(D$11="","",VLOOKUP(D11,漢字書き!$A$2:$O$506,8,0)) -> 石炭 | E14: =IF(E$11="","",VLOOKUP(E11,漢字書き!$A$2:$O$506,8,0)) -> 整 | F14: =IF(F$11="","",VLOOKUP(F11,漢字書き!$A$2:$O$506,8,0)) -> 入学式 | G14: =IF(G$11="","",VLOOKUP(G11,漢字書き!$A$2:$O$506,8,0)) -> 打 | H14: =IF(H$11="","",VLOOKUP(H11,漢字書き!$A$2:$O$506,8,0)) -> 始 | I14: =IF(I$11="","",VLOOKUP(I11,漢字書き!$A$2:$O$506,8,0)) -> 決 | J14: =IF(J$11="","",VLOOKUP(J11,漢字書き!$A$2:$O$506,8,0)) -> 習 | K14: =IF(K$11="","",VLOOKUP(K11,漢字読み!$A$2:$O$506,8,0)) -> いき | L14: =IF(L$11="","",VLOOKUP(L11,漢字読み!$A$2:$O$506,8,0)) -> とう | M14: =IF(M$11="","",VLOOKUP(M11,漢字読み!$A$2:$O$506,8,0)) -> ていばん | N14: =IF(N$11="","",VLOOKUP(N11,漢字読み!$A$2:$O$506,8,0)) -> つ | O14: =IF(O$11="","",VLOOKUP(O11,漢字読み!$A$2:$O$506,8,0)) -> ま | P14: =IF(P$11="","",VLOOKUP(P11,漢字読み!$A$2:$O$506,8,0)) -> ちょう | Q14: =IF(Q$11="","",VLOOKUP(Q11,漢字読み!$A$2:$O$506,8,0)) -> こうたい | R14: =IF(R$11="","",VLOOKUP(R11,漢字読み!$A$2:$O$506,8,0)) -> みやこ | S14: =IF(S$11="","",VLOOKUP(S11,漢字読み!$A$2:$O$506,8,0)) -> ふえ | T14: =IF(T$11="","",VLOOKUP(T11,漢字読み!$A$2:$O$506,8,0)) -> ふか | V14: 名前
A15: =IF(A11="","",IF(VLOOKUP(A11,漢字書き!$A$2:$N$502,7,0)=0,"",VLOOKUP(A11,漢字書き!$A$2:$N$502,7,0))) -> ない | B15: =IF(B11="","",IF(VLOOKUP(B11,漢字書き!$A$2:$N$502,7,0)=0,"",VLOOKUP(B11,漢字書き!$A$2:$N$502,7,0))) ->  | C15: =IF(C11="","",IF(VLOOKUP(C11,漢字書き!$A$2:$N$502,7,0)=0,"",VLOOKUP(C11,漢字書き!$A$2:$N$502,7,0))) -> しゅう | D15: =IF(D11="","",IF(VLOOKUP(D11,漢字書き!$A$2:$N$502,7,0)=0,"",VLOOKUP(D11,漢字書き!$A$2:$N$502,7,0))) ->  | E15: =IF(E11="","",IF(VLOOKUP(E11,漢字書き!$A$2:$N$502,7,0)=0,"",VLOOKUP(E11,漢字書き!$A$2:$N$502,7,0))) -> える | F15: =IF(F11="","",IF(VLOOKUP(F11,漢字書き!$A$2:$N$502,7,0)=0,"",VLOOKUP(F11,漢字書き!$A$2:$N$502,7,0))) ->  | G15: =IF(G11="","",IF(VLOOKUP(G11,漢字書き!$A$2:$N$502,7,0)=0,"",VLOOKUP(G11,漢字書き!$A$2:$N$502,7,0))) -> つ | H15: =IF(H11="","",IF(VLOOKUP(H11,漢字書き!$A$2:$N$502,7,0)=0,"",VLOOKUP(H11,漢字書き!$A$2:$N$502,7,0))) -> める | I15: =IF(I11="","",IF(VLOOKUP(I11,漢字書き!$A$2:$N$502,7,0)=0,"",VLOOKUP(I11,漢字書き!$A$2:$N$502,7,0))) -> める | J15: =IF(J11="","",IF(VLOOKUP(J11,漢字書き!$A$2:$N$502,7,0)=0,"",VLOOKUP(J11,漢字書き!$A$2:$N$502,7,0))) -> う | K15: =IF(K11="","",IF(VLOOKUP(K11,漢字読み!$A$2:$O$502,7,0)=0,"",VLOOKUP(K11,漢字読み!$A$2:$O$502,7,0))) ->  | L15: =IF(L11="","",IF(VLOOKUP(L11,漢字読み!$A$2:$O$502,7,0)=0,"",VLOOKUP(L11,漢字読み!$A$2:$O$502,7,0))) -> ふ | M15: =IF(M11="","",IF(VLOOKUP(M11,漢字読み!$A$2:$O$502,7,0)=0,"",VLOOKUP(M11,漢字読み!$A$2:$O$502,7,0))) ->  | N15: =IF(N11="","",IF(VLOOKUP(N11,漢字読み!$A$2:$O$502,7,0)=0,"",VLOOKUP(N11,漢字読み!$A$2:$O$502,7,0))) -> く | O15: =IF(O11="","",IF(VLOOKUP(O11,漢字読み!$A$2:$O$502,7,0)=0,"",VLOOKUP(O11,漢字読み!$A$2:$O$502,7,0))) -> っ暗 | P15: =IF(P11="","",IF(VLOOKUP(P11,漢字読み!$A$2:$O$502,7,0)=0,"",VLOOKUP(P11,漢字読み!$A$2:$O$502,7,0))) ->  | Q15: =IF(Q11="","",IF(VLOOKUP(Q11,漢字読み!$A$2:$O$502,7,0)=0,"",VLOOKUP(Q11,漢字読み!$A$2:$O$502,7,0))) ->  | R15: =IF(R11="","",IF(VLOOKUP(R11,漢字読み!$A$2:$O$502,7,0)=0,"",VLOOKUP(R11,漢字読み!$A$2:$O$502,7,0))) ->  | S15: =IF(S11="","",IF(VLOOKUP(S11,漢字読み!$A$2:$O$502,7,0)=0,"",VLOOKUP(S11,漢字読み!$A$2:$O$502,7,0))) ->  | T15: =IF(T11="","",IF(VLOOKUP(T11,漢字読み!$A$2:$O$502,7,0)=0,"",VLOOKUP(T11,漢字読み!$A$2:$O$502,7,0))) -> い | W15: 和歌山県教育委員会
A16: =A6 -> 93 | B16: 78 | C16: 194 | D16: 196 | E16: 85 | F16: 170 | G16: 193 | H16: 178 | I16: 79 | J16: 184 | K16: 162 | L16: 177 | M16: 2 | N16: 179 | O16: 148 | P16: 160 | Q16: 71 | R16: 107 | S16: 55 | T16: 174
A17: ⑳ | B17: ⑲ | C17: ⑱ | D17: ⑰ | E17: ⑯ | F17: ⑮ | G17: ⑭ | H17: ⑬ | I17: ⑫ | J17: ⑪ | K17: ⑩ | L17: ⑨ | M17: ⑧ | N17: ⑦ | O17: ⑥ | P17: ⑤ | Q17: ④ | R17: ③ | S17: ② | T17: ① | U17: 次の［ ］の部分の漢字には読みがなをひらがなで書き、カタカナは漢字に直しなさい。 | V17: 12 | W17: 「漢字の博士検定試験」練習問題
A18: =IF(A16="","",VLOOKUP(A16,漢字書き!$A$2:$N$506,6,0)) -> うめ［シュ］を作る | B18: =IF(B16="","",VLOOKUP(B16,漢字書き!$A$2:$N$506,6,0)) -> くだものの［ミ］がなる | C18: =IF(C16="","",VLOOKUP(C16,漢字書き!$A$2:$N$506,6,0)) -> 長所と［タンショ］ | D18: =IF(D16="","",VLOOKUP(D16,漢字書き!$A$2:$N$506,6,0)) -> ［ダンワ］室に入る | E18: =IF(E16="","",VLOOKUP(E16,漢字書き!$A$2:$N$506,6,0)) -> ［シュジン］にしたがう | F18: =IF(F16="","",VLOOKUP(F16,漢字書き!$A$2:$N$506,6,0)) -> ［キュウソク］をとる | G18: =IF(G16="","",VLOOKUP(G16,漢字書き!$A$2:$N$506,6,0)) -> ［スミビ］で魚をやく | H18: =IF(H16="","",VLOOKUP(H16,漢字書き!$A$2:$N$506,6,0)) -> その［タ］大ぜい | I18: =IF(I16="","",VLOOKUP(I16,漢字書き!$A$2:$N$506,6,0)) -> ［ミノ］りの秋 | J18: =IF(J16="","",VLOOKUP(J16,漢字書き!$A$2:$N$506,6,0)) -> ［キタイ］をよせる | K18: =IF(K16="","",VLOOKUP(K16,漢字読み!$A$2:$O$506,6,0)) -> 車で［送］げいしてもらう | L18: =IF(L16="","",VLOOKUP(L16,漢字読み!$A$2:$O$506,6,0)) -> ３［対］１で勝つ | M18: =IF(M16="","",VLOOKUP(M16,漢字読み!$A$2:$O$506,6,0)) -> 一めんの［銀世界］ | N18: =IF(N16="","",VLOOKUP(N16,漢字読み!$A$2:$O$506,6,0)) -> ［期待］して見守る | O18: =IF(O16="","",VLOOKUP(O16,漢字読み!$A$2:$O$506,6,0)) -> どんどん［進］む | P18: =IF(P16="","",VLOOKUP(P16,漢字読み!$A$2:$O$506,6,0)) -> グループで［相談］する | Q18: =IF(Q16="","",VLOOKUP(Q16,漢字読み!$A$2:$O$506,6,0)) -> [次回]ちょうせんする | R18: =IF(R16="","",VLOOKUP(R16,漢字読み!$A$2:$O$506,6,0)) -> 人がたくさん［集］まる | S18: =IF(S16="","",VLOOKUP(S16,漢字読み!$A$2:$O$506,6,0)) -> 祭りの［使者］ | T18: =IF(T16="","",VLOOKUP(T16,漢字読み!$A$2:$O$506,6,0)) -> ［打開］さくを考える | V18: 級
A19: =IF(A$16="","",VLOOKUP(A16,漢字書き!$A$2:$O$506,8,0)) -> 酒 | B19: =IF(B$16="","",VLOOKUP(B16,漢字書き!$A$2:$O$506,8,0)) -> 実 | C19: =IF(C$16="","",VLOOKUP(C16,漢字書き!$A$2:$O$506,8,0)) -> 短所 | D19: =IF(D$16="","",VLOOKUP(D16,漢字書き!$A$2:$O$506,8,0)) -> 談話 | E19: =IF(E$16="","",VLOOKUP(E16,漢字書き!$A$2:$O$506,8,0)) -> 主人 | F19: =IF(F$16="","",VLOOKUP(F16,漢字書き!$A$2:$O$506,8,0)) -> 休息 | G19: =IF(G$16="","",VLOOKUP(G16,漢字書き!$A$2:$O$506,8,0)) -> 炭火 | H19: =IF(H$16="","",VLOOKUP(H16,漢字書き!$A$2:$O$506,8,0)) -> 他 | I19: =IF(I$16="","",VLOOKUP(I16,漢字書き!$A$2:$O$506,8,0)) -> 実 | J19: =IF(J$16="","",VLOOKUP(J16,漢字書き!$A$2:$O$506,8,0)) -> 期待 | K19: =IF(K$16="","",VLOOKUP(K16,漢字読み!$A$2:$O$506,8,0)) -> そう | L19: =IF(L$16="","",VLOOKUP(L16,漢字読み!$A$2:$O$506,8,0)) -> たい | M19: =IF(M$16="","",VLOOKUP(M16,漢字読み!$A$2:$O$506,8,0)) -> ぎんせかい | N19: =IF(N$16="","",VLOOKUP(N16,漢字読み!$A$2:$O$506,8,0)) -> きたい | O19: =IF(O$16="","",VLOOKUP(O16,漢字読み!$A$2:$O$506,8,0)) -> すす | P19: =IF(P$16="","",VLOOKUP(P16,漢字読み!$A$2:$O$506,8,0)) -> そうだん | Q19: =IF(Q$16="","",VLOOKUP(Q16,漢字読み!$A$2:$O$506,8,0)) -> じかい | R19: =IF(R$16="","",VLOOKUP(R16,漢字読み!$A$2:$O$506,8,0)) -> あつ | S19: =IF(S$16="","",VLOOKUP(S16,漢字読み!$A$2:$O$506,8,0)) -> ししゃ | T19: =IF(T$16="","",VLOOKUP(T16,漢字読み!$A$2:$O$506,8,0)) -> だかい | V19: 名前
A20: =IF(A16="","",IF(VLOOKUP(A16,漢字書き!$A$2:$N$502,7,0)=0,"",VLOOKUP(A16,漢字書き!$A$2:$N$502,7,0))) ->  | B20: =IF(B16="","",IF(VLOOKUP(B16,漢字書き!$A$2:$N$502,7,0)=0,"",VLOOKUP(B16,漢字書き!$A$2:$N$502,7,0))) ->  | C20: =IF(C16="","",IF(VLOOKUP(C16,漢字書き!$A$2:$N$502,7,0)=0,"",VLOOKUP(C16,漢字書き!$A$2:$N$502,7,0))) ->  | D20: =IF(D16="","",IF(VLOOKUP(D16,漢字書き!$A$2:$N$502,7,0)=0,"",VLOOKUP(D16,漢字書き!$A$2:$N$502,7,0))) -> 室 | E20: =IF(E16="","",IF(VLOOKUP(E16,漢字書き!$A$2:$N$502,7,0)=0,"",VLOOKUP(E16,漢字書き!$A$2:$N$502,7,0))) ->  | F20: =IF(F16="","",IF(VLOOKUP(F16,漢字書き!$A$2:$N$502,7,0)=0,"",VLOOKUP(F16,漢字書き!$A$2:$N$502,7,0))) ->  | G20: =IF(G16="","",IF(VLOOKUP(G16,漢字書き!$A$2:$N$502,7,0)=0,"",VLOOKUP(G16,漢字書き!$A$2:$N$502,7,0))) ->  | H20: =IF(H16="","",IF(VLOOKUP(H16,漢字書き!$A$2:$N$502,7,0)=0,"",VLOOKUP(H16,漢字書き!$A$2:$N$502,7,0))) ->  | I20: =IF(I16="","",IF(VLOOKUP(I16,漢字書き!$A$2:$N$502,7,0)=0,"",VLOOKUP(I16,漢字書き!$A$2:$N$502,7,0))) -> り | J20: =IF(J16="","",IF(VLOOKUP(J16,漢字書き!$A$2:$N$502,7,0)=0,"",VLOOKUP(J16,漢字書き!$A$2:$N$502,7,0))) ->  | K20: =IF(K16="","",IF(VLOOKUP(K16,漢字読み!$A$2:$O$502,7,0)=0,"",VLOOKUP(K16,漢字読み!$A$2:$O$502,7,0))) -> げい | L20: =IF(L16="","",IF(VLOOKUP(L16,漢字読み!$A$2:$O$502,7,0)=0,"",VLOOKUP(L16,漢字読み!$A$2:$O$502,7,0))) ->  | M20: =IF(M16="","",IF(VLOOKUP(M16,漢字読み!$A$2:$O$502,7,0)=0,"",VLOOKUP(M16,漢字読み!$A$2:$O$502,7,0))) ->  | N20: =IF(N16="","",IF(VLOOKUP(N16,漢字読み!$A$2:$O$502,7,0)=0,"",VLOOKUP(N16,漢字読み!$A$2:$O$502,7,0))) -> して | O20: =IF(O16="","",IF(VLOOKUP(O16,漢字読み!$A$2:$O$502,7,0)=0,"",VLOOKUP(O16,漢字読み!$A$2:$O$502,7,0))) -> む | P20: =IF(P16="","",IF(VLOOKUP(P16,漢字読み!$A$2:$O$502,7,0)=0,"",VLOOKUP(P16,漢字読み!$A$2:$O$502,7,0))) -> する | Q20: =IF(Q16="","",IF(VLOOKUP(Q16,漢字読み!$A$2:$O$502,7,0)=0,"",VLOOKUP(Q16,漢字読み!$A$2:$O$502,7,0))) ->  | R20: =IF(R16="","",IF(VLOOKUP(R16,漢字読み!$A$2:$O$502,7,0)=0,"",VLOOKUP(R16,漢字読み!$A$2:$O$502,7,0))) -> まる | S20: =IF(S16="","",IF(VLOOKUP(S16,漢字読み!$A$2:$O$502,7,0)=0,"",VLOOKUP(S16,漢字読み!$A$2:$O$502,7,0))) ->  | T20: =IF(T16="","",IF(VLOOKUP(T16,漢字読み!$A$2:$O$502,7,0)=0,"",VLOOKUP(T16,漢字読み!$A$2:$O$502,7,0))) -> さく | W20: 和歌山県教育委員会
A21: =INDIRECT("'関数（書き）'!C" & COLUMN(B$1)+SUM($AD$2:$AD22)) -> 207 | B21: =INDIRECT("'関数（書き）'!C" & COLUMN(C$1)+SUM($AD$2:$AD22)) -> 138 | C21: =INDIRECT("'関数（書き）'!C" & COLUMN(D$1)+SUM($AD$2:$AD22)) -> 66 | D21: =INDIRECT("'関数（書き）'!C" & COLUMN(E$1)+SUM($AD$2:$AD22)) -> 141 | E21: =INDIRECT("'関数（書き）'!C" & COLUMN(F$1)+SUM($AD$2:$AD22)) -> 100 | F21: =INDIRECT("'関数（書き）'!C" & COLUMN(G$1)+SUM($AD$2:$AD22)) -> 118 | G21: =INDIRECT("'関数（書き）'!C" & COLUMN(H$1)+SUM($AD$2:$AD22)) -> 211 | H21: =INDIRECT("'関数（書き）'!C" & COLUMN(I$1)+SUM($AD$2:$AD22)) -> 96 | I21: =INDIRECT("'関数（書き）'!C" & COLUMN(J$1)+SUM($AD$2:$AD22)) -> 168 | J21: =INDIRECT("'関数（書き）'!C" & COLUMN(K$1)+SUM($AD$2:$AD22)) -> 189 | K21: =INDIRECT("'関数（読み）'!C" & COLUMN(B$1)+SUM($AD$2:$AD22)) -> 66 | L21: =INDIRECT("'関数（読み）'!C" & COLUMN(C$1)+SUM($AD$2:$AD22)) -> 236 | M21: =INDIRECT("'関数（読み）'!C" & COLUMN(D$1)+SUM($AD$2:$AD22)) -> 208 | N21: =INDIRECT("'関数（読み）'!C" & COLUMN(E$1)+SUM($AD$2:$AD22)) -> 172 | O21: =INDIRECT("'関数（読み）'!C" & COLUMN(F$1)+SUM($AD$2:$AD22)) -> 18 | P21: =INDIRECT("'関数（読み）'!C" & COLUMN(G$1)+SUM($AD$2:$AD22)) -> 152 | Q21: =INDIRECT("'関数（読み）'!C" & COLUMN(H$1)+SUM($AD$2:$AD22)) -> 33 | R21: =INDIRECT("'関数（読み）'!C" & COLUMN(I$1)+SUM($AD$2:$AD22)) -> 97 | S21: =INDIRECT("'関数（読み）'!C" & COLUMN(J$1)+SUM($AD$2:$AD22)) -> 213 | T21: =INDIRECT("'関数（読み）'!C" & COLUMN(K$1)+SUM($AD$2:$AD22)) -> 121
A22: ⑳ | B22: ⑲ | C22: ⑱ | D22: ⑰ | E22: ⑯ | F22: ⑮ | G22: ⑭ | H22: ⑬ | I22: ⑫ | J22: ⑪ | K22: ⑩ | L22: ⑨ | M22: ⑧ | N22: ⑦ | O22: ⑥ | P22: ⑤ | Q22: ④ | R22: ③ | S22: ② | T22: ① | U22: 次の［ ］の部分の漢字には読みがなをひらがなで書き、カタカナは漢字に直しなさい。 | V22: 12 | W22: 「漢字の博士検定試験」練習問題 | AC22: ← | AD22: 10 | AE22: 問 | AF22: =AH7+1 -> 21 | AG22: ～ | AH22: =SUM($AD$2:$AD22)+10 -> 30 | AI22: 問まで | AJ22: =COUNTIF($A$1:$T$200,T23) -> 2
A23: =IF(A21="","",VLOOKUP(A21,漢字書き!$A$2:$N$506,6,0)) -> 太い［ハシラ］ | B23: =IF(B21="","",VLOOKUP(B21,漢字書き!$A$2:$N$506,6,0)) -> ［ショクブツ］が育つ | C23: =IF(C21="","",VLOOKUP(C21,漢字書き!$A$2:$N$506,6,0)) -> ［シ］を書く | D23: =IF(D21="","",VLOOKUP(D21,漢字書き!$A$2:$N$506,6,0)) -> ［シンチョウ］がのびる | E23: =IF(E21="","",VLOOKUP(E21,漢字書き!$A$2:$N$506,6,0)) -> [ホンシュウ]にわたる | F23: =IF(F21="","",VLOOKUP(F21,漢字書き!$A$2:$N$506,6,0)) -> ［ヤド］で一休みする | G23: =IF(G21="","",VLOOKUP(G21,漢字書き!$A$2:$N$506,6,0)) -> ［タイチョウ］が悪い | H23: =IF(H21="","",VLOOKUP(H21,漢字書き!$A$2:$N$506,6,0)) -> 書るいを［ジュリ］する | I23: =IF(I21="","",VLOOKUP(I21,漢字書き!$A$2:$N$506,6,0)) -> 駅まで［オク］る | J23: =IF(J21="","",VLOOKUP(J21,漢字書き!$A$2:$N$506,6,0)) -> ［ダイ］一回の大会 | K23: =IF(K21="","",VLOOKUP(K21,漢字読み!$A$2:$O$506,6,0)) -> ［歯医者］に行く | L23: =IF(L21="","",VLOOKUP(L21,漢字読み!$A$2:$O$506,6,0)) -> ［度］をこえた出来事 | M23: =IF(M21="","",VLOOKUP(M21,漢字読み!$A$2:$O$506,6,0)) -> 三［丁目］にいる | N23: =IF(N21="","",VLOOKUP(N21,漢字読み!$A$2:$O$506,6,0)) -> その［他］の意見 | O23: =IF(O21="","",VLOOKUP(O21,漢字読み!$A$2:$O$506,6,0)) -> ［軽］いかばん | P23: =IF(P21="","",VLOOKUP(P21,漢字読み!$A$2:$O$506,6,0)) -> 本を［整］える | Q23: =IF(Q21="","",VLOOKUP(Q21,漢字読み!$A$2:$O$506,6,0)) -> 意よくの［向上］ | R23: =IF(R21="","",VLOOKUP(R21,漢字読み!$A$2:$O$506,6,0)) -> ［九州］のいとこ | S23: =IF(S21="","",VLOOKUP(S21,漢字読み!$A$2:$O$506,6,0)) -> 真実を［追究］する | T23: =IF(T21="","",VLOOKUP(T21,漢字読み!$A$2:$O$506,6,0)) -> ［助］けをもとめる | V23: 級
V24: 名前
A25: =IF(A21="","",IF(VLOOKUP(A21,漢字書き!$A$2:$N$502,7,0)=0,"",VLOOKUP(A21,漢字書き!$A$2:$N$502,7,0))) ->  | B25: =IF(B21="","",IF(VLOOKUP(B21,漢字書き!$A$2:$N$502,7,0)=0,"",VLOOKUP(B21,漢字書き!$A$2:$N$502,7,0))) ->  | C25: =IF(C21="","",IF(VLOOKUP(C21,漢字書き!$A$2:$N$502,7,0)=0,"",VLOOKUP(C21,漢字書き!$A$2:$N$502,7,0))) ->  | D25: =IF(D21="","",IF(VLOOKUP(D21,漢字書き!$A$2:$N$502,7,0)=0,"",VLOOKUP(D21,漢字書き!$A$2:$N$502,7,0))) ->  | E25: =IF(E21="","",IF(VLOOKUP(E21,漢字書き!$A$2:$N$502,7,0)=0,"",VLOOKUP(E21,漢字書き!$A$2:$N$502,7,0))) ->  | F25: =IF(F21="","",IF(VLOOKUP(F21,漢字書き!$A$2:$N$502,7,0)=0,"",VLOOKUP(F21,漢字書き!$A$2:$N$502,7,0))) ->  | G25: =IF(G21="","",IF(VLOOKUP(G21,漢字書き!$A$2:$N$502,7,0)=0,"",VLOOKUP(G21,漢字書き!$A$2:$N$502,7,0))) ->  | H25: =IF(H21="","",IF(VLOOKUP(H21,漢字書き!$A$2:$N$502,7,0)=0,"",VLOOKUP(H21,漢字書き!$A$2:$N$502,7,0))) -> する | I25: =IF(I21="","",IF(VLOOKUP(I21,漢字書き!$A$2:$N$502,7,0)=0,"",VLOOKUP(I21,漢字書き!$A$2:$N$502,7,0))) -> る | J25: =IF(J21="","",IF(VLOOKUP(J21,漢字書き!$A$2:$N$502,7,0)=0,"",VLOOKUP(J21,漢字書き!$A$2:$N$502,7,0))) -> 一回 | K25: =IF(K21="","",IF(VLOOKUP(K21,漢字読み!$A$2:$O$502,7,0)=0,"",VLOOKUP(K21,漢字読み!$A$2:$O$502,7,0))) ->  | L25: =IF(L21="","",IF(VLOOKUP(L21,漢字読み!$A$2:$O$502,7,0)=0,"",VLOOKUP(L21,漢字読み!$A$2:$O$502,7,0))) ->  | M25: =IF(M21="","",IF(VLOOKUP(M21,漢字読み!$A$2:$O$502,7,0)=0,"",VLOOKUP(M21,漢字読み!$A$2:$O$502,7,0))) ->  | N25: =IF(N21="","",IF(VLOOKUP(N21,漢字読み!$A$2:$O$502,7,0)=0,"",VLOOKUP(N21,漢字読み!$A$2:$O$502,7,0))) ->  | O25: =IF(O21="","",IF(VLOOKUP(O21,漢字読み!$A$2:$O$502,7,0)=0,"",VLOOKUP(O21,漢字読み!$A$2:$O$502,7,0))) -> い | P25: =IF(P21="","",IF(VLOOKUP(P21,漢字読み!$A$2:$O$502,7,0)=0,"",VLOOKUP(P21,漢字読み!$A$2:$O$502,7,0))) -> える | Q25: =IF(Q21="","",IF(VLOOKUP(Q21,漢字読み!$A$2:$O$502,7,0)=0,"",VLOOKUP(Q21,漢字読み!$A$2:$O$502,7,0))) ->  | R25: =IF(R21="","",IF(VLOOKUP(R21,漢字読み!$A$2:$O$502,7,0)=0,"",VLOOKUP(R21,漢字読み!$A$2:$O$502,7,0))) ->  | S25: =IF(S21="","",IF(VLOOKUP(S21,漢字読み!$A$2:$O$502,7,0)=0,"",VLOOKUP(S21,漢字読み!$A$2:$O$502,7,0))) -> する | T25: =IF(T21="","",IF(VLOOKUP(T21,漢字読み!$A$2:$O$502,7,0)=0,"",VLOOKUP(T21,漢字読み!$A$2:$O$502,7,0))) -> け | W25: 和歌山県教育委員会
A26: =INDIRECT("'関数（書き）'!C" & COLUMN(B$1)+SUM($AD$2:$AD27)) -> 86 | B26: =INDIRECT("'関数（書き）'!C" & COLUMN(C$1)+SUM($AD$2:$AD27)) -> 228 | C26: =INDIRECT("'関数（書き）'!C" & COLUMN(D$1)+SUM($AD$2:$AD27)) -> 95 | D26: =INDIRECT("'関数（書き）'!C" & COLUMN(E$1)+SUM($AD$2:$AD27)) -> 224 | E26: =INDIRECT("'関数（書き）'!C" & COLUMN(F$1)+SUM($AD$2:$AD27)) -> 156 | F26: =INDIRECT("'関数（書き）'!C" & COLUMN(G$1)+SUM($AD$2:$AD27)) -> 179 | G26: =INDIRECT("'関数（書き）'!C" & COLUMN(H$1)+SUM($AD$2:$AD27)) -> 123 | H26: =INDIRECT("'関数（書き）'!C" & COLUMN(I$1)+SUM($AD$2:$AD27)) -> 216 | I26: =INDIRECT("'関数（書き）'!C" & COLUMN(J$1)+SUM($AD$2:$AD27)) -> 190 | J26: =INDIRECT("'関数（書き）'!C" & COLUMN(K$1)+SUM($AD$2:$AD27)) -> 101 | K26: =INDIRECT("'関数（読み）'!C" & COLUMN(B$1)+SUM($AD$2:$AD27)) -> 108 | L26: =INDIRECT("'関数（読み）'!C" & COLUMN(C$1)+SUM($AD$2:$AD27)) -> 225 | M26: =INDIRECT("'関数（読み）'!C" & COLUMN(D$1)+SUM($AD$2:$AD27)) -> 222 | N26: =INDIRECT("'関数（読み）'!C" & COLUMN(E$1)+SUM($AD$2:$AD27)) -> 163 | O26: =INDIRECT("'関数（読み）'!C" & COLUMN(F$1)+SUM($AD$2:$AD27)) -> 28 | P26: =INDIRECT("'関数（読み）'!C" & COLUMN(G$1)+SUM($AD$2:$AD27)) -> 25 | Q26: =INDIRECT("'関数（読み）'!C" & COLUMN(H$1)+SUM($AD$2:$AD27)) -> 31 | R26: =INDIRECT("'関数（読み）'!C" & COLUMN(I$1)+SUM($AD$2:$AD27)) -> 114 | S26: =INDIRECT("'関数（読み）'!C" & COLUMN(J$1)+SUM($AD$2:$AD27)) -> 243 | T26: =INDIRECT("'関数（読み）'!C" & COLUMN(K$1)+SUM($AD$2:$AD27)) -> 197
A27: ⑳ | B27: ⑲ | C27: ⑱ | D27: ⑰ | E27: ⑯ | F27: ⑮ | G27: ⑭ | H27: ⑬ | I27: ⑫ | J27: ⑪ | K27: ⑩ | L27: ⑨ | M27: ⑧ | N27: ⑦ | O27: ⑥ | P27: ⑤ | Q27: ④ | R27: ③ | S27: ② | T27: ① | U27: 次の［ ］の部分の漢字には読みがなをひらがなで書き、カタカナは漢字に直しなさい。 | V27: 12 | W27: 「漢字の博士検定試験」練習問題 | AC27: ← | AD27: 10 | AE27: 問 | AF27: =AH22+1 -> 31 | AG27: ～ | AH27: =SUM($AD$2:$AD27)+10 -> 40 | AI27: 問まで | AJ27: =COUNTIF($A$1:$T$200,T28) -> 2
A28: =IF(A26="","",VLOOKUP(A26,漢字書き!$A$2:$N$506,6,0)) -> ［オモ］な仕事 | B28: =IF(B26="","",VLOOKUP(B26,漢字書き!$A$2:$N$506,6,0)) -> ［トカイ］ではくらせない | C28: =IF(C26="","",VLOOKUP(C26,漢字書き!$A$2:$N$506,6,0)) -> ［サカヤ］に買いに行く | D28: =IF(D26="","",VLOOKUP(D26,漢字書き!$A$2:$N$506,6,0)) -> ［テツ］ぼうがとく意 | E28: =IF(E26="","",VLOOKUP(E26,漢字書き!$A$2:$N$506,6,0)) -> ［セカイ］いさん | F28: =IF(F26="","",VLOOKUP(F26,漢字書き!$A$2:$N$506,6,0)) -> ［ホカ］の考えを聞く | G28: =IF(G26="","",VLOOKUP(G26,漢字書き!$A$2:$N$506,6,0)) -> ［アツ］い日がつづく | H28: =IF(H26="","",VLOOKUP(H26,漢字書き!$A$2:$N$506,6,0)) -> 魚を［オ］う | I28: =IF(I26="","",VLOOKUP(I26,漢字書き!$A$2:$N$506,6,0)) -> 作文の［ダイメイ］ | J28: =IF(J26="","",VLOOKUP(J26,漢字書き!$A$2:$N$506,6,0)) -> ごみを［ヒロ］う | K28: =IF(K26="","",VLOOKUP(K26,漢字読み!$A$2:$O$506,6,0)) -> 文学[全集]を買う | L28: =IF(L26="","",VLOOKUP(L26,漢字読み!$A$2:$O$506,6,0)) -> たて［笛］をふく | M28: =IF(M26="","",VLOOKUP(M26,漢字読み!$A$2:$O$506,6,0)) -> ［中庭］に集まる | N28: =IF(N26="","",VLOOKUP(N26,漢字読み!$A$2:$O$506,6,0)) -> プレゼントを［送］る | O28: =IF(O26="","",VLOOKUP(O26,漢字読み!$A$2:$O$506,6,0)) -> ［車庫］に入れる | P28: =IF(P26="","",VLOOKUP(P26,漢字読み!$A$2:$O$506,6,0)) -> [研]しゅうを受ける | Q28: =IF(Q26="","",VLOOKUP(Q26,漢字読み!$A$2:$O$506,6,0)) -> 大きな［湖］ | R28: =IF(R26="","",VLOOKUP(R26,漢字読み!$A$2:$O$506,6,0)) -> ［宿］にとまる | S28: =IF(S26="","",VLOOKUP(S26,漢字読み!$A$2:$O$506,6,0)) -> 日本は［島国］だ | T28: =IF(T26="","",VLOOKUP(T26,漢字読み!$A$2:$O$506,6,0)) -> 上手に［着地］する | V28: 級
V29: 名前
A30: =IF(A26="","",IF(VLOOKUP(A26,漢字書き!$A$2:$N$502,7,0)=0,"",VLOOKUP(A26,漢字書き!$A$2:$N$502,7,0))) -> な | B30: =IF(B26="","",IF(VLOOKUP(B26,漢字書き!$A$2:$N$502,7,0)=0,"",VLOOKUP(B26,漢字書き!$A$2:$N$502,7,0))) ->  | C30: =IF(C26="","",IF(VLOOKUP(C26,漢字書き!$A$2:$N$502,7,0)=0,"",VLOOKUP(C26,漢字書き!$A$2:$N$502,7,0))) ->  | D30: =IF(D26="","",IF(VLOOKUP(D26,漢字書き!$A$2:$N$502,7,0)=0,"",VLOOKUP(D26,漢字書き!$A$2:$N$502,7,0))) -> ぼう | E30: =IF(E26="","",IF(VLOOKUP(E26,漢字書き!$A$2:$N$502,7,0)=0,"",VLOOKUP(E26,漢字書き!$A$2:$N$502,7,0))) ->  | F30: =IF(F26="","",IF(VLOOKUP(F26,漢字書き!$A$2:$N$502,7,0)=0,"",VLOOKUP(F26,漢字書き!$A$2:$N$502,7,0))) ->  | G30: =IF(G26="","",IF(VLOOKUP(G26,漢字書き!$A$2:$N$502,7,0)=0,"",VLOOKUP(G26,漢字書き!$A$2:$N$502,7,0))) -> い | H30: =IF(H26="","",IF(VLOOKUP(H26,漢字書き!$A$2:$N$502,7,0)=0,"",VLOOKUP(H26,漢字書き!$A$2:$N$502,7,0))) -> う | I30: =IF(I26="","",IF(VLOOKUP(I26,漢字書き!$A$2:$N$502,7,0)=0,"",VLOOKUP(I26,漢字書き!$A$2:$N$502,7,0))) ->  | J30: =IF(J26="","",IF(VLOOKUP(J26,漢字書き!$A$2:$N$502,7,0)=0,"",VLOOKUP(J26,漢字書き!$A$2:$N$502,7,0))) -> う | K30: =IF(K26="","",IF(VLOOKUP(K26,漢字読み!$A$2:$O$502,7,0)=0,"",VLOOKUP(K26,漢字読み!$A$2:$O$502,7,0))) ->  | L30: =IF(L26="","",IF(VLOOKUP(L26,漢字読み!$A$2:$O$502,7,0)=0,"",VLOOKUP(L26,漢字読み!$A$2:$O$502,7,0))) ->  | M30: =IF(M26="","",IF(VLOOKUP(M26,漢字読み!$A$2:$O$502,7,0)=0,"",VLOOKUP(M26,漢字読み!$A$2:$O$502,7,0))) ->  | N30: =IF(N26="","",IF(VLOOKUP(N26,漢字読み!$A$2:$O$502,7,0)=0,"",VLOOKUP(N26,漢字読み!$A$2:$O$502,7,0))) -> る | O30: =IF(O26="","",IF(VLOOKUP(O26,漢字読み!$A$2:$O$502,7,0)=0,"",VLOOKUP(O26,漢字読み!$A$2:$O$502,7,0))) ->  | P30: =IF(P26="","",IF(VLOOKUP(P26,漢字読み!$A$2:$O$502,7,0)=0,"",VLOOKUP(P26,漢字読み!$A$2:$O$502,7,0))) -> しゅう | Q30: =IF(Q26="","",IF(VLOOKUP(Q26,漢字読み!$A$2:$O$502,7,0)=0,"",VLOOKUP(Q26,漢字読み!$A$2:$O$502,7,0))) ->  | R30: =IF(R26="","",IF(VLOOKUP(R26,漢字読み!$A$2:$O$502,7,0)=0,"",VLOOKUP(R26,漢字読み!$A$2:$O$502,7,0))) ->  | S30: =IF(S26="","",IF(VLOOKUP(S26,漢字読み!$A$2:$O$502,7,0)=0,"",VLOOKUP(S26,漢字読み!$A$2:$O$502,7,0))) ->  | T30: =IF(T26="","",IF(VLOOKUP(T26,漢字読み!$A$2:$O$502,7,0)=0,"",VLOOKUP(T26,漢字読み!$A$2:$O$502,7,0))) -> する | W30: 和歌山県教育委員会
A31: =A21 -> 207 | B31: 138 | C31: 66 | D31: 141 | E31: 100 | F31: 118 | G31: 211 | H31: 96 | I31: 168 | J31: 189 | K31: 66 | L31: 236 | M31: 208 | N31: 172 | O31: 18 | P31: 152 | Q31: 33 | R31: 97 | S31: 213 | T31: 121
A32: ⑳ | B32: ⑲ | C32: ⑱ | D32: ⑰ | E32: ⑯ | F32: ⑮ | G32: ⑭ | H32: ⑬ | I32: ⑫ | J32: ⑪ | K32: ⑩ | L32: ⑨ | M32: ⑧ | N32: ⑦ | O32: ⑥ | P32: ⑤ | Q32: ④ | R32: ③ | S32: ② | T32: ① | U32: 次の［ ］の部分の漢字には読みがなをひらがなで書き、カタカナは漢字に直しなさい。 | V32: 12 | W32: 「漢字の博士検定試験」練習問題
A33: =IF(A31="","",VLOOKUP(A31,漢字書き!$A$2:$N$506,6,0)) -> 太い［ハシラ］ | B33: =IF(B31="","",VLOOKUP(B31,漢字書き!$A$2:$N$506,6,0)) -> ［ショクブツ］が育つ | C33: =IF(C31="","",VLOOKUP(C31,漢字書き!$A$2:$N$506,6,0)) -> ［シ］を書く | D33: =IF(D31="","",VLOOKUP(D31,漢字書き!$A$2:$N$506,6,0)) -> ［シンチョウ］がのびる | E33: =IF(E31="","",VLOOKUP(E31,漢字書き!$A$2:$N$506,6,0)) -> [ホンシュウ]にわたる | F33: =IF(F31="","",VLOOKUP(F31,漢字書き!$A$2:$N$506,6,0)) -> ［ヤド］で一休みする | G33: =IF(G31="","",VLOOKUP(G31,漢字書き!$A$2:$N$506,6,0)) -> ［タイチョウ］が悪い | H33: =IF(H31="","",VLOOKUP(H31,漢字書き!$A$2:$N$506,6,0)) -> 書るいを［ジュリ］する | I33: =IF(I31="","",VLOOKUP(I31,漢字書き!$A$2:$N$506,6,0)) -> 駅まで［オク］る | J33: =IF(J31="","",VLOOKUP(J31,漢字書き!$A$2:$N$506,6,0)) -> ［ダイ］一回の大会 | K33: =IF(K31="","",VLOOKUP(K31,漢字読み!$A$2:$O$506,6,0)) -> ［歯医者］に行く | L33: =IF(L31="","",VLOOKUP(L31,漢字読み!$A$2:$O$506,6,0)) -> ［度］をこえた出来事 | M33: =IF(M31="","",VLOOKUP(M31,漢字読み!$A$2:$O$506,6,0)) -> 三［丁目］にいる | N33: =IF(N31="","",VLOOKUP(N31,漢字読み!$A$2:$O$506,6,0)) -> その［他］の意見 | O33: =IF(O31="","",VLOOKUP(O31,漢字読み!$A$2:$O$506,6,0)) -> ［軽］いかばん | P33: =IF(P31="","",VLOOKUP(P31,漢字読み!$A$2:$O$506,6,0)) -> 本を［整］える | Q33: =IF(Q31="","",VLOOKUP(Q31,漢字読み!$A$2:$O$506,6,0)) -> 意よくの［向上］ | R33: =IF(R31="","",VLOOKUP(R31,漢字読み!$A$2:$O$506,6,0)) -> ［九州］のいとこ | S33: =IF(S31="","",VLOOKUP(S31,漢字読み!$A$2:$O$506,6,0)) -> 真実を［追究］する | T33: =IF(T31="","",VLOOKUP(T31,漢字読み!$A$2:$O$506,6,0)) -> ［助］けをもとめる | V33: 級
A34: =IF(A$11="","",VLOOKUP(A31,漢字書き!$A$2:$O$506,8,0)) -> 柱 | B34: =IF(B$11="","",VLOOKUP(B31,漢字書き!$A$2:$O$506,8,0)) -> 植物 | C34: =IF(C$11="","",VLOOKUP(C31,漢字書き!$A$2:$O$506,8,0)) -> 詩 | D34: =IF(D$11="","",VLOOKUP(D31,漢字書き!$A$2:$O$506,8,0)) -> 身長 | E34: =IF(E$11="","",VLOOKUP(E31,漢字書き!$A$2:$O$506,8,0)) -> 本州 | F34: =IF(F$11="","",VLOOKUP(F31,漢字書き!$A$2:$O$506,8,0)) -> 宿 | G34: =IF(G$11="","",VLOOKUP(G31,漢字書き!$A$2:$O$506,8,0)) -> 体調 | H34: =IF(H$11="","",VLOOKUP(H31,漢字書き!$A$2:$O$506,8,0)) -> 受理 | I34: =IF(I$11="","",VLOOKUP(I31,漢字書き!$A$2:$O$506,8,0)) -> 送 | J34: =IF(J$11="","",VLOOKUP(J31,漢字書き!$A$2:$O$506,8,0)) -> 第 | K34: =IF(K$11="","",VLOOKUP(K31,漢字読み!$A$2:$O$506,8,0)) -> はいしゃ | L34: =IF(L$11="","",VLOOKUP(L31,漢字読み!$A$2:$O$506,8,0)) -> ど | M34: =IF(M$11="","",VLOOKUP(M31,漢字読み!$A$2:$O$506,8,0)) -> ちょうめ | N34: =IF(N$11="","",VLOOKUP(N31,漢字読み!$A$2:$O$506,8,0)) -> た | O34: =IF(O$11="","",VLOOKUP(O31,漢字読み!$A$2:$O$506,8,0)) -> かる | P34: =IF(P$11="","",VLOOKUP(P31,漢字読み!$A$2:$O$506,8,0)) -> ととの | Q34: =IF(Q$11="","",VLOOKUP(Q31,漢字読み!$A$2:$O$506,8,0)) -> こうじょう | R34: =IF(R$11="","",VLOOKUP(R31,漢字読み!$A$2:$O$506,8,0)) -> きゅうしゅう | S34: =IF(S$11="","",VLOOKUP(S31,漢字読み!$A$2:$O$506,8,0)) -> ついきゅう | T34: =IF(T$11="","",VLOOKUP(T31,漢字読み!$A$2:$O$506,8,0)) -> たす | V34: 名前
A35: =IF(A31="","",IF(VLOOKUP(A31,漢字書き!$A$2:$N$502,7,0)=0,"",VLOOKUP(A31,漢字書き!$A$2:$N$502,7,0))) ->  | B35: =IF(B31="","",IF(VLOOKUP(B31,漢字書き!$A$2:$N$502,7,0)=0,"",VLOOKUP(B31,漢字書き!$A$2:$N$502,7,0))) ->  | C35: =IF(C31="","",IF(VLOOKUP(C31,漢字書き!$A$2:$N$502,7,0)=0,"",VLOOKUP(C31,漢字書き!$A$2:$N$502,7,0))) ->  | D35: =IF(D31="","",IF(VLOOKUP(D31,漢字書き!$A$2:$N$502,7,0)=0,"",VLOOKUP(D31,漢字書き!$A$2:$N$502,7,0))) ->  | E35: =IF(E31="","",IF(VLOOKUP(E31,漢字書き!$A$2:$N$502,7,0)=0,"",VLOOKUP(E31,漢字書き!$A$2:$N$502,7,0))) ->  | F35: =IF(F31="","",IF(VLOOKUP(F31,漢字書き!$A$2:$N$502,7,0)=0,"",VLOOKUP(F31,漢字書き!$A$2:$N$502,7,0))) ->  | G35: =IF(G31="","",IF(VLOOKUP(G31,漢字書き!$A$2:$N$502,7,0)=0,"",VLOOKUP(G31,漢字書き!$A$2:$N$502,7,0))) ->  | H35: =IF(H31="","",IF(VLOOKUP(H31,漢字書き!$A$2:$N$502,7,0)=0,"",VLOOKUP(H31,漢字書き!$A$2:$N$502,7,0))) -> する | I35: =IF(I31="","",IF(VLOOKUP(I31,漢字書き!$A$2:$N$502,7,0)=0,"",VLOOKUP(I31,漢字書き!$A$2:$N$502,7,0))) -> る | J35: =IF(J31="","",IF(VLOOKUP(J31,漢字書き!$A$2:$N$502,7,0)=0,"",VLOOKUP(J31,漢字書き!$A$2:$N$502,7,0))) -> 一回 | K35: =IF(K31="","",IF(VLOOKUP(K31,漢字読み!$A$2:$O$502,7,0)=0,"",VLOOKUP(K31,漢字読み!$A$2:$O$502,7,0))) ->  | L35: =IF(L31="","",IF(VLOOKUP(L31,漢字読み!$A$2:$O$502,7,0)=0,"",VLOOKUP(L31,漢字読み!$A$2:$O$502,7,0))) ->  | M35: =IF(M31="","",IF(VLOOKUP(M31,漢字読み!$A$2:$O$502,7,0)=0,"",VLOOKUP(M31,漢字読み!$A$2:$O$502,7,0))) ->  | N35: =IF(N31="","",IF(VLOOKUP(N31,漢字読み!$A$2:$O$502,7,0)=0,"",VLOOKUP(N31,漢字読み!$A$2:$O$502,7,0))) ->  | O35: =IF(O31="","",IF(VLOOKUP(O31,漢字読み!$A$2:$O$502,7,0)=0,"",VLOOKUP(O31,漢字読み!$A$2:$O$502,7,0))) -> い | P35: =IF(P31="","",IF(VLOOKUP(P31,漢字読み!$A$2:$O$502,7,0)=0,"",VLOOKUP(P31,漢字読み!$A$2:$O$502,7,0))) -> える | Q35: =IF(Q31="","",IF(VLOOKUP(Q31,漢字読み!$A$2:$O$502,7,0)=0,"",VLOOKUP(Q31,漢字読み!$A$2:$O$502,7,0))) ->  | R35: =IF(R31="","",IF(VLOOKUP(R31,漢字読み!$A$2:$O$502,7,0)=0,"",VLOOKUP(R31,漢字読み!$A$2:$O$502,7,0))) ->  | S35: =IF(S31="","",IF(VLOOKUP(S31,漢字読み!$A$2:$O$502,7,0)=0,"",VLOOKUP(S31,漢字読み!$A$2:$O$502,7,0))) -> する | T35: =IF(T31="","",IF(VLOOKUP(T31,漢字読み!$A$2:$O$502,7,0)=0,"",VLOOKUP(T31,漢字読み!$A$2:$O$502,7,0))) -> け | W35: 和歌山県教育委員会
A36: =A26 -> 86 | B36: 228 | C36: 95 | D36: 224 | E36: 156 | F36: 179 | G36: 123 | H36: 216 | I36: 190 | J36: 101 | K36: 108 | L36: 225 | M36: 222 | N36: 163 | O36: 28 | P36: 25 | Q36: 31 | R36: 114 | S36: 243 | T36: 197
A37: ⑳ | B37: ⑲ | C37: ⑱ | D37: ⑰ | E37: ⑯ | F37: ⑮ | G37: ⑭ | H37: ⑬ | I37: ⑫ | J37: ⑪ | K37: ⑩ | L37: ⑨ | M37: ⑧ | N37: ⑦ | O37: ⑥ | P37: ⑤ | Q37: ④ | R37: ③ | S37: ② | T37: ① | U37: 次の［ ］の部分の漢字には読みがなをひらがなで書き、カタカナは漢字に直しなさい。 | V37: 12 | W37: 「漢字の博士検定試験」練習問題
A38: =IF(A36="","",VLOOKUP(A36,漢字書き!$A$2:$N$506,6,0)) -> ［オモ］な仕事 | B38: =IF(B36="","",VLOOKUP(B36,漢字書き!$A$2:$N$506,6,0)) -> ［トカイ］ではくらせない | C38: =IF(C36="","",VLOOKUP(C36,漢字書き!$A$2:$N$506,6,0)) -> ［サカヤ］に買いに行く | D38: =IF(D36="","",VLOOKUP(D36,漢字書き!$A$2:$N$506,6,0)) -> ［テツ］ぼうがとく意 | E38: =IF(E36="","",VLOOKUP(E36,漢字書き!$A$2:$N$506,6,0)) -> ［セカイ］いさん | F38: =IF(F36="","",VLOOKUP(F36,漢字書き!$A$2:$N$506,6,0)) -> ［ホカ］の考えを聞く | G38: =IF(G36="","",VLOOKUP(G36,漢字書き!$A$2:$N$506,6,0)) -> ［アツ］い日がつづく | H38: =IF(H36="","",VLOOKUP(H36,漢字書き!$A$2:$N$506,6,0)) -> 魚を［オ］う | I38: =IF(I36="","",VLOOKUP(I36,漢字書き!$A$2:$N$506,6,0)) -> 作文の［ダイメイ］ | J38: =IF(J36="","",VLOOKUP(J36,漢字書き!$A$2:$N$506,6,0)) -> ごみを［ヒロ］う | K38: =IF(K36="","",VLOOKUP(K36,漢字読み!$A$2:$O$506,6,0)) -> 文学[全集]を買う | L38: =IF(L36="","",VLOOKUP(L36,漢字読み!$A$2:$O$506,6,0)) -> たて［笛］をふく | M38: =IF(M36="","",VLOOKUP(M36,漢字読み!$A$2:$O$506,6,0)) -> ［中庭］に集まる | N38: =IF(N36="","",VLOOKUP(N36,漢字読み!$A$2:$O$506,6,0)) -> プレゼントを［送］る | O38: =IF(O36="","",VLOOKUP(O36,漢字読み!$A$2:$O$506,6,0)) -> ［車庫］に入れる | P38: =IF(P36="","",VLOOKUP(P36,漢字読み!$A$2:$O$506,6,0)) -> [研]しゅうを受ける | Q38: =IF(Q36="","",VLOOKUP(Q36,漢字読み!$A$2:$O$506,6,0)) -> 大きな［湖］ | R38: =IF(R36="","",VLOOKUP(R36,漢字読み!$A$2:$O$506,6,0)) -> ［宿］にとまる | S38: =IF(S36="","",VLOOKUP(S36,漢字読み!$A$2:$O$506,6,0)) -> 日本は［島国］だ | T38: =IF(T36="","",VLOOKUP(T36,漢字読み!$A$2:$O$506,6,0)) -> 上手に［着地］する | V38: 級
A39: =IF(A$16="","",VLOOKUP(A36,漢字書き!$A$2:$O$506,8,0)) -> 主 | B39: =IF(B$16="","",VLOOKUP(B36,漢字書き!$A$2:$O$506,8,0)) -> 都会 | C39: =IF(C$16="","",VLOOKUP(C36,漢字書き!$A$2:$O$506,8,0)) -> 酒屋 | D39: =IF(D$16="","",VLOOKUP(D36,漢字書き!$A$2:$O$506,8,0)) -> 鉄 | E39: =IF(E$16="","",VLOOKUP(E36,漢字書き!$A$2:$O$506,8,0)) -> 世界 | F39: =IF(F$16="","",VLOOKUP(F36,漢字書き!$A$2:$O$506,8,0)) -> 他 | G39: =IF(G$16="","",VLOOKUP(G36,漢字書き!$A$2:$O$506,8,0)) -> 暑 | H39: =IF(H$16="","",VLOOKUP(H36,漢字書き!$A$2:$O$506,8,0)) -> 追 | I39: =IF(I$16="","",VLOOKUP(I36,漢字書き!$A$2:$O$506,8,0)) -> 題名 | J39: =IF(J$16="","",VLOOKUP(J36,漢字書き!$A$2:$O$506,8,0)) -> 拾 | K39: =IF(K$16="","",VLOOKUP(K36,漢字読み!$A$2:$O$506,8,0)) -> ぜんしゅう | L39: =IF(L$16="","",VLOOKUP(L36,漢字読み!$A$2:$O$506,8,0)) -> ぶえ | M39: =IF(M$16="","",VLOOKUP(M36,漢字読み!$A$2:$O$506,8,0)) -> なかにわ | N39: =IF(N$16="","",VLOOKUP(N36,漢字読み!$A$2:$O$506,8,0)) -> おく | O39: =IF(O$16="","",VLOOKUP(O36,漢字読み!$A$2:$O$506,8,0)) -> しゃこ | P39: =IF(P$16="","",VLOOKUP(P36,漢字読み!$A$2:$O$506,8,0)) -> けん | Q39: =IF(Q$16="","",VLOOKUP(Q36,漢字読み!$A$2:$O$506,8,0)) -> みずうみ | R39: =IF(R$16="","",VLOOKUP(R36,漢字読み!$A$2:$O$506,8,0)) -> やど | S39: =IF(S$16="","",VLOOKUP(S36,漢字読み!$A$2:$O$506,8,0)) -> しまぐに | T39: =IF(T$16="","",VLOOKUP(T36,漢字読み!$A$2:$O$506,8,0)) -> ちゃくち | V39: 名前
A40: =IF(A36="","",IF(VLOOKUP(A36,漢字書き!$A$2:$N$502,7,0)=0,"",VLOOKUP(A36,漢字書き!$A$2:$N$502,7,0))) -> な | B40: =IF(B36="","",IF(VLOOKUP(B36,漢字書き!$A$2:$N$502,7,0)=0,"",VLOOKUP(B36,漢字書き!$A$2:$N$502,7,0))) ->  | C40: =IF(C36="","",IF(VLOOKUP(C36,漢字書き!$A$2:$N$502,7,0)=0,"",VLOOKUP(C36,漢字書き!$A$2:$N$502,7,0))) ->  | D40: =IF(D36="","",IF(VLOOKUP(D36,漢字書き!$A$2:$N$502,7,0)=0,"",VLOOKUP(D36,漢字書き!$A$2:$N$502,7,0))) -> ぼう | E40: =IF(E36="","",IF(VLOOKUP(E36,漢字書き!$A$2:$N$502,7,0)=0,"",VLOOKUP(E36,漢字書き!$A$2:$N$502,7,0))) ->  | F40: =IF(F36="","",IF(VLOOKUP(F36,漢字書き!$A$2:$N$502,7,0)=0,"",VLOOKUP(F36,漢字書き!$A$2:$N$502,7,0))) ->  | G40: =IF(G36="","",IF(VLOOKUP(G36,漢字書き!$A$2:$N$502,7,0)=0,"",VLOOKUP(G36,漢字書き!$A$2:$N$502,7,0))) -> い | H40: =IF(H36="","",IF(VLOOKUP(H36,漢字書き!$A$2:$N$502,7,0)=0,"",VLOOKUP(H36,漢字書き!$A$2:$N$502,7,0))) -> う | I40: =IF(I36="","",IF(VLOOKUP(I36,漢字書き!$A$2:$N$502,7,0)=0,"",VLOOKUP(I36,漢字書き!$A$2:$N$502,7,0))) ->  | J40: =IF(J36="","",IF(VLOOKUP(J36,漢字書き!$A$2:$N$502,7,0)=0,"",VLOOKUP(J36,漢字書き!$A$2:$N$502,7,0))) -> う | K40: =IF(K36="","",IF(VLOOKUP(K36,漢字読み!$A$2:$O$502,7,0)=0,"",VLOOKUP(K36,漢字読み!$A$2:$O$502,7,0))) ->  | L40: =IF(L36="","",IF(VLOOKUP(L36,漢字読み!$A$2:$O$502,7,0)=0,"",VLOOKUP(L36,漢字読み!$A$2:$O$502,7,0))) ->  | M40: =IF(M36="","",IF(VLOOKUP(M36,漢字読み!$A$2:$O$502,7,0)=0,"",VLOOKUP(M36,漢字読み!$A$2:$O$502,7,0))) ->  | N40: =IF(N36="","",IF(VLOOKUP(N36,漢字読み!$A$2:$O$502,7,0)=0,"",VLOOKUP(N36,漢字読み!$A$2:$O$502,7,0))) -> る | O40: =IF(O36="","",IF(VLOOKUP(O36,漢字読み!$A$2:$O$502,7,0)=0,"",VLOOKUP(O36,漢字読み!$A$2:$O$502,7,0))) ->  | P40: =IF(P36="","",IF(VLOOKUP(P36,漢字読み!$A$2:$O$502,7,0)=0,"",VLOOKUP(P36,漢字読み!$A$2:$O$502,7,0))) -> しゅう | Q40: =IF(Q36="","",IF(VLOOKUP(Q36,漢字読み!$A$2:$O$502,7,0)=0,"",VLOOKUP(Q36,漢字読み!$A$2:$O$502,7,0))) ->  | R40: =IF(R36="","",IF(VLOOKUP(R36,漢字読み!$A$2:$O$502,7,0)=0,"",VLOOKUP(R36,漢字読み!$A$2:$O$502,7,0))) ->  | S40: =IF(S36="","",IF(VLOOKUP(S36,漢字読み!$A$2:$O$502,7,0)=0,"",VLOOKUP(S36,漢字読み!$A$2:$O$502,7,0))) ->  | T40: =IF(T36="","",IF(VLOOKUP(T36,漢字読み!$A$2:$O$502,7,0)=0,"",VLOOKUP(T36,漢字読み!$A$2:$O$502,7,0))) -> する | W40: 和歌山県教育委員会
A41: =INDIRECT("'関数（書き）'!C" & COLUMN(B$1)+SUM($AD$2:$AD42)) -> 201 | B41: =INDIRECT("'関数（書き）'!C" & COLUMN(C$1)+SUM($AD$2:$AD42)) -> 39 | C41: =INDIRECT("'関数（書き）'!C" & COLUMN(D$1)+SUM($AD$2:$AD42)) -> 70 | D41: =INDIRECT("'関数（書き）'!C" & COLUMN(E$1)+SUM($AD$2:$AD42)) -> 5 | E41: =INDIRECT("'関数（書き）'!C" & COLUMN(F$1)+SUM($AD$2:$AD42)) -> 214 | F41: =INDIRECT("'関数（書き）'!C" & COLUMN(G$1)+SUM($AD$2:$AD42)) -> 14 | G41: =INDIRECT("'関数（書き）'!C" & COLUMN(H$1)+SUM($AD$2:$AD42)) -> 52 | H41: =INDIRECT("'関数（書き）'!C" & COLUMN(I$1)+SUM($AD$2:$AD42)) -> 68 | I41: =INDIRECT("'関数（書き）'!C" & COLUMN(J$1)+SUM($AD$2:$AD42)) -> 75 | J41: =INDIRECT("'関数（書き）'!C" & COLUMN(K$1)+SUM($AD$2:$AD42)) -> 202 | K41: =INDIRECT("'関数（読み）'!C" & COLUMN(B$1)+SUM($AD$2:$AD42)) -> 195 | L41: =INDIRECT("'関数（読み）'!C" & COLUMN(C$1)+SUM($AD$2:$AD42)) -> 200 | M41: =INDIRECT("'関数（読み）'!C" & COLUMN(D$1)+SUM($AD$2:$AD42)) -> 136 | N41: =INDIRECT("'関数（読み）'!C" & COLUMN(E$1)+SUM($AD$2:$AD42)) -> 126 | O41: =INDIRECT("'関数（読み）'!C" & COLUMN(F$1)+SUM($AD$2:$AD42)) -> 124 | P41: =INDIRECT("'関数（読み）'!C" & COLUMN(G$1)+SUM($AD$2:$AD42)) -> 201 | Q41: =INDIRECT("'関数（読み）'!C" & COLUMN(H$1)+SUM($AD$2:$AD42)) -> 233 | R41: =INDIRECT("'関数（読み）'!C" & COLUMN(I$1)+SUM($AD$2:$AD42)) -> 144 | S41: =INDIRECT("'関数（読み）'!C" & COLUMN(J$1)+SUM($AD$2:$AD42)) -> 40 | T41: =INDIRECT("'関数（読み）'!C" & COLUMN(K$1)+SUM($AD$2:$AD42)) -> 157
A42: ⑳ | B42: ⑲ | C42: ⑱ | D42: ⑰ | E42: ⑯ | F42: ⑮ | G42: ⑭ | H42: ⑬ | I42: ⑫ | J42: ⑪ | K42: ⑩ | L42: ⑨ | M42: ⑧ | N42: ⑦ | O42: ⑥ | P42: ⑤ | Q42: ④ | R42: ③ | S42: ② | T42: ① | U42: 次の［ ］の部分の漢字には読みがなをひらがなで書き、カタカナは漢字に直しなさい。 | V42: 12 | W42: 「漢字の博士検定試験」練習問題 | AC42: ← | AD42: 10 | AE42: 問 | AF42: =AH27+1 -> 41 | AG42: ～ | AH42: =SUM($AD$2:$AD42)+10 -> 50 | AI42: 問まで | AJ42: =COUNTIF($A$1:$T$200,T43) -> 2
A43: =IF(A41="","",VLOOKUP(A41,漢字書き!$A$2:$N$506,6,0)) -> 駅に［ツ］く | B43: =IF(B41="","",VLOOKUP(B41,漢字書き!$A$2:$N$506,6,0)) -> 船が［シュッコウ］する | C43: =IF(C41="","",VLOOKUP(C41,漢字書き!$A$2:$N$506,6,0)) -> 県［チジ］をつとめる | D43: =IF(D41="","",VLOOKUP(D41,漢字書き!$A$2:$N$506,6,0)) -> ［チク］の会合に出る | E43: =IF(E41="","",VLOOKUP(E41,漢字書き!$A$2:$N$506,6,0)) -> アンケート[チョウ]さ | F43: =IF(F41="","",VLOOKUP(F41,漢字書き!$A$2:$N$506,6,0)) -> 教科の［カカリ］を決める | G43: =IF(G41="","",VLOOKUP(G41,漢字書き!$A$2:$N$506,6,0)) -> 火事で［シシャ］が出る | H43: =IF(H41="","",VLOOKUP(H41,漢字書き!$A$2:$N$506,6,0)) -> ［ツギ］の人をよぶ | I43: =IF(I41="","",VLOOKUP(I41,漢字書き!$A$2:$N$506,6,0)) -> わり算の［シキ］ | J43: =IF(J41="","",VLOOKUP(J41,漢字書き!$A$2:$N$506,6,0)) -> ［キ］せかえ人形 | K43: =IF(K41="","",VLOOKUP(K41,漢字読み!$A$2:$O$506,6,0)) -> ［短］いひも | L43: =IF(L41="","",VLOOKUP(L41,漢字読み!$A$2:$O$506,6,0)) -> ［上着］をかける | M43: =IF(M41="","",VLOOKUP(M41,漢字読み!$A$2:$O$506,6,0)) -> 入会を［申］しこむ | N43: =IF(N41="","",VLOOKUP(N41,漢字読み!$A$2:$O$506,6,0)) -> ［商売］をする | O43: =IF(O41="","",VLOOKUP(O41,漢字読み!$A$2:$O$506,6,0)) -> 火が［消］える | P43: =IF(P41="","",VLOOKUP(P41,漢字読み!$A$2:$O$506,6,0)) -> ジュースを［注文］する | Q43: =IF(Q41="","",VLOOKUP(Q41,漢字読み!$A$2:$O$506,6,0)) -> ［都合］が悪い | R43: =IF(R41="","",VLOOKUP(R41,漢字読み!$A$2:$O$506,6,0)) -> ［真心］をこめる | S43: =IF(S41="","",VLOOKUP(S41,漢字読み!$A$2:$O$506,6,0)) -> ［港町］の人々 | T43: =IF(T41="","",VLOOKUP(T41,漢字読み!$A$2:$O$506,6,0)) -> クラス［全員］ | V43: 級
V44: 名前
A45: =IF(A41="","",IF(VLOOKUP(A41,漢字書き!$A$2:$N$502,7,0)=0,"",VLOOKUP(A41,漢字書き!$A$2:$N$502,7,0))) -> く | B45: =IF(B41="","",IF(VLOOKUP(B41,漢字書き!$A$2:$N$502,7,0)=0,"",VLOOKUP(B41,漢字書き!$A$2:$N$502,7,0))) -> する | C45: =IF(C41="","",IF(VLOOKUP(C41,漢字書き!$A$2:$N$502,7,0)=0,"",VLOOKUP(C41,漢字書き!$A$2:$N$502,7,0))) ->  | D45: =IF(D41="","",IF(VLOOKUP(D41,漢字書き!$A$2:$N$502,7,0)=0,"",VLOOKUP(D41,漢字書き!$A$2:$N$502,7,0))) ->  | E45: =IF(E41="","",IF(VLOOKUP(E41,漢字書き!$A$2:$N$502,7,0)=0,"",VLOOKUP(E41,漢字書き!$A$2:$N$502,7,0))) -> さ | F45: =IF(F41="","",IF(VLOOKUP(F41,漢字書き!$A$2:$N$502,7,0)=0,"",VLOOKUP(F41,漢字書き!$A$2:$N$502,7,0))) ->  | G45: =IF(G41="","",IF(VLOOKUP(G41,漢字書き!$A$2:$N$502,7,0)=0,"",VLOOKUP(G41,漢字書き!$A$2:$N$502,7,0))) ->  | H45: =IF(H41="","",IF(VLOOKUP(H41,漢字書き!$A$2:$N$502,7,0)=0,"",VLOOKUP(H41,漢字書き!$A$2:$N$502,7,0))) ->  | I45: =IF(I41="","",IF(VLOOKUP(I41,漢字書き!$A$2:$N$502,7,0)=0,"",VLOOKUP(I41,漢字書き!$A$2:$N$502,7,0))) ->  | J45: =IF(J41="","",IF(VLOOKUP(J41,漢字書き!$A$2:$N$502,7,0)=0,"",VLOOKUP(J41,漢字書き!$A$2:$N$502,7,0))) -> せかえ | K45: =IF(K41="","",IF(VLOOKUP(K41,漢字読み!$A$2:$O$502,7,0)=0,"",VLOOKUP(K41,漢字読み!$A$2:$O$502,7,0))) -> い | L45: =IF(L41="","",IF(VLOOKUP(L41,漢字読み!$A$2:$O$502,7,0)=0,"",VLOOKUP(L41,漢字読み!$A$2:$O$502,7,0))) ->  | M45: =IF(M41="","",IF(VLOOKUP(M41,漢字読み!$A$2:$O$502,7,0)=0,"",VLOOKUP(M41,漢字読み!$A$2:$O$502,7,0))) -> しこむ | N45: =IF(N41="","",IF(VLOOKUP(N41,漢字読み!$A$2:$O$502,7,0)=0,"",VLOOKUP(N41,漢字読み!$A$2:$O$502,7,0))) ->  | O45: =IF(O41="","",IF(VLOOKUP(O41,漢字読み!$A$2:$O$502,7,0)=0,"",VLOOKUP(O41,漢字読み!$A$2:$O$502,7,0))) -> える | P45: =IF(P41="","",IF(VLOOKUP(P41,漢字読み!$A$2:$O$502,7,0)=0,"",VLOOKUP(P41,漢字読み!$A$2:$O$502,7,0))) -> する | Q45: =IF(Q41="","",IF(VLOOKUP(Q41,漢字読み!$A$2:$O$502,7,0)=0,"",VLOOKUP(Q41,漢字読み!$A$2:$O$502,7,0))) ->  | R45: =IF(R41="","",IF(VLOOKUP(R41,漢字読み!$A$2:$O$502,7,0)=0,"",VLOOKUP(R41,漢字読み!$A$2:$O$502,7,0))) ->  | S45: =IF(S41="","",IF(VLOOKUP(S41,漢字読み!$A$2:$O$502,7,0)=0,"",VLOOKUP(S41,漢字読み!$A$2:$O$502,7,0))) ->  | T45: =IF(T41="","",IF(VLOOKUP(T41,漢字読み!$A$2:$O$502,7,0)=0,"",VLOOKUP(T41,漢字読み!$A$2:$O$502,7,0))) ->  | W45: 和歌山県教育委員会
A46: =INDIRECT("'関数（書き）'!C" & COLUMN(B$1)+SUM($AD$2:$AD47)) -> 226 | B46: =INDIRECT("'関数（書き）'!C" & COLUMN(C$1)+SUM($AD$2:$AD47)) -> 144 | C46: =INDIRECT("'関数（書き）'!C" & COLUMN(D$1)+SUM($AD$2:$AD47)) -> 150 | D46: =INDIRECT("'関数（書き）'!C" & COLUMN(E$1)+SUM($AD$2:$AD47)) -> 11 | E46: =INDIRECT("'関数（書き）'!C" & COLUMN(F$1)+SUM($AD$2:$AD47)) -> 183 | F46: =INDIRECT("'関数（書き）'!C" & COLUMN(G$1)+SUM($AD$2:$AD47)) -> 30 | G46: =INDIRECT("'関数（書き）'!C" & COLUMN(H$1)+SUM($AD$2:$AD47)) -> 40 | H46: =INDIRECT("'関数（書き）'!C" & COLUMN(I$1)+SUM($AD$2:$AD47)) -> 84 | I46: =INDIRECT("'関数（書き）'!C" & COLUMN(J$1)+SUM($AD$2:$AD47)) -> 21 | J46: =INDIRECT("'関数（書き）'!C" & COLUMN(K$1)+SUM($AD$2:$AD47)) -> 166 | K46: =INDIRECT("'関数（読み）'!C" & COLUMN(B$1)+SUM($AD$2:$AD47)) -> 153 | L46: =INDIRECT("'関数（読み）'!C" & COLUMN(C$1)+SUM($AD$2:$AD47)) -> 138 | M46: =INDIRECT("'関数（読み）'!C" & COLUMN(D$1)+SUM($AD$2:$AD47)) -> 223 | N46: =INDIRECT("'関数（読み）'!C" & COLUMN(E$1)+SUM($AD$2:$AD47)) -> 82 | O46: =INDIRECT("'関数（読み）'!C" & COLUMN(F$1)+SUM($AD$2:$AD47)) -> 91 | P46: =INDIRECT("'関数（読み）'!C" & COLUMN(G$1)+SUM($AD$2:$AD47)) -> 59 | Q46: =INDIRECT("'関数（読み）'!C" & COLUMN(H$1)+SUM($AD$2:$AD47)) -> 239 | R46: =INDIRECT("'関数（読み）'!C" & COLUMN(I$1)+SUM($AD$2:$AD47)) -> 49 | S46: =INDIRECT("'関数（読み）'!C" & COLUMN(J$1)+SUM($AD$2:$AD47)) -> 76 | T46: =INDIRECT("'関数（読み）'!C" & COLUMN(K$1)+SUM($AD$2:$AD47)) -> 226
A47: ⑳ | B47: ⑲ | C47: ⑱ | D47: ⑰ | E47: ⑯ | F47: ⑮ | G47: ⑭ | H47: ⑬ | I47: ⑫ | J47: ⑪ | K47: ⑩ | L47: ⑨ | M47: ⑧ | N47: ⑦ | O47: ⑥ | P47: ⑤ | Q47: ④ | R47: ③ | S47: ② | T47: ① | U47: 次の［ ］の部分の漢字には読みがなをひらがなで書き、カタカナは漢字に直しなさい。 | V47: 12 | W47: 「漢字の博士検定試験」練習問題 | AC47: ← | AD47: 10 | AE47: 問 | AF47: =AH42+1 -> 51 | AG47: ～ | AH47: =SUM($AD$2:$AD47)+10 -> 60 | AI47: 問まで | AJ47: =COUNTIF($A$1:$T$200,T48) -> 2
A48: =IF(A46="","",VLOOKUP(A46,漢字書き!$A$2:$N$506,6,0)) -> ［ジテンシャ］に乗る | B48: =IF(B46="","",VLOOKUP(B46,漢字書き!$A$2:$N$506,6,0)) -> ［ジンジャ］にまいる | C48: =IF(C46="","",VLOOKUP(C46,漢字書き!$A$2:$N$506,6,0)) -> 友じょうを［フカ］める | D48: =IF(D46="","",VLOOKUP(D46,漢字書き!$A$2:$N$506,6,0)) -> ［クンシュ］せいの国 | E48: =IF(E46="","",VLOOKUP(E46,漢字書き!$A$2:$N$506,6,0)) -> 親子の［タイワ］ | F48: =IF(F46="","",VLOOKUP(F46,漢字書き!$A$2:$N$506,6,0)) -> 日本さい大のびわ［コ］ | G48: =IF(G46="","",VLOOKUP(G46,漢字書き!$A$2:$N$506,6,0)) -> ［ミナト］めぐり | H48: =IF(H46="","",VLOOKUP(H46,漢字書き!$A$2:$N$506,6,0)) -> あわて［モノ］だ | I48: =IF(I46="","",VLOOKUP(I46,漢字書き!$A$2:$N$506,6,0)) -> けがで［シュッケツ］する | J48: =IF(J46="","",VLOOKUP(J46,漢字書き!$A$2:$N$506,6,0)) -> ［アイテ］の名前 | K48: =IF(K46="","",VLOOKUP(K46,漢字読み!$A$2:$O$506,6,0)) -> じゅんびが［整］う | L48: =IF(L46="","",VLOOKUP(L46,漢字読み!$A$2:$O$506,6,0)) -> ［身］の上話 | M48: =IF(M46="","",VLOOKUP(M46,漢字読み!$A$2:$O$506,6,0)) -> ［汽笛］が鳴る | N48: =IF(N46="","",VLOOKUP(N46,漢字読み!$A$2:$O$506,6,0)) -> ［実］がなる | O48: =IF(O46="","",VLOOKUP(O46,漢字読み!$A$2:$O$506,6,0)) -> 決まりを［守］る | P48: =IF(P46="","",VLOOKUP(P46,漢字読み!$A$2:$O$506,6,0)) -> 工場が［始動］する | Q48: =IF(Q46="","",VLOOKUP(Q46,漢字読み!$A$2:$O$506,6,0)) -> ボールを［投］げる | R48: =IF(R46="","",VLOOKUP(R46,漢字読み!$A$2:$O$506,6,0)) -> スープ［皿］ | S48: =IF(S46="","",VLOOKUP(S46,漢字読み!$A$2:$O$506,6,0)) -> 入学［式］のあいさつ | T48: =IF(T46="","",VLOOKUP(T46,漢字読み!$A$2:$O$506,6,0)) -> ［鉄］のとびら | V48: 級
V49: 名前
A50: =IF(A46="","",IF(VLOOKUP(A46,漢字書き!$A$2:$N$502,7,0)=0,"",VLOOKUP(A46,漢字書き!$A$2:$N$502,7,0))) ->  | B50: =IF(B46="","",IF(VLOOKUP(B46,漢字書き!$A$2:$N$502,7,0)=0,"",VLOOKUP(B46,漢字書き!$A$2:$N$502,7,0))) ->  | C50: =IF(C46="","",IF(VLOOKUP(C46,漢字書き!$A$2:$N$502,7,0)=0,"",VLOOKUP(C46,漢字書き!$A$2:$N$502,7,0))) -> める | D50: =IF(D46="","",IF(VLOOKUP(D46,漢字書き!$A$2:$N$502,7,0)=0,"",VLOOKUP(D46,漢字書き!$A$2:$N$502,7,0))) -> せい | E50: =IF(E46="","",IF(VLOOKUP(E46,漢字書き!$A$2:$N$502,7,0)=0,"",VLOOKUP(E46,漢字書き!$A$2:$N$502,7,0))) ->  | F50: =IF(F46="","",IF(VLOOKUP(F46,漢字書き!$A$2:$N$502,7,0)=0,"",VLOOKUP(F46,漢字書き!$A$2:$N$502,7,0))) ->  | G50: =IF(G46="","",IF(VLOOKUP(G46,漢字書き!$A$2:$N$502,7,0)=0,"",VLOOKUP(G46,漢字書き!$A$2:$N$502,7,0))) ->  | H50: =IF(H46="","",IF(VLOOKUP(H46,漢字書き!$A$2:$N$502,7,0)=0,"",VLOOKUP(H46,漢字書き!$A$2:$N$502,7,0))) ->  | I50: =IF(I46="","",IF(VLOOKUP(I46,漢字書き!$A$2:$N$502,7,0)=0,"",VLOOKUP(I46,漢字書き!$A$2:$N$502,7,0))) -> する | J50: =IF(J46="","",IF(VLOOKUP(J46,漢字書き!$A$2:$N$502,7,0)=0,"",VLOOKUP(J46,漢字書き!$A$2:$N$502,7,0))) ->  | K50: =IF(K46="","",IF(VLOOKUP(K46,漢字読み!$A$2:$O$502,7,0)=0,"",VLOOKUP(K46,漢字読み!$A$2:$O$502,7,0))) -> う | L50: =IF(L46="","",IF(VLOOKUP(L46,漢字読み!$A$2:$O$502,7,0)=0,"",VLOOKUP(L46,漢字読み!$A$2:$O$502,7,0))) -> の上 | M50: =IF(M46="","",IF(VLOOKUP(M46,漢字読み!$A$2:$O$502,7,0)=0,"",VLOOKUP(M46,漢字読み!$A$2:$O$502,7,0))) ->  | N50: =IF(N46="","",IF(VLOOKUP(N46,漢字読み!$A$2:$O$502,7,0)=0,"",VLOOKUP(N46,漢字読み!$A$2:$O$502,7,0))) ->  | O50: =IF(O46="","",IF(VLOOKUP(O46,漢字読み!$A$2:$O$502,7,0)=0,"",VLOOKUP(O46,漢字読み!$A$2:$O$502,7,0))) -> る | P50: =IF(P46="","",IF(VLOOKUP(P46,漢字読み!$A$2:$O$502,7,0)=0,"",VLOOKUP(P46,漢字読み!$A$2:$O$502,7,0))) -> する | Q50: =IF(Q46="","",IF(VLOOKUP(Q46,漢字読み!$A$2:$O$502,7,0)=0,"",VLOOKUP(Q46,漢字読み!$A$2:$O$502,7,0))) -> げる | R50: =IF(R46="","",IF(VLOOKUP(R46,漢字読み!$A$2:$O$502,7,0)=0,"",VLOOKUP(R46,漢字読み!$A$2:$O$502,7,0))) ->  | S50: =IF(S46="","",IF(VLOOKUP(S46,漢字読み!$A$2:$O$502,7,0)=0,"",VLOOKUP(S46,漢字読み!$A$2:$O$502,7,0))) ->  | T50: =IF(T46="","",IF(VLOOKUP(T46,漢字読み!$A$2:$O$502,7,0)=0,"",VLOOKUP(T46,漢字読み!$A$2:$O$502,7,0))) ->  | W50: 和歌山県教育委員会
A51: =A41 -> 201 | B51: 39 | C51: 70 | D51: 5 | E51: 214 | F51: 14 | G51: 52 | H51: 68 | I51: 75 | J51: 202 | K51: 195 | L51: 200 | M51: 136 | N51: 126 | O51: 124 | P51: 201 | Q51: 233 | R51: 144 | S51: 40 | T51: 157
A52: ⑳ | B52: ⑲ | C52: ⑱ | D52: ⑰ | E52: ⑯ | F52: ⑮ | G52: ⑭ | H52: ⑬ | I52: ⑫ | J52: ⑪ | K52: ⑩ | L52: ⑨ | M52: ⑧ | N52: ⑦ | O52: ⑥ | P52: ⑤ | Q52: ④ | R52: ③ | S52: ② | T52: ① | U52: 次の［ ］の部分の漢字には読みがなをひらがなで書き、カタカナは漢字に直しなさい。 | V52: 12 | W52: 「漢字の博士検定試験」練習問題
A53: =IF(A51="","",VLOOKUP(A51,漢字書き!$A$2:$N$506,6,0)) -> 駅に［ツ］く | B53: =IF(B51="","",VLOOKUP(B51,漢字書き!$A$2:$N$506,6,0)) -> 船が［シュッコウ］する | C53: =IF(C51="","",VLOOKUP(C51,漢字書き!$A$2:$N$506,6,0)) -> 県［チジ］をつとめる | D53: =IF(D51="","",VLOOKUP(D51,漢字書き!$A$2:$N$506,6,0)) -> ［チク］の会合に出る | E53: =IF(E51="","",VLOOKUP(E51,漢字書き!$A$2:$N$506,6,0)) -> アンケート[チョウ]さ | F53: =IF(F51="","",VLOOKUP(F51,漢字書き!$A$2:$N$506,6,0)) -> 教科の［カカリ］を決める | G53: =IF(G51="","",VLOOKUP(G51,漢字書き!$A$2:$N$506,6,0)) -> 火事で［シシャ］が出る | H53: =IF(H51="","",VLOOKUP(H51,漢字書き!$A$2:$N$506,6,0)) -> ［ツギ］の人をよぶ | I53: =IF(I51="","",VLOOKUP(I51,漢字書き!$A$2:$N$506,6,0)) -> わり算の［シキ］ | J53: =IF(J51="","",VLOOKUP(J51,漢字書き!$A$2:$N$506,6,0)) -> ［キ］せかえ人形 | K53: =IF(K51="","",VLOOKUP(K51,漢字読み!$A$2:$O$506,6,0)) -> ［短］いひも | L53: =IF(L51="","",VLOOKUP(L51,漢字読み!$A$2:$O$506,6,0)) -> ［上着］をかける | M53: =IF(M51="","",VLOOKUP(M51,漢字読み!$A$2:$O$506,6,0)) -> 入会を［申］しこむ | N53: =IF(N51="","",VLOOKUP(N51,漢字読み!$A$2:$O$506,6,0)) -> ［商売］をする | O53: =IF(O51="","",VLOOKUP(O51,漢字読み!$A$2:$O$506,6,0)) -> 火が［消］える | P53: =IF(P51="","",VLOOKUP(P51,漢字読み!$A$2:$O$506,6,0)) -> ジュースを［注文］する | Q53: =IF(Q51="","",VLOOKUP(Q51,漢字読み!$A$2:$O$506,6,0)) -> ［都合］が悪い | R53: =IF(R51="","",VLOOKUP(R51,漢字読み!$A$2:$O$506,6,0)) -> ［真心］をこめる | S53: =IF(S51="","",VLOOKUP(S51,漢字読み!$A$2:$O$506,6,0)) -> ［港町］の人々 | T53: =IF(T51="","",VLOOKUP(T51,漢字読み!$A$2:$O$506,6,0)) -> クラス［全員］ | V53: 級
A54: =IF(A$11="","",VLOOKUP(A51,漢字書き!$A$2:$O$506,8,0)) -> 着 | B54: =IF(B$11="","",VLOOKUP(B51,漢字書き!$A$2:$O$506,8,0)) -> 出航 | C54: =IF(C$11="","",VLOOKUP(C51,漢字書き!$A$2:$O$506,8,0)) -> 知事 | D54: =IF(D$11="","",VLOOKUP(D51,漢字書き!$A$2:$O$506,8,0)) -> 地区 | E54: =IF(E$11="","",VLOOKUP(E51,漢字書き!$A$2:$O$506,8,0)) -> 調 | F54: =IF(F$11="","",VLOOKUP(F51,漢字書き!$A$2:$O$506,8,0)) -> 係 | G54: =IF(G$11="","",VLOOKUP(G51,漢字書き!$A$2:$O$506,8,0)) -> 死者 | H54: =IF(H$11="","",VLOOKUP(H51,漢字書き!$A$2:$O$506,8,0)) -> 次 | I54: =IF(I$11="","",VLOOKUP(I51,漢字書き!$A$2:$O$506,8,0)) -> 式 | J54: =IF(J$11="","",VLOOKUP(J51,漢字書き!$A$2:$O$506,8,0)) -> 着 | K54: =IF(K$11="","",VLOOKUP(K51,漢字読み!$A$2:$O$506,8,0)) -> みじか | L54: =IF(L$11="","",VLOOKUP(L51,漢字読み!$A$2:$O$506,8,0)) -> うわぎ | M54: =IF(M$11="","",VLOOKUP(M51,漢字読み!$A$2:$O$506,8,0)) -> もう | N54: =IF(N$11="","",VLOOKUP(N51,漢字読み!$A$2:$O$506,8,0)) -> しょうばい | O54: =IF(O$11="","",VLOOKUP(O51,漢字読み!$A$2:$O$506,8,0)) -> き | P54: =IF(P$11="","",VLOOKUP(P51,漢字読み!$A$2:$O$506,8,0)) -> ちゅうもん | Q54: =IF(Q$11="","",VLOOKUP(Q51,漢字読み!$A$2:$O$506,8,0)) -> つごう | R54: =IF(R$11="","",VLOOKUP(R51,漢字読み!$A$2:$O$506,8,0)) -> まごころ | S54: =IF(S$11="","",VLOOKUP(S51,漢字読み!$A$2:$O$506,8,0)) -> みなとまち | T54: =IF(T$11="","",VLOOKUP(T51,漢字読み!$A$2:$O$506,8,0)) -> ぜんいん | V54: 名前
A55: =IF(A51="","",IF(VLOOKUP(A51,漢字書き!$A$2:$N$502,7,0)=0,"",VLOOKUP(A51,漢字書き!$A$2:$N$502,7,0))) -> く | B55: =IF(B51="","",IF(VLOOKUP(B51,漢字書き!$A$2:$N$502,7,0)=0,"",VLOOKUP(B51,漢字書き!$A$2:$N$502,7,0))) -> する | C55: =IF(C51="","",IF(VLOOKUP(C51,漢字書き!$A$2:$N$502,7,0)=0,"",VLOOKUP(C51,漢字書き!$A$2:$N$502,7,0))) ->  | D55: =IF(D51="","",IF(VLOOKUP(D51,漢字書き!$A$2:$N$502,7,0)=0,"",VLOOKUP(D51,漢字書き!$A$2:$N$502,7,0))) ->  | E55: =IF(E51="","",IF(VLOOKUP(E51,漢字書き!$A$2:$N$502,7,0)=0,"",VLOOKUP(E51,漢字書き!$A$2:$N$502,7,0))) -> さ | F55: =IF(F51="","",IF(VLOOKUP(F51,漢字書き!$A$2:$N$502,7,0)=0,"",VLOOKUP(F51,漢字書き!$A$2:$N$502,7,0))) ->  | G55: =IF(G51="","",IF(VLOOKUP(G51,漢字書き!$A$2:$N$502,7,0)=0,"",VLOOKUP(G51,漢字書き!$A$2:$N$502,7,0))) ->  | H55: =IF(H51="","",IF(VLOOKUP(H51,漢字書き!$A$2:$N$502,7,0)=0,"",VLOOKUP(H51,漢字書き!$A$2:$N$502,7,0))) ->  | I55: =IF(I51="","",IF(VLOOKUP(I51,漢字書き!$A$2:$N$502,7,0)=0,"",VLOOKUP(I51,漢字書き!$A$2:$N$502,7,0))) ->  | J55: =IF(J51="","",IF(VLOOKUP(J51,漢字書き!$A$2:$N$502,7,0)=0,"",VLOOKUP(J51,漢字書き!$A$2:$N$502,7,0))) -> せかえ | K55: =IF(K51="","",IF(VLOOKUP(K51,漢字読み!$A$2:$O$502,7,0)=0,"",VLOOKUP(K51,漢字読み!$A$2:$O$502,7,0))) -> い | L55: =IF(L51="","",IF(VLOOKUP(L51,漢字読み!$A$2:$O$502,7,0)=0,"",VLOOKUP(L51,漢字読み!$A$2:$O$502,7,0))) ->  | M55: =IF(M51="","",IF(VLOOKUP(M51,漢字読み!$A$2:$O$502,7,0)=0,"",VLOOKUP(M51,漢字読み!$A$2:$O$502,7,0))) -> しこむ | N55: =IF(N51="","",IF(VLOOKUP(N51,漢字読み!$A$2:$O$502,7,0)=0,"",VLOOKUP(N51,漢字読み!$A$2:$O$502,7,0))) ->  | O55: =IF(O51="","",IF(VLOOKUP(O51,漢字読み!$A$2:$O$502,7,0)=0,"",VLOOKUP(O51,漢字読み!$A$2:$O$502,7,0))) -> える | P55: =IF(P51="","",IF(VLOOKUP(P51,漢字読み!$A$2:$O$502,7,0)=0,"",VLOOKUP(P51,漢字読み!$A$2:$O$502,7,0))) -> する | Q55: =IF(Q51="","",IF(VLOOKUP(Q51,漢字読み!$A$2:$O$502,7,0)=0,"",VLOOKUP(Q51,漢字読み!$A$2:$O$502,7,0))) ->  | R55: =IF(R51="","",IF(VLOOKUP(R51,漢字読み!$A$2:$O$502,7,0)=0,"",VLOOKUP(R51,漢字読み!$A$2:$O$502,7,0))) ->  | S55: =IF(S51="","",IF(VLOOKUP(S51,漢字読み!$A$2:$O$502,7,0)=0,"",VLOOKUP(S51,漢字読み!$A$2:$O$502,7,0))) ->  | T55: =IF(T51="","",IF(VLOOKUP(T51,漢字読み!$A$2:$O$502,7,0)=0,"",VLOOKUP(T51,漢字読み!$A$2:$O$502,7,0))) ->  | W55: 和歌山県教育委員会
A56: =A46 -> 226 | B56: 144 | C56: 150 | D56: 11 | E56: 183 | F56: 30 | G56: 40 | H56: 84 | I56: 21 | J56: 166 | K56: 153 | L56: 138 | M56: 223 | N56: 82 | O56: 91 | P56: 59 | Q56: 239 | R56: 49 | S56: 76 | T56: 226
A57: ⑳ | B57: ⑲ | C57: ⑱ | D57: ⑰ | E57: ⑯ | F57: ⑮ | G57: ⑭ | H57: ⑬ | I57: ⑫ | J57: ⑪ | K57: ⑩ | L57: ⑨ | M57: ⑧ | N57: ⑦ | O57: ⑥ | P57: ⑤ | Q57: ④ | R57: ③ | S57: ② | T57: ① | U57: 次の［ ］の部分の漢字には読みがなをひらがなで書き、カタカナは漢字に直しなさい。 | V57: 12 | W57: 「漢字の博士検定試験」練習問題
A58: =IF(A56="","",VLOOKUP(A56,漢字書き!$A$2:$N$506,6,0)) -> ［ジテンシャ］に乗る | B58: =IF(B56="","",VLOOKUP(B56,漢字書き!$A$2:$N$506,6,0)) -> ［ジンジャ］にまいる | C58: =IF(C56="","",VLOOKUP(C56,漢字書き!$A$2:$N$506,6,0)) -> 友じょうを［フカ］める | D58: =IF(D56="","",VLOOKUP(D56,漢字書き!$A$2:$N$506,6,0)) -> ［クンシュ］せいの国 | E58: =IF(E56="","",VLOOKUP(E56,漢字書き!$A$2:$N$506,6,0)) -> 親子の［タイワ］ | F58: =IF(F56="","",VLOOKUP(F56,漢字書き!$A$2:$N$506,6,0)) -> 日本さい大のびわ［コ］ | G58: =IF(G56="","",VLOOKUP(G56,漢字書き!$A$2:$N$506,6,0)) -> ［ミナト］めぐり | H58: =IF(H56="","",VLOOKUP(H56,漢字書き!$A$2:$N$506,6,0)) -> あわて［モノ］だ | I58: =IF(I56="","",VLOOKUP(I56,漢字書き!$A$2:$N$506,6,0)) -> けがで［シュッケツ］する | J58: =IF(J56="","",VLOOKUP(J56,漢字書き!$A$2:$N$506,6,0)) -> ［アイテ］の名前 | K58: =IF(K56="","",VLOOKUP(K56,漢字読み!$A$2:$O$506,6,0)) -> じゅんびが［整］う | L58: =IF(L56="","",VLOOKUP(L56,漢字読み!$A$2:$O$506,6,0)) -> ［身］の上話 | M58: =IF(M56="","",VLOOKUP(M56,漢字読み!$A$2:$O$506,6,0)) -> ［汽笛］が鳴る | N58: =IF(N56="","",VLOOKUP(N56,漢字読み!$A$2:$O$506,6,0)) -> ［実］がなる | O58: =IF(O56="","",VLOOKUP(O56,漢字読み!$A$2:$O$506,6,0)) -> 決まりを［守］る | P58: =IF(P56="","",VLOOKUP(P56,漢字読み!$A$2:$O$506,6,0)) -> 工場が［始動］する | Q58: =IF(Q56="","",VLOOKUP(Q56,漢字読み!$A$2:$O$506,6,0)) -> ボールを［投］げる | R58: =IF(R56="","",VLOOKUP(R56,漢字読み!$A$2:$O$506,6,0)) -> スープ［皿］ | S58: =IF(S56="","",VLOOKUP(S56,漢字読み!$A$2:$O$506,6,0)) -> 入学［式］のあいさつ | T58: =IF(T56="","",VLOOKUP(T56,漢字読み!$A$2:$O$506,6,0)) -> ［鉄］のとびら | V58: 級
A59: =IF(A$16="","",VLOOKUP(A56,漢字書き!$A$2:$O$506,8,0)) -> 自転車 | B59: =IF(B$16="","",VLOOKUP(B56,漢字書き!$A$2:$O$506,8,0)) -> 神社 | C59: =IF(C$16="","",VLOOKUP(C56,漢字書き!$A$2:$O$506,8,0)) -> 深 | D59: =IF(D$16="","",VLOOKUP(D56,漢字書き!$A$2:$O$506,8,0)) -> 君主 | E59: =IF(E$16="","",VLOOKUP(E56,漢字書き!$A$2:$O$506,8,0)) -> 対話 | F59: =IF(F$16="","",VLOOKUP(F56,漢字書き!$A$2:$O$506,8,0)) -> 湖 | G59: =IF(G$16="","",VLOOKUP(G56,漢字書き!$A$2:$O$506,8,0)) -> 港 | H59: =IF(H$16="","",VLOOKUP(H56,漢字書き!$A$2:$O$506,8,0)) -> 者 | I59: =IF(I$16="","",VLOOKUP(I56,漢字書き!$A$2:$O$506,8,0)) -> 出血 | J59: =IF(J$16="","",VLOOKUP(J56,漢字書き!$A$2:$O$506,8,0)) -> 相手 | K59: =IF(K$16="","",VLOOKUP(K56,漢字読み!$A$2:$O$506,8,0)) -> ととの | L59: =IF(L$16="","",VLOOKUP(L56,漢字読み!$A$2:$O$506,8,0)) -> み | M59: =IF(M$16="","",VLOOKUP(M56,漢字読み!$A$2:$O$506,8,0)) -> きてき | N59: =IF(N$16="","",VLOOKUP(N56,漢字読み!$A$2:$O$506,8,0)) -> み | O59: =IF(O$16="","",VLOOKUP(O56,漢字読み!$A$2:$O$506,8,0)) -> まも | P59: =IF(P$16="","",VLOOKUP(P56,漢字読み!$A$2:$O$506,8,0)) -> しどう | Q59: =IF(Q$16="","",VLOOKUP(Q56,漢字読み!$A$2:$O$506,8,0)) -> な | R59: =IF(R$16="","",VLOOKUP(R56,漢字読み!$A$2:$O$506,8,0)) -> ざら | S59: =IF(S$16="","",VLOOKUP(S56,漢字読み!$A$2:$O$506,8,0)) -> しき | T59: =IF(T$16="","",VLOOKUP(T56,漢字読み!$A$2:$O$506,8,0)) -> てつ | V59: 名前
A60: =IF(A56="","",IF(VLOOKUP(A56,漢字書き!$A$2:$N$502,7,0)=0,"",VLOOKUP(A56,漢字書き!$A$2:$N$502,7,0))) ->  | B60: =IF(B56="","",IF(VLOOKUP(B56,漢字書き!$A$2:$N$502,7,0)=0,"",VLOOKUP(B56,漢字書き!$A$2:$N$502,7,0))) ->  | C60: =IF(C56="","",IF(VLOOKUP(C56,漢字書き!$A$2:$N$502,7,0)=0,"",VLOOKUP(C56,漢字書き!$A$2:$N$502,7,0))) -> める | D60: =IF(D56="","",IF(VLOOKUP(D56,漢字書き!$A$2:$N$502,7,0)=0,"",VLOOKUP(D56,漢字書き!$A$2:$N$502,7,0))) -> せい | E60: =IF(E56="","",IF(VLOOKUP(E56,漢字書き!$A$2:$N$502,7,0)=0,"",VLOOKUP(E56,漢字書き!$A$2:$N$502,7,0))) ->  | F60: =IF(F56="","",IF(VLOOKUP(F56,漢字書き!$A$2:$N$502,7,0)=0,"",VLOOKUP(F56,漢字書き!$A$2:$N$502,7,0))) ->  | G60: =IF(G56="","",IF(VLOOKUP(G56,漢字書き!$A$2:$N$502,7,0)=0,"",VLOOKUP(G56,漢字書き!$A$2:$N$502,7,0))) ->  | H60: =IF(H56="","",IF(VLOOKUP(H56,漢字書き!$A$2:$N$502,7,0)=0,"",VLOOKUP(H56,漢字書き!$A$2:$N$502,7,0))) ->  | I60: =IF(I56="","",IF(VLOOKUP(I56,漢字書き!$A$2:$N$502,7,0)=0,"",VLOOKUP(I56,漢字書き!$A$2:$N$502,7,0))) -> する | J60: =IF(J56="","",IF(VLOOKUP(J56,漢字書き!$A$2:$N$502,7,0)=0,"",VLOOKUP(J56,漢字書き!$A$2:$N$502,7,0))) ->  | K60: =IF(K56="","",IF(VLOOKUP(K56,漢字読み!$A$2:$O$502,7,0)=0,"",VLOOKUP(K56,漢字読み!$A$2:$O$502,7,0))) -> う | L60: =IF(L56="","",IF(VLOOKUP(L56,漢字読み!$A$2:$O$502,7,0)=0,"",VLOOKUP(L56,漢字読み!$A$2:$O$502,7,0))) -> の上 | M60: =IF(M56="","",IF(VLOOKUP(M56,漢字読み!$A$2:$O$502,7,0)=0,"",VLOOKUP(M56,漢字読み!$A$2:$O$502,7,0))) ->  | N60: =IF(N56="","",IF(VLOOKUP(N56,漢字読み!$A$2:$O$502,7,0)=0,"",VLOOKUP(N56,漢字読み!$A$2:$O$502,7,0))) ->  | O60: =IF(O56="","",IF(VLOOKUP(O56,漢字読み!$A$2:$O$502,7,0)=0,"",VLOOKUP(O56,漢字読み!$A$2:$O$502,7,0))) -> る | P60: =IF(P56="","",IF(VLOOKUP(P56,漢字読み!$A$2:$O$502,7,0)=0,"",VLOOKUP(P56,漢字読み!$A$2:$O$502,7,0))) -> する | Q60: =IF(Q56="","",IF(VLOOKUP(Q56,漢字読み!$A$2:$O$502,7,0)=0,"",VLOOKUP(Q56,漢字読み!$A$2:$O$502,7,0))) -> げる | R60: =IF(R56="","",IF(VLOOKUP(R56,漢字読み!$A$2:$O$502,7,0)=0,"",VLOOKUP(R56,漢字読み!$A$2:$O$502,7,0))) ->  | S60: =IF(S56="","",IF(VLOOKUP(S56,漢字読み!$A$2:$O$502,7,0)=0,"",VLOOKUP(S56,漢字読み!$A$2:$O$502,7,0))) ->  | T60: =IF(T56="","",IF(VLOOKUP(T56,漢字読み!$A$2:$O$502,7,0)=0,"",VLOOKUP(T56,漢字読み!$A$2:$O$502,7,0))) ->  | W60: 和歌山県教育委員会
A61: =INDIRECT("'関数（書き）'!C" & COLUMN(B$1)+SUM($AD$2:$AD62)) -> 43 | B61: =INDIRECT("'関数（書き）'!C" & COLUMN(C$1)+SUM($AD$2:$AD62)) -> 15 | C61: =INDIRECT("'関数（書き）'!C" & COLUMN(D$1)+SUM($AD$2:$AD62)) -> 69 | D61: =INDIRECT("'関数（書き）'!C" & COLUMN(E$1)+SUM($AD$2:$AD62)) -> 25 | E61: =INDIRECT("'関数（書き）'!C" & COLUMN(F$1)+SUM($AD$2:$AD62)) -> 6 | F61: =INDIRECT("'関数（書き）'!C" & COLUMN(G$1)+SUM($AD$2:$AD62)) -> 73 | G61: =INDIRECT("'関数（書き）'!C" & COLUMN(H$1)+SUM($AD$2:$AD62)) -> 232 | H61: =INDIRECT("'関数（書き）'!C" & COLUMN(I$1)+SUM($AD$2:$AD62)) -> 215 | I61: =INDIRECT("'関数（書き）'!C" & COLUMN(J$1)+SUM($AD$2:$AD62)) -> 217 | J61: =INDIRECT("'関数（書き）'!C" & COLUMN(K$1)+SUM($AD$2:$AD62)) -> 94 | K61: =INDIRECT("'関数（読み）'!C" & COLUMN(B$1)+SUM($AD$2:$AD62)) -> 14 | L61: =INDIRECT("'関数（読み）'!C" & COLUMN(C$1)+SUM($AD$2:$AD62)) -> 196 | M61: =INDIRECT("'関数（読み）'!C" & COLUMN(D$1)+SUM($AD$2:$AD62)) -> 7 | N61: =INDIRECT("'関数（読み）'!C" & COLUMN(E$1)+SUM($AD$2:$AD62)) -> 238 | O61: =INDIRECT("'関数（読み）'!C" & COLUMN(F$1)+SUM($AD$2:$AD62)) -> 34 | P61: =INDIRECT("'関数（読み）'!C" & COLUMN(G$1)+SUM($AD$2:$AD62)) -> 211 | Q61: =INDIRECT("'関数（読み）'!C" & COLUMN(H$1)+SUM($AD$2:$AD62)) -> 202 | R61: =INDIRECT("'関数（読み）'!C" & COLUMN(I$1)+SUM($AD$2:$AD62)) -> 104 | S61: =INDIRECT("'関数（読み）'!C" & COLUMN(J$1)+SUM($AD$2:$AD62)) -> 183 | T61: =INDIRECT("'関数（読み）'!C" & COLUMN(K$1)+SUM($AD$2:$AD62)) -> 145
A62: ⑳ | B62: ⑲ | C62: ⑱ | D62: ⑰ | E62: ⑯ | F62: ⑮ | G62: ⑭ | H62: ⑬ | I62: ⑫ | J62: ⑪ | K62: ⑩ | L62: ⑨ | M62: ⑧ | N62: ⑦ | O62: ⑥ | P62: ⑤ | Q62: ④ | R62: ③ | S62: ② | T62: ① | U62: 次の［ ］の部分の漢字には読みがなをひらがなで書き、カタカナは漢字に直しなさい。 | V62: 12 | W62: 「漢字の博士検定試験」練習問題 | AC62: ← | AD62: 10 | AE62: 問 | AF62: =AH47+1 -> 61 | AG62: ～ | AH62: =SUM($AD$2:$AD62)+10 -> 70 | AI62: 問まで | AJ62: =COUNTIF($A$1:$T$200,T63) -> 2
A63: =IF(A61="","",VLOOKUP(A61,漢字書き!$A$2:$N$506,6,0)) -> 台風三［ゴウ］が来る | B63: =IF(B61="","",VLOOKUP(B61,漢字書き!$A$2:$N$506,6,0)) -> 安全に［カカ］る | C63: =IF(C61="","",VLOOKUP(C61,漢字書き!$A$2:$N$506,6,0)) -> 去年に［ツ］ぐ出場 | D63: =IF(D61="","",VLOOKUP(D61,漢字書き!$A$2:$N$506,6,0)) -> 自由［ケンキュウ］をする | E63: =IF(E61="","",VLOOKUP(E61,漢字書き!$A$2:$N$506,6,0)) -> ［クシン］して作る | F63: =IF(F61="","",VLOOKUP(F61,漢字書き!$A$2:$N$506,6,0)) -> にもつを［モ］つ | G63: =IF(G61="","",VLOOKUP(G61,漢字書き!$A$2:$N$506,6,0)) -> ボールを［ナ］げる | H63: =IF(H61="","",VLOOKUP(H61,漢字書き!$A$2:$N$506,6,0)) -> 注文を［ツイ］かする | I63: =IF(I61="","",VLOOKUP(I61,漢字書き!$A$2:$N$506,6,0)) -> 生活が［アンテイ］する | J63: =IF(J61="","",VLOOKUP(J61,漢字書き!$A$2:$N$506,6,0)) -> お［サケ］を飲む | K63: =IF(K61="","",VLOOKUP(K61,漢字読み!$A$2:$O$506,6,0)) -> 自分にかん［係］ない | L63: =IF(L61="","",VLOOKUP(L61,漢字読み!$A$2:$O$506,6,0)) -> 先生に［相談］をする | M63: =IF(M61="","",VLOOKUP(M61,漢字読み!$A$2:$O$506,6,0)) -> 息が［苦］しい | N63: =IF(N61="","",VLOOKUP(N61,漢字読み!$A$2:$O$506,6,0)) -> ［投手］の活やく | O63: =IF(O61="","",VLOOKUP(O61,漢字読み!$A$2:$O$506,6,0)) -> ［向］かい風の中 | P63: =IF(P61="","",VLOOKUP(P61,漢字読み!$A$2:$O$506,6,0)) -> ［調子］が悪い | Q63: =IF(Q61="","",VLOOKUP(Q61,漢字読み!$A$2:$O$506,6,0)) -> 先生に［注目］する | R63: =IF(R61="","",VLOOKUP(R61,漢字読み!$A$2:$O$506,6,0)) -> 土地の［習］わし | S63: =IF(S61="","",VLOOKUP(S61,漢字読み!$A$2:$O$506,6,0)) -> ［世代］がちがう | T63: =IF(T61="","",VLOOKUP(T61,漢字読み!$A$2:$O$506,6,0)) -> ［深夜］の町 | V63: 級
V64: 名前
A65: =IF(A61="","",IF(VLOOKUP(A61,漢字書き!$A$2:$N$502,7,0)=0,"",VLOOKUP(A61,漢字書き!$A$2:$N$502,7,0))) ->  | B65: =IF(B61="","",IF(VLOOKUP(B61,漢字書き!$A$2:$N$502,7,0)=0,"",VLOOKUP(B61,漢字書き!$A$2:$N$502,7,0))) -> る | C65: =IF(C61="","",IF(VLOOKUP(C61,漢字書き!$A$2:$N$502,7,0)=0,"",VLOOKUP(C61,漢字書き!$A$2:$N$502,7,0))) -> ぐ | D65: =IF(D61="","",IF(VLOOKUP(D61,漢字書き!$A$2:$N$502,7,0)=0,"",VLOOKUP(D61,漢字書き!$A$2:$N$502,7,0))) ->  | E65: =IF(E61="","",IF(VLOOKUP(E61,漢字書き!$A$2:$N$502,7,0)=0,"",VLOOKUP(E61,漢字書き!$A$2:$N$502,7,0))) -> して | F65: =IF(F61="","",IF(VLOOKUP(F61,漢字書き!$A$2:$N$502,7,0)=0,"",VLOOKUP(F61,漢字書き!$A$2:$N$502,7,0))) -> つ | G65: =IF(G61="","",IF(VLOOKUP(G61,漢字書き!$A$2:$N$502,7,0)=0,"",VLOOKUP(G61,漢字書き!$A$2:$N$502,7,0))) -> げる | H65: =IF(H61="","",IF(VLOOKUP(H61,漢字書き!$A$2:$N$502,7,0)=0,"",VLOOKUP(H61,漢字書き!$A$2:$N$502,7,0))) -> か | I65: =IF(I61="","",IF(VLOOKUP(I61,漢字書き!$A$2:$N$502,7,0)=0,"",VLOOKUP(I61,漢字書き!$A$2:$N$502,7,0))) -> する | J65: =IF(J61="","",IF(VLOOKUP(J61,漢字書き!$A$2:$N$502,7,0)=0,"",VLOOKUP(J61,漢字書き!$A$2:$N$502,7,0))) ->  | K65: =IF(K61="","",IF(VLOOKUP(K61,漢字読み!$A$2:$O$502,7,0)=0,"",VLOOKUP(K61,漢字読み!$A$2:$O$502,7,0))) -> ない | L65: =IF(L61="","",IF(VLOOKUP(L61,漢字読み!$A$2:$O$502,7,0)=0,"",VLOOKUP(L61,漢字読み!$A$2:$O$502,7,0))) ->  | M65: =IF(M61="","",IF(VLOOKUP(M61,漢字読み!$A$2:$O$502,7,0)=0,"",VLOOKUP(M61,漢字読み!$A$2:$O$502,7,0))) -> しい | N65: =IF(N61="","",IF(VLOOKUP(N61,漢字読み!$A$2:$O$502,7,0)=0,"",VLOOKUP(N61,漢字読み!$A$2:$O$502,7,0))) ->  | O65: =IF(O61="","",IF(VLOOKUP(O61,漢字読み!$A$2:$O$502,7,0)=0,"",VLOOKUP(O61,漢字読み!$A$2:$O$502,7,0))) -> かい | P65: =IF(P61="","",IF(VLOOKUP(P61,漢字読み!$A$2:$O$502,7,0)=0,"",VLOOKUP(P61,漢字読み!$A$2:$O$502,7,0))) ->  | Q65: =IF(Q61="","",IF(VLOOKUP(Q61,漢字読み!$A$2:$O$502,7,0)=0,"",VLOOKUP(Q61,漢字読み!$A$2:$O$502,7,0))) -> する | R65: =IF(R61="","",IF(VLOOKUP(R61,漢字読み!$A$2:$O$502,7,0)=0,"",VLOOKUP(R61,漢字読み!$A$2:$O$502,7,0))) -> わし | S65: =IF(S61="","",IF(VLOOKUP(S61,漢字読み!$A$2:$O$502,7,0)=0,"",VLOOKUP(S61,漢字読み!$A$2:$O$502,7,0))) ->  | T65: =IF(T61="","",IF(VLOOKUP(T61,漢字読み!$A$2:$O$502,7,0)=0,"",VLOOKUP(T61,漢字読み!$A$2:$O$502,7,0))) ->  | W65: 和歌山県教育委員会
A66: =INDIRECT("'関数（書き）'!C" & COLUMN(B$1)+SUM($AD$2:$AD67)) -> 162 | B66: =INDIRECT("'関数（書き）'!C" & COLUMN(C$1)+SUM($AD$2:$AD67)) -> 44 | C66: =INDIRECT("'関数（書き）'!C" & COLUMN(D$1)+SUM($AD$2:$AD67)) -> 167 | D66: =INDIRECT("'関数（書き）'!C" & COLUMN(E$1)+SUM($AD$2:$AD67)) -> 154 | E66: =INDIRECT("'関数（書き）'!C" & COLUMN(F$1)+SUM($AD$2:$AD67)) -> 116 | F66: =INDIRECT("'関数（書き）'!C" & COLUMN(G$1)+SUM($AD$2:$AD67)) -> 174 | G66: =INDIRECT("'関数（書き）'!C" & COLUMN(H$1)+SUM($AD$2:$AD67)) -> 145 | H66: =INDIRECT("'関数（書き）'!C" & COLUMN(I$1)+SUM($AD$2:$AD67)) -> 113 | I66: =INDIRECT("'関数（書き）'!C" & COLUMN(J$1)+SUM($AD$2:$AD67)) -> 231 | J66: =INDIRECT("'関数（書き）'!C" & COLUMN(K$1)+SUM($AD$2:$AD67)) -> 80 | K66: =INDIRECT("'関数（読み）'!C" & COLUMN(B$1)+SUM($AD$2:$AD67)) -> 171 | L66: =INDIRECT("'関数（読み）'!C" & COLUMN(C$1)+SUM($AD$2:$AD67)) -> 123 | M66: =INDIRECT("'関数（読み）'!C" & COLUMN(D$1)+SUM($AD$2:$AD67)) -> 221 | N66: =INDIRECT("'関数（読み）'!C" & COLUMN(E$1)+SUM($AD$2:$AD67)) -> 230 | O66: =INDIRECT("'関数（読み）'!C" & COLUMN(F$1)+SUM($AD$2:$AD67)) -> 180 | P66: =INDIRECT("'関数（読み）'!C" & COLUMN(G$1)+SUM($AD$2:$AD67)) -> 26 | Q66: =INDIRECT("'関数（読み）'!C" & COLUMN(H$1)+SUM($AD$2:$AD67)) -> 168 | R66: =INDIRECT("'関数（読み）'!C" & COLUMN(I$1)+SUM($AD$2:$AD67)) -> 86 | S66: =INDIRECT("'関数（読み）'!C" & COLUMN(J$1)+SUM($AD$2:$AD67)) -> 147 | T66: =INDIRECT("'関数（読み）'!C" & COLUMN(K$1)+SUM($AD$2:$AD67)) -> 16
A67: ⑳ | B67: ⑲ | C67: ⑱ | D67: ⑰ | E67: ⑯ | F67: ⑮ | G67: ⑭ | H67: ⑬ | I67: ⑫ | J67: ⑪ | K67: ⑩ | L67: ⑨ | M67: ⑧ | N67: ⑦ | O67: ⑥ | P67: ⑤ | Q67: ④ | R67: ③ | S67: ② | T67: ① | U67: 次の［ ］の部分の漢字には読みがなをひらがなで書き、カタカナは漢字に直しなさい。 | V67: 12 | W67: 「漢字の博士検定試験」練習問題 | AC67: ← | AD67: 10 | AE67: 問 | AF67: =AH62+1 -> 71 | AG67: ～ | AH67: =SUM($AD$2:$AD67)+10 -> 80 | AI67: 問まで | AJ67: =COUNTIF($A$1:$T$200,T68) -> 2
A68: =IF(A66="","",VLOOKUP(A66,漢字書き!$A$2:$N$506,6,0)) -> ［ゼンタイ］を考える | B68: =IF(B66="","",VLOOKUP(B66,漢字書き!$A$2:$N$506,6,0)) -> 花の［キュウコン］ | C68: =IF(C66="","",VLOOKUP(C66,漢字書き!$A$2:$N$506,6,0)) -> メールを［ソウ］しんする | D68: =IF(D66="","",VLOOKUP(D66,漢字書き!$A$2:$N$506,6,0)) -> 話を［スス］める | E68: =IF(E66="","",VLOOKUP(E66,漢字書き!$A$2:$N$506,6,0)) -> 茶わんを［カサ］ねる | F68: =IF(F66="","",VLOOKUP(F66,漢字書き!$A$2:$N$506,6,0)) -> スピードが［ハヤ］まる | G68: =IF(G66="","",VLOOKUP(G66,漢字書き!$A$2:$N$506,6,0)) -> ［カミ］さまをおがむ | H68: =IF(H66="","",VLOOKUP(H66,漢字書き!$A$2:$N$506,6,0)) -> ［タイジュウ］をはかる | I68: =IF(I66="","",VLOOKUP(I66,漢字書き!$A$2:$N$506,6,0)) -> 野きゅうの［トウシュ］ | J68: =IF(J66="","",VLOOKUP(J66,漢字書き!$A$2:$N$506,6,0)) -> 記ねん［シャシン］ | K68: =IF(K66="","",VLOOKUP(K66,漢字読み!$A$2:$O$506,6,0)) -> ［水族館］に行く | L68: =IF(L66="","",VLOOKUP(L66,漢字読み!$A$2:$O$506,6,0)) -> 早く［消火］する | M68: =IF(M66="","",VLOOKUP(M66,漢字読み!$A$2:$O$506,6,0)) -> ［庭］の草をぬく | N68: =IF(N66="","",VLOOKUP(N66,漢字読み!$A$2:$O$506,6,0)) -> ［回転］木馬 | O68: =IF(O66="","",VLOOKUP(O66,漢字読み!$A$2:$O$506,6,0)) -> ［待］ちぼうけをくらう | P68: =IF(P66="","",VLOOKUP(P66,漢字読み!$A$2:$O$506,6,0)) -> ［県］の公園 | Q68: =IF(Q66="","",VLOOKUP(Q66,漢字読み!$A$2:$O$506,6,0)) -> ［時速］六十キロ | R68: =IF(R66="","",VLOOKUP(R66,漢字読み!$A$2:$O$506,6,0)) -> ［何者］かがいる | S68: =IF(S66="","",VLOOKUP(S66,漢字読み!$A$2:$O$506,6,0)) -> 日々［進歩］する | T68: =IF(T66="","",VLOOKUP(T66,漢字読み!$A$2:$O$506,6,0)) -> この語は下の語に［係］る | V68: 級
V69: 名前
A70: =IF(A66="","",IF(VLOOKUP(A66,漢字書き!$A$2:$N$502,7,0)=0,"",VLOOKUP(A66,漢字書き!$A$2:$N$502,7,0))) ->  | B70: =IF(B66="","",IF(VLOOKUP(B66,漢字書き!$A$2:$N$502,7,0)=0,"",VLOOKUP(B66,漢字書き!$A$2:$N$502,7,0))) ->  | C70: =IF(C66="","",IF(VLOOKUP(C66,漢字書き!$A$2:$N$502,7,0)=0,"",VLOOKUP(C66,漢字書き!$A$2:$N$502,7,0))) -> しん | D70: =IF(D66="","",IF(VLOOKUP(D66,漢字書き!$A$2:$N$502,7,0)=0,"",VLOOKUP(D66,漢字書き!$A$2:$N$502,7,0))) -> める | E70: =IF(E66="","",IF(VLOOKUP(E66,漢字書き!$A$2:$N$502,7,0)=0,"",VLOOKUP(E66,漢字書き!$A$2:$N$502,7,0))) -> ねる | F70: =IF(F66="","",IF(VLOOKUP(F66,漢字書き!$A$2:$N$502,7,0)=0,"",VLOOKUP(F66,漢字書き!$A$2:$N$502,7,0))) -> まる | G70: =IF(G66="","",IF(VLOOKUP(G66,漢字書き!$A$2:$N$502,7,0)=0,"",VLOOKUP(G66,漢字書き!$A$2:$N$502,7,0))) -> さま | H70: =IF(H66="","",IF(VLOOKUP(H66,漢字書き!$A$2:$N$502,7,0)=0,"",VLOOKUP(H66,漢字書き!$A$2:$N$502,7,0))) ->  | I70: =IF(I66="","",IF(VLOOKUP(I66,漢字書き!$A$2:$N$502,7,0)=0,"",VLOOKUP(I66,漢字書き!$A$2:$N$502,7,0))) ->  | J70: =IF(J66="","",IF(VLOOKUP(J66,漢字書き!$A$2:$N$502,7,0)=0,"",VLOOKUP(J66,漢字書き!$A$2:$N$502,7,0))) ->  | K70: =IF(K66="","",IF(VLOOKUP(K66,漢字読み!$A$2:$O$502,7,0)=0,"",VLOOKUP(K66,漢字読み!$A$2:$O$502,7,0))) ->  | L70: =IF(L66="","",IF(VLOOKUP(L66,漢字読み!$A$2:$O$502,7,0)=0,"",VLOOKUP(L66,漢字読み!$A$2:$O$502,7,0))) -> する | M70: =IF(M66="","",IF(VLOOKUP(M66,漢字読み!$A$2:$O$502,7,0)=0,"",VLOOKUP(M66,漢字読み!$A$2:$O$502,7,0))) ->  | N70: =IF(N66="","",IF(VLOOKUP(N66,漢字読み!$A$2:$O$502,7,0)=0,"",VLOOKUP(N66,漢字読み!$A$2:$O$502,7,0))) ->  | O70: =IF(O66="","",IF(VLOOKUP(O66,漢字読み!$A$2:$O$502,7,0)=0,"",VLOOKUP(O66,漢字読み!$A$2:$O$502,7,0))) -> ち | P70: =IF(P66="","",IF(VLOOKUP(P66,漢字読み!$A$2:$O$502,7,0)=0,"",VLOOKUP(P66,漢字読み!$A$2:$O$502,7,0))) ->  | Q70: =IF(Q66="","",IF(VLOOKUP(Q66,漢字読み!$A$2:$O$502,7,0)=0,"",VLOOKUP(Q66,漢字読み!$A$2:$O$502,7,0))) ->  | R70: =IF(R66="","",IF(VLOOKUP(R66,漢字読み!$A$2:$O$502,7,0)=0,"",VLOOKUP(R66,漢字読み!$A$2:$O$502,7,0))) ->  | S70: =IF(S66="","",IF(VLOOKUP(S66,漢字読み!$A$2:$O$502,7,0)=0,"",VLOOKUP(S66,漢字読み!$A$2:$O$502,7,0))) -> する | T70: =IF(T66="","",IF(VLOOKUP(T66,漢字読み!$A$2:$O$502,7,0)=0,"",VLOOKUP(T66,漢字読み!$A$2:$O$502,7,0))) -> る | W70: 和歌山県教育委員会
A71: =A61 -> 43 | B71: 15 | C71: 69 | D71: 25 | E71: 6 | F71: 73 | G71: 232 | H71: 215 | I71: 217 | J71: 94 | K71: 14 | L71: 196 | M71: 7 | N71: 238 | O71: 34 | P71: 211 | Q71: 202 | R71: 104 | S71: 183 | T71: 145
A72: ⑳ | B72: ⑲ | C72: ⑱ | D72: ⑰ | E72: ⑯ | F72: ⑮ | G72: ⑭ | H72: ⑬ | I72: ⑫ | J72: ⑪ | K72: ⑩ | L72: ⑨ | M72: ⑧ | N72: ⑦ | O72: ⑥ | P72: ⑤ | Q72: ④ | R72: ③ | S72: ② | T72: ① | U72: 次の［ ］の部分の漢字には読みがなをひらがなで書き、カタカナは漢字に直しなさい。 | V72: 12 | W72: 「漢字の博士検定試験」練習問題
A73: =IF(A71="","",VLOOKUP(A71,漢字書き!$A$2:$N$506,6,0)) -> 台風三［ゴウ］が来る | B73: =IF(B71="","",VLOOKUP(B71,漢字書き!$A$2:$N$506,6,0)) -> 安全に［カカ］る | C73: =IF(C71="","",VLOOKUP(C71,漢字書き!$A$2:$N$506,6,0)) -> 去年に［ツ］ぐ出場 | D73: =IF(D71="","",VLOOKUP(D71,漢字書き!$A$2:$N$506,6,0)) -> 自由［ケンキュウ］をする | E73: =IF(E71="","",VLOOKUP(E71,漢字書き!$A$2:$N$506,6,0)) -> ［クシン］して作る | F73: =IF(F71="","",VLOOKUP(F71,漢字書き!$A$2:$N$506,6,0)) -> にもつを［モ］つ | G73: =IF(G71="","",VLOOKUP(G71,漢字書き!$A$2:$N$506,6,0)) -> ボールを［ナ］げる | H73: =IF(H71="","",VLOOKUP(H71,漢字書き!$A$2:$N$506,6,0)) -> 注文を［ツイ］かする | I73: =IF(I71="","",VLOOKUP(I71,漢字書き!$A$2:$N$506,6,0)) -> 生活が［アンテイ］する | J73: =IF(J71="","",VLOOKUP(J71,漢字書き!$A$2:$N$506,6,0)) -> お［サケ］を飲む | K73: =IF(K71="","",VLOOKUP(K71,漢字読み!$A$2:$O$506,6,0)) -> 自分にかん［係］ない | L73: =IF(L71="","",VLOOKUP(L71,漢字読み!$A$2:$O$506,6,0)) -> 先生に［相談］をする | M73: =IF(M71="","",VLOOKUP(M71,漢字読み!$A$2:$O$506,6,0)) -> 息が［苦］しい | N73: =IF(N71="","",VLOOKUP(N71,漢字読み!$A$2:$O$506,6,0)) -> ［投手］の活やく | O73: =IF(O71="","",VLOOKUP(O71,漢字読み!$A$2:$O$506,6,0)) -> ［向］かい風の中 | P73: =IF(P71="","",VLOOKUP(P71,漢字読み!$A$2:$O$506,6,0)) -> ［調子］が悪い | Q73: =IF(Q71="","",VLOOKUP(Q71,漢字読み!$A$2:$O$506,6,0)) -> 先生に［注目］する | R73: =IF(R71="","",VLOOKUP(R71,漢字読み!$A$2:$O$506,6,0)) -> 土地の［習］わし | S73: =IF(S71="","",VLOOKUP(S71,漢字読み!$A$2:$O$506,6,0)) -> ［世代］がちがう | T73: =IF(T71="","",VLOOKUP(T71,漢字読み!$A$2:$O$506,6,0)) -> ［深夜］の町 | V73: 級
A74: =IF(A$11="","",VLOOKUP(A71,漢字書き!$A$2:$O$506,8,0)) -> 号 | B74: =IF(B$11="","",VLOOKUP(B71,漢字書き!$A$2:$O$506,8,0)) -> 係 | C74: =IF(C$11="","",VLOOKUP(C71,漢字書き!$A$2:$O$506,8,0)) -> 次 | D74: =IF(D$11="","",VLOOKUP(D71,漢字書き!$A$2:$O$506,8,0)) -> 研究 | E74: =IF(E$11="","",VLOOKUP(E71,漢字書き!$A$2:$O$506,8,0)) -> 苦心 | F74: =IF(F$11="","",VLOOKUP(F71,漢字書き!$A$2:$O$506,8,0)) -> 持 | G74: =IF(G$11="","",VLOOKUP(G71,漢字書き!$A$2:$O$506,8,0)) -> 投 | H74: =IF(H$11="","",VLOOKUP(H71,漢字書き!$A$2:$O$506,8,0)) -> 追 | I74: =IF(I$11="","",VLOOKUP(I71,漢字書き!$A$2:$O$506,8,0)) -> 安定 | J74: =IF(J$11="","",VLOOKUP(J71,漢字書き!$A$2:$O$506,8,0)) -> 酒 | K74: =IF(K$11="","",VLOOKUP(K71,漢字読み!$A$2:$O$506,8,0)) -> けい | L74: =IF(L$11="","",VLOOKUP(L71,漢字読み!$A$2:$O$506,8,0)) -> そうだん | M74: =IF(M$11="","",VLOOKUP(M71,漢字読み!$A$2:$O$506,8,0)) -> くる | N74: =IF(N$11="","",VLOOKUP(N71,漢字読み!$A$2:$O$506,8,0)) -> とうしゅ | O74: =IF(O$11="","",VLOOKUP(O71,漢字読み!$A$2:$O$506,8,0)) -> む | P74: =IF(P$11="","",VLOOKUP(P71,漢字読み!$A$2:$O$506,8,0)) -> ちょうし | Q74: =IF(Q$11="","",VLOOKUP(Q71,漢字読み!$A$2:$O$506,8,0)) -> ちゅうもく | R74: =IF(R$11="","",VLOOKUP(R71,漢字読み!$A$2:$O$506,8,0)) -> なら | S74: =IF(S$11="","",VLOOKUP(S71,漢字読み!$A$2:$O$506,8,0)) -> せだい | T74: =IF(T$11="","",VLOOKUP(T71,漢字読み!$A$2:$O$506,8,0)) -> しんや | V74: 名前
A75: =IF(A71="","",IF(VLOOKUP(A71,漢字書き!$A$2:$N$502,7,0)=0,"",VLOOKUP(A71,漢字書き!$A$2:$N$502,7,0))) ->  | B75: =IF(B71="","",IF(VLOOKUP(B71,漢字書き!$A$2:$N$502,7,0)=0,"",VLOOKUP(B71,漢字書き!$A$2:$N$502,7,0))) -> る | C75: =IF(C71="","",IF(VLOOKUP(C71,漢字書き!$A$2:$N$502,7,0)=0,"",VLOOKUP(C71,漢字書き!$A$2:$N$502,7,0))) -> ぐ | D75: =IF(D71="","",IF(VLOOKUP(D71,漢字書き!$A$2:$N$502,7,0)=0,"",VLOOKUP(D71,漢字書き!$A$2:$N$502,7,0))) ->  | E75: =IF(E71="","",IF(VLOOKUP(E71,漢字書き!$A$2:$N$502,7,0)=0,"",VLOOKUP(E71,漢字書き!$A$2:$N$502,7,0))) -> して | F75: =IF(F71="","",IF(VLOOKUP(F71,漢字書き!$A$2:$N$502,7,0)=0,"",VLOOKUP(F71,漢字書き!$A$2:$N$502,7,0))) -> つ | G75: =IF(G71="","",IF(VLOOKUP(G71,漢字書き!$A$2:$N$502,7,0)=0,"",VLOOKUP(G71,漢字書き!$A$2:$N$502,7,0))) -> げる | H75: =IF(H71="","",IF(VLOOKUP(H71,漢字書き!$A$2:$N$502,7,0)=0,"",VLOOKUP(H71,漢字書き!$A$2:$N$502,7,0))) -> か | I75: =IF(I71="","",IF(VLOOKUP(I71,漢字書き!$A$2:$N$502,7,0)=0,"",VLOOKUP(I71,漢字書き!$A$2:$N$502,7,0))) -> する | J75: =IF(J71="","",IF(VLOOKUP(J71,漢字書き!$A$2:$N$502,7,0)=0,"",VLOOKUP(J71,漢字書き!$A$2:$N$502,7,0))) ->  | K75: =IF(K71="","",IF(VLOOKUP(K71,漢字読み!$A$2:$O$502,7,0)=0,"",VLOOKUP(K71,漢字読み!$A$2:$O$502,7,0))) -> ない | L75: =IF(L71="","",IF(VLOOKUP(L71,漢字読み!$A$2:$O$502,7,0)=0,"",VLOOKUP(L71,漢字読み!$A$2:$O$502,7,0))) ->  | M75: =IF(M71="","",IF(VLOOKUP(M71,漢字読み!$A$2:$O$502,7,0)=0,"",VLOOKUP(M71,漢字読み!$A$2:$O$502,7,0))) -> しい | N75: =IF(N71="","",IF(VLOOKUP(N71,漢字読み!$A$2:$O$502,7,0)=0,"",VLOOKUP(N71,漢字読み!$A$2:$O$502,7,0))) ->  | O75: =IF(O71="","",IF(VLOOKUP(O71,漢字読み!$A$2:$O$502,7,0)=0,"",VLOOKUP(O71,漢字読み!$A$2:$O$502,7,0))) -> かい | P75: =IF(P71="","",IF(VLOOKUP(P71,漢字読み!$A$2:$O$502,7,0)=0,"",VLOOKUP(P71,漢字読み!$A$2:$O$502,7,0))) ->  | Q75: =IF(Q71="","",IF(VLOOKUP(Q71,漢字読み!$A$2:$O$502,7,0)=0,"",VLOOKUP(Q71,漢字読み!$A$2:$O$502,7,0))) -> する | R75: =IF(R71="","",IF(VLOOKUP(R71,漢字読み!$A$2:$O$502,7,0)=0,"",VLOOKUP(R71,漢字読み!$A$2:$O$502,7,0))) -> わし | S75: =IF(S71="","",IF(VLOOKUP(S71,漢字読み!$A$2:$O$502,7,0)=0,"",VLOOKUP(S71,漢字読み!$A$2:$O$502,7,0))) ->  | T75: =IF(T71="","",IF(VLOOKUP(T71,漢字読み!$A$2:$O$502,7,0)=0,"",VLOOKUP(T71,漢字読み!$A$2:$O$502,7,0))) ->  | W75: 和歌山県教育委員会
A76: =A66 -> 162 | B76: 44 | C76: 167 | D76: 154 | E76: 116 | F76: 174 | G76: 145 | H76: 113 | I76: 231 | J76: 80 | K76: 171 | L76: 123 | M76: 221 | N76: 230 | O76: 180 | P76: 26 | Q76: 168 | R76: 86 | S76: 147 | T76: 16
A77: ⑳ | B77: ⑲ | C77: ⑱ | D77: ⑰ | E77: ⑯ | F77: ⑮ | G77: ⑭ | H77: ⑬ | I77: ⑫ | J77: ⑪ | K77: ⑩ | L77: ⑨ | M77: ⑧ | N77: ⑦ | O77: ⑥ | P77: ⑤ | Q77: ④ | R77: ③ | S77: ② | T77: ① | U77: 次の［ ］の部分の漢字には読みがなをひらがなで書き、カタカナは漢字に直しなさい。 | V77: 12 | W77: 「漢字の博士検定試験」練習問題
A78: =IF(A76="","",VLOOKUP(A76,漢字書き!$A$2:$N$506,6,0)) -> ［ゼンタイ］を考える | B78: =IF(B76="","",VLOOKUP(B76,漢字書き!$A$2:$N$506,6,0)) -> 花の［キュウコン］ | C78: =IF(C76="","",VLOOKUP(C76,漢字書き!$A$2:$N$506,6,0)) -> メールを［ソウ］しんする | D78: =IF(D76="","",VLOOKUP(D76,漢字書き!$A$2:$N$506,6,0)) -> 話を［スス］める | E78: =IF(E76="","",VLOOKUP(E76,漢字書き!$A$2:$N$506,6,0)) -> 茶わんを［カサ］ねる | F78: =IF(F76="","",VLOOKUP(F76,漢字書き!$A$2:$N$506,6,0)) -> スピードが［ハヤ］まる | G78: =IF(G76="","",VLOOKUP(G76,漢字書き!$A$2:$N$506,6,0)) -> ［カミ］さまをおがむ | H78: =IF(H76="","",VLOOKUP(H76,漢字書き!$A$2:$N$506,6,0)) -> ［タイジュウ］をはかる | I78: =IF(I76="","",VLOOKUP(I76,漢字書き!$A$2:$N$506,6,0)) -> 野きゅうの［トウシュ］ | J78: =IF(J76="","",VLOOKUP(J76,漢字書き!$A$2:$N$506,6,0)) -> 記ねん［シャシン］ | K78: =IF(K76="","",VLOOKUP(K76,漢字読み!$A$2:$O$506,6,0)) -> ［水族館］に行く | L78: =IF(L76="","",VLOOKUP(L76,漢字読み!$A$2:$O$506,6,0)) -> 早く［消火］する | M78: =IF(M76="","",VLOOKUP(M76,漢字読み!$A$2:$O$506,6,0)) -> ［庭］の草をぬく | N78: =IF(N76="","",VLOOKUP(N76,漢字読み!$A$2:$O$506,6,0)) -> ［回転］木馬 | O78: =IF(O76="","",VLOOKUP(O76,漢字読み!$A$2:$O$506,6,0)) -> ［待］ちぼうけをくらう | P78: =IF(P76="","",VLOOKUP(P76,漢字読み!$A$2:$O$506,6,0)) -> ［県］の公園 | Q78: =IF(Q76="","",VLOOKUP(Q76,漢字読み!$A$2:$O$506,6,0)) -> ［時速］六十キロ | R78: =IF(R76="","",VLOOKUP(R76,漢字読み!$A$2:$O$506,6,0)) -> ［何者］かがいる | S78: =IF(S76="","",VLOOKUP(S76,漢字読み!$A$2:$O$506,6,0)) -> 日々［進歩］する | T78: =IF(T76="","",VLOOKUP(T76,漢字読み!$A$2:$O$506,6,0)) -> この語は下の語に［係］る | V78: 級
A79: =IF(A$16="","",VLOOKUP(A76,漢字書き!$A$2:$O$506,8,0)) -> 全体 | B79: =IF(B$16="","",VLOOKUP(B76,漢字書き!$A$2:$O$506,8,0)) -> 球根 | C79: =IF(C$16="","",VLOOKUP(C76,漢字書き!$A$2:$O$506,8,0)) -> 送 | D79: =IF(D$16="","",VLOOKUP(D76,漢字書き!$A$2:$O$506,8,0)) -> 進 | E79: =IF(E$16="","",VLOOKUP(E76,漢字書き!$A$2:$O$506,8,0)) -> 重 | F79: =IF(F$16="","",VLOOKUP(F76,漢字書き!$A$2:$O$506,8,0)) -> 速 | G79: =IF(G$16="","",VLOOKUP(G76,漢字書き!$A$2:$O$506,8,0)) -> 神 | H79: =IF(H$16="","",VLOOKUP(H76,漢字書き!$A$2:$O$506,8,0)) -> 体重 | I79: =IF(I$16="","",VLOOKUP(I76,漢字書き!$A$2:$O$506,8,0)) -> 投手 | J79: =IF(J$16="","",VLOOKUP(J76,漢字書き!$A$2:$O$506,8,0)) -> 写真 | K79: =IF(K$16="","",VLOOKUP(K76,漢字読み!$A$2:$O$506,8,0)) -> すいぞくかん | L79: =IF(L$16="","",VLOOKUP(L76,漢字読み!$A$2:$O$506,8,0)) -> しょうか | M79: =IF(M$16="","",VLOOKUP(M76,漢字読み!$A$2:$O$506,8,0)) -> にわ | N79: =IF(N$16="","",VLOOKUP(N76,漢字読み!$A$2:$O$506,8,0)) -> かいてん | O79: =IF(O$16="","",VLOOKUP(O76,漢字読み!$A$2:$O$506,8,0)) -> ま | P79: =IF(P$16="","",VLOOKUP(P76,漢字読み!$A$2:$O$506,8,0)) -> けん | Q79: =IF(Q$16="","",VLOOKUP(Q76,漢字読み!$A$2:$O$506,8,0)) -> じそく | R79: =IF(R$16="","",VLOOKUP(R76,漢字読み!$A$2:$O$506,8,0)) -> なにもの | S79: =IF(S$16="","",VLOOKUP(S76,漢字読み!$A$2:$O$506,8,0)) -> しんぽ | T79: =IF(T$16="","",VLOOKUP(T76,漢字読み!$A$2:$O$506,8,0)) -> かか | V79: 名前
A80: =IF(A76="","",IF(VLOOKUP(A76,漢字書き!$A$2:$N$502,7,0)=0,"",VLOOKUP(A76,漢字書き!$A$2:$N$502,7,0))) ->  | B80: =IF(B76="","",IF(VLOOKUP(B76,漢字書き!$A$2:$N$502,7,0)=0,"",VLOOKUP(B76,漢字書き!$A$2:$N$502,7,0))) ->  | C80: =IF(C76="","",IF(VLOOKUP(C76,漢字書き!$A$2:$N$502,7,0)=0,"",VLOOKUP(C76,漢字書き!$A$2:$N$502,7,0))) -> しん | D80: =IF(D76="","",IF(VLOOKUP(D76,漢字書き!$A$2:$N$502,7,0)=0,"",VLOOKUP(D76,漢字書き!$A$2:$N$502,7,0))) -> める | E80: =IF(E76="","",IF(VLOOKUP(E76,漢字書き!$A$2:$N$502,7,0)=0,"",VLOOKUP(E76,漢字書き!$A$2:$N$502,7,0))) -> ねる | F80: =IF(F76="","",IF(VLOOKUP(F76,漢字書き!$A$2:$N$502,7,0)=0,"",VLOOKUP(F76,漢字書き!$A$2:$N$502,7,0))) -> まる | G80: =IF(G76="","",IF(VLOOKUP(G76,漢字書き!$A$2:$N$502,7,0)=0,"",VLOOKUP(G76,漢字書き!$A$2:$N$502,7,0))) -> さま | H80: =IF(H76="","",IF(VLOOKUP(H76,漢字書き!$A$2:$N$502,7,0)=0,"",VLOOKUP(H76,漢字書き!$A$2:$N$502,7,0))) ->  | I80: =IF(I76="","",IF(VLOOKUP(I76,漢字書き!$A$2:$N$502,7,0)=0,"",VLOOKUP(I76,漢字書き!$A$2:$N$502,7,0))) ->  | J80: =IF(J76="","",IF(VLOOKUP(J76,漢字書き!$A$2:$N$502,7,0)=0,"",VLOOKUP(J76,漢字書き!$A$2:$N$502,7,0))) ->  | K80: =IF(K76="","",IF(VLOOKUP(K76,漢字読み!$A$2:$O$502,7,0)=0,"",VLOOKUP(K76,漢字読み!$A$2:$O$502,7,0))) ->  | L80: =IF(L76="","",IF(VLOOKUP(L76,漢字読み!$A$2:$O$502,7,0)=0,"",VLOOKUP(L76,漢字読み!$A$2:$O$502,7,0))) -> する | M80: =IF(M76="","",IF(VLOOKUP(M76,漢字読み!$A$2:$O$502,7,0)=0,"",VLOOKUP(M76,漢字読み!$A$2:$O$502,7,0))) ->  | N80: =IF(N76="","",IF(VLOOKUP(N76,漢字読み!$A$2:$O$502,7,0)=0,"",VLOOKUP(N76,漢字読み!$A$2:$O$502,7,0))) ->  | O80: =IF(O76="","",IF(VLOOKUP(O76,漢字読み!$A$2:$O$502,7,0)=0,"",VLOOKUP(O76,漢字読み!$A$2:$O$502,7,0))) -> ち | P80: =IF(P76="","",IF(VLOOKUP(P76,漢字読み!$A$2:$O$502,7,0)=0,"",VLOOKUP(P76,漢字読み!$A$2:$O$502,7,0))) ->  | Q80: =IF(Q76="","",IF(VLOOKUP(Q76,漢字読み!$A$2:$O$502,7,0)=0,"",VLOOKUP(Q76,漢字読み!$A$2:$O$502,7,0))) ->  | R80: =IF(R76="","",IF(VLOOKUP(R76,漢字読み!$A$2:$O$502,7,0)=0,"",VLOOKUP(R76,漢字読み!$A$2:$O$502,7,0))) ->  | S80: =IF(S76="","",IF(VLOOKUP(S76,漢字読み!$A$2:$O$502,7,0)=0,"",VLOOKUP(S76,漢字読み!$A$2:$O$502,7,0))) -> する | T80: =IF(T76="","",IF(VLOOKUP(T76,漢字読み!$A$2:$O$502,7,0)=0,"",VLOOKUP(T76,漢字読み!$A$2:$O$502,7,0))) -> る | W80: 和歌山県教育委員会
A81: =INDIRECT("'関数（書き）'!C" & COLUMN(B$1)+SUM($AD$2:$AD82)) -> 18 | B81: =INDIRECT("'関数（書き）'!C" & COLUMN(C$1)+SUM($AD$2:$AD82)) -> 221 | C81: =INDIRECT("'関数（書き）'!C" & COLUMN(D$1)+SUM($AD$2:$AD82)) -> 175 | D81: =INDIRECT("'関数（書き）'!C" & COLUMN(E$1)+SUM($AD$2:$AD82)) -> 33 | E81: =INDIRECT("'関数（書き）'!C" & COLUMN(F$1)+SUM($AD$2:$AD82)) -> 195 | F81: =INDIRECT("'関数（書き）'!C" & COLUMN(G$1)+SUM($AD$2:$AD82)) -> 148 | G81: =INDIRECT("'関数（書き）'!C" & COLUMN(H$1)+SUM($AD$2:$AD82)) -> 111 | H81: =INDIRECT("'関数（書き）'!C" & COLUMN(I$1)+SUM($AD$2:$AD82)) -> 53 | I81: =INDIRECT("'関数（書き）'!C" & COLUMN(J$1)+SUM($AD$2:$AD82)) -> 122 | J81: =INDIRECT("'関数（書き）'!C" & COLUMN(K$1)+SUM($AD$2:$AD82)) -> 8 | K81: =INDIRECT("'関数（読み）'!C" & COLUMN(B$1)+SUM($AD$2:$AD82)) -> 43 | L81: =INDIRECT("'関数（読み）'!C" & COLUMN(C$1)+SUM($AD$2:$AD82)) -> 237 | M81: =INDIRECT("'関数（読み）'!C" & COLUMN(D$1)+SUM($AD$2:$AD82)) -> 48 | N81: =INDIRECT("'関数（読み）'!C" & COLUMN(E$1)+SUM($AD$2:$AD82)) -> 74 | O81: =INDIRECT("'関数（読み）'!C" & COLUMN(F$1)+SUM($AD$2:$AD82)) -> 13 | P81: =INDIRECT("'関数（読み）'!C" & COLUMN(G$1)+SUM($AD$2:$AD82)) -> 218 | Q81: =INDIRECT("'関数（読み）'!C" & COLUMN(H$1)+SUM($AD$2:$AD82)) -> 47 | R81: =INDIRECT("'関数（読み）'!C" & COLUMN(I$1)+SUM($AD$2:$AD82)) -> 64 | S81: =INDIRECT("'関数（読み）'!C" & COLUMN(J$1)+SUM($AD$2:$AD82)) -> 81 | T81: =INDIRECT("'関数（読み）'!C" & COLUMN(K$1)+SUM($AD$2:$AD82)) -> 129
A82: ⑳ | B82: ⑲ | C82: ⑱ | D82: ⑰ | E82: ⑯ | F82: ⑮ | G82: ⑭ | H82: ⑬ | I82: ⑫ | J82: ⑪ | K82: ⑩ | L82: ⑨ | M82: ⑧ | N82: ⑦ | O82: ⑥ | P82: ⑤ | Q82: ④ | R82: ③ | S82: ② | T82: ① | U82: 次の［ ］の部分の漢字には読みがなをひらがなで書き、カタカナは漢字に直しなさい。 | V82: 12 | W82: 「漢字の博士検定試験」練習問題 | AC82: ← | AD82: 10 | AE82: 問 | AF82: =AH67+1 -> 81 | AG82: ～ | AH82: =SUM($AD$2:$AD82)+10 -> 90 | AI82: 問まで | AJ82: =COUNTIF($A$1:$T$200,T83) -> 2
A83: =IF(A81="","",VLOOKUP(A81,漢字書き!$A$2:$N$506,6,0)) -> ［カル］く考えすぎた | B83: =IF(B81="","",VLOOKUP(B81,漢字書き!$A$2:$N$506,6,0)) -> 船の［キテキ］がひびく | C83: =IF(C81="","",VLOOKUP(C81,漢字書き!$A$2:$N$506,6,0)) -> ［カゾク］で出かける | D83: =IF(D81="","",VLOOKUP(D81,漢字書き!$A$2:$N$506,6,0)) -> 学力の［コウジョウ］ | E83: =IF(E81="","",VLOOKUP(E81,漢字書き!$A$2:$N$506,6,0)) -> ［ミジカ］いえんぴつ | F83: =IF(F81="","",VLOOKUP(F81,漢字書き!$A$2:$N$506,6,0)) -> ［マゴコロ］がつたわる | G83: =IF(G81="","",VLOOKUP(G81,漢字書き!$A$2:$N$506,6,0)) -> ［ジュウショ］を書く | H83: =IF(H81="","",VLOOKUP(H81,漢字書き!$A$2:$N$506,6,0)) -> ひっ［シ］で走る | I83: =IF(I81="","",VLOOKUP(I81,漢字書き!$A$2:$N$506,6,0)) -> ［トコロ］によって雨 | J83: =IF(J81="","",VLOOKUP(J81,漢字書き!$A$2:$N$506,6,0)) -> ［ニガ］いくすり | K83: =IF(K81="","",VLOOKUP(K81,漢字読み!$A$2:$O$506,6,0)) -> チューリップの［球根］ | L83: =IF(L81="","",VLOOKUP(L81,漢字読み!$A$2:$O$506,6,0)) -> ［感度］を上げる | M83: =IF(M81="","",VLOOKUP(M81,漢字読み!$A$2:$O$506,6,0)) -> ［皿］をわる | N83: =IF(N81="","",VLOOKUP(N81,漢字読み!$A$2:$O$506,6,0)) -> 先生の［仕事］ | O83: =IF(O81="","",VLOOKUP(O81,漢字読み!$A$2:$O$506,6,0)) -> ［君］のとなり | P83: =IF(P81="","",VLOOKUP(P81,漢字読み!$A$2:$O$506,6,0)) -> 本当か［定］かではない | Q83: =IF(Q81="","",VLOOKUP(Q81,漢字読み!$A$2:$O$506,6,0)) -> ［祭］りばやし | R83: =IF(R81="","",VLOOKUP(R81,漢字読み!$A$2:$O$506,6,0)) -> コンパスが北を［指］す | S83: =IF(S81="","",VLOOKUP(S81,漢字読み!$A$2:$O$506,6,0)) -> 木の［実］をとる | T83: =IF(T81="","",VLOOKUP(T81,漢字読み!$A$2:$O$506,6,0)) -> ［全勝］をする | V83: 級
V84: 名前
A85: =IF(A81="","",IF(VLOOKUP(A81,漢字書き!$A$2:$N$502,7,0)=0,"",VLOOKUP(A81,漢字書き!$A$2:$N$502,7,0))) -> く | B85: =IF(B81="","",IF(VLOOKUP(B81,漢字書き!$A$2:$N$502,7,0)=0,"",VLOOKUP(B81,漢字書き!$A$2:$N$502,7,0))) ->  | C85: =IF(C81="","",IF(VLOOKUP(C81,漢字書き!$A$2:$N$502,7,0)=0,"",VLOOKUP(C81,漢字書き!$A$2:$N$502,7,0))) ->  | D85: =IF(D81="","",IF(VLOOKUP(D81,漢字書き!$A$2:$N$502,7,0)=0,"",VLOOKUP(D81,漢字書き!$A$2:$N$502,7,0))) ->  | E85: =IF(E81="","",IF(VLOOKUP(E81,漢字書き!$A$2:$N$502,7,0)=0,"",VLOOKUP(E81,漢字書き!$A$2:$N$502,7,0))) -> い | F85: =IF(F81="","",IF(VLOOKUP(F81,漢字書き!$A$2:$N$502,7,0)=0,"",VLOOKUP(F81,漢字書き!$A$2:$N$502,7,0))) ->  | G85: =IF(G81="","",IF(VLOOKUP(G81,漢字書き!$A$2:$N$502,7,0)=0,"",VLOOKUP(G81,漢字書き!$A$2:$N$502,7,0))) ->  | H85: =IF(H81="","",IF(VLOOKUP(H81,漢字書き!$A$2:$N$502,7,0)=0,"",VLOOKUP(H81,漢字書き!$A$2:$N$502,7,0))) ->  | I85: =IF(I81="","",IF(VLOOKUP(I81,漢字書き!$A$2:$N$502,7,0)=0,"",VLOOKUP(I81,漢字書き!$A$2:$N$502,7,0))) ->  | J85: =IF(J81="","",IF(VLOOKUP(J81,漢字書き!$A$2:$N$502,7,0)=0,"",VLOOKUP(J81,漢字書き!$A$2:$N$502,7,0))) -> い | K85: =IF(K81="","",IF(VLOOKUP(K81,漢字読み!$A$2:$O$502,7,0)=0,"",VLOOKUP(K81,漢字読み!$A$2:$O$502,7,0))) ->  | L85: =IF(L81="","",IF(VLOOKUP(L81,漢字読み!$A$2:$O$502,7,0)=0,"",VLOOKUP(L81,漢字読み!$A$2:$O$502,7,0))) ->  | M85: =IF(M81="","",IF(VLOOKUP(M81,漢字読み!$A$2:$O$502,7,0)=0,"",VLOOKUP(M81,漢字読み!$A$2:$O$502,7,0))) ->  | N85: =IF(N81="","",IF(VLOOKUP(N81,漢字読み!$A$2:$O$502,7,0)=0,"",VLOOKUP(N81,漢字読み!$A$2:$O$502,7,0))) ->  | O85: =IF(O81="","",IF(VLOOKUP(O81,漢字読み!$A$2:$O$502,7,0)=0,"",VLOOKUP(O81,漢字読み!$A$2:$O$502,7,0))) ->  | P85: =IF(P81="","",IF(VLOOKUP(P81,漢字読み!$A$2:$O$502,7,0)=0,"",VLOOKUP(P81,漢字読み!$A$2:$O$502,7,0))) -> か | Q85: =IF(Q81="","",IF(VLOOKUP(Q81,漢字読み!$A$2:$O$502,7,0)=0,"",VLOOKUP(Q81,漢字読み!$A$2:$O$502,7,0))) -> り | R85: =IF(R81="","",IF(VLOOKUP(R81,漢字読み!$A$2:$O$502,7,0)=0,"",VLOOKUP(R81,漢字読み!$A$2:$O$502,7,0))) -> す | S85: =IF(S81="","",IF(VLOOKUP(S81,漢字読み!$A$2:$O$502,7,0)=0,"",VLOOKUP(S81,漢字読み!$A$2:$O$502,7,0))) ->  | T85: =IF(T81="","",IF(VLOOKUP(T81,漢字読み!$A$2:$O$502,7,0)=0,"",VLOOKUP(T81,漢字読み!$A$2:$O$502,7,0))) ->  | W85: 和歌山県教育委員会
A86: =INDIRECT("'関数（書き）'!C" & COLUMN(B$1)+SUM($AD$2:$AD87)) -> 22 | B86: =INDIRECT("'関数（書き）'!C" & COLUMN(C$1)+SUM($AD$2:$AD87)) -> 134 | C86: =INDIRECT("'関数（書き）'!C" & COLUMN(D$1)+SUM($AD$2:$AD87)) -> 177 | D86: =INDIRECT("'関数（書き）'!C" & COLUMN(E$1)+SUM($AD$2:$AD87)) -> 36 | E86: =INDIRECT("'関数（書き）'!C" & COLUMN(F$1)+SUM($AD$2:$AD87)) -> 29 | F86: =INDIRECT("'関数（書き）'!C" & COLUMN(G$1)+SUM($AD$2:$AD87)) -> 20 | G86: =INDIRECT("'関数（書き）'!C" & COLUMN(H$1)+SUM($AD$2:$AD87)) -> 165 | H86: =INDIRECT("'関数（書き）'!C" & COLUMN(I$1)+SUM($AD$2:$AD87)) -> 136 | I86: =INDIRECT("'関数（書き）'!C" & COLUMN(J$1)+SUM($AD$2:$AD87)) -> 126 | J86: =INDIRECT("'関数（書き）'!C" & COLUMN(K$1)+SUM($AD$2:$AD87)) -> 157 | K86: =INDIRECT("'関数（読み）'!C" & COLUMN(B$1)+SUM($AD$2:$AD87)) -> 169 | L86: =INDIRECT("'関数（読み）'!C" & COLUMN(C$1)+SUM($AD$2:$AD87)) -> 75 | M86: =INDIRECT("'関数（読み）'!C" & COLUMN(D$1)+SUM($AD$2:$AD87)) -> 115 | N86: =INDIRECT("'関数（読み）'!C" & COLUMN(E$1)+SUM($AD$2:$AD87)) -> 52 | O86: =INDIRECT("'関数（読み）'!C" & COLUMN(F$1)+SUM($AD$2:$AD87)) -> 151 | P86: =INDIRECT("'関数（読み）'!C" & COLUMN(G$1)+SUM($AD$2:$AD87)) -> 189 | Q86: =INDIRECT("'関数（読み）'!C" & COLUMN(H$1)+SUM($AD$2:$AD87)) -> 29 | R86: =INDIRECT("'関数（読み）'!C" & COLUMN(I$1)+SUM($AD$2:$AD87)) -> 120 | S86: =INDIRECT("'関数（読み）'!C" & COLUMN(J$1)+SUM($AD$2:$AD87)) -> 176 | T86: =INDIRECT("'関数（読み）'!C" & COLUMN(K$1)+SUM($AD$2:$AD87)) -> 149
A87: ⑳ | B87: ⑲ | C87: ⑱ | D87: ⑰ | E87: ⑯ | F87: ⑮ | G87: ⑭ | H87: ⑬ | I87: ⑫ | J87: ⑪ | K87: ⑩ | L87: ⑨ | M87: ⑧ | N87: ⑦ | O87: ⑥ | P87: ⑤ | Q87: ④ | R87: ③ | S87: ② | T87: ① | U87: 次の［ ］の部分の漢字には読みがなをひらがなで書き、カタカナは漢字に直しなさい。 | V87: 12 | W87: 「漢字の博士検定試験」練習問題 | AC87: ← | AD87: 10 | AE87: 問 | AF87: =AH82+1 -> 91 | AG87: ～ | AH87: =SUM($AD$2:$AD87)+10 -> 100 | AI87: 問まで | AJ87: =COUNTIF($A$1:$T$200,T88) -> 2
A88: =IF(A86="","",VLOOKUP(A86,漢字書き!$A$2:$N$506,6,0)) -> けがで［チ］が出る | B88: =IF(B86="","",VLOOKUP(B86,漢字書き!$A$2:$N$506,6,0)) -> ジャンケンに［カ］つ | C88: =IF(C86="","",VLOOKUP(C86,漢字書き!$A$2:$N$506,6,0)) -> 赤の［タニン］ | D88: =IF(D86="","",VLOOKUP(D86,漢字書き!$A$2:$N$506,6,0)) -> 学校に［ム］かう | E88: =IF(E86="","",VLOOKUP(E86,漢字書き!$A$2:$N$506,6,0)) -> そう［コ］にかたづける | F88: =IF(F86="","",VLOOKUP(F86,漢字書き!$A$2:$N$506,6,0)) -> [テガル]に持ち運ぶ | G88: =IF(G86="","",VLOOKUP(G86,漢字書き!$A$2:$N$506,6,0)) -> ［テソウ］を見てうらなう | H88: =IF(H86="","",VLOOKUP(H86,漢字書き!$A$2:$N$506,6,0)) -> バスに［ノ］る | I88: =IF(I86="","",VLOOKUP(I86,漢字書き!$A$2:$N$506,6,0)) -> ［ジョソウ］をつける | J88: =IF(J86="","",VLOOKUP(J86,漢字書き!$A$2:$N$506,6,0)) -> ［ヨ］の中の仕組み | K88: =IF(K86="","",VLOOKUP(K86,漢字読み!$A$2:$O$506,6,0)) -> ［速］く走る | L88: =IF(L86="","",VLOOKUP(L86,漢字読み!$A$2:$O$506,6,0)) -> 新しい［事］がら | M88: =IF(M86="","",VLOOKUP(M86,漢字読み!$A$2:$O$506,6,0)) -> ［所定］の場所におく | N88: =IF(N86="","",VLOOKUP(N86,漢字読み!$A$2:$O$506,6,0)) -> ［生死］のさかいめ | O88: =IF(O86="","",VLOOKUP(O86,漢字読み!$A$2:$O$506,6,0)) -> 本の［整理］をする | P88: =IF(P86="","",VLOOKUP(P86,漢字読み!$A$2:$O$506,6,0)) -> ［宿題］をする | Q88: =IF(Q86="","",VLOOKUP(Q86,漢字読み!$A$2:$O$506,6,0)) -> 学級［文庫］ | R88: =IF(R86="","",VLOOKUP(R86,漢字読み!$A$2:$O$506,6,0)) -> 友だちを［助］ける | S88: =IF(S86="","",VLOOKUP(S86,漢字読み!$A$2:$O$506,6,0)) -> ［対立］した意見 | T88: =IF(T86="","",VLOOKUP(T86,漢字読み!$A$2:$O$506,6,0)) -> ［世］の中に出る | V88: 級
V89: 名前
A90: =IF(A86="","",IF(VLOOKUP(A86,漢字書き!$A$2:$N$502,7,0)=0,"",VLOOKUP(A86,漢字書き!$A$2:$N$502,7,0))) ->  | B90: =IF(B86="","",IF(VLOOKUP(B86,漢字書き!$A$2:$N$502,7,0)=0,"",VLOOKUP(B86,漢字書き!$A$2:$N$502,7,0))) -> つ | C90: =IF(C86="","",IF(VLOOKUP(C86,漢字書き!$A$2:$N$502,7,0)=0,"",VLOOKUP(C86,漢字書き!$A$2:$N$502,7,0))) ->  | D90: =IF(D86="","",IF(VLOOKUP(D86,漢字書き!$A$2:$N$502,7,0)=0,"",VLOOKUP(D86,漢字書き!$A$2:$N$502,7,0))) -> かう | E90: =IF(E86="","",IF(VLOOKUP(E86,漢字書き!$A$2:$N$502,7,0)=0,"",VLOOKUP(E86,漢字書き!$A$2:$N$502,7,0))) ->  | F90: =IF(F86="","",IF(VLOOKUP(F86,漢字書き!$A$2:$N$502,7,0)=0,"",VLOOKUP(F86,漢字書き!$A$2:$N$502,7,0))) -> に | G90: =IF(G86="","",IF(VLOOKUP(G86,漢字書き!$A$2:$N$502,7,0)=0,"",VLOOKUP(G86,漢字書き!$A$2:$N$502,7,0))) ->  | H90: =IF(H86="","",IF(VLOOKUP(H86,漢字書き!$A$2:$N$502,7,0)=0,"",VLOOKUP(H86,漢字書き!$A$2:$N$502,7,0))) -> る | I90: =IF(I86="","",IF(VLOOKUP(I86,漢字書き!$A$2:$N$502,7,0)=0,"",VLOOKUP(I86,漢字書き!$A$2:$N$502,7,0))) ->  | J90: =IF(J86="","",IF(VLOOKUP(J86,漢字書き!$A$2:$N$502,7,0)=0,"",VLOOKUP(J86,漢字書き!$A$2:$N$502,7,0))) -> の中 | K90: =IF(K86="","",IF(VLOOKUP(K86,漢字読み!$A$2:$O$502,7,0)=0,"",VLOOKUP(K86,漢字読み!$A$2:$O$502,7,0))) -> く | L90: =IF(L86="","",IF(VLOOKUP(L86,漢字読み!$A$2:$O$502,7,0)=0,"",VLOOKUP(L86,漢字読み!$A$2:$O$502,7,0))) -> がら | M90: =IF(M86="","",IF(VLOOKUP(M86,漢字読み!$A$2:$O$502,7,0)=0,"",VLOOKUP(M86,漢字読み!$A$2:$O$502,7,0))) ->  | N90: =IF(N86="","",IF(VLOOKUP(N86,漢字読み!$A$2:$O$502,7,0)=0,"",VLOOKUP(N86,漢字読み!$A$2:$O$502,7,0))) ->  | O90: =IF(O86="","",IF(VLOOKUP(O86,漢字読み!$A$2:$O$502,7,0)=0,"",VLOOKUP(O86,漢字読み!$A$2:$O$502,7,0))) ->  | P90: =IF(P86="","",IF(VLOOKUP(P86,漢字読み!$A$2:$O$502,7,0)=0,"",VLOOKUP(P86,漢字読み!$A$2:$O$502,7,0))) ->  | Q90: =IF(Q86="","",IF(VLOOKUP(Q86,漢字読み!$A$2:$O$502,7,0)=0,"",VLOOKUP(Q86,漢字読み!$A$2:$O$502,7,0))) ->  | R90: =IF(R86="","",IF(VLOOKUP(R86,漢字読み!$A$2:$O$502,7,0)=0,"",VLOOKUP(R86,漢字読み!$A$2:$O$502,7,0))) -> ける | S90: =IF(S86="","",IF(VLOOKUP(S86,漢字読み!$A$2:$O$502,7,0)=0,"",VLOOKUP(S86,漢字読み!$A$2:$O$502,7,0))) -> した | T90: =IF(T86="","",IF(VLOOKUP(T86,漢字読み!$A$2:$O$502,7,0)=0,"",VLOOKUP(T86,漢字読み!$A$2:$O$502,7,0))) -> の中 | W90: 和歌山県教育委員会
A91: =A81 -> 18 | B91: 221 | C91: 175 | D91: 33 | E91: 195 | F91: 148 | G91: 111 | H91: 53 | I91: 122 | J91: 8 | K91: 43 | L91: 237 | M91: 48 | N91: 74 | O91: 13 | P91: 218 | Q91: 47 | R91: 64 | S91: 81 | T91: 129
A92: ⑳ | B92: ⑲ | C92: ⑱ | D92: ⑰ | E92: ⑯ | F92: ⑮ | G92: ⑭ | H92: ⑬ | I92: ⑫ | J92: ⑪ | K92: ⑩ | L92: ⑨ | M92: ⑧ | N92: ⑦ | O92: ⑥ | P92: ⑤ | Q92: ④ | R92: ③ | S92: ② | T92: ① | U92: 次の［ ］の部分の漢字には読みがなをひらがなで書き、カタカナは漢字に直しなさい。 | V92: 12 | W92: 「漢字の博士検定試験」練習問題
A93: =IF(A91="","",VLOOKUP(A91,漢字書き!$A$2:$N$506,6,0)) -> ［カル］く考えすぎた | B93: =IF(B91="","",VLOOKUP(B91,漢字書き!$A$2:$N$506,6,0)) -> 船の［キテキ］がひびく | C93: =IF(C91="","",VLOOKUP(C91,漢字書き!$A$2:$N$506,6,0)) -> ［カゾク］で出かける | D93: =IF(D91="","",VLOOKUP(D91,漢字書き!$A$2:$N$506,6,0)) -> 学力の［コウジョウ］ | E93: =IF(E91="","",VLOOKUP(E91,漢字書き!$A$2:$N$506,6,0)) -> ［ミジカ］いえんぴつ | F93: =IF(F91="","",VLOOKUP(F91,漢字書き!$A$2:$N$506,6,0)) -> ［マゴコロ］がつたわる | G93: =IF(G91="","",VLOOKUP(G91,漢字書き!$A$2:$N$506,6,0)) -> ［ジュウショ］を書く | H93: =IF(H91="","",VLOOKUP(H91,漢字書き!$A$2:$N$506,6,0)) -> ひっ［シ］で走る | I93: =IF(I91="","",VLOOKUP(I91,漢字書き!$A$2:$N$506,6,0)) -> ［トコロ］によって雨 | J93: =IF(J91="","",VLOOKUP(J91,漢字書き!$A$2:$N$506,6,0)) -> ［ニガ］いくすり | K93: =IF(K91="","",VLOOKUP(K91,漢字読み!$A$2:$O$506,6,0)) -> チューリップの［球根］ | L93: =IF(L91="","",VLOOKUP(L91,漢字読み!$A$2:$O$506,6,0)) -> ［感度］を上げる | M93: =IF(M91="","",VLOOKUP(M91,漢字読み!$A$2:$O$506,6,0)) -> ［皿］をわる | N93: =IF(N91="","",VLOOKUP(N91,漢字読み!$A$2:$O$506,6,0)) -> 先生の［仕事］ | O93: =IF(O91="","",VLOOKUP(O91,漢字読み!$A$2:$O$506,6,0)) -> ［君］のとなり | P93: =IF(P91="","",VLOOKUP(P91,漢字読み!$A$2:$O$506,6,0)) -> 本当か［定］かではない | Q93: =IF(Q91="","",VLOOKUP(Q91,漢字読み!$A$2:$O$506,6,0)) -> ［祭］りばやし | R93: =IF(R91="","",VLOOKUP(R91,漢字読み!$A$2:$O$506,6,0)) -> コンパスが北を［指］す | S93: =IF(S91="","",VLOOKUP(S91,漢字読み!$A$2:$O$506,6,0)) -> 木の［実］をとる | T93: =IF(T91="","",VLOOKUP(T91,漢字読み!$A$2:$O$506,6,0)) -> ［全勝］をする | V93: 級
A94: =IF(A$11="","",VLOOKUP(A91,漢字書き!$A$2:$O$506,8,0)) -> 軽 | B94: =IF(B$11="","",VLOOKUP(B91,漢字書き!$A$2:$O$506,8,0)) -> 汽笛 | C94: =IF(C$11="","",VLOOKUP(C91,漢字書き!$A$2:$O$506,8,0)) -> 家族 | D94: =IF(D$11="","",VLOOKUP(D91,漢字書き!$A$2:$O$506,8,0)) -> 向上 | E94: =IF(E$11="","",VLOOKUP(E91,漢字書き!$A$2:$O$506,8,0)) -> 短 | F94: =IF(F$11="","",VLOOKUP(F91,漢字書き!$A$2:$O$506,8,0)) -> 真心 | G94: =IF(G$11="","",VLOOKUP(G91,漢字書き!$A$2:$O$506,8,0)) -> 住所 | H94: =IF(H$11="","",VLOOKUP(H91,漢字書き!$A$2:$O$506,8,0)) -> 死 | I94: =IF(I$11="","",VLOOKUP(I91,漢字書き!$A$2:$O$506,8,0)) -> 所 | J94: =IF(J$11="","",VLOOKUP(J91,漢字書き!$A$2:$O$506,8,0)) -> 苦 | K94: =IF(K$11="","",VLOOKUP(K91,漢字読み!$A$2:$O$506,8,0)) -> きゅうこん | L94: =IF(L$11="","",VLOOKUP(L91,漢字読み!$A$2:$O$506,8,0)) -> かんど | M94: =IF(M$11="","",VLOOKUP(M91,漢字読み!$A$2:$O$506,8,0)) -> さら | N94: =IF(N$11="","",VLOOKUP(N91,漢字読み!$A$2:$O$506,8,0)) -> しごと | O94: =IF(O$11="","",VLOOKUP(O91,漢字読み!$A$2:$O$506,8,0)) -> きみ | P94: =IF(P$11="","",VLOOKUP(P91,漢字読み!$A$2:$O$506,8,0)) -> さだ | Q94: =IF(Q$11="","",VLOOKUP(Q91,漢字読み!$A$2:$O$506,8,0)) -> まつ | R94: =IF(R$11="","",VLOOKUP(R91,漢字読み!$A$2:$O$506,8,0)) -> さ | S94: =IF(S$11="","",VLOOKUP(S91,漢字読み!$A$2:$O$506,8,0)) -> み | T94: =IF(T$11="","",VLOOKUP(T91,漢字読み!$A$2:$O$506,8,0)) -> ぜんしょう | V94: 名前
A95: =IF(A91="","",IF(VLOOKUP(A91,漢字書き!$A$2:$N$502,7,0)=0,"",VLOOKUP(A91,漢字書き!$A$2:$N$502,7,0))) -> く | B95: =IF(B91="","",IF(VLOOKUP(B91,漢字書き!$A$2:$N$502,7,0)=0,"",VLOOKUP(B91,漢字書き!$A$2:$N$502,7,0))) ->  | C95: =IF(C91="","",IF(VLOOKUP(C91,漢字書き!$A$2:$N$502,7,0)=0,"",VLOOKUP(C91,漢字書き!$A$2:$N$502,7,0))) ->  | D95: =IF(D91="","",IF(VLOOKUP(D91,漢字書き!$A$2:$N$502,7,0)=0,"",VLOOKUP(D91,漢字書き!$A$2:$N$502,7,0))) ->  | E95: =IF(E91="","",IF(VLOOKUP(E91,漢字書き!$A$2:$N$502,7,0)=0,"",VLOOKUP(E91,漢字書き!$A$2:$N$502,7,0))) -> い | F95: =IF(F91="","",IF(VLOOKUP(F91,漢字書き!$A$2:$N$502,7,0)=0,"",VLOOKUP(F91,漢字書き!$A$2:$N$502,7,0))) ->  | G95: =IF(G91="","",IF(VLOOKUP(G91,漢字書き!$A$2:$N$502,7,0)=0,"",VLOOKUP(G91,漢字書き!$A$2:$N$502,7,0))) ->  | H95: =IF(H91="","",IF(VLOOKUP(H91,漢字書き!$A$2:$N$502,7,0)=0,"",VLOOKUP(H91,漢字書き!$A$2:$N$502,7,0))) ->  | I95: =IF(I91="","",IF(VLOOKUP(I91,漢字書き!$A$2:$N$502,7,0)=0,"",VLOOKUP(I91,漢字書き!$A$2:$N$502,7,0))) ->  | J95: =IF(J91="","",IF(VLOOKUP(J91,漢字書き!$A$2:$N$502,7,0)=0,"",VLOOKUP(J91,漢字書き!$A$2:$N$502,7,0))) -> い | K95: =IF(K91="","",IF(VLOOKUP(K91,漢字読み!$A$2:$O$502,7,0)=0,"",VLOOKUP(K91,漢字読み!$A$2:$O$502,7,0))) ->  | L95: =IF(L91="","",IF(VLOOKUP(L91,漢字読み!$A$2:$O$502,7,0)=0,"",VLOOKUP(L91,漢字読み!$A$2:$O$502,7,0))) ->  | M95: =IF(M91="","",IF(VLOOKUP(M91,漢字読み!$A$2:$O$502,7,0)=0,"",VLOOKUP(M91,漢字読み!$A$2:$O$502,7,0))) ->  | N95: =IF(N91="","",IF(VLOOKUP(N91,漢字読み!$A$2:$O$502,7,0)=0,"",VLOOKUP(N91,漢字読み!$A$2:$O$502,7,0))) ->  | O95: =IF(O91="","",IF(VLOOKUP(O91,漢字読み!$A$2:$O$502,7,0)=0,"",VLOOKUP(O91,漢字読み!$A$2:$O$502,7,0))) ->  | P95: =IF(P91="","",IF(VLOOKUP(P91,漢字読み!$A$2:$O$502,7,0)=0,"",VLOOKUP(P91,漢字読み!$A$2:$O$502,7,0))) -> か | Q95: =IF(Q91="","",IF(VLOOKUP(Q91,漢字読み!$A$2:$O$502,7,0)=0,"",VLOOKUP(Q91,漢字読み!$A$2:$O$502,7,0))) -> り | R95: =IF(R91="","",IF(VLOOKUP(R91,漢字読み!$A$2:$O$502,7,0)=0,"",VLOOKUP(R91,漢字読み!$A$2:$O$502,7,0))) -> す | S95: =IF(S91="","",IF(VLOOKUP(S91,漢字読み!$A$2:$O$502,7,0)=0,"",VLOOKUP(S91,漢字読み!$A$2:$O$502,7,0))) ->  | T95: =IF(T91="","",IF(VLOOKUP(T91,漢字読み!$A$2:$O$502,7,0)=0,"",VLOOKUP(T91,漢字読み!$A$2:$O$502,7,0))) ->  | W95: 和歌山県教育委員会
A96: =A86 -> 22 | B96: 134 | C96: 177 | D96: 36 | E96: 29 | F96: 20 | G96: 165 | H96: 136 | I96: 126 | J96: 157 | K96: 169 | L96: 75 | M96: 115 | N96: 52 | O96: 151 | P96: 189 | Q96: 29 | R96: 120 | S96: 176 | T96: 149
A97: ⑳ | B97: ⑲ | C97: ⑱ | D97: ⑰ | E97: ⑯ | F97: ⑮ | G97: ⑭ | H97: ⑬ | I97: ⑫ | J97: ⑪ | K97: ⑩ | L97: ⑨ | M97: ⑧ | N97: ⑦ | O97: ⑥ | P97: ⑤ | Q97: ④ | R97: ③ | S97: ② | T97: ① | U97: 次の［ ］の部分の漢字には読みがなをひらがなで書き、カタカナは漢字に直しなさい。 | V97: 12 | W97: 「漢字の博士検定試験」練習問題
A98: =IF(A96="","",VLOOKUP(A96,漢字書き!$A$2:$N$506,6,0)) -> けがで［チ］が出る | B98: =IF(B96="","",VLOOKUP(B96,漢字書き!$A$2:$N$506,6,0)) -> ジャンケンに［カ］つ | C98: =IF(C96="","",VLOOKUP(C96,漢字書き!$A$2:$N$506,6,0)) -> 赤の［タニン］ | D98: =IF(D96="","",VLOOKUP(D96,漢字書き!$A$2:$N$506,6,0)) -> 学校に［ム］かう | E98: =IF(E96="","",VLOOKUP(E96,漢字書き!$A$2:$N$506,6,0)) -> そう［コ］にかたづける | F98: =IF(F96="","",VLOOKUP(F96,漢字書き!$A$2:$N$506,6,0)) -> [テガル]に持ち運ぶ | G98: =IF(G96="","",VLOOKUP(G96,漢字書き!$A$2:$N$506,6,0)) -> ［テソウ］を見てうらなう | H98: =IF(H96="","",VLOOKUP(H96,漢字書き!$A$2:$N$506,6,0)) -> バスに［ノ］る | I98: =IF(I96="","",VLOOKUP(I96,漢字書き!$A$2:$N$506,6,0)) -> ［ジョソウ］をつける | J98: =IF(J96="","",VLOOKUP(J96,漢字書き!$A$2:$N$506,6,0)) -> ［ヨ］の中の仕組み | K98: =IF(K96="","",VLOOKUP(K96,漢字読み!$A$2:$O$506,6,0)) -> ［速］く走る | L98: =IF(L96="","",VLOOKUP(L96,漢字読み!$A$2:$O$506,6,0)) -> 新しい［事］がら | M98: =IF(M96="","",VLOOKUP(M96,漢字読み!$A$2:$O$506,6,0)) -> ［所定］の場所におく | N98: =IF(N96="","",VLOOKUP(N96,漢字読み!$A$2:$O$506,6,0)) -> ［生死］のさかいめ | O98: =IF(O96="","",VLOOKUP(O96,漢字読み!$A$2:$O$506,6,0)) -> 本の［整理］をする | P98: =IF(P96="","",VLOOKUP(P96,漢字読み!$A$2:$O$506,6,0)) -> ［宿題］をする | Q98: =IF(Q96="","",VLOOKUP(Q96,漢字読み!$A$2:$O$506,6,0)) -> 学級［文庫］ | R98: =IF(R96="","",VLOOKUP(R96,漢字読み!$A$2:$O$506,6,0)) -> 友だちを［助］ける | S98: =IF(S96="","",VLOOKUP(S96,漢字読み!$A$2:$O$506,6,0)) -> ［対立］した意見 | T98: =IF(T96="","",VLOOKUP(T96,漢字読み!$A$2:$O$506,6,0)) -> ［世］の中に出る | V98: 級
A99: =IF(A$16="","",VLOOKUP(A96,漢字書き!$A$2:$O$506,8,0)) -> 血 | B99: =IF(B$16="","",VLOOKUP(B96,漢字書き!$A$2:$O$506,8,0)) -> 勝 | C99: =IF(C$16="","",VLOOKUP(C96,漢字書き!$A$2:$O$506,8,0)) -> 他人 | D99: =IF(D$16="","",VLOOKUP(D96,漢字書き!$A$2:$O$506,8,0)) -> 向 | E99: =IF(E$16="","",VLOOKUP(E96,漢字書き!$A$2:$O$506,8,0)) -> 庫 | F99: =IF(F$16="","",VLOOKUP(F96,漢字書き!$A$2:$O$506,8,0)) -> 手軽 | G99: =IF(G$16="","",VLOOKUP(G96,漢字書き!$A$2:$O$506,8,0)) -> 手相 | H99: =IF(H$16="","",VLOOKUP(H96,漢字書き!$A$2:$O$506,8,0)) -> 乗 | I99: =IF(I$16="","",VLOOKUP(I96,漢字書き!$A$2:$O$506,8,0)) -> 助走 | J99: =IF(J$16="","",VLOOKUP(J96,漢字書き!$A$2:$O$506,8,0)) -> 世 | K99: =IF(K$16="","",VLOOKUP(K96,漢字読み!$A$2:$O$506,8,0)) -> はや | L99: =IF(L$16="","",VLOOKUP(L96,漢字読み!$A$2:$O$506,8,0)) -> こと | M99: =IF(M$16="","",VLOOKUP(M96,漢字読み!$A$2:$O$506,8,0)) -> しょてい | N99: =IF(N$16="","",VLOOKUP(N96,漢字読み!$A$2:$O$506,8,0)) -> せいし | O99: =IF(O$16="","",VLOOKUP(O96,漢字読み!$A$2:$O$506,8,0)) -> せいり | P99: =IF(P$16="","",VLOOKUP(P96,漢字読み!$A$2:$O$506,8,0)) -> しゅくだい | Q99: =IF(Q$16="","",VLOOKUP(Q96,漢字読み!$A$2:$O$506,8,0)) -> ぶんこ | R99: =IF(R$16="","",VLOOKUP(R96,漢字読み!$A$2:$O$506,8,0)) -> たす | S99: =IF(S$16="","",VLOOKUP(S96,漢字読み!$A$2:$O$506,8,0)) -> たいりつ | T99: =IF(T$16="","",VLOOKUP(T96,漢字読み!$A$2:$O$506,8,0)) -> よ | V99: 名前
A100: =IF(A96="","",IF(VLOOKUP(A96,漢字書き!$A$2:$N$502,7,0)=0,"",VLOOKUP(A96,漢字書き!$A$2:$N$502,7,0))) ->  | B100: =IF(B96="","",IF(VLOOKUP(B96,漢字書き!$A$2:$N$502,7,0)=0,"",VLOOKUP(B96,漢字書き!$A$2:$N$502,7,0))) -> つ | C100: =IF(C96="","",IF(VLOOKUP(C96,漢字書き!$A$2:$N$502,7,0)=0,"",VLOOKUP(C96,漢字書き!$A$2:$N$502,7,0))) ->  | D100: =IF(D96="","",IF(VLOOKUP(D96,漢字書き!$A$2:$N$502,7,0)=0,"",VLOOKUP(D96,漢字書き!$A$2:$N$502,7,0))) -> かう | E100: =IF(E96="","",IF(VLOOKUP(E96,漢字書き!$A$2:$N$502,7,0)=0,"",VLOOKUP(E96,漢字書き!$A$2:$N$502,7,0))) ->  | F100: =IF(F96="","",IF(VLOOKUP(F96,漢字書き!$A$2:$N$502,7,0)=0,"",VLOOKUP(F96,漢字書き!$A$2:$N$502,7,0))) -> に | G100: =IF(G96="","",IF(VLOOKUP(G96,漢字書き!$A$2:$N$502,7,0)=0,"",VLOOKUP(G96,漢字書き!$A$2:$N$502,7,0))) ->  | H100: =IF(H96="","",IF(VLOOKUP(H96,漢字書き!$A$2:$N$502,7,0)=0,"",VLOOKUP(H96,漢字書き!$A$2:$N$502,7,0))) -> る | I100: =IF(I96="","",IF(VLOOKUP(I96,漢字書き!$A$2:$N$502,7,0)=0,"",VLOOKUP(I96,漢字書き!$A$2:$N$502,7,0))) ->  | J100: =IF(J96="","",IF(VLOOKUP(J96,漢字書き!$A$2:$N$502,7,0)=0,"",VLOOKUP(J96,漢字書き!$A$2:$N$502,7,0))) -> の中 | K100: =IF(K96="","",IF(VLOOKUP(K96,漢字読み!$A$2:$O$502,7,0)=0,"",VLOOKUP(K96,漢字読み!$A$2:$O$502,7,0))) -> く | L100: =IF(L96="","",IF(VLOOKUP(L96,漢字読み!$A$2:$O$502,7,0)=0,"",VLOOKUP(L96,漢字読み!$A$2:$O$502,7,0))) -> がら | M100: =IF(M96="","",IF(VLOOKUP(M96,漢字読み!$A$2:$O$502,7,0)=0,"",VLOOKUP(M96,漢字読み!$A$2:$O$502,7,0))) ->  | N100: =IF(N96="","",IF(VLOOKUP(N96,漢字読み!$A$2:$O$502,7,0)=0,"",VLOOKUP(N96,漢字読み!$A$2:$O$502,7,0))) ->  | O100: =IF(O96="","",IF(VLOOKUP(O96,漢字読み!$A$2:$O$502,7,0)=0,"",VLOOKUP(O96,漢字読み!$A$2:$O$502,7,0))) ->  | P100: =IF(P96="","",IF(VLOOKUP(P96,漢字読み!$A$2:$O$502,7,0)=0,"",VLOOKUP(P96,漢字読み!$A$2:$O$502,7,0))) ->  | Q100: =IF(Q96="","",IF(VLOOKUP(Q96,漢字読み!$A$2:$O$502,7,0)=0,"",VLOOKUP(Q96,漢字読み!$A$2:$O$502,7,0))) ->  | R100: =IF(R96="","",IF(VLOOKUP(R96,漢字読み!$A$2:$O$502,7,0)=0,"",VLOOKUP(R96,漢字読み!$A$2:$O$502,7,0))) -> ける | S100: =IF(S96="","",IF(VLOOKUP(S96,漢字読み!$A$2:$O$502,7,0)=0,"",VLOOKUP(S96,漢字読み!$A$2:$O$502,7,0))) -> した | T100: =IF(T96="","",IF(VLOOKUP(T96,漢字読み!$A$2:$O$502,7,0)=0,"",VLOOKUP(T96,漢字読み!$A$2:$O$502,7,0))) -> の中 | W100: 和歌山県教育委員会
A101: =INDIRECT("'関数（書き）'!C" & COLUMN(B$1)+SUM($AD$2:$AD102)) -> 227 | B101: =INDIRECT("'関数（書き）'!C" & COLUMN(C$1)+SUM($AD$2:$AD102)) -> 77 | C101: =INDIRECT("'関数（書き）'!C" & COLUMN(D$1)+SUM($AD$2:$AD102)) -> 45 | D101: =INDIRECT("'関数（書き）'!C" & COLUMN(E$1)+SUM($AD$2:$AD102)) -> 7 | E101: =INDIRECT("'関数（書き）'!C" & COLUMN(F$1)+SUM($AD$2:$AD102)) -> 236 | F101: =INDIRECT("'関数（書き）'!C" & COLUMN(G$1)+SUM($AD$2:$AD102)) -> 108 | G101: =INDIRECT("'関数（書き）'!C" & COLUMN(H$1)+SUM($AD$2:$AD102)) -> 125 | H101: =INDIRECT("'関数（書き）'!C" & COLUMN(I$1)+SUM($AD$2:$AD102)) -> 143 | I101: =INDIRECT("'関数（書き）'!C" & COLUMN(J$1)+SUM($AD$2:$AD102)) -> 176 | J101: =INDIRECT("'関数（書き）'!C" & COLUMN(K$1)+SUM($AD$2:$AD102)) -> 222 | K101: =INDIRECT("'関数（読み）'!C" & COLUMN(B$1)+SUM($AD$2:$AD102)) -> 39 | L101: =INDIRECT("'関数（読み）'!C" & COLUMN(C$1)+SUM($AD$2:$AD102)) -> 232 | M101: =INDIRECT("'関数（読み）'!C" & COLUMN(D$1)+SUM($AD$2:$AD102)) -> 206 | N101: =INDIRECT("'関数（読み）'!C" & COLUMN(E$1)+SUM($AD$2:$AD102)) -> 139 | O101: =INDIRECT("'関数（読み）'!C" & COLUMN(F$1)+SUM($AD$2:$AD102)) -> 164 | P101: =INDIRECT("'関数（読み）'!C" & COLUMN(G$1)+SUM($AD$2:$AD102)) -> 203 | Q101: =INDIRECT("'関数（読み）'!C" & COLUMN(H$1)+SUM($AD$2:$AD102)) -> 210 | R101: =INDIRECT("'関数（読み）'!C" & COLUMN(I$1)+SUM($AD$2:$AD102)) -> 119 | S101: =INDIRECT("'関数（読み）'!C" & COLUMN(J$1)+SUM($AD$2:$AD102)) -> 102 | T101: =INDIRECT("'関数（読み）'!C" & COLUMN(K$1)+SUM($AD$2:$AD102)) -> 192
A102: ⑳ | B102: ⑲ | C102: ⑱ | D102: ⑰ | E102: ⑯ | F102: ⑮ | G102: ⑭ | H102: ⑬ | I102: ⑫ | J102: ⑪ | K102: ⑩ | L102: ⑨ | M102: ⑧ | N102: ⑦ | O102: ⑥ | P102: ⑤ | Q102: ④ | R102: ③ | S102: ② | T102: ① | U102: 次の［ ］の部分の漢字には読みがなをひらがなで書き、カタカナは漢字に直しなさい。 | V102: 12 | W102: 「漢字の博士検定試験」練習問題 | AC102: ← | AD102: 10 | AE102: 問 | AF102: =AH87+1 -> 101 | AG102: ～ | AH102: =SUM($AD$2:$AD102)+10 -> 110 | AI102: 問まで | AJ102: =COUNTIF($A$1:$T$200,T103) -> 2
A103: =IF(A101="","",VLOOKUP(A101,漢字書き!$A$2:$N$506,6,0)) -> つまずいて［コロ］ぶ | B103: =IF(B101="","",VLOOKUP(B101,漢字書き!$A$2:$N$506,6,0)) -> ［ジツリョク］を出し切る | C103: =IF(C101="","",VLOOKUP(C101,漢字書き!$A$2:$N$506,6,0)) -> ［ネモト］のざっ草をぬく | D103: =IF(D101="","",VLOOKUP(D101,漢字書き!$A$2:$N$506,6,0)) -> ［クル］しい思いをする | E103: =IF(E101="","",VLOOKUP(E101,漢字書き!$A$2:$N$506,6,0)) -> たからの［シマ］をさがす | F103: =IF(F101="","",VLOOKUP(F101,漢字書き!$A$2:$N$506,6,0)) -> ［テナラ］いをする | G103: =IF(G101="","",VLOOKUP(G101,漢字書き!$A$2:$N$506,6,0)) -> 妹を［タス］ける | H103: =IF(H101="","",VLOOKUP(H101,漢字書き!$A$2:$N$506,6,0)) -> ［シンワ］を読む | I103: =IF(I101="","",VLOOKUP(I101,漢字書き!$A$2:$N$506,6,0)) -> 同じ［イチゾク］ | J103: =IF(J101="","",VLOOKUP(J101,漢字書き!$A$2:$N$506,6,0)) -> ［フエ］の音 | K103: =IF(K101="","",VLOOKUP(K101,漢字読み!$A$2:$O$506,6,0)) -> ［空港］につく | L103: =IF(L101="","",VLOOKUP(L101,漢字読み!$A$2:$O$506,6,0)) -> つまづいて［転］ぶ | M103: =IF(M101="","",VLOOKUP(M101,漢字読み!$A$2:$O$506,6,0)) -> ［柱］にしるしをつける | N103: =IF(N101="","",VLOOKUP(N101,漢字読み!$A$2:$O$506,6,0)) -> ギリシア［神話］ | O103: =IF(O101="","",VLOOKUP(O101,漢字読み!$A$2:$O$506,6,0)) -> ［感想］をのべる | P103: =IF(P101="","",VLOOKUP(P101,漢字読み!$A$2:$O$506,6,0)) -> ［注］しゃする | Q103: =IF(Q101="","",VLOOKUP(Q101,漢字読み!$A$2:$O$506,6,0)) -> ［手帳］に書きこむ | R103: =IF(R101="","",VLOOKUP(R101,漢字読み!$A$2:$O$506,6,0)) -> ［助手］が来る | S103: =IF(S101="","",VLOOKUP(S101,漢字読み!$A$2:$O$506,6,0)) -> 毎日の［習］かん | T103: =IF(T101="","",VLOOKUP(T101,漢字読み!$A$2:$O$506,6,0)) -> ［石炭］をもやす | V103: 級
V104: 名前
A105: =IF(A101="","",IF(VLOOKUP(A101,漢字書き!$A$2:$N$502,7,0)=0,"",VLOOKUP(A101,漢字書き!$A$2:$N$502,7,0))) -> ぶ | B105: =IF(B101="","",IF(VLOOKUP(B101,漢字書き!$A$2:$N$502,7,0)=0,"",VLOOKUP(B101,漢字書き!$A$2:$N$502,7,0))) ->  | C105: =IF(C101="","",IF(VLOOKUP(C101,漢字書き!$A$2:$N$502,7,0)=0,"",VLOOKUP(C101,漢字書き!$A$2:$N$502,7,0))) ->  | D105: =IF(D101="","",IF(VLOOKUP(D101,漢字書き!$A$2:$N$502,7,0)=0,"",VLOOKUP(D101,漢字書き!$A$2:$N$502,7,0))) -> しい | E105: =IF(E101="","",IF(VLOOKUP(E101,漢字書き!$A$2:$N$502,7,0)=0,"",VLOOKUP(E101,漢字書き!$A$2:$N$502,7,0))) ->  | F105: =IF(F101="","",IF(VLOOKUP(F101,漢字書き!$A$2:$N$502,7,0)=0,"",VLOOKUP(F101,漢字書き!$A$2:$N$502,7,0))) -> い | G105: =IF(G101="","",IF(VLOOKUP(G101,漢字書き!$A$2:$N$502,7,0)=0,"",VLOOKUP(G101,漢字書き!$A$2:$N$502,7,0))) -> ける | H105: =IF(H101="","",IF(VLOOKUP(H101,漢字書き!$A$2:$N$502,7,0)=0,"",VLOOKUP(H101,漢字書き!$A$2:$N$502,7,0))) ->  | I105: =IF(I101="","",IF(VLOOKUP(I101,漢字書き!$A$2:$N$502,7,0)=0,"",VLOOKUP(I101,漢字書き!$A$2:$N$502,7,0))) ->  | J105: =IF(J101="","",IF(VLOOKUP(J101,漢字書き!$A$2:$N$502,7,0)=0,"",VLOOKUP(J101,漢字書き!$A$2:$N$502,7,0))) ->  | K105: =IF(K101="","",IF(VLOOKUP(K101,漢字読み!$A$2:$O$502,7,0)=0,"",VLOOKUP(K101,漢字読み!$A$2:$O$502,7,0))) ->  | L105: =IF(L101="","",IF(VLOOKUP(L101,漢字読み!$A$2:$O$502,7,0)=0,"",VLOOKUP(L101,漢字読み!$A$2:$O$502,7,0))) -> ぶ | M105: =IF(M101="","",IF(VLOOKUP(M101,漢字読み!$A$2:$O$502,7,0)=0,"",VLOOKUP(M101,漢字読み!$A$2:$O$502,7,0))) ->  | N105: =IF(N101="","",IF(VLOOKUP(N101,漢字読み!$A$2:$O$502,7,0)=0,"",VLOOKUP(N101,漢字読み!$A$2:$O$502,7,0))) ->  | O105: =IF(O101="","",IF(VLOOKUP(O101,漢字読み!$A$2:$O$502,7,0)=0,"",VLOOKUP(O101,漢字読み!$A$2:$O$502,7,0))) ->  | P105: =IF(P101="","",IF(VLOOKUP(P101,漢字読み!$A$2:$O$502,7,0)=0,"",VLOOKUP(P101,漢字読み!$A$2:$O$502,7,0))) -> しゃ | Q105: =IF(Q101="","",IF(VLOOKUP(Q101,漢字読み!$A$2:$O$502,7,0)=0,"",VLOOKUP(Q101,漢字読み!$A$2:$O$502,7,0))) ->  | R105: =IF(R101="","",IF(VLOOKUP(R101,漢字読み!$A$2:$O$502,7,0)=0,"",VLOOKUP(R101,漢字読み!$A$2:$O$502,7,0))) ->  | S105: =IF(S101="","",IF(VLOOKUP(S101,漢字読み!$A$2:$O$502,7,0)=0,"",VLOOKUP(S101,漢字読み!$A$2:$O$502,7,0))) -> かん | T105: =IF(T101="","",IF(VLOOKUP(T101,漢字読み!$A$2:$O$502,7,0)=0,"",VLOOKUP(T101,漢字読み!$A$2:$O$502,7,0))) ->  | W105: 和歌山県教育委員会
A106: =INDIRECT("'関数（書き）'!C" & COLUMN(B$1)+SUM($AD$2:$AD107)) -> 180 | B106: =INDIRECT("'関数（書き）'!C" & COLUMN(C$1)+SUM($AD$2:$AD107)) -> 187 | C106: =INDIRECT("'関数（書き）'!C" & COLUMN(D$1)+SUM($AD$2:$AD107)) -> 204 | D106: =INDIRECT("'関数（書き）'!C" & COLUMN(E$1)+SUM($AD$2:$AD107)) -> 188 | E106: =INDIRECT("'関数（書き）'!C" & COLUMN(F$1)+SUM($AD$2:$AD107)) -> 59 | F106: =INDIRECT("'関数（書き）'!C" & COLUMN(G$1)+SUM($AD$2:$AD107)) -> 67 | G106: =INDIRECT("'関数（書き）'!C" & COLUMN(H$1)+SUM($AD$2:$AD107)) -> 212 | H106: =INDIRECT("'関数（書き）'!C" & COLUMN(I$1)+SUM($AD$2:$AD107)) -> 9 | I106: =INDIRECT("'関数（書き）'!C" & COLUMN(J$1)+SUM($AD$2:$AD107)) -> 205 | J106: =INDIRECT("'関数（書き）'!C" & COLUMN(K$1)+SUM($AD$2:$AD107)) -> 12 | K106: =INDIRECT("'関数（読み）'!C" & COLUMN(B$1)+SUM($AD$2:$AD107)) -> 77 | L106: =INDIRECT("'関数（読み）'!C" & COLUMN(C$1)+SUM($AD$2:$AD107)) -> 92 | M106: =INDIRECT("'関数（読み）'!C" & COLUMN(D$1)+SUM($AD$2:$AD107)) -> 106 | N106: =INDIRECT("'関数（読み）'!C" & COLUMN(E$1)+SUM($AD$2:$AD107)) -> 219 | O106: =INDIRECT("'関数（読み）'!C" & COLUMN(F$1)+SUM($AD$2:$AD107)) -> 216 | P106: =INDIRECT("'関数（読み）'!C" & COLUMN(G$1)+SUM($AD$2:$AD107)) -> 94 | Q106: =INDIRECT("'関数（読み）'!C" & COLUMN(H$1)+SUM($AD$2:$AD107)) -> 96 | R106: =INDIRECT("'関数（読み）'!C" & COLUMN(I$1)+SUM($AD$2:$AD107)) -> 178 | S106: =INDIRECT("'関数（読み）'!C" & COLUMN(J$1)+SUM($AD$2:$AD107)) -> 61 | T106: =INDIRECT("'関数（読み）'!C" & COLUMN(K$1)+SUM($AD$2:$AD107)) -> 5
A107: ⑳ | B107: ⑲ | C107: ⑱ | D107: ⑰ | E107: ⑯ | F107: ⑮ | G107: ⑭ | H107: ⑬ | I107: ⑫ | J107: ⑪ | K107: ⑩ | L107: ⑨ | M107: ⑧ | N107: ⑦ | O107: ⑥ | P107: ⑤ | Q107: ④ | R107: ③ | S107: ② | T107: ① | U107: 次の［ ］の部分の漢字には読みがなをひらがなで書き、カタカナは漢字に直しなさい。 | V107: 12 | W107: 「漢字の博士検定試験」練習問題 | AC107: ← | AD107: 10 | AE107: 問 | AF107: =AH102+1 -> 111 | AG107: ～ | AH107: =SUM($AD$2:$AD107)+10 -> 120 | AI107: 問まで | AJ107: =COUNTIF($A$1:$T$200,T108) -> 2
A108: =IF(A106="","",VLOOKUP(A106,漢字書き!$A$2:$N$506,6,0)) -> ［ダシャ］が交代する | B108: =IF(B106="","",VLOOKUP(B106,漢字書き!$A$2:$N$506,6,0)) -> クラスの［ダイヒョウ］ | C108: =IF(C106="","",VLOOKUP(C106,漢字書き!$A$2:$N$506,6,0)) -> 先生が［チュウイ］をする | D108: =IF(D106="","",VLOOKUP(D106,漢字書き!$A$2:$N$506,6,0)) -> 友だちの［カ］わり | E108: =IF(E106="","",VLOOKUP(E106,漢字書き!$A$2:$N$506,6,0)) -> ゲームが［ハジ］まる | F108: =IF(F106="","",VLOOKUP(F106,漢字書き!$A$2:$N$506,6,0)) -> ［ジキ］会長になる | G108: =IF(G106="","",VLOOKUP(G106,漢字書き!$A$2:$N$506,6,0)) -> ［チョウシ］よくしゃべる | H108: =IF(H106="","",VLOOKUP(H106,漢字書き!$A$2:$N$506,6,0)) -> ［ドウグ］を大切にする | I108: =IF(I106="","",VLOOKUP(I106,漢字書き!$A$2:$N$506,6,0)) -> お茶を［ソソ］ぐ | J108: =IF(J106="","",VLOOKUP(J106,漢字書き!$A$2:$N$506,6,0)) -> ［キミ］も来ないか | K108: =IF(K106="","",VLOOKUP(K106,漢字読み!$A$2:$O$506,6,0)) -> かけ算の［式］ | L108: =IF(L106="","",VLOOKUP(L106,漢字読み!$A$2:$O$506,6,0)) -> お[守]りを持つ | M108: =IF(M106="","",VLOOKUP(M106,漢字読み!$A$2:$O$506,6,0)) -> プルタブを［集］める | N108: =IF(N106="","",VLOOKUP(N106,漢字読み!$A$2:$O$506,6,0)) -> ［定］まった場所におく | O108: =IF(O106="","",VLOOKUP(O106,漢字読み!$A$2:$O$506,6,0)) -> 三角［定］ぎを使う | P108: =IF(P106="","",VLOOKUP(P106,漢字読み!$A$2:$O$506,6,0)) -> おもちゃを［取］る | Q108: =IF(Q106="","",VLOOKUP(Q106,漢字読み!$A$2:$O$506,6,0)) -> ［酒］のさかな | R108: =IF(R106="","",VLOOKUP(R106,漢字読み!$A$2:$O$506,6,0)) -> はん[対]の意見 | S108: =IF(S106="","",VLOOKUP(S106,漢字読み!$A$2:$O$506,6,0)) -> オーケストラの［指］き | T108: =IF(T106="","",VLOOKUP(T106,漢字読み!$A$2:$O$506,6,0)) -> ［区切］りがよい | V108: 級
V109: 名前
A110: =IF(A106="","",IF(VLOOKUP(A106,漢字書き!$A$2:$N$502,7,0)=0,"",VLOOKUP(A106,漢字書き!$A$2:$N$502,7,0))) ->  | B110: =IF(B106="","",IF(VLOOKUP(B106,漢字書き!$A$2:$N$502,7,0)=0,"",VLOOKUP(B106,漢字書き!$A$2:$N$502,7,0))) ->  | C110: =IF(C106="","",IF(VLOOKUP(C106,漢字書き!$A$2:$N$502,7,0)=0,"",VLOOKUP(C106,漢字書き!$A$2:$N$502,7,0))) ->  | D110: =IF(D106="","",IF(VLOOKUP(D106,漢字書き!$A$2:$N$502,7,0)=0,"",VLOOKUP(D106,漢字書き!$A$2:$N$502,7,0))) -> わり | E110: =IF(E106="","",IF(VLOOKUP(E106,漢字書き!$A$2:$N$502,7,0)=0,"",VLOOKUP(E106,漢字書き!$A$2:$N$502,7,0))) -> まる | F110: =IF(F106="","",IF(VLOOKUP(F106,漢字書き!$A$2:$N$502,7,0)=0,"",VLOOKUP(F106,漢字書き!$A$2:$N$502,7,0))) -> 会長 | G110: =IF(G106="","",IF(VLOOKUP(G106,漢字書き!$A$2:$N$502,7,0)=0,"",VLOOKUP(G106,漢字書き!$A$2:$N$502,7,0))) ->  | H110: =IF(H106="","",IF(VLOOKUP(H106,漢字書き!$A$2:$N$502,7,0)=0,"",VLOOKUP(H106,漢字書き!$A$2:$N$502,7,0))) ->  | I110: =IF(I106="","",IF(VLOOKUP(I106,漢字書き!$A$2:$N$502,7,0)=0,"",VLOOKUP(I106,漢字書き!$A$2:$N$502,7,0))) -> ぐ | J110: =IF(J106="","",IF(VLOOKUP(J106,漢字書き!$A$2:$N$502,7,0)=0,"",VLOOKUP(J106,漢字書き!$A$2:$N$502,7,0))) ->  | K110: =IF(K106="","",IF(VLOOKUP(K106,漢字読み!$A$2:$O$502,7,0)=0,"",VLOOKUP(K106,漢字読み!$A$2:$O$502,7,0))) ->  | L110: =IF(L106="","",IF(VLOOKUP(L106,漢字読み!$A$2:$O$502,7,0)=0,"",VLOOKUP(L106,漢字読み!$A$2:$O$502,7,0))) -> り | M110: =IF(M106="","",IF(VLOOKUP(M106,漢字読み!$A$2:$O$502,7,0)=0,"",VLOOKUP(M106,漢字読み!$A$2:$O$502,7,0))) -> める | N110: =IF(N106="","",IF(VLOOKUP(N106,漢字読み!$A$2:$O$502,7,0)=0,"",VLOOKUP(N106,漢字読み!$A$2:$O$502,7,0))) -> まった | O110: =IF(O106="","",IF(VLOOKUP(O106,漢字読み!$A$2:$O$502,7,0)=0,"",VLOOKUP(O106,漢字読み!$A$2:$O$502,7,0))) -> ぎ | P110: =IF(P106="","",IF(VLOOKUP(P106,漢字読み!$A$2:$O$502,7,0)=0,"",VLOOKUP(P106,漢字読み!$A$2:$O$502,7,0))) -> る | Q110: =IF(Q106="","",IF(VLOOKUP(Q106,漢字読み!$A$2:$O$502,7,0)=0,"",VLOOKUP(Q106,漢字読み!$A$2:$O$502,7,0))) ->  | R110: =IF(R106="","",IF(VLOOKUP(R106,漢字読み!$A$2:$O$502,7,0)=0,"",VLOOKUP(R106,漢字読み!$A$2:$O$502,7,0))) ->  | S110: =IF(S106="","",IF(VLOOKUP(S106,漢字読み!$A$2:$O$502,7,0)=0,"",VLOOKUP(S106,漢字読み!$A$2:$O$502,7,0))) -> き | T110: =IF(T106="","",IF(VLOOKUP(T106,漢字読み!$A$2:$O$502,7,0)=0,"",VLOOKUP(T106,漢字読み!$A$2:$O$502,7,0))) -> り | W110: 和歌山県教育委員会
A111: =A101 -> 227 | B111: 77 | C111: 45 | D111: 7 | E111: 236 | F111: 108 | G111: 125 | H111: 143 | I111: 176 | J111: 222 | K111: 39 | L111: 232 | M111: 206 | N111: 139 | O111: 164 | P111: 203 | Q111: 210 | R111: 119 | S111: 102 | T111: 192
A112: ⑳ | B112: ⑲ | C112: ⑱ | D112: ⑰ | E112: ⑯ | F112: ⑮ | G112: ⑭ | H112: ⑬ | I112: ⑫ | J112: ⑪ | K112: ⑩ | L112: ⑨ | M112: ⑧ | N112: ⑦ | O112: ⑥ | P112: ⑤ | Q112: ④ | R112: ③ | S112: ② | T112: ① | U112: 次の［ ］の部分の漢字には読みがなをひらがなで書き、カタカナは漢字に直しなさい。 | V112: 12 | W112: 「漢字の博士検定試験」練習問題
A113: =IF(A111="","",VLOOKUP(A111,漢字書き!$A$2:$N$506,6,0)) -> つまずいて［コロ］ぶ | B113: =IF(B111="","",VLOOKUP(B111,漢字書き!$A$2:$N$506,6,0)) -> ［ジツリョク］を出し切る | C113: =IF(C111="","",VLOOKUP(C111,漢字書き!$A$2:$N$506,6,0)) -> ［ネモト］のざっ草をぬく | D113: =IF(D111="","",VLOOKUP(D111,漢字書き!$A$2:$N$506,6,0)) -> ［クル］しい思いをする | E113: =IF(E111="","",VLOOKUP(E111,漢字書き!$A$2:$N$506,6,0)) -> たからの［シマ］をさがす | F113: =IF(F111="","",VLOOKUP(F111,漢字書き!$A$2:$N$506,6,0)) -> ［テナラ］いをする | G113: =IF(G111="","",VLOOKUP(G111,漢字書き!$A$2:$N$506,6,0)) -> 妹を［タス］ける | H113: =IF(H111="","",VLOOKUP(H111,漢字書き!$A$2:$N$506,6,0)) -> ［シンワ］を読む | I113: =IF(I111="","",VLOOKUP(I111,漢字書き!$A$2:$N$506,6,0)) -> 同じ［イチゾク］ | J113: =IF(J111="","",VLOOKUP(J111,漢字書き!$A$2:$N$506,6,0)) -> ［フエ］の音 | K113: =IF(K111="","",VLOOKUP(K111,漢字読み!$A$2:$O$506,6,0)) -> ［空港］につく | L113: =IF(L111="","",VLOOKUP(L111,漢字読み!$A$2:$O$506,6,0)) -> つまづいて［転］ぶ | M113: =IF(M111="","",VLOOKUP(M111,漢字読み!$A$2:$O$506,6,0)) -> ［柱］にしるしをつける | N113: =IF(N111="","",VLOOKUP(N111,漢字読み!$A$2:$O$506,6,0)) -> ギリシア［神話］ | O113: =IF(O111="","",VLOOKUP(O111,漢字読み!$A$2:$O$506,6,0)) -> ［感想］をのべる | P113: =IF(P111="","",VLOOKUP(P111,漢字読み!$A$2:$O$506,6,0)) -> ［注］しゃする | Q113: =IF(Q111="","",VLOOKUP(Q111,漢字読み!$A$2:$O$506,6,0)) -> ［手帳］に書きこむ | R113: =IF(R111="","",VLOOKUP(R111,漢字読み!$A$2:$O$506,6,0)) -> ［助手］が来る | S113: =IF(S111="","",VLOOKUP(S111,漢字読み!$A$2:$O$506,6,0)) -> 毎日の［習］かん | T113: =IF(T111="","",VLOOKUP(T111,漢字読み!$A$2:$O$506,6,0)) -> ［石炭］をもやす | V113: 級
A114: =IF(A$11="","",VLOOKUP(A111,漢字書き!$A$2:$O$506,8,0)) -> 転 | B114: =IF(B$11="","",VLOOKUP(B111,漢字書き!$A$2:$O$506,8,0)) -> 実力 | C114: =IF(C$11="","",VLOOKUP(C111,漢字書き!$A$2:$O$506,8,0)) -> 根元 | D114: =IF(D$11="","",VLOOKUP(D111,漢字書き!$A$2:$O$506,8,0)) -> 苦 | E114: =IF(E$11="","",VLOOKUP(E111,漢字書き!$A$2:$O$506,8,0)) -> 島 | F114: =IF(F$11="","",VLOOKUP(F111,漢字書き!$A$2:$O$506,8,0)) -> 手習 | G114: =IF(G$11="","",VLOOKUP(G111,漢字書き!$A$2:$O$506,8,0)) -> 助 | H114: =IF(H$11="","",VLOOKUP(H111,漢字書き!$A$2:$O$506,8,0)) -> 神話 | I114: =IF(I$11="","",VLOOKUP(I111,漢字書き!$A$2:$O$506,8,0)) -> 一族 | J114: =IF(J$11="","",VLOOKUP(J111,漢字書き!$A$2:$O$506,8,0)) -> 笛 | K114: =IF(K$11="","",VLOOKUP(K111,漢字読み!$A$2:$O$506,8,0)) -> くうこう | L114: =IF(L$11="","",VLOOKUP(L111,漢字読み!$A$2:$O$506,8,0)) -> ころ | M114: =IF(M$11="","",VLOOKUP(M111,漢字読み!$A$2:$O$506,8,0)) -> はしら | N114: =IF(N$11="","",VLOOKUP(N111,漢字読み!$A$2:$O$506,8,0)) -> しんわ | O114: =IF(O$11="","",VLOOKUP(O111,漢字読み!$A$2:$O$506,8,0)) -> かんそう | P114: =IF(P$11="","",VLOOKUP(P111,漢字読み!$A$2:$O$506,8,0)) -> ちゅう | Q114: =IF(Q$11="","",VLOOKUP(Q111,漢字読み!$A$2:$O$506,8,0)) -> てちょう | R114: =IF(R$11="","",VLOOKUP(R111,漢字読み!$A$2:$O$506,8,0)) -> じょしゅ | S114: =IF(S$11="","",VLOOKUP(S111,漢字読み!$A$2:$O$506,8,0)) -> しゅう | T114: =IF(T$11="","",VLOOKUP(T111,漢字読み!$A$2:$O$506,8,0)) -> せきたん | V114: 名前
A115: =IF(A111="","",IF(VLOOKUP(A111,漢字書き!$A$2:$N$502,7,0)=0,"",VLOOKUP(A111,漢字書き!$A$2:$N$502,7,0))) -> ぶ | B115: =IF(B111="","",IF(VLOOKUP(B111,漢字書き!$A$2:$N$502,7,0)=0,"",VLOOKUP(B111,漢字書き!$A$2:$N$502,7,0))) ->  | C115: =IF(C111="","",IF(VLOOKUP(C111,漢字書き!$A$2:$N$502,7,0)=0,"",VLOOKUP(C111,漢字書き!$A$2:$N$502,7,0))) ->  | D115: =IF(D111="","",IF(VLOOKUP(D111,漢字書き!$A$2:$N$502,7,0)=0,"",VLOOKUP(D111,漢字書き!$A$2:$N$502,7,0))) -> しい | E115: =IF(E111="","",IF(VLOOKUP(E111,漢字書き!$A$2:$N$502,7,0)=0,"",VLOOKUP(E111,漢字書き!$A$2:$N$502,7,0))) ->  | F115: =IF(F111="","",IF(VLOOKUP(F111,漢字書き!$A$2:$N$502,7,0)=0,"",VLOOKUP(F111,漢字書き!$A$2:$N$502,7,0))) -> い | G115: =IF(G111="","",IF(VLOOKUP(G111,漢字書き!$A$2:$N$502,7,0)=0,"",VLOOKUP(G111,漢字書き!$A$2:$N$502,7,0))) -> ける | H115: =IF(H111="","",IF(VLOOKUP(H111,漢字書き!$A$2:$N$502,7,0)=0,"",VLOOKUP(H111,漢字書き!$A$2:$N$502,7,0))) ->  | I115: =IF(I111="","",IF(VLOOKUP(I111,漢字書き!$A$2:$N$502,7,0)=0,"",VLOOKUP(I111,漢字書き!$A$2:$N$502,7,0))) ->  | J115: =IF(J111="","",IF(VLOOKUP(J111,漢字書き!$A$2:$N$502,7,0)=0,"",VLOOKUP(J111,漢字書き!$A$2:$N$502,7,0))) ->  | K115: =IF(K111="","",IF(VLOOKUP(K111,漢字読み!$A$2:$O$502,7,0)=0,"",VLOOKUP(K111,漢字読み!$A$2:$O$502,7,0))) ->  | L115: =IF(L111="","",IF(VLOOKUP(L111,漢字読み!$A$2:$O$502,7,0)=0,"",VLOOKUP(L111,漢字読み!$A$2:$O$502,7,0))) -> ぶ | M115: =IF(M111="","",IF(VLOOKUP(M111,漢字読み!$A$2:$O$502,7,0)=0,"",VLOOKUP(M111,漢字読み!$A$2:$O$502,7,0))) ->  | N115: =IF(N111="","",IF(VLOOKUP(N111,漢字読み!$A$2:$O$502,7,0)=0,"",VLOOKUP(N111,漢字読み!$A$2:$O$502,7,0))) ->  | O115: =IF(O111="","",IF(VLOOKUP(O111,漢字読み!$A$2:$O$502,7,0)=0,"",VLOOKUP(O111,漢字読み!$A$2:$O$502,7,0))) ->  | P115: =IF(P111="","",IF(VLOOKUP(P111,漢字読み!$A$2:$O$502,7,0)=0,"",VLOOKUP(P111,漢字読み!$A$2:$O$502,7,0))) -> しゃ | Q115: =IF(Q111="","",IF(VLOOKUP(Q111,漢字読み!$A$2:$O$502,7,0)=0,"",VLOOKUP(Q111,漢字読み!$A$2:$O$502,7,0))) ->  | R115: =IF(R111="","",IF(VLOOKUP(R111,漢字読み!$A$2:$O$502,7,0)=0,"",VLOOKUP(R111,漢字読み!$A$2:$O$502,7,0))) ->  | S115: =IF(S111="","",IF(VLOOKUP(S111,漢字読み!$A$2:$O$502,7,0)=0,"",VLOOKUP(S111,漢字読み!$A$2:$O$502,7,0))) -> かん | T115: =IF(T111="","",IF(VLOOKUP(T111,漢字読み!$A$2:$O$502,7,0)=0,"",VLOOKUP(T111,漢字読み!$A$2:$O$502,7,0))) ->  | W115: 和歌山県教育委員会
A116: =A106 -> 180 | B116: 187 | C116: 204 | D116: 188 | E116: 59 | F116: 67 | G116: 212 | H116: 9 | I116: 205 | J116: 12 | K116: 77 | L116: 92 | M116: 106 | N116: 219 | O116: 216 | P116: 94 | Q116: 96 | R116: 178 | S116: 61 | T116: 5
A117: ⑳ | B117: ⑲ | C117: ⑱ | D117: ⑰ | E117: ⑯ | F117: ⑮ | G117: ⑭ | H117: ⑬ | I117: ⑫ | J117: ⑪ | K117: ⑩ | L117: ⑨ | M117: ⑧ | N117: ⑦ | O117: ⑥ | P117: ⑤ | Q117: ④ | R117: ③ | S117: ② | T117: ① | U117: 次の［ ］の部分の漢字には読みがなをひらがなで書き、カタカナは漢字に直しなさい。 | V117: 12 | W117: 「漢字の博士検定試験」練習問題
A118: =IF(A116="","",VLOOKUP(A116,漢字書き!$A$2:$N$506,6,0)) -> ［ダシャ］が交代する | B118: =IF(B116="","",VLOOKUP(B116,漢字書き!$A$2:$N$506,6,0)) -> クラスの［ダイヒョウ］ | C118: =IF(C116="","",VLOOKUP(C116,漢字書き!$A$2:$N$506,6,0)) -> 先生が［チュウイ］をする | D118: =IF(D116="","",VLOOKUP(D116,漢字書き!$A$2:$N$506,6,0)) -> 友だちの［カ］わり | E118: =IF(E116="","",VLOOKUP(E116,漢字書き!$A$2:$N$506,6,0)) -> ゲームが［ハジ］まる | F118: =IF(F116="","",VLOOKUP(F116,漢字書き!$A$2:$N$506,6,0)) -> ［ジキ］会長になる | G118: =IF(G116="","",VLOOKUP(G116,漢字書き!$A$2:$N$506,6,0)) -> ［チョウシ］よくしゃべる | H118: =IF(H116="","",VLOOKUP(H116,漢字書き!$A$2:$N$506,6,0)) -> ［ドウグ］を大切にする | I118: =IF(I116="","",VLOOKUP(I116,漢字書き!$A$2:$N$506,6,0)) -> お茶を［ソソ］ぐ | J118: =IF(J116="","",VLOOKUP(J116,漢字書き!$A$2:$N$506,6,0)) -> ［キミ］も来ないか | K118: =IF(K116="","",VLOOKUP(K116,漢字読み!$A$2:$O$506,6,0)) -> かけ算の［式］ | L118: =IF(L116="","",VLOOKUP(L116,漢字読み!$A$2:$O$506,6,0)) -> お[守]りを持つ | M118: =IF(M116="","",VLOOKUP(M116,漢字読み!$A$2:$O$506,6,0)) -> プルタブを［集］める | N118: =IF(N116="","",VLOOKUP(N116,漢字読み!$A$2:$O$506,6,0)) -> ［定］まった場所におく | O118: =IF(O116="","",VLOOKUP(O116,漢字読み!$A$2:$O$506,6,0)) -> 三角［定］ぎを使う | P118: =IF(P116="","",VLOOKUP(P116,漢字読み!$A$2:$O$506,6,0)) -> おもちゃを［取］る | Q118: =IF(Q116="","",VLOOKUP(Q116,漢字読み!$A$2:$O$506,6,0)) -> ［酒］のさかな | R118: =IF(R116="","",VLOOKUP(R116,漢字読み!$A$2:$O$506,6,0)) -> はん[対]の意見 | S118: =IF(S116="","",VLOOKUP(S116,漢字読み!$A$2:$O$506,6,0)) -> オーケストラの［指］き | T118: =IF(T116="","",VLOOKUP(T116,漢字読み!$A$2:$O$506,6,0)) -> ［区切］りがよい | V118: 級
A119: =IF(A$16="","",VLOOKUP(A116,漢字書き!$A$2:$O$506,8,0)) -> 打者 | B119: =IF(B$16="","",VLOOKUP(B116,漢字書き!$A$2:$O$506,8,0)) -> 代表 | C119: =IF(C$16="","",VLOOKUP(C116,漢字書き!$A$2:$O$506,8,0)) -> 注意 | D119: =IF(D$16="","",VLOOKUP(D116,漢字書き!$A$2:$O$506,8,0)) -> 代 | E119: =IF(E$16="","",VLOOKUP(E116,漢字書き!$A$2:$O$506,8,0)) -> 始 | F119: =IF(F$16="","",VLOOKUP(F116,漢字書き!$A$2:$O$506,8,0)) -> 次期 | G119: =IF(G$16="","",VLOOKUP(G116,漢字書き!$A$2:$O$506,8,0)) -> 調子 | H119: =IF(H$16="","",VLOOKUP(H116,漢字書き!$A$2:$O$506,8,0)) -> 道具 | I119: =IF(I$16="","",VLOOKUP(I116,漢字書き!$A$2:$O$506,8,0)) -> 注 | J119: =IF(J$16="","",VLOOKUP(J116,漢字書き!$A$2:$O$506,8,0)) -> 君 | K119: =IF(K$16="","",VLOOKUP(K116,漢字読み!$A$2:$O$506,8,0)) -> しき | L119: =IF(L$16="","",VLOOKUP(L116,漢字読み!$A$2:$O$506,8,0)) -> まも | M119: =IF(M$16="","",VLOOKUP(M116,漢字読み!$A$2:$O$506,8,0)) -> あつ | N119: =IF(N$16="","",VLOOKUP(N116,漢字読み!$A$2:$O$506,8,0)) -> さだ | O119: =IF(O$16="","",VLOOKUP(O116,漢字読み!$A$2:$O$506,8,0)) -> じょう | P119: =IF(P$16="","",VLOOKUP(P116,漢字読み!$A$2:$O$506,8,0)) -> と | Q119: =IF(Q$16="","",VLOOKUP(Q116,漢字読み!$A$2:$O$506,8,0)) -> さけ | R119: =IF(R$16="","",VLOOKUP(R116,漢字読み!$A$2:$O$506,8,0)) -> たい | S119: =IF(S$16="","",VLOOKUP(S116,漢字読み!$A$2:$O$506,8,0)) -> し | T119: =IF(T$16="","",VLOOKUP(T116,漢字読み!$A$2:$O$506,8,0)) -> くぎ | V119: 名前
A120: =IF(A116="","",IF(VLOOKUP(A116,漢字書き!$A$2:$N$502,7,0)=0,"",VLOOKUP(A116,漢字書き!$A$2:$N$502,7,0))) ->  | B120: =IF(B116="","",IF(VLOOKUP(B116,漢字書き!$A$2:$N$502,7,0)=0,"",VLOOKUP(B116,漢字書き!$A$2:$N$502,7,0))) ->  | C120: =IF(C116="","",IF(VLOOKUP(C116,漢字書き!$A$2:$N$502,7,0)=0,"",VLOOKUP(C116,漢字書き!$A$2:$N$502,7,0))) ->  | D120: =IF(D116="","",IF(VLOOKUP(D116,漢字書き!$A$2:$N$502,7,0)=0,"",VLOOKUP(D116,漢字書き!$A$2:$N$502,7,0))) -> わり | E120: =IF(E116="","",IF(VLOOKUP(E116,漢字書き!$A$2:$N$502,7,0)=0,"",VLOOKUP(E116,漢字書き!$A$2:$N$502,7,0))) -> まる | F120: =IF(F116="","",IF(VLOOKUP(F116,漢字書き!$A$2:$N$502,7,0)=0,"",VLOOKUP(F116,漢字書き!$A$2:$N$502,7,0))) -> 会長 | G120: =IF(G116="","",IF(VLOOKUP(G116,漢字書き!$A$2:$N$502,7,0)=0,"",VLOOKUP(G116,漢字書き!$A$2:$N$502,7,0))) ->  | H120: =IF(H116="","",IF(VLOOKUP(H116,漢字書き!$A$2:$N$502,7,0)=0,"",VLOOKUP(H116,漢字書き!$A$2:$N$502,7,0))) ->  | I120: =IF(I116="","",IF(VLOOKUP(I116,漢字書き!$A$2:$N$502,7,0)=0,"",VLOOKUP(I116,漢字書き!$A$2:$N$502,7,0))) -> ぐ | J120: =IF(J116="","",IF(VLOOKUP(J116,漢字書き!$A$2:$N$502,7,0)=0,"",VLOOKUP(J116,漢字書き!$A$2:$N$502,7,0))) ->  | K120: =IF(K116="","",IF(VLOOKUP(K116,漢字読み!$A$2:$O$502,7,0)=0,"",VLOOKUP(K116,漢字読み!$A$2:$O$502,7,0))) ->  | L120: =IF(L116="","",IF(VLOOKUP(L116,漢字読み!$A$2:$O$502,7,0)=0,"",VLOOKUP(L116,漢字読み!$A$2:$O$502,7,0))) -> り | M120: =IF(M116="","",IF(VLOOKUP(M116,漢字読み!$A$2:$O$502,7,0)=0,"",VLOOKUP(M116,漢字読み!$A$2:$O$502,7,0))) -> める | N120: =IF(N116="","",IF(VLOOKUP(N116,漢字読み!$A$2:$O$502,7,0)=0,"",VLOOKUP(N116,漢字読み!$A$2:$O$502,7,0))) -> まった | O120: =IF(O116="","",IF(VLOOKUP(O116,漢字読み!$A$2:$O$502,7,0)=0,"",VLOOKUP(O116,漢字読み!$A$2:$O$502,7,0))) -> ぎ | P120: =IF(P116="","",IF(VLOOKUP(P116,漢字読み!$A$2:$O$502,7,0)=0,"",VLOOKUP(P116,漢字読み!$A$2:$O$502,7,0))) -> る | Q120: =IF(Q116="","",IF(VLOOKUP(Q116,漢字読み!$A$2:$O$502,7,0)=0,"",VLOOKUP(Q116,漢字読み!$A$2:$O$502,7,0))) ->  | R120: =IF(R116="","",IF(VLOOKUP(R116,漢字読み!$A$2:$O$502,7,0)=0,"",VLOOKUP(R116,漢字読み!$A$2:$O$502,7,0))) ->  | S120: =IF(S116="","",IF(VLOOKUP(S116,漢字読み!$A$2:$O$502,7,0)=0,"",VLOOKUP(S116,漢字読み!$A$2:$O$502,7,0))) -> き | T120: =IF(T116="","",IF(VLOOKUP(T116,漢字読み!$A$2:$O$502,7,0)=0,"",VLOOKUP(T116,漢字読み!$A$2:$O$502,7,0))) -> り | W120: 和歌山県教育委員会
A121: =INDIRECT("'関数（書き）'!C" & COLUMN(B$1)+SUM($AD$2:$AD122)) -> 90 | B121: =INDIRECT("'関数（書き）'!C" & COLUMN(C$1)+SUM($AD$2:$AD122)) -> 76 | C121: =INDIRECT("'関数（書き）'!C" & COLUMN(D$1)+SUM($AD$2:$AD122)) -> 234 | D121: =INDIRECT("'関数（書き）'!C" & COLUMN(E$1)+SUM($AD$2:$AD122)) -> 158 | E121: =INDIRECT("'関数（書き）'!C" & COLUMN(F$1)+SUM($AD$2:$AD122)) -> 229 | F121: =INDIRECT("'関数（書き）'!C" & COLUMN(G$1)+SUM($AD$2:$AD122)) -> 146 | G121: =INDIRECT("'関数（書き）'!C" & COLUMN(H$1)+SUM($AD$2:$AD122)) -> 147 | H121: =INDIRECT("'関数（書き）'!C" & COLUMN(I$1)+SUM($AD$2:$AD122)) -> 105 | I121: =INDIRECT("'関数（書き）'!C" & COLUMN(J$1)+SUM($AD$2:$AD122)) -> 223 | J121: =INDIRECT("'関数（書き）'!C" & COLUMN(K$1)+SUM($AD$2:$AD122)) -> 186 | K121: =INDIRECT("'関数（読み）'!C" & COLUMN(B$1)+SUM($AD$2:$AD122)) -> 170 | L121: =INDIRECT("'関数（読み）'!C" & COLUMN(C$1)+SUM($AD$2:$AD122)) -> 17 | M121: =INDIRECT("'関数（読み）'!C" & COLUMN(D$1)+SUM($AD$2:$AD122)) -> 32 | N121: =INDIRECT("'関数（読み）'!C" & COLUMN(E$1)+SUM($AD$2:$AD122)) -> 113 | O121: =INDIRECT("'関数（読み）'!C" & COLUMN(F$1)+SUM($AD$2:$AD122)) -> 166 | P121: =INDIRECT("'関数（読み）'!C" & COLUMN(G$1)+SUM($AD$2:$AD122)) -> 134 | Q121: =INDIRECT("'関数（読み）'!C" & COLUMN(H$1)+SUM($AD$2:$AD122)) -> 100 | R121: =INDIRECT("'関数（読み）'!C" & COLUMN(I$1)+SUM($AD$2:$AD122)) -> 214 | S121: =INDIRECT("'関数（読み）'!C" & COLUMN(J$1)+SUM($AD$2:$AD122)) -> 188 | T121: =INDIRECT("'関数（読み）'!C" & COLUMN(K$1)+SUM($AD$2:$AD122)) -> 204
A122: ⑳ | B122: ⑲ | C122: ⑱ | D122: ⑰ | E122: ⑯ | F122: ⑮ | G122: ⑭ | H122: ⑬ | I122: ⑫ | J122: ⑪ | K122: ⑩ | L122: ⑨ | M122: ⑧ | N122: ⑦ | O122: ⑥ | P122: ⑤ | Q122: ④ | R122: ③ | S122: ② | T122: ① | U122: 次の［ ］の部分の漢字には読みがなをひらがなで書き、カタカナは漢字に直しなさい。 | V122: 12 | W122: 「漢字の博士検定試験」練習問題 | AC122: ← | AD122: 10 | AE122: 問 | AF122: =AH107+1 -> 121 | AG122: ～ | AH122: =SUM($AD$2:$AD122)+10 -> 130 | AI122: 問まで | AJ122: =COUNTIF($A$1:$T$200,T123) -> 2
A123: =IF(A121="","",VLOOKUP(A121,漢字書き!$A$2:$N$506,6,0)) -> お［マモ]りをつける | B123: =IF(B121="","",VLOOKUP(B121,漢字書き!$A$2:$N$506,6,0)) -> ［シキジョウ］に入る | C123: =IF(C121="","",VLOOKUP(C121,漢字書き!$A$2:$N$506,6,0)) -> ［マメ］をまく | D123: =IF(D121="","",VLOOKUP(D121,漢字書き!$A$2:$N$506,6,0)) -> つくえを［セイ］とんする | E123: =IF(E121="","",VLOOKUP(E121,漢字書き!$A$2:$N$506,6,0)) -> ［キョウト］へ行く | F123: =IF(F121="","",VLOOKUP(F121,漢字書き!$A$2:$N$506,6,0)) -> 苦しい時の[カミ]だのみ | G123: =IF(G121="","",VLOOKUP(G121,漢字書き!$A$2:$N$506,6,0)) -> ［シンジツ］を知る | H123: =IF(H121="","",VLOOKUP(H121,漢字書き!$A$2:$N$506,6,0)) -> ［シュウジ］の手本 | I123: =IF(I121="","",VLOOKUP(I121,漢字書き!$A$2:$N$506,6,0)) -> ［クチブエ］をふく | J123: =IF(J121="","",VLOOKUP(J121,漢字書き!$A$2:$N$506,6,0)) -> ［ダイキン］をはらう | K123: =IF(K121="","",VLOOKUP(K121,漢字読み!$A$2:$O$506,6,0)) -> ［家族］と出かける | L123: =IF(L121="","",VLOOKUP(L121,漢字読み!$A$2:$O$506,6,0)) -> ［軽音楽］を聞く | M123: =IF(M121="","",VLOOKUP(M121,漢字読み!$A$2:$O$506,6,0)) -> ［湖］のほとり | N123: =IF(N121="","",VLOOKUP(N121,漢字読み!$A$2:$O$506,6,0)) -> ［宿］はく先をさがす | O123: =IF(O121="","",VLOOKUP(O121,漢字読み!$A$2:$O$506,6,0)) -> ［安息］日をとる | P123: =IF(P121="","",VLOOKUP(P121,漢字読み!$A$2:$O$506,6,0)) -> 木を［植］える | Q123: =IF(Q121="","",VLOOKUP(Q121,漢字読み!$A$2:$O$506,6,0)) -> ［終点］まで行く | R123: =IF(R121="","",VLOOKUP(R121,漢字読み!$A$2:$O$506,6,0)) -> はん人を［追］う | S123: =IF(S121="","",VLOOKUP(S121,漢字読み!$A$2:$O$506,6,0)) -> ［第一号］のホームラン | T123: =IF(T121="","",VLOOKUP(T121,漢字読み!$A$2:$O$506,6,0)) -> 火にあぶらを［注］ぐ | V123: 級
V124: 名前
A125: =IF(A121="","",IF(VLOOKUP(A121,漢字書き!$A$2:$N$502,7,0)=0,"",VLOOKUP(A121,漢字書き!$A$2:$N$502,7,0))) -> り | B125: =IF(B121="","",IF(VLOOKUP(B121,漢字書き!$A$2:$N$502,7,0)=0,"",VLOOKUP(B121,漢字書き!$A$2:$N$502,7,0))) ->  | C125: =IF(C121="","",IF(VLOOKUP(C121,漢字書き!$A$2:$N$502,7,0)=0,"",VLOOKUP(C121,漢字書き!$A$2:$N$502,7,0))) ->  | D125: =IF(D121="","",IF(VLOOKUP(D121,漢字書き!$A$2:$N$502,7,0)=0,"",VLOOKUP(D121,漢字書き!$A$2:$N$502,7,0))) -> とん | E125: =IF(E121="","",IF(VLOOKUP(E121,漢字書き!$A$2:$N$502,7,0)=0,"",VLOOKUP(E121,漢字書き!$A$2:$N$502,7,0))) ->  | F125: =IF(F121="","",IF(VLOOKUP(F121,漢字書き!$A$2:$N$502,7,0)=0,"",VLOOKUP(F121,漢字書き!$A$2:$N$502,7,0))) -> だのみ | G125: =IF(G121="","",IF(VLOOKUP(G121,漢字書き!$A$2:$N$502,7,0)=0,"",VLOOKUP(G121,漢字書き!$A$2:$N$502,7,0))) ->  | H125: =IF(H121="","",IF(VLOOKUP(H121,漢字書き!$A$2:$N$502,7,0)=0,"",VLOOKUP(H121,漢字書き!$A$2:$N$502,7,0))) ->  | I125: =IF(I121="","",IF(VLOOKUP(I121,漢字書き!$A$2:$N$502,7,0)=0,"",VLOOKUP(I121,漢字書き!$A$2:$N$502,7,0))) ->  | J125: =IF(J121="","",IF(VLOOKUP(J121,漢字書き!$A$2:$N$502,7,0)=0,"",VLOOKUP(J121,漢字書き!$A$2:$N$502,7,0))) ->  | K125: =IF(K121="","",IF(VLOOKUP(K121,漢字読み!$A$2:$O$502,7,0)=0,"",VLOOKUP(K121,漢字読み!$A$2:$O$502,7,0))) ->  | L125: =IF(L121="","",IF(VLOOKUP(L121,漢字読み!$A$2:$O$502,7,0)=0,"",VLOOKUP(L121,漢字読み!$A$2:$O$502,7,0))) ->  | M125: =IF(M121="","",IF(VLOOKUP(M121,漢字読み!$A$2:$O$502,7,0)=0,"",VLOOKUP(M121,漢字読み!$A$2:$O$502,7,0))) ->  | N125: =IF(N121="","",IF(VLOOKUP(N121,漢字読み!$A$2:$O$502,7,0)=0,"",VLOOKUP(N121,漢字読み!$A$2:$O$502,7,0))) -> はく | O125: =IF(O121="","",IF(VLOOKUP(O121,漢字読み!$A$2:$O$502,7,0)=0,"",VLOOKUP(O121,漢字読み!$A$2:$O$502,7,0))) -> 日 | P125: =IF(P121="","",IF(VLOOKUP(P121,漢字読み!$A$2:$O$502,7,0)=0,"",VLOOKUP(P121,漢字読み!$A$2:$O$502,7,0))) -> える | Q125: =IF(Q121="","",IF(VLOOKUP(Q121,漢字読み!$A$2:$O$502,7,0)=0,"",VLOOKUP(Q121,漢字読み!$A$2:$O$502,7,0))) ->  | R125: =IF(R121="","",IF(VLOOKUP(R121,漢字読み!$A$2:$O$502,7,0)=0,"",VLOOKUP(R121,漢字読み!$A$2:$O$502,7,0))) -> う | S125: =IF(S121="","",IF(VLOOKUP(S121,漢字読み!$A$2:$O$502,7,0)=0,"",VLOOKUP(S121,漢字読み!$A$2:$O$502,7,0))) ->  | T125: =IF(T121="","",IF(VLOOKUP(T121,漢字読み!$A$2:$O$502,7,0)=0,"",VLOOKUP(T121,漢字読み!$A$2:$O$502,7,0))) -> ぐ | W125: 和歌山県教育委員会
A126: =INDIRECT("'関数（書き）'!C" & COLUMN(B$1)+SUM($AD$2:$AD127)) -> 218 | B126: =INDIRECT("'関数（書き）'!C" & COLUMN(C$1)+SUM($AD$2:$AD127)) -> 233 | C126: =INDIRECT("'関数（書き）'!C" & COLUMN(D$1)+SUM($AD$2:$AD127)) -> 127 | D126: =INDIRECT("'関数（書き）'!C" & COLUMN(E$1)+SUM($AD$2:$AD127)) -> 37 | E126: =INDIRECT("'関数（書き）'!C" & COLUMN(F$1)+SUM($AD$2:$AD127)) -> 142 | F126: =INDIRECT("'関数（書き）'!C" & COLUMN(G$1)+SUM($AD$2:$AD127)) -> 169 | G126: =INDIRECT("'関数（書き）'!C" & COLUMN(H$1)+SUM($AD$2:$AD127)) -> 99 | H126: =INDIRECT("'関数（書き）'!C" & COLUMN(I$1)+SUM($AD$2:$AD127)) -> 164 | I126: =INDIRECT("'関数（書き）'!C" & COLUMN(J$1)+SUM($AD$2:$AD127)) -> 112 | J126: =INDIRECT("'関数（書き）'!C" & COLUMN(K$1)+SUM($AD$2:$AD127)) -> 213 | K126: =INDIRECT("'関数（読み）'!C" & COLUMN(B$1)+SUM($AD$2:$AD127)) -> 35 | L126: =INDIRECT("'関数（読み）'!C" & COLUMN(C$1)+SUM($AD$2:$AD127)) -> 141 | M126: =INDIRECT("'関数（読み）'!C" & COLUMN(D$1)+SUM($AD$2:$AD127)) -> 60 | N126: =INDIRECT("'関数（読み）'!C" & COLUMN(E$1)+SUM($AD$2:$AD127)) -> 127 | O126: =INDIRECT("'関数（読み）'!C" & COLUMN(F$1)+SUM($AD$2:$AD127)) -> 89 | P126: =INDIRECT("'関数（読み）'!C" & COLUMN(G$1)+SUM($AD$2:$AD127)) -> 95 | Q126: =INDIRECT("'関数（読み）'!C" & COLUMN(H$1)+SUM($AD$2:$AD127)) -> 8 | R126: =INDIRECT("'関数（読み）'!C" & COLUMN(I$1)+SUM($AD$2:$AD127)) -> 187 | S126: =INDIRECT("'関数（読み）'!C" & COLUMN(J$1)+SUM($AD$2:$AD127)) -> 10 | T126: =INDIRECT("'関数（読み）'!C" & COLUMN(K$1)+SUM($AD$2:$AD127)) -> 11
A127: ⑳ | B127: ⑲ | C127: ⑱ | D127: ⑰ | E127: ⑯ | F127: ⑮ | G127: ⑭ | H127: ⑬ | I127: ⑫ | J127: ⑪ | K127: ⑩ | L127: ⑨ | M127: ⑧ | N127: ⑦ | O127: ⑥ | P127: ⑤ | Q127: ④ | R127: ③ | S127: ② | T127: ① | U127: 次の［ ］の部分の漢字には読みがなをひらがなで書き、カタカナは漢字に直しなさい。 | V127: 12 | W127: 「漢字の博士検定試験」練習問題 | AC127: ← | AD127: 10 | AE127: 問 | AF127: =AH122+1 -> 131 | AG127: ～ | AH127: =SUM($AD$2:$AD127)+10 -> 140 | AI127: 問まで | AJ127: =COUNTIF($A$1:$T$200,T128) -> 2
A128: =IF(A126="","",VLOOKUP(A126,漢字書き!$A$2:$N$506,6,0)) -> ルールを［サダ］める | B128: =IF(B126="","",VLOOKUP(B126,漢字書き!$A$2:$N$506,6,0)) -> なっ［トウ］を食べる | C128: =IF(C126="","",VLOOKUP(C126,漢字書き!$A$2:$N$506,6,0)) -> ［ショウ］わ生まれ | D128: =IF(D126="","",VLOOKUP(D126,漢字書き!$A$2:$N$506,6,0)) -> ［コウ］ふくをまねくネコ | E128: =IF(E126="","",VLOOKUP(E126,漢字書き!$A$2:$N$506,6,0)) -> ［ミ］をすくめる | F128: =IF(F126="","",VLOOKUP(F126,漢字書き!$A$2:$N$506,6,0)) -> いろいろな［クウソウ］ | G128: =IF(G126="","",VLOOKUP(G126,漢字書き!$A$2:$N$506,6,0)) -> ［キュウシュウ］地方 | H128: =IF(H126="","",VLOOKUP(H126,漢字書き!$A$2:$N$506,6,0)) -> ［マッタ］くわからない | I128: =IF(I126="","",VLOOKUP(I126,漢字書き!$A$2:$N$506,6,0)) -> 町に［ス］む | J128: =IF(J126="","",VLOOKUP(J126,漢字書き!$A$2:$N$506,6,0)) -> じてんで［シラ］べる | K128: =IF(K126="","",VLOOKUP(K126,漢字読み!$A$2:$O$506,6,0)) -> そっぽを［向］く | L128: =IF(L126="","",VLOOKUP(L126,漢字読み!$A$2:$O$506,6,0)) -> トイレの［神］さま | M128: =IF(M126="","",VLOOKUP(M126,漢字読み!$A$2:$O$506,6,0)) -> じゅぎょうを［始］める | N128: =IF(N126="","",VLOOKUP(N126,漢字読み!$A$2:$O$506,6,0)) -> [商人]に会う | O128: =IF(O126="","",VLOOKUP(O126,漢字読み!$A$2:$O$506,6,0)) -> 池の［主］の大ナマズ | P128: =IF(P126="","",VLOOKUP(P126,漢字読み!$A$2:$O$506,6,0)) -> うめ［酒］を飲む | Q128: =IF(Q126="","",VLOOKUP(Q126,漢字読み!$A$2:$O$506,6,0)) -> ［苦］いくすり | R128: =IF(R126="","",VLOOKUP(R126,漢字読み!$A$2:$O$506,6,0)) -> ［代］わりに行きます | S128: =IF(S126="","",VLOOKUP(S126,漢字読み!$A$2:$O$506,6,0)) -> ［雨具］を使う | T128: =IF(T126="","",VLOOKUP(T126,漢字読み!$A$2:$O$506,6,0)) -> ［家具］を買う | V128: 級
V129: 名前
A130: =IF(A126="","",IF(VLOOKUP(A126,漢字書き!$A$2:$N$502,7,0)=0,"",VLOOKUP(A126,漢字書き!$A$2:$N$502,7,0))) -> める | B130: =IF(B126="","",IF(VLOOKUP(B126,漢字書き!$A$2:$N$502,7,0)=0,"",VLOOKUP(B126,漢字書き!$A$2:$N$502,7,0))) ->  | C130: =IF(C126="","",IF(VLOOKUP(C126,漢字書き!$A$2:$N$502,7,0)=0,"",VLOOKUP(C126,漢字書き!$A$2:$N$502,7,0))) -> わ | D130: =IF(D126="","",IF(VLOOKUP(D126,漢字書き!$A$2:$N$502,7,0)=0,"",VLOOKUP(D126,漢字書き!$A$2:$N$502,7,0))) -> ふく | E130: =IF(E126="","",IF(VLOOKUP(E126,漢字書き!$A$2:$N$502,7,0)=0,"",VLOOKUP(E126,漢字書き!$A$2:$N$502,7,0))) ->  | F130: =IF(F126="","",IF(VLOOKUP(F126,漢字書き!$A$2:$N$502,7,0)=0,"",VLOOKUP(F126,漢字書き!$A$2:$N$502,7,0))) ->  | G130: =IF(G126="","",IF(VLOOKUP(G126,漢字書き!$A$2:$N$502,7,0)=0,"",VLOOKUP(G126,漢字書き!$A$2:$N$502,7,0))) ->  | H130: =IF(H126="","",IF(VLOOKUP(H126,漢字書き!$A$2:$N$502,7,0)=0,"",VLOOKUP(H126,漢字書き!$A$2:$N$502,7,0))) -> く | I130: =IF(I126="","",IF(VLOOKUP(I126,漢字書き!$A$2:$N$502,7,0)=0,"",VLOOKUP(I126,漢字書き!$A$2:$N$502,7,0))) -> む | J130: =IF(J126="","",IF(VLOOKUP(J126,漢字書き!$A$2:$N$502,7,0)=0,"",VLOOKUP(J126,漢字書き!$A$2:$N$502,7,0))) -> べる | K130: =IF(K126="","",IF(VLOOKUP(K126,漢字読み!$A$2:$O$502,7,0)=0,"",VLOOKUP(K126,漢字読み!$A$2:$O$502,7,0))) -> く | L130: =IF(L126="","",IF(VLOOKUP(L126,漢字読み!$A$2:$O$502,7,0)=0,"",VLOOKUP(L126,漢字読み!$A$2:$O$502,7,0))) -> さま | M130: =IF(M126="","",IF(VLOOKUP(M126,漢字読み!$A$2:$O$502,7,0)=0,"",VLOOKUP(M126,漢字読み!$A$2:$O$502,7,0))) -> める | N130: =IF(N126="","",IF(VLOOKUP(N126,漢字読み!$A$2:$O$502,7,0)=0,"",VLOOKUP(N126,漢字読み!$A$2:$O$502,7,0))) ->  | O130: =IF(O126="","",IF(VLOOKUP(O126,漢字読み!$A$2:$O$502,7,0)=0,"",VLOOKUP(O126,漢字読み!$A$2:$O$502,7,0))) ->  | P130: =IF(P126="","",IF(VLOOKUP(P126,漢字読み!$A$2:$O$502,7,0)=0,"",VLOOKUP(P126,漢字読み!$A$2:$O$502,7,0))) ->  | Q130: =IF(Q126="","",IF(VLOOKUP(Q126,漢字読み!$A$2:$O$502,7,0)=0,"",VLOOKUP(Q126,漢字読み!$A$2:$O$502,7,0))) -> い | R130: =IF(R126="","",IF(VLOOKUP(R126,漢字読み!$A$2:$O$502,7,0)=0,"",VLOOKUP(R126,漢字読み!$A$2:$O$502,7,0))) -> わり | S130: =IF(S126="","",IF(VLOOKUP(S126,漢字読み!$A$2:$O$502,7,0)=0,"",VLOOKUP(S126,漢字読み!$A$2:$O$502,7,0))) ->  | T130: =IF(T126="","",IF(VLOOKUP(T126,漢字読み!$A$2:$O$502,7,0)=0,"",VLOOKUP(T126,漢字読み!$A$2:$O$502,7,0))) ->  | W130: 和歌山県教育委員会
A131: =A121 -> 90 | B131: 76 | C131: 234 | D131: 158 | E131: 229 | F131: 146 | G131: 147 | H131: 105 | I131: 223 | J131: 186 | K131: 170 | L131: 17 | M131: 32 | N131: 113 | O131: 166 | P131: 134 | Q131: 100 | R131: 214 | S131: 188 | T131: 204
A132: ⑳ | B132: ⑲ | C132: ⑱ | D132: ⑰ | E132: ⑯ | F132: ⑮ | G132: ⑭ | H132: ⑬ | I132: ⑫ | J132: ⑪ | K132: ⑩ | L132: ⑨ | M132: ⑧ | N132: ⑦ | O132: ⑥ | P132: ⑤ | Q132: ④ | R132: ③ | S132: ② | T132: ① | U132: 次の［ ］の部分の漢字には読みがなをひらがなで書き、カタカナは漢字に直しなさい。 | V132: 12 | W132: 「漢字の博士検定試験」練習問題
A133: =IF(A131="","",VLOOKUP(A131,漢字書き!$A$2:$N$506,6,0)) -> お［マモ]りをつける | B133: =IF(B131="","",VLOOKUP(B131,漢字書き!$A$2:$N$506,6,0)) -> ［シキジョウ］に入る | C133: =IF(C131="","",VLOOKUP(C131,漢字書き!$A$2:$N$506,6,0)) -> ［マメ］をまく | D133: =IF(D131="","",VLOOKUP(D131,漢字書き!$A$2:$N$506,6,0)) -> つくえを［セイ］とんする | E133: =IF(E131="","",VLOOKUP(E131,漢字書き!$A$2:$N$506,6,0)) -> ［キョウト］へ行く | F133: =IF(F131="","",VLOOKUP(F131,漢字書き!$A$2:$N$506,6,0)) -> 苦しい時の[カミ]だのみ | G133: =IF(G131="","",VLOOKUP(G131,漢字書き!$A$2:$N$506,6,0)) -> ［シンジツ］を知る | H133: =IF(H131="","",VLOOKUP(H131,漢字書き!$A$2:$N$506,6,0)) -> ［シュウジ］の手本 | I133: =IF(I131="","",VLOOKUP(I131,漢字書き!$A$2:$N$506,6,0)) -> ［クチブエ］をふく | J133: =IF(J131="","",VLOOKUP(J131,漢字書き!$A$2:$N$506,6,0)) -> ［ダイキン］をはらう | K133: =IF(K131="","",VLOOKUP(K131,漢字読み!$A$2:$O$506,6,0)) -> ［家族］と出かける | L133: =IF(L131="","",VLOOKUP(L131,漢字読み!$A$2:$O$506,6,0)) -> ［軽音楽］を聞く | M133: =IF(M131="","",VLOOKUP(M131,漢字読み!$A$2:$O$506,6,0)) -> ［湖］のほとり | N133: =IF(N131="","",VLOOKUP(N131,漢字読み!$A$2:$O$506,6,0)) -> ［宿］はく先をさがす | O133: =IF(O131="","",VLOOKUP(O131,漢字読み!$A$2:$O$506,6,0)) -> ［安息］日をとる | P133: =IF(P131="","",VLOOKUP(P131,漢字読み!$A$2:$O$506,6,0)) -> 木を［植］える | Q133: =IF(Q131="","",VLOOKUP(Q131,漢字読み!$A$2:$O$506,6,0)) -> ［終点］まで行く | R133: =IF(R131="","",VLOOKUP(R131,漢字読み!$A$2:$O$506,6,0)) -> はん人を［追］う | S133: =IF(S131="","",VLOOKUP(S131,漢字読み!$A$2:$O$506,6,0)) -> ［第一号］のホームラン | T133: =IF(T131="","",VLOOKUP(T131,漢字読み!$A$2:$O$506,6,0)) -> 火にあぶらを［注］ぐ | V133: 級
A134: =IF(A$11="","",VLOOKUP(A131,漢字書き!$A$2:$O$506,8,0)) -> 守 | B134: =IF(B$11="","",VLOOKUP(B131,漢字書き!$A$2:$O$506,8,0)) -> 式場 | C134: =IF(C$11="","",VLOOKUP(C131,漢字書き!$A$2:$O$506,8,0)) -> 豆 | D134: =IF(D$11="","",VLOOKUP(D131,漢字書き!$A$2:$O$506,8,0)) -> 整 | E134: =IF(E$11="","",VLOOKUP(E131,漢字書き!$A$2:$O$506,8,0)) -> 京都 | F134: =IF(F$11="","",VLOOKUP(F131,漢字書き!$A$2:$O$506,8,0)) -> 神 | G134: =IF(G$11="","",VLOOKUP(G131,漢字書き!$A$2:$O$506,8,0)) -> 真実 | H134: =IF(H$11="","",VLOOKUP(H131,漢字書き!$A$2:$O$506,8,0)) -> 習字 | I134: =IF(I$11="","",VLOOKUP(I131,漢字書き!$A$2:$O$506,8,0)) -> 口笛 | J134: =IF(J$11="","",VLOOKUP(J131,漢字書き!$A$2:$O$506,8,0)) -> 代金 | K134: =IF(K$11="","",VLOOKUP(K131,漢字読み!$A$2:$O$506,8,0)) -> かぞく | L134: =IF(L$11="","",VLOOKUP(L131,漢字読み!$A$2:$O$506,8,0)) -> けいおんがく | M134: =IF(M$11="","",VLOOKUP(M131,漢字読み!$A$2:$O$506,8,0)) -> みずうみ | N134: =IF(N$11="","",VLOOKUP(N131,漢字読み!$A$2:$O$506,8,0)) -> しゅく | O134: =IF(O$11="","",VLOOKUP(O131,漢字読み!$A$2:$O$506,8,0)) -> あんそく | P134: =IF(P$11="","",VLOOKUP(P131,漢字読み!$A$2:$O$506,8,0)) -> う | Q134: =IF(Q$11="","",VLOOKUP(Q131,漢字読み!$A$2:$O$506,8,0)) -> しゅうてん | R134: =IF(R$11="","",VLOOKUP(R131,漢字読み!$A$2:$O$506,8,0)) -> お | S134: =IF(S$11="","",VLOOKUP(S131,漢字読み!$A$2:$O$506,8,0)) -> だいいちごう | T134: =IF(T$11="","",VLOOKUP(T131,漢字読み!$A$2:$O$506,8,0)) -> そそ | V134: 名前
A135: =IF(A131="","",IF(VLOOKUP(A131,漢字書き!$A$2:$N$502,7,0)=0,"",VLOOKUP(A131,漢字書き!$A$2:$N$502,7,0))) -> り | B135: =IF(B131="","",IF(VLOOKUP(B131,漢字書き!$A$2:$N$502,7,0)=0,"",VLOOKUP(B131,漢字書き!$A$2:$N$502,7,0))) ->  | C135: =IF(C131="","",IF(VLOOKUP(C131,漢字書き!$A$2:$N$502,7,0)=0,"",VLOOKUP(C131,漢字書き!$A$2:$N$502,7,0))) ->  | D135: =IF(D131="","",IF(VLOOKUP(D131,漢字書き!$A$2:$N$502,7,0)=0,"",VLOOKUP(D131,漢字書き!$A$2:$N$502,7,0))) -> とん | E135: =IF(E131="","",IF(VLOOKUP(E131,漢字書き!$A$2:$N$502,7,0)=0,"",VLOOKUP(E131,漢字書き!$A$2:$N$502,7,0))) ->  | F135: =IF(F131="","",IF(VLOOKUP(F131,漢字書き!$A$2:$N$502,7,0)=0,"",VLOOKUP(F131,漢字書き!$A$2:$N$502,7,0))) -> だのみ | G135: =IF(G131="","",IF(VLOOKUP(G131,漢字書き!$A$2:$N$502,7,0)=0,"",VLOOKUP(G131,漢字書き!$A$2:$N$502,7,0))) ->  | H135: =IF(H131="","",IF(VLOOKUP(H131,漢字書き!$A$2:$N$502,7,0)=0,"",VLOOKUP(H131,漢字書き!$A$2:$N$502,7,0))) ->  | I135: =IF(I131="","",IF(VLOOKUP(I131,漢字書き!$A$2:$N$502,7,0)=0,"",VLOOKUP(I131,漢字書き!$A$2:$N$502,7,0))) ->  | J135: =IF(J131="","",IF(VLOOKUP(J131,漢字書き!$A$2:$N$502,7,0)=0,"",VLOOKUP(J131,漢字書き!$A$2:$N$502,7,0))) ->  | K135: =IF(K131="","",IF(VLOOKUP(K131,漢字読み!$A$2:$O$502,7,0)=0,"",VLOOKUP(K131,漢字読み!$A$2:$O$502,7,0))) ->  | L135: =IF(L131="","",IF(VLOOKUP(L131,漢字読み!$A$2:$O$502,7,0)=0,"",VLOOKUP(L131,漢字読み!$A$2:$O$502,7,0))) ->  | M135: =IF(M131="","",IF(VLOOKUP(M131,漢字読み!$A$2:$O$502,7,0)=0,"",VLOOKUP(M131,漢字読み!$A$2:$O$502,7,0))) ->  | N135: =IF(N131="","",IF(VLOOKUP(N131,漢字読み!$A$2:$O$502,7,0)=0,"",VLOOKUP(N131,漢字読み!$A$2:$O$502,7,0))) -> はく | O135: =IF(O131="","",IF(VLOOKUP(O131,漢字読み!$A$2:$O$502,7,0)=0,"",VLOOKUP(O131,漢字読み!$A$2:$O$502,7,0))) -> 日 | P135: =IF(P131="","",IF(VLOOKUP(P131,漢字読み!$A$2:$O$502,7,0)=0,"",VLOOKUP(P131,漢字読み!$A$2:$O$502,7,0))) -> える | Q135: =IF(Q131="","",IF(VLOOKUP(Q131,漢字読み!$A$2:$O$502,7,0)=0,"",VLOOKUP(Q131,漢字読み!$A$2:$O$502,7,0))) ->  | R135: =IF(R131="","",IF(VLOOKUP(R131,漢字読み!$A$2:$O$502,7,0)=0,"",VLOOKUP(R131,漢字読み!$A$2:$O$502,7,0))) -> う | S135: =IF(S131="","",IF(VLOOKUP(S131,漢字読み!$A$2:$O$502,7,0)=0,"",VLOOKUP(S131,漢字読み!$A$2:$O$502,7,0))) ->  | T135: =IF(T131="","",IF(VLOOKUP(T131,漢字読み!$A$2:$O$502,7,0)=0,"",VLOOKUP(T131,漢字読み!$A$2:$O$502,7,0))) -> ぐ | W135: 和歌山県教育委員会
A136: =A126 -> 218 | B136: 233 | C136: 127 | D136: 37 | E136: 142 | F136: 169 | G136: 99 | H136: 164 | I136: 112 | J136: 213 | K136: 35 | L136: 141 | M136: 60 | N136: 127 | O136: 89 | P136: 95 | Q136: 8 | R136: 187 | S136: 10 | T136: 11
A137: ⑳ | B137: ⑲ | C137: ⑱ | D137: ⑰ | E137: ⑯ | F137: ⑮ | G137: ⑭ | H137: ⑬ | I137: ⑫ | J137: ⑪ | K137: ⑩ | L137: ⑨ | M137: ⑧ | N137: ⑦ | O137: ⑥ | P137: ⑤ | Q137: ④ | R137: ③ | S137: ② | T137: ① | U137: 次の［ ］の部分の漢字には読みがなをひらがなで書き、カタカナは漢字に直しなさい。 | V137: 12 | W137: 「漢字の博士検定試験」練習問題
A138: =IF(A136="","",VLOOKUP(A136,漢字書き!$A$2:$N$506,6,0)) -> ルールを［サダ］める | B138: =IF(B136="","",VLOOKUP(B136,漢字書き!$A$2:$N$506,6,0)) -> なっ［トウ］を食べる | C138: =IF(C136="","",VLOOKUP(C136,漢字書き!$A$2:$N$506,6,0)) -> ［ショウ］わ生まれ | D138: =IF(D136="","",VLOOKUP(D136,漢字書き!$A$2:$N$506,6,0)) -> ［コウ］ふくをまねくネコ | E138: =IF(E136="","",VLOOKUP(E136,漢字書き!$A$2:$N$506,6,0)) -> ［ミ］をすくめる | F138: =IF(F136="","",VLOOKUP(F136,漢字書き!$A$2:$N$506,6,0)) -> いろいろな［クウソウ］ | G138: =IF(G136="","",VLOOKUP(G136,漢字書き!$A$2:$N$506,6,0)) -> ［キュウシュウ］地方 | H138: =IF(H136="","",VLOOKUP(H136,漢字書き!$A$2:$N$506,6,0)) -> ［マッタ］くわからない | I138: =IF(I136="","",VLOOKUP(I136,漢字書き!$A$2:$N$506,6,0)) -> 町に［ス］む | J138: =IF(J136="","",VLOOKUP(J136,漢字書き!$A$2:$N$506,6,0)) -> じてんで［シラ］べる | K138: =IF(K136="","",VLOOKUP(K136,漢字読み!$A$2:$O$506,6,0)) -> そっぽを［向］く | L138: =IF(L136="","",VLOOKUP(L136,漢字読み!$A$2:$O$506,6,0)) -> トイレの［神］さま | M138: =IF(M136="","",VLOOKUP(M136,漢字読み!$A$2:$O$506,6,0)) -> じゅぎょうを［始］める | N138: =IF(N136="","",VLOOKUP(N136,漢字読み!$A$2:$O$506,6,0)) -> [商人]に会う | O138: =IF(O136="","",VLOOKUP(O136,漢字読み!$A$2:$O$506,6,0)) -> 池の［主］の大ナマズ | P138: =IF(P136="","",VLOOKUP(P136,漢字読み!$A$2:$O$506,6,0)) -> うめ［酒］を飲む | Q138: =IF(Q136="","",VLOOKUP(Q136,漢字読み!$A$2:$O$506,6,0)) -> ［苦］いくすり | R138: =IF(R136="","",VLOOKUP(R136,漢字読み!$A$2:$O$506,6,0)) -> ［代］わりに行きます | S138: =IF(S136="","",VLOOKUP(S136,漢字読み!$A$2:$O$506,6,0)) -> ［雨具］を使う | T138: =IF(T136="","",VLOOKUP(T136,漢字読み!$A$2:$O$506,6,0)) -> ［家具］を買う | V138: 級
A139: =IF(A$16="","",VLOOKUP(A136,漢字書き!$A$2:$O$506,8,0)) -> 定 | B139: =IF(B$16="","",VLOOKUP(B136,漢字書き!$A$2:$O$506,8,0)) -> 豆 | C139: =IF(C$16="","",VLOOKUP(C136,漢字書き!$A$2:$O$506,8,0)) -> 昭 | D139: =IF(D$16="","",VLOOKUP(D136,漢字書き!$A$2:$O$506,8,0)) -> 幸 | E139: =IF(E$16="","",VLOOKUP(E136,漢字書き!$A$2:$O$506,8,0)) -> 身 | F139: =IF(F$16="","",VLOOKUP(F136,漢字書き!$A$2:$O$506,8,0)) -> 空想 | G139: =IF(G$16="","",VLOOKUP(G136,漢字書き!$A$2:$O$506,8,0)) -> 九州 | H139: =IF(H$16="","",VLOOKUP(H136,漢字書き!$A$2:$O$506,8,0)) -> 全 | I139: =IF(I$16="","",VLOOKUP(I136,漢字書き!$A$2:$O$506,8,0)) -> 住 | J139: =IF(J$16="","",VLOOKUP(J136,漢字書き!$A$2:$O$506,8,0)) -> 調 | K139: =IF(K$16="","",VLOOKUP(K136,漢字読み!$A$2:$O$506,8,0)) -> む | L139: =IF(L$16="","",VLOOKUP(L136,漢字読み!$A$2:$O$506,8,0)) -> かみ | M139: =IF(M$16="","",VLOOKUP(M136,漢字読み!$A$2:$O$506,8,0)) -> はじ | N139: =IF(N$16="","",VLOOKUP(N136,漢字読み!$A$2:$O$506,8,0)) -> しょうにん | O139: =IF(O$16="","",VLOOKUP(O136,漢字読み!$A$2:$O$506,8,0)) -> ぬし | P139: =IF(P$16="","",VLOOKUP(P136,漢字読み!$A$2:$O$506,8,0)) -> しゅ | Q139: =IF(Q$16="","",VLOOKUP(Q136,漢字読み!$A$2:$O$506,8,0)) -> にが | R139: =IF(R$16="","",VLOOKUP(R136,漢字読み!$A$2:$O$506,8,0)) -> か | S139: =IF(S$16="","",VLOOKUP(S136,漢字読み!$A$2:$O$506,8,0)) -> あまぐ | T139: =IF(T$16="","",VLOOKUP(T136,漢字読み!$A$2:$O$506,8,0)) -> かぐ | V139: 名前
A140: =IF(A136="","",IF(VLOOKUP(A136,漢字書き!$A$2:$N$502,7,0)=0,"",VLOOKUP(A136,漢字書き!$A$2:$N$502,7,0))) -> める | B140: =IF(B136="","",IF(VLOOKUP(B136,漢字書き!$A$2:$N$502,7,0)=0,"",VLOOKUP(B136,漢字書き!$A$2:$N$502,7,0))) ->  | C140: =IF(C136="","",IF(VLOOKUP(C136,漢字書き!$A$2:$N$502,7,0)=0,"",VLOOKUP(C136,漢字書き!$A$2:$N$502,7,0))) -> わ | D140: =IF(D136="","",IF(VLOOKUP(D136,漢字書き!$A$2:$N$502,7,0)=0,"",VLOOKUP(D136,漢字書き!$A$2:$N$502,7,0))) -> ふく | E140: =IF(E136="","",IF(VLOOKUP(E136,漢字書き!$A$2:$N$502,7,0)=0,"",VLOOKUP(E136,漢字書き!$A$2:$N$502,7,0))) ->  | F140: =IF(F136="","",IF(VLOOKUP(F136,漢字書き!$A$2:$N$502,7,0)=0,"",VLOOKUP(F136,漢字書き!$A$2:$N$502,7,0))) ->  | G140: =IF(G136="","",IF(VLOOKUP(G136,漢字書き!$A$2:$N$502,7,0)=0,"",VLOOKUP(G136,漢字書き!$A$2:$N$502,7,0))) ->  | H140: =IF(H136="","",IF(VLOOKUP(H136,漢字書き!$A$2:$N$502,7,0)=0,"",VLOOKUP(H136,漢字書き!$A$2:$N$502,7,0))) -> く | I140: =IF(I136="","",IF(VLOOKUP(I136,漢字書き!$A$2:$N$502,7,0)=0,"",VLOOKUP(I136,漢字書き!$A$2:$N$502,7,0))) -> む | J140: =IF(J136="","",IF(VLOOKUP(J136,漢字書き!$A$2:$N$502,7,0)=0,"",VLOOKUP(J136,漢字書き!$A$2:$N$502,7,0))) -> べる | K140: =IF(K136="","",IF(VLOOKUP(K136,漢字読み!$A$2:$O$502,7,0)=0,"",VLOOKUP(K136,漢字読み!$A$2:$O$502,7,0))) -> く | L140: =IF(L136="","",IF(VLOOKUP(L136,漢字読み!$A$2:$O$502,7,0)=0,"",VLOOKUP(L136,漢字読み!$A$2:$O$502,7,0))) -> さま | M140: =IF(M136="","",IF(VLOOKUP(M136,漢字読み!$A$2:$O$502,7,0)=0,"",VLOOKUP(M136,漢字読み!$A$2:$O$502,7,0))) -> める | N140: =IF(N136="","",IF(VLOOKUP(N136,漢字読み!$A$2:$O$502,7,0)=0,"",VLOOKUP(N136,漢字読み!$A$2:$O$502,7,0))) ->  | O140: =IF(O136="","",IF(VLOOKUP(O136,漢字読み!$A$2:$O$502,7,0)=0,"",VLOOKUP(O136,漢字読み!$A$2:$O$502,7,0))) ->  | P140: =IF(P136="","",IF(VLOOKUP(P136,漢字読み!$A$2:$O$502,7,0)=0,"",VLOOKUP(P136,漢字読み!$A$2:$O$502,7,0))) ->  | Q140: =IF(Q136="","",IF(VLOOKUP(Q136,漢字読み!$A$2:$O$502,7,0)=0,"",VLOOKUP(Q136,漢字読み!$A$2:$O$502,7,0))) -> い | R140: =IF(R136="","",IF(VLOOKUP(R136,漢字読み!$A$2:$O$502,7,0)=0,"",VLOOKUP(R136,漢字読み!$A$2:$O$502,7,0))) -> わり | S140: =IF(S136="","",IF(VLOOKUP(S136,漢字読み!$A$2:$O$502,7,0)=0,"",VLOOKUP(S136,漢字読み!$A$2:$O$502,7,0))) ->  | T140: =IF(T136="","",IF(VLOOKUP(T136,漢字読み!$A$2:$O$502,7,0)=0,"",VLOOKUP(T136,漢字読み!$A$2:$O$502,7,0))) ->  | W140: 和歌山県教育委員会
A141: =INDIRECT("'関数（書き）'!C" & COLUMN(B$1)+SUM($AD$2:$AD142)) -> 152 | B141: =INDIRECT("'関数（書き）'!C" & COLUMN(C$1)+SUM($AD$2:$AD142)) -> 119 | C141: =INDIRECT("'関数（書き）'!C" & COLUMN(D$1)+SUM($AD$2:$AD142)) -> 54 | D141: =INDIRECT("'関数（書き）'!C" & COLUMN(E$1)+SUM($AD$2:$AD142)) -> 49 | E141: =INDIRECT("'関数（書き）'!C" & COLUMN(F$1)+SUM($AD$2:$AD142)) -> 63 | F141: =INDIRECT("'関数（書き）'!C" & COLUMN(G$1)+SUM($AD$2:$AD142)) -> 97 | G141: =INDIRECT("'関数（書き）'!C" & COLUMN(H$1)+SUM($AD$2:$AD142)) -> 131 | H141: =INDIRECT("'関数（書き）'!C" & COLUMN(I$1)+SUM($AD$2:$AD142)) -> 160 | I141: =INDIRECT("'関数（書き）'!C" & COLUMN(J$1)+SUM($AD$2:$AD142)) -> 42 | J141: =INDIRECT("'関数（書き）'!C" & COLUMN(K$1)+SUM($AD$2:$AD142)) -> 132 | K141: =INDIRECT("'関数（読み）'!C" & COLUMN(B$1)+SUM($AD$2:$AD142)) -> 217 | L141: =INDIRECT("'関数（読み）'!C" & COLUMN(C$1)+SUM($AD$2:$AD142)) -> 128 | M141: =INDIRECT("'関数（読み）'!C" & COLUMN(D$1)+SUM($AD$2:$AD142)) -> 23 | N141: =INDIRECT("'関数（読み）'!C" & COLUMN(E$1)+SUM($AD$2:$AD142)) -> 209 | O141: =INDIRECT("'関数（読み）'!C" & COLUMN(F$1)+SUM($AD$2:$AD142)) -> 98 | P141: =INDIRECT("'関数（読み）'!C" & COLUMN(G$1)+SUM($AD$2:$AD142)) -> 140 | Q141: =INDIRECT("'関数（読み）'!C" & COLUMN(H$1)+SUM($AD$2:$AD142)) -> 84 | R141: =INDIRECT("'関数（読み）'!C" & COLUMN(I$1)+SUM($AD$2:$AD142)) -> 159 | S141: =INDIRECT("'関数（読み）'!C" & COLUMN(J$1)+SUM($AD$2:$AD142)) -> 242 | T141: =INDIRECT("'関数（読み）'!C" & COLUMN(K$1)+SUM($AD$2:$AD142)) -> 79
A142: ⑳ | B142: ⑲ | C142: ⑱ | D142: ⑰ | E142: ⑯ | F142: ⑮ | G142: ⑭ | H142: ⑬ | I142: ⑫ | J142: ⑪ | K142: ⑩ | L142: ⑨ | M142: ⑧ | N142: ⑦ | O142: ⑥ | P142: ⑤ | Q142: ④ | R142: ③ | S142: ② | T142: ① | U142: 次の［ ］の部分の漢字には読みがなをひらがなで書き、カタカナは漢字に直しなさい。 | V142: 12 | W142: 「漢字の博士検定試験」練習問題 | AC142: ← | AD142: 10 | AE142: 問 | AF142: =AH127+1 -> 141 | AG142: ～ | AH142: =SUM($AD$2:$AD142)+10 -> 150 | AI142: 問まで | AJ142: =COUNTIF($A$1:$T$200,T143) -> 2
A143: =IF(A141="","",VLOOKUP(A141,漢字書き!$A$2:$N$506,6,0)) -> ［フカ］い海のそこ | B143: =IF(B141="","",VLOOKUP(B141,漢字書き!$A$2:$N$506,6,0)) -> ［ヤド］り木に鳥がとまる | C143: =IF(C141="","",VLOOKUP(C141,漢字書き!$A$2:$N$506,6,0)) -> ［シ］に水を取る | D143: =IF(D141="","",VLOOKUP(D141,漢字書き!$A$2:$N$506,6,0)) -> ［サラ］回しの曲げい | E143: =IF(E141="","",VLOOKUP(E141,漢字書き!$A$2:$N$506,6,0)) -> にゅう［シ］がぬける | F143: =IF(F141="","",VLOOKUP(F141,漢字書き!$A$2:$N$506,6,0)) -> しけんに［ウ］かる | G143: =IF(G141="","",VLOOKUP(G141,漢字書き!$A$2:$N$506,6,0)) -> うつくしい［ブンショウ］ | H143: =IF(H141="","",VLOOKUP(H141,漢字書き!$A$2:$N$506,6,0)) -> すきな［ムカシバナシ］ | I143: =IF(I141="","",VLOOKUP(I141,漢字書き!$A$2:$N$506,6,0)) -> ［ゴウ］れいをかける | J143: =IF(J141="","",VLOOKUP(J141,漢字書き!$A$2:$N$506,6,0)) -> ［ショウ］ぶをつける | K143: =IF(K141="","",VLOOKUP(K141,漢字読み!$A$2:$O$506,6,0)) -> 目ひょうを［定］める | L143: =IF(L141="","",VLOOKUP(L141,漢字読み!$A$2:$O$506,6,0)) -> お話のさい終［章］ | M143: =IF(M141="","",VLOOKUP(M141,漢字読み!$A$2:$O$506,6,0)) -> ［決］まりを守る | N143: =IF(N141="","",VLOOKUP(N141,漢字読み!$A$2:$O$506,6,0)) -> れんらく［帳］ | O143: =IF(O141="","",VLOOKUP(O141,漢字読み!$A$2:$O$506,6,0)) -> [本州]へわたる | P143: =IF(P141="","",VLOOKUP(P141,漢字読み!$A$2:$O$506,6,0)) -> ［神社］にまいる | Q143: =IF(Q141="","",VLOOKUP(Q141,漢字読み!$A$2:$O$506,6,0)) -> 書き［写］した文字 | R143: =IF(R141="","",VLOOKUP(R141,漢字読み!$A$2:$O$506,6,0)) -> ［全］て手ばなす | S143: =IF(S141="","",VLOOKUP(S141,漢字読み!$A$2:$O$506,6,0)) -> ［島］へわたる | T143: =IF(T141="","",VLOOKUP(T141,漢字読み!$A$2:$O$506,6,0)) -> ［事実］をたしかめる | V143: 級
V144: 名前
A145: =IF(A141="","",IF(VLOOKUP(A141,漢字書き!$A$2:$N$502,7,0)=0,"",VLOOKUP(A141,漢字書き!$A$2:$N$502,7,0))) -> い | B145: =IF(B141="","",IF(VLOOKUP(B141,漢字書き!$A$2:$N$502,7,0)=0,"",VLOOKUP(B141,漢字書き!$A$2:$N$502,7,0))) -> り木 | C145: =IF(C141="","",IF(VLOOKUP(C141,漢字書き!$A$2:$N$502,7,0)=0,"",VLOOKUP(C141,漢字書き!$A$2:$N$502,7,0))) -> に水 | D145: =IF(D141="","",IF(VLOOKUP(D141,漢字書き!$A$2:$N$502,7,0)=0,"",VLOOKUP(D141,漢字書き!$A$2:$N$502,7,0))) -> 回し | E145: =IF(E141="","",IF(VLOOKUP(E141,漢字書き!$A$2:$N$502,7,0)=0,"",VLOOKUP(E141,漢字書き!$A$2:$N$502,7,0))) ->  | F145: =IF(F141="","",IF(VLOOKUP(F141,漢字書き!$A$2:$N$502,7,0)=0,"",VLOOKUP(F141,漢字書き!$A$2:$N$502,7,0))) -> かる | G145: =IF(G141="","",IF(VLOOKUP(G141,漢字書き!$A$2:$N$502,7,0)=0,"",VLOOKUP(G141,漢字書き!$A$2:$N$502,7,0))) ->  | H145: =IF(H141="","",IF(VLOOKUP(H141,漢字書き!$A$2:$N$502,7,0)=0,"",VLOOKUP(H141,漢字書き!$A$2:$N$502,7,0))) ->  | I145: =IF(I141="","",IF(VLOOKUP(I141,漢字書き!$A$2:$N$502,7,0)=0,"",VLOOKUP(I141,漢字書き!$A$2:$N$502,7,0))) -> れい | J145: =IF(J141="","",IF(VLOOKUP(J141,漢字書き!$A$2:$N$502,7,0)=0,"",VLOOKUP(J141,漢字書き!$A$2:$N$502,7,0))) -> ぶ | K145: =IF(K141="","",IF(VLOOKUP(K141,漢字読み!$A$2:$O$502,7,0)=0,"",VLOOKUP(K141,漢字読み!$A$2:$O$502,7,0))) -> める | L145: =IF(L141="","",IF(VLOOKUP(L141,漢字読み!$A$2:$O$502,7,0)=0,"",VLOOKUP(L141,漢字読み!$A$2:$O$502,7,0))) ->  | M145: =IF(M141="","",IF(VLOOKUP(M141,漢字読み!$A$2:$O$502,7,0)=0,"",VLOOKUP(M141,漢字読み!$A$2:$O$502,7,0))) -> まり | N145: =IF(N141="","",IF(VLOOKUP(N141,漢字読み!$A$2:$O$502,7,0)=0,"",VLOOKUP(N141,漢字読み!$A$2:$O$502,7,0))) ->  | O145: =IF(O141="","",IF(VLOOKUP(O141,漢字読み!$A$2:$O$502,7,0)=0,"",VLOOKUP(O141,漢字読み!$A$2:$O$502,7,0))) ->  | P145: =IF(P141="","",IF(VLOOKUP(P141,漢字読み!$A$2:$O$502,7,0)=0,"",VLOOKUP(P141,漢字読み!$A$2:$O$502,7,0))) ->  | Q145: =IF(Q141="","",IF(VLOOKUP(Q141,漢字読み!$A$2:$O$502,7,0)=0,"",VLOOKUP(Q141,漢字読み!$A$2:$O$502,7,0))) -> した | R145: =IF(R141="","",IF(VLOOKUP(R141,漢字読み!$A$2:$O$502,7,0)=0,"",VLOOKUP(R141,漢字読み!$A$2:$O$502,7,0))) -> て | S145: =IF(S141="","",IF(VLOOKUP(S141,漢字読み!$A$2:$O$502,7,0)=0,"",VLOOKUP(S141,漢字読み!$A$2:$O$502,7,0))) ->  | T145: =IF(T141="","",IF(VLOOKUP(T141,漢字読み!$A$2:$O$502,7,0)=0,"",VLOOKUP(T141,漢字読み!$A$2:$O$502,7,0))) ->  | W145: 和歌山県教育委員会
A146: =INDIRECT("'関数（書き）'!C" & COLUMN(B$1)+SUM($AD$2:$AD147)) -> 139 | B146: =INDIRECT("'関数（書き）'!C" & COLUMN(C$1)+SUM($AD$2:$AD147)) -> 199 | C146: =INDIRECT("'関数（書き）'!C" & COLUMN(D$1)+SUM($AD$2:$AD147)) -> 2 | D146: =INDIRECT("'関数（書き）'!C" & COLUMN(E$1)+SUM($AD$2:$AD147)) -> 57 | E146: =INDIRECT("'関数（書き）'!C" & COLUMN(F$1)+SUM($AD$2:$AD147)) -> 16 | F146: =INDIRECT("'関数（書き）'!C" & COLUMN(G$1)+SUM($AD$2:$AD147)) -> 203 | G146: =INDIRECT("'関数（書き）'!C" & COLUMN(H$1)+SUM($AD$2:$AD147)) -> 31 | H146: =INDIRECT("'関数（書き）'!C" & COLUMN(I$1)+SUM($AD$2:$AD147)) -> 219 | I146: =INDIRECT("'関数（書き）'!C" & COLUMN(J$1)+SUM($AD$2:$AD147)) -> 149 | J146: =INDIRECT("'関数（書き）'!C" & COLUMN(K$1)+SUM($AD$2:$AD147)) -> 4 | K146: =INDIRECT("'関数（読み）'!C" & COLUMN(B$1)+SUM($AD$2:$AD147)) -> 194 | L146: =INDIRECT("'関数（読み）'!C" & COLUMN(C$1)+SUM($AD$2:$AD147)) -> 205 | M146: =INDIRECT("'関数（読み）'!C" & COLUMN(D$1)+SUM($AD$2:$AD147)) -> 38 | N146: =INDIRECT("'関数（読み）'!C" & COLUMN(E$1)+SUM($AD$2:$AD147)) -> 111 | O146: =INDIRECT("'関数（読み）'!C" & COLUMN(F$1)+SUM($AD$2:$AD147)) -> 36 | P146: =INDIRECT("'関数（読み）'!C" & COLUMN(G$1)+SUM($AD$2:$AD147)) -> 156 | Q146: =INDIRECT("'関数（読み）'!C" & COLUMN(H$1)+SUM($AD$2:$AD147)) -> 137 | R146: =INDIRECT("'関数（読み）'!C" & COLUMN(I$1)+SUM($AD$2:$AD147)) -> 3 | S146: =INDIRECT("'関数（読み）'!C" & COLUMN(J$1)+SUM($AD$2:$AD147)) -> 88 | T146: =INDIRECT("'関数（読み）'!C" & COLUMN(K$1)+SUM($AD$2:$AD147)) -> 68
A147: ⑳ | B147: ⑲ | C147: ⑱ | D147: ⑰ | E147: ⑯ | F147: ⑮ | G147: ⑭ | H147: ⑬ | I147: ⑫ | J147: ⑪ | K147: ⑩ | L147: ⑨ | M147: ⑧ | N147: ⑦ | O147: ⑥ | P147: ⑤ | Q147: ④ | R147: ③ | S147: ② | T147: ① | U147: 次の［ ］の部分の漢字には読みがなをひらがなで書き、カタカナは漢字に直しなさい。 | V147: 12 | W147: 「漢字の博士検定試験」練習問題 | AC147: ← | AD147: 10 | AE147: 問 | AF147: =AH142+1 -> 151 | AG147: ～ | AH147: =SUM($AD$2:$AD147)+10 -> 160 | AI147: 問まで | AJ147: =COUNTIF($A$1:$T$200,T148) -> 2
A148: =IF(A146="","",VLOOKUP(A146,漢字書き!$A$2:$N$506,6,0)) -> たねを［ウ］える | B148: =IF(B146="","",VLOOKUP(B146,漢字書き!$A$2:$N$506,6,0)) -> ［イッチャク］でゴールだ | C148: =IF(C146="","",VLOOKUP(C146,漢字書き!$A$2:$N$506,6,0)) -> ［ギン］のスプーン | D148: =IF(D146="","",VLOOKUP(D146,漢字書き!$A$2:$N$506,6,0)) -> 作業を［カイシ］する | E148: =IF(E146="","",VLOOKUP(E146,漢字書き!$A$2:$N$506,6,0)) -> ［ケイ］自どう車 | F148: =IF(F146="","",VLOOKUP(F146,漢字書き!$A$2:$N$506,6,0)) -> ［チュウモク］をあびる | G148: =IF(G146="","",VLOOKUP(G146,漢字書き!$A$2:$N$506,6,0)) -> ［ミズウミ］にうかぶ島 | H148: =IF(H146="","",VLOOKUP(H146,漢字書き!$A$2:$N$506,6,0)) -> ［ニワ］の草を引く | I148: =IF(I146="","",VLOOKUP(I146,漢字書き!$A$2:$N$506,6,0)) -> ［シンカイ］にすむ魚 | J148: =IF(J146="","",VLOOKUP(J146,漢字書き!$A$2:$N$506,6,0)) -> ［クギ］りをつける | K148: =IF(K146="","",VLOOKUP(K146,漢字読み!$A$2:$O$506,6,0)) -> 一長［一短］ある | L148: =IF(L146="","",VLOOKUP(L146,漢字読み!$A$2:$O$506,6,0)) -> ［電柱］のかげ | M148: =IF(M146="","",VLOOKUP(M146,漢字読み!$A$2:$O$506,6,0)) -> 船が［入港］する | N148: =IF(N146="","",VLOOKUP(N146,漢字読み!$A$2:$O$506,6,0)) -> ［体重］をはかる | O148: =IF(O146="","",VLOOKUP(O146,漢字読み!$A$2:$O$506,6,0)) -> ふ幸中の［幸］いだ | P148: =IF(P146="","",VLOOKUP(P146,漢字読み!$A$2:$O$506,6,0)) -> ［全体］にわたる | Q148: =IF(Q146="","",VLOOKUP(Q146,漢字読み!$A$2:$O$506,6,0)) -> ［長身］の人 | R148: =IF(R146="","",VLOOKUP(R146,漢字読み!$A$2:$O$506,6,0)) -> ［金銀］のメダル | S148: =IF(S146="","",VLOOKUP(S146,漢字読み!$A$2:$O$506,6,0)) -> ［主］な生きもの | T148: =IF(T146="","",VLOOKUP(T146,漢字読み!$A$2:$O$506,6,0)) -> ［歯］がいたむ | V148: 級
V149: 名前
A150: =IF(A146="","",IF(VLOOKUP(A146,漢字書き!$A$2:$N$502,7,0)=0,"",VLOOKUP(A146,漢字書き!$A$2:$N$502,7,0))) -> える | B150: =IF(B146="","",IF(VLOOKUP(B146,漢字書き!$A$2:$N$502,7,0)=0,"",VLOOKUP(B146,漢字書き!$A$2:$N$502,7,0))) ->  | C150: =IF(C146="","",IF(VLOOKUP(C146,漢字書き!$A$2:$N$502,7,0)=0,"",VLOOKUP(C146,漢字書き!$A$2:$N$502,7,0))) ->  | D150: =IF(D146="","",IF(VLOOKUP(D146,漢字書き!$A$2:$N$502,7,0)=0,"",VLOOKUP(D146,漢字書き!$A$2:$N$502,7,0))) -> する | E150: =IF(E146="","",IF(VLOOKUP(E146,漢字書き!$A$2:$N$502,7,0)=0,"",VLOOKUP(E146,漢字書き!$A$2:$N$502,7,0))) ->  | F150: =IF(F146="","",IF(VLOOKUP(F146,漢字書き!$A$2:$N$502,7,0)=0,"",VLOOKUP(F146,漢字書き!$A$2:$N$502,7,0))) ->  | G150: =IF(G146="","",IF(VLOOKUP(G146,漢字書き!$A$2:$N$502,7,0)=0,"",VLOOKUP(G146,漢字書き!$A$2:$N$502,7,0))) ->  | H150: =IF(H146="","",IF(VLOOKUP(H146,漢字書き!$A$2:$N$502,7,0)=0,"",VLOOKUP(H146,漢字書き!$A$2:$N$502,7,0))) ->  | I150: =IF(I146="","",IF(VLOOKUP(I146,漢字書き!$A$2:$N$502,7,0)=0,"",VLOOKUP(I146,漢字書き!$A$2:$N$502,7,0))) ->  | J150: =IF(J146="","",IF(VLOOKUP(J146,漢字書き!$A$2:$N$502,7,0)=0,"",VLOOKUP(J146,漢字書き!$A$2:$N$502,7,0))) -> り | K150: =IF(K146="","",IF(VLOOKUP(K146,漢字読み!$A$2:$O$502,7,0)=0,"",VLOOKUP(K146,漢字読み!$A$2:$O$502,7,0))) ->  | L150: =IF(L146="","",IF(VLOOKUP(L146,漢字読み!$A$2:$O$502,7,0)=0,"",VLOOKUP(L146,漢字読み!$A$2:$O$502,7,0))) ->  | M150: =IF(M146="","",IF(VLOOKUP(M146,漢字読み!$A$2:$O$502,7,0)=0,"",VLOOKUP(M146,漢字読み!$A$2:$O$502,7,0))) -> する | N150: =IF(N146="","",IF(VLOOKUP(N146,漢字読み!$A$2:$O$502,7,0)=0,"",VLOOKUP(N146,漢字読み!$A$2:$O$502,7,0))) ->  | O150: =IF(O146="","",IF(VLOOKUP(O146,漢字読み!$A$2:$O$502,7,0)=0,"",VLOOKUP(O146,漢字読み!$A$2:$O$502,7,0))) -> い | P150: =IF(P146="","",IF(VLOOKUP(P146,漢字読み!$A$2:$O$502,7,0)=0,"",VLOOKUP(P146,漢字読み!$A$2:$O$502,7,0))) ->  | Q150: =IF(Q146="","",IF(VLOOKUP(Q146,漢字読み!$A$2:$O$502,7,0)=0,"",VLOOKUP(Q146,漢字読み!$A$2:$O$502,7,0))) ->  | R150: =IF(R146="","",IF(VLOOKUP(R146,漢字読み!$A$2:$O$502,7,0)=0,"",VLOOKUP(R146,漢字読み!$A$2:$O$502,7,0))) ->  | S150: =IF(S146="","",IF(VLOOKUP(S146,漢字読み!$A$2:$O$502,7,0)=0,"",VLOOKUP(S146,漢字読み!$A$2:$O$502,7,0))) -> な | T150: =IF(T146="","",IF(VLOOKUP(T146,漢字読み!$A$2:$O$502,7,0)=0,"",VLOOKUP(T146,漢字読み!$A$2:$O$502,7,0))) ->  | W150: 和歌山県教育委員会
A151: =A141 -> 152 | B151: 119 | C151: 54 | D151: 49 | E151: 63 | F151: 97 | G151: 131 | H151: 160 | I151: 42 | J151: 132 | K151: 217 | L151: 128 | M151: 23 | N151: 209 | O151: 98 | P151: 140 | Q151: 84 | R151: 159 | S151: 242 | T151: 79
A152: ⑳ | B152: ⑲ | C152: ⑱ | D152: ⑰ | E152: ⑯ | F152: ⑮ | G152: ⑭ | H152: ⑬ | I152: ⑫ | J152: ⑪ | K152: ⑩ | L152: ⑨ | M152: ⑧ | N152: ⑦ | O152: ⑥ | P152: ⑤ | Q152: ④ | R152: ③ | S152: ② | T152: ① | U152: 次の［ ］の部分の漢字には読みがなをひらがなで書き、カタカナは漢字に直しなさい。 | V152: 12 | W152: 「漢字の博士検定試験」練習問題
A153: =IF(A151="","",VLOOKUP(A151,漢字書き!$A$2:$N$506,6,0)) -> ［フカ］い海のそこ | B153: =IF(B151="","",VLOOKUP(B151,漢字書き!$A$2:$N$506,6,0)) -> ［ヤド］り木に鳥がとまる | C153: =IF(C151="","",VLOOKUP(C151,漢字書き!$A$2:$N$506,6,0)) -> ［シ］に水を取る | D153: =IF(D151="","",VLOOKUP(D151,漢字書き!$A$2:$N$506,6,0)) -> ［サラ］回しの曲げい | E153: =IF(E151="","",VLOOKUP(E151,漢字書き!$A$2:$N$506,6,0)) -> にゅう［シ］がぬける | F153: =IF(F151="","",VLOOKUP(F151,漢字書き!$A$2:$N$506,6,0)) -> しけんに［ウ］かる | G153: =IF(G151="","",VLOOKUP(G151,漢字書き!$A$2:$N$506,6,0)) -> うつくしい［ブンショウ］ | H153: =IF(H151="","",VLOOKUP(H151,漢字書き!$A$2:$N$506,6,0)) -> すきな［ムカシバナシ］ | I153: =IF(I151="","",VLOOKUP(I151,漢字書き!$A$2:$N$506,6,0)) -> ［ゴウ］れいをかける | J153: =IF(J151="","",VLOOKUP(J151,漢字書き!$A$2:$N$506,6,0)) -> ［ショウ］ぶをつける | K153: =IF(K151="","",VLOOKUP(K151,漢字読み!$A$2:$O$506,6,0)) -> 目ひょうを［定］める | L153: =IF(L151="","",VLOOKUP(L151,漢字読み!$A$2:$O$506,6,0)) -> お話のさい終［章］ | M153: =IF(M151="","",VLOOKUP(M151,漢字読み!$A$2:$O$506,6,0)) -> ［決］まりを守る | N153: =IF(N151="","",VLOOKUP(N151,漢字読み!$A$2:$O$506,6,0)) -> れんらく［帳］ | O153: =IF(O151="","",VLOOKUP(O151,漢字読み!$A$2:$O$506,6,0)) -> [本州]へわたる | P153: =IF(P151="","",VLOOKUP(P151,漢字読み!$A$2:$O$506,6,0)) -> ［神社］にまいる | Q153: =IF(Q151="","",VLOOKUP(Q151,漢字読み!$A$2:$O$506,6,0)) -> 書き［写］した文字 | R153: =IF(R151="","",VLOOKUP(R151,漢字読み!$A$2:$O$506,6,0)) -> ［全］て手ばなす | S153: =IF(S151="","",VLOOKUP(S151,漢字読み!$A$2:$O$506,6,0)) -> ［島］へわたる | T153: =IF(T151="","",VLOOKUP(T151,漢字読み!$A$2:$O$506,6,0)) -> ［事実］をたしかめる | V153: 級
A154: =IF(A$11="","",VLOOKUP(A151,漢字書き!$A$2:$O$506,8,0)) -> 深 | B154: =IF(B$11="","",VLOOKUP(B151,漢字書き!$A$2:$O$506,8,0)) -> 宿 | C154: =IF(C$11="","",VLOOKUP(C151,漢字書き!$A$2:$O$506,8,0)) -> 死 | D154: =IF(D$11="","",VLOOKUP(D151,漢字書き!$A$2:$O$506,8,0)) -> 皿 | E154: =IF(E$11="","",VLOOKUP(E151,漢字書き!$A$2:$O$506,8,0)) -> 歯 | F154: =IF(F$11="","",VLOOKUP(F151,漢字書き!$A$2:$O$506,8,0)) -> 受 | G154: =IF(G$11="","",VLOOKUP(G151,漢字書き!$A$2:$O$506,8,0)) -> 文章 | H154: =IF(H$11="","",VLOOKUP(H151,漢字書き!$A$2:$O$506,8,0)) -> 昔話 | I154: =IF(I$11="","",VLOOKUP(I151,漢字書き!$A$2:$O$506,8,0)) -> 号 | J154: =IF(J$11="","",VLOOKUP(J151,漢字書き!$A$2:$O$506,8,0)) -> 勝 | K154: =IF(K$11="","",VLOOKUP(K151,漢字読み!$A$2:$O$506,8,0)) -> さだ | L154: =IF(L$11="","",VLOOKUP(L151,漢字読み!$A$2:$O$506,8,0)) -> しょう | M154: =IF(M$11="","",VLOOKUP(M151,漢字読み!$A$2:$O$506,8,0)) -> き | N154: =IF(N$11="","",VLOOKUP(N151,漢字読み!$A$2:$O$506,8,0)) -> ちょう | O154: =IF(O$11="","",VLOOKUP(O151,漢字読み!$A$2:$O$506,8,0)) -> ほんしゅう | P154: =IF(P$11="","",VLOOKUP(P151,漢字読み!$A$2:$O$506,8,0)) -> じんじゃ | Q154: =IF(Q$11="","",VLOOKUP(Q151,漢字読み!$A$2:$O$506,8,0)) -> うつ | R154: =IF(R$11="","",VLOOKUP(R151,漢字読み!$A$2:$O$506,8,0)) -> すべ | S154: =IF(S$11="","",VLOOKUP(S151,漢字読み!$A$2:$O$506,8,0)) -> しま | T154: =IF(T$11="","",VLOOKUP(T151,漢字読み!$A$2:$O$506,8,0)) -> じじつ | V154: 名前
A155: =IF(A151="","",IF(VLOOKUP(A151,漢字書き!$A$2:$N$502,7,0)=0,"",VLOOKUP(A151,漢字書き!$A$2:$N$502,7,0))) -> い | B155: =IF(B151="","",IF(VLOOKUP(B151,漢字書き!$A$2:$N$502,7,0)=0,"",VLOOKUP(B151,漢字書き!$A$2:$N$502,7,0))) -> り木 | C155: =IF(C151="","",IF(VLOOKUP(C151,漢字書き!$A$2:$N$502,7,0)=0,"",VLOOKUP(C151,漢字書き!$A$2:$N$502,7,0))) -> に水 | D155: =IF(D151="","",IF(VLOOKUP(D151,漢字書き!$A$2:$N$502,7,0)=0,"",VLOOKUP(D151,漢字書き!$A$2:$N$502,7,0))) -> 回し | E155: =IF(E151="","",IF(VLOOKUP(E151,漢字書き!$A$2:$N$502,7,0)=0,"",VLOOKUP(E151,漢字書き!$A$2:$N$502,7,0))) ->  | F155: =IF(F151="","",IF(VLOOKUP(F151,漢字書き!$A$2:$N$502,7,0)=0,"",VLOOKUP(F151,漢字書き!$A$2:$N$502,7,0))) -> かる | G155: =IF(G151="","",IF(VLOOKUP(G151,漢字書き!$A$2:$N$502,7,0)=0,"",VLOOKUP(G151,漢字書き!$A$2:$N$502,7,0))) ->  | H155: =IF(H151="","",IF(VLOOKUP(H151,漢字書き!$A$2:$N$502,7,0)=0,"",VLOOKUP(H151,漢字書き!$A$2:$N$502,7,0))) ->  | I155: =IF(I151="","",IF(VLOOKUP(I151,漢字書き!$A$2:$N$502,7,0)=0,"",VLOOKUP(I151,漢字書き!$A$2:$N$502,7,0))) -> れい | J155: =IF(J151="","",IF(VLOOKUP(J151,漢字書き!$A$2:$N$502,7,0)=0,"",VLOOKUP(J151,漢字書き!$A$2:$N$502,7,0))) -> ぶ | K155: =IF(K151="","",IF(VLOOKUP(K151,漢字読み!$A$2:$O$502,7,0)=0,"",VLOOKUP(K151,漢字読み!$A$2:$O$502,7,0))) -> める | L155: =IF(L151="","",IF(VLOOKUP(L151,漢字読み!$A$2:$O$502,7,0)=0,"",VLOOKUP(L151,漢字読み!$A$2:$O$502,7,0))) ->  | M155: =IF(M151="","",IF(VLOOKUP(M151,漢字読み!$A$2:$O$502,7,0)=0,"",VLOOKUP(M151,漢字読み!$A$2:$O$502,7,0))) -> まり | N155: =IF(N151="","",IF(VLOOKUP(N151,漢字読み!$A$2:$O$502,7,0)=0,"",VLOOKUP(N151,漢字読み!$A$2:$O$502,7,0))) ->  | O155: =IF(O151="","",IF(VLOOKUP(O151,漢字読み!$A$2:$O$502,7,0)=0,"",VLOOKUP(O151,漢字読み!$A$2:$O$502,7,0))) ->  | P155: =IF(P151="","",IF(VLOOKUP(P151,漢字読み!$A$2:$O$502,7,0)=0,"",VLOOKUP(P151,漢字読み!$A$2:$O$502,7,0))) ->  | Q155: =IF(Q151="","",IF(VLOOKUP(Q151,漢字読み!$A$2:$O$502,7,0)=0,"",VLOOKUP(Q151,漢字読み!$A$2:$O$502,7,0))) -> した | R155: =IF(R151="","",IF(VLOOKUP(R151,漢字読み!$A$2:$O$502,7,0)=0,"",VLOOKUP(R151,漢字読み!$A$2:$O$502,7,0))) -> て | S155: =IF(S151="","",IF(VLOOKUP(S151,漢字読み!$A$2:$O$502,7,0)=0,"",VLOOKUP(S151,漢字読み!$A$2:$O$502,7,0))) ->  | T155: =IF(T151="","",IF(VLOOKUP(T151,漢字読み!$A$2:$O$502,7,0)=0,"",VLOOKUP(T151,漢字読み!$A$2:$O$502,7,0))) ->  | W155: 和歌山県教育委員会
A156: =A146 -> 139 | B156: 199 | C156: 2 | D156: 57 | E156: 16 | F156: 203 | G156: 31 | H156: 219 | I156: 149 | J156: 4 | K156: 194 | L156: 205 | M156: 38 | N156: 111 | O156: 36 | P156: 156 | Q156: 137 | R156: 3 | S156: 88 | T156: 68
A157: ⑳ | B157: ⑲ | C157: ⑱ | D157: ⑰ | E157: ⑯ | F157: ⑮ | G157: ⑭ | H157: ⑬ | I157: ⑫ | J157: ⑪ | K157: ⑩ | L157: ⑨ | M157: ⑧ | N157: ⑦ | O157: ⑥ | P157: ⑤ | Q157: ④ | R157: ③ | S157: ② | T157: ① | U157: 次の［ ］の部分の漢字には読みがなをひらがなで書き、カタカナは漢字に直しなさい。 | V157: 12 | W157: 「漢字の博士検定試験」練習問題
A158: =IF(A156="","",VLOOKUP(A156,漢字書き!$A$2:$N$506,6,0)) -> たねを［ウ］える | B158: =IF(B156="","",VLOOKUP(B156,漢字書き!$A$2:$N$506,6,0)) -> ［イッチャク］でゴールだ | C158: =IF(C156="","",VLOOKUP(C156,漢字書き!$A$2:$N$506,6,0)) -> ［ギン］のスプーン | D158: =IF(D156="","",VLOOKUP(D156,漢字書き!$A$2:$N$506,6,0)) -> 作業を［カイシ］する | E158: =IF(E156="","",VLOOKUP(E156,漢字書き!$A$2:$N$506,6,0)) -> ［ケイ］自どう車 | F158: =IF(F156="","",VLOOKUP(F156,漢字書き!$A$2:$N$506,6,0)) -> ［チュウモク］をあびる | G158: =IF(G156="","",VLOOKUP(G156,漢字書き!$A$2:$N$506,6,0)) -> ［ミズウミ］にうかぶ島 | H158: =IF(H156="","",VLOOKUP(H156,漢字書き!$A$2:$N$506,6,0)) -> ［ニワ］の草を引く | I158: =IF(I156="","",VLOOKUP(I156,漢字書き!$A$2:$N$506,6,0)) -> ［シンカイ］にすむ魚 | J158: =IF(J156="","",VLOOKUP(J156,漢字書き!$A$2:$N$506,6,0)) -> ［クギ］りをつける | K158: =IF(K156="","",VLOOKUP(K156,漢字読み!$A$2:$O$506,6,0)) -> 一長［一短］ある | L158: =IF(L156="","",VLOOKUP(L156,漢字読み!$A$2:$O$506,6,0)) -> ［電柱］のかげ | M158: =IF(M156="","",VLOOKUP(M156,漢字読み!$A$2:$O$506,6,0)) -> 船が［入港］する | N158: =IF(N156="","",VLOOKUP(N156,漢字読み!$A$2:$O$506,6,0)) -> ［体重］をはかる | O158: =IF(O156="","",VLOOKUP(O156,漢字読み!$A$2:$O$506,6,0)) -> ふ幸中の［幸］いだ | P158: =IF(P156="","",VLOOKUP(P156,漢字読み!$A$2:$O$506,6,0)) -> ［全体］にわたる | Q158: =IF(Q156="","",VLOOKUP(Q156,漢字読み!$A$2:$O$506,6,0)) -> ［長身］の人 | R158: =IF(R156="","",VLOOKUP(R156,漢字読み!$A$2:$O$506,6,0)) -> ［金銀］のメダル | S158: =IF(S156="","",VLOOKUP(S156,漢字読み!$A$2:$O$506,6,0)) -> ［主］な生きもの | T158: =IF(T156="","",VLOOKUP(T156,漢字読み!$A$2:$O$506,6,0)) -> ［歯］がいたむ | V158: 級
A159: =IF(A$16="","",VLOOKUP(A156,漢字書き!$A$2:$O$506,8,0)) -> 植 | B159: =IF(B$16="","",VLOOKUP(B156,漢字書き!$A$2:$O$506,8,0)) -> 一着 | C159: =IF(C$16="","",VLOOKUP(C156,漢字書き!$A$2:$O$506,8,0)) -> 銀 | D159: =IF(D$16="","",VLOOKUP(D156,漢字書き!$A$2:$O$506,8,0)) -> 開始 | E159: =IF(E$16="","",VLOOKUP(E156,漢字書き!$A$2:$O$506,8,0)) -> 軽 | F159: =IF(F$16="","",VLOOKUP(F156,漢字書き!$A$2:$O$506,8,0)) -> 注目 | G159: =IF(G$16="","",VLOOKUP(G156,漢字書き!$A$2:$O$506,8,0)) -> 湖 | H159: =IF(H$16="","",VLOOKUP(H156,漢字書き!$A$2:$O$506,8,0)) -> 庭 | I159: =IF(I$16="","",VLOOKUP(I156,漢字書き!$A$2:$O$506,8,0)) -> 深海 | J159: =IF(J$16="","",VLOOKUP(J156,漢字書き!$A$2:$O$506,8,0)) -> 区切 | K159: =IF(K$16="","",VLOOKUP(K156,漢字読み!$A$2:$O$506,8,0)) -> いったん | L159: =IF(L$16="","",VLOOKUP(L156,漢字読み!$A$2:$O$506,8,0)) -> でんちゅう | M159: =IF(M$16="","",VLOOKUP(M156,漢字読み!$A$2:$O$506,8,0)) -> にゅうこう | N159: =IF(N$16="","",VLOOKUP(N156,漢字読み!$A$2:$O$506,8,0)) -> たいじゅう | O159: =IF(O$16="","",VLOOKUP(O156,漢字読み!$A$2:$O$506,8,0)) -> さいわ | P159: =IF(P$16="","",VLOOKUP(P156,漢字読み!$A$2:$O$506,8,0)) -> ぜんたい | Q159: =IF(Q$16="","",VLOOKUP(Q156,漢字読み!$A$2:$O$506,8,0)) -> ちょうしん | R159: =IF(R$16="","",VLOOKUP(R156,漢字読み!$A$2:$O$506,8,0)) -> きんぎん | S159: =IF(S$16="","",VLOOKUP(S156,漢字読み!$A$2:$O$506,8,0)) -> おも | T159: =IF(T$16="","",VLOOKUP(T156,漢字読み!$A$2:$O$506,8,0)) -> は | V159: 名前
A160: =IF(A156="","",IF(VLOOKUP(A156,漢字書き!$A$2:$N$502,7,0)=0,"",VLOOKUP(A156,漢字書き!$A$2:$N$502,7,0))) -> える | B160: =IF(B156="","",IF(VLOOKUP(B156,漢字書き!$A$2:$N$502,7,0)=0,"",VLOOKUP(B156,漢字書き!$A$2:$N$502,7,0))) ->  | C160: =IF(C156="","",IF(VLOOKUP(C156,漢字書き!$A$2:$N$502,7,0)=0,"",VLOOKUP(C156,漢字書き!$A$2:$N$502,7,0))) ->  | D160: =IF(D156="","",IF(VLOOKUP(D156,漢字書き!$A$2:$N$502,7,0)=0,"",VLOOKUP(D156,漢字書き!$A$2:$N$502,7,0))) -> する | E160: =IF(E156="","",IF(VLOOKUP(E156,漢字書き!$A$2:$N$502,7,0)=0,"",VLOOKUP(E156,漢字書き!$A$2:$N$502,7,0))) ->  | F160: =IF(F156="","",IF(VLOOKUP(F156,漢字書き!$A$2:$N$502,7,0)=0,"",VLOOKUP(F156,漢字書き!$A$2:$N$502,7,0))) ->  | G160: =IF(G156="","",IF(VLOOKUP(G156,漢字書き!$A$2:$N$502,7,0)=0,"",VLOOKUP(G156,漢字書き!$A$2:$N$502,7,0))) ->  | H160: =IF(H156="","",IF(VLOOKUP(H156,漢字書き!$A$2:$N$502,7,0)=0,"",VLOOKUP(H156,漢字書き!$A$2:$N$502,7,0))) ->  | I160: =IF(I156="","",IF(VLOOKUP(I156,漢字書き!$A$2:$N$502,7,0)=0,"",VLOOKUP(I156,漢字書き!$A$2:$N$502,7,0))) ->  | J160: =IF(J156="","",IF(VLOOKUP(J156,漢字書き!$A$2:$N$502,7,0)=0,"",VLOOKUP(J156,漢字書き!$A$2:$N$502,7,0))) -> り | K160: =IF(K156="","",IF(VLOOKUP(K156,漢字読み!$A$2:$O$502,7,0)=0,"",VLOOKUP(K156,漢字読み!$A$2:$O$502,7,0))) ->  | L160: =IF(L156="","",IF(VLOOKUP(L156,漢字読み!$A$2:$O$502,7,0)=0,"",VLOOKUP(L156,漢字読み!$A$2:$O$502,7,0))) ->  | M160: =IF(M156="","",IF(VLOOKUP(M156,漢字読み!$A$2:$O$502,7,0)=0,"",VLOOKUP(M156,漢字読み!$A$2:$O$502,7,0))) -> する | N160: =IF(N156="","",IF(VLOOKUP(N156,漢字読み!$A$2:$O$502,7,0)=0,"",VLOOKUP(N156,漢字読み!$A$2:$O$502,7,0))) ->  | O160: =IF(O156="","",IF(VLOOKUP(O156,漢字読み!$A$2:$O$502,7,0)=0,"",VLOOKUP(O156,漢字読み!$A$2:$O$502,7,0))) -> い | P160: =IF(P156="","",IF(VLOOKUP(P156,漢字読み!$A$2:$O$502,7,0)=0,"",VLOOKUP(P156,漢字読み!$A$2:$O$502,7,0))) ->  | Q160: =IF(Q156="","",IF(VLOOKUP(Q156,漢字読み!$A$2:$O$502,7,0)=0,"",VLOOKUP(Q156,漢字読み!$A$2:$O$502,7,0))) ->  | R160: =IF(R156="","",IF(VLOOKUP(R156,漢字読み!$A$2:$O$502,7,0)=0,"",VLOOKUP(R156,漢字読み!$A$2:$O$502,7,0))) ->  | S160: =IF(S156="","",IF(VLOOKUP(S156,漢字読み!$A$2:$O$502,7,0)=0,"",VLOOKUP(S156,漢字読み!$A$2:$O$502,7,0))) -> な | T160: =IF(T156="","",IF(VLOOKUP(T156,漢字読み!$A$2:$O$502,7,0)=0,"",VLOOKUP(T156,漢字読み!$A$2:$O$502,7,0))) ->  | W160: 和歌山県教育委員会
A161: =INDIRECT("'関数（書き）'!C" & COLUMN(B$1)+SUM($AD$2:$AD162)) -> 34 | B161: =INDIRECT("'関数（書き）'!C" & COLUMN(C$1)+SUM($AD$2:$AD162)) -> 109 | C161: =INDIRECT("'関数（書き）'!C" & COLUMN(D$1)+SUM($AD$2:$AD162)) -> 88 | D161: =INDIRECT("'関数（書き）'!C" & COLUMN(E$1)+SUM($AD$2:$AD162)) -> 198 | E161: =INDIRECT("'関数（書き）'!C" & COLUMN(F$1)+SUM($AD$2:$AD162)) -> 17 | F161: =INDIRECT("'関数（書き）'!C" & COLUMN(G$1)+SUM($AD$2:$AD162)) -> 140 | G161: =INDIRECT("'関数（書き）'!C" & COLUMN(H$1)+SUM($AD$2:$AD162)) -> 210 | H161: =INDIRECT("'関数（書き）'!C" & COLUMN(I$1)+SUM($AD$2:$AD162)) -> 129 | I161: =INDIRECT("'関数（書き）'!C" & COLUMN(J$1)+SUM($AD$2:$AD162)) -> 62 | J161: =INDIRECT("'関数（書き）'!C" & COLUMN(K$1)+SUM($AD$2:$AD162)) -> 151 | K161: =INDIRECT("'関数（読み）'!C" & COLUMN(B$1)+SUM($AD$2:$AD162)) -> 42 | L161: =INDIRECT("'関数（読み）'!C" & COLUMN(C$1)+SUM($AD$2:$AD162)) -> 12 | M161: =INDIRECT("'関数（読み）'!C" & COLUMN(D$1)+SUM($AD$2:$AD162)) -> 58 | N161: =INDIRECT("'関数（読み）'!C" & COLUMN(E$1)+SUM($AD$2:$AD162)) -> 112 | O161: =INDIRECT("'関数（読み）'!C" & COLUMN(F$1)+SUM($AD$2:$AD162)) -> 155 | P161: =INDIRECT("'関数（読み）'!C" & COLUMN(G$1)+SUM($AD$2:$AD162)) -> 234 | Q161: =INDIRECT("'関数（読み）'!C" & COLUMN(H$1)+SUM($AD$2:$AD162)) -> 6 | R161: =INDIRECT("'関数（読み）'!C" & COLUMN(I$1)+SUM($AD$2:$AD162)) -> 72 | S161: =INDIRECT("'関数（読み）'!C" & COLUMN(J$1)+SUM($AD$2:$AD162)) -> 51 | T161: =INDIRECT("'関数（読み）'!C" & COLUMN(K$1)+SUM($AD$2:$AD162)) -> 22
A162: ⑳ | B162: ⑲ | C162: ⑱ | D162: ⑰ | E162: ⑯ | F162: ⑮ | G162: ⑭ | H162: ⑬ | I162: ⑫ | J162: ⑪ | K162: ⑩ | L162: ⑨ | M162: ⑧ | N162: ⑦ | O162: ⑥ | P162: ⑤ | Q162: ④ | R162: ③ | S162: ② | T162: ① | U162: 次の［ ］の部分の漢字には読みがなをひらがなで書き、カタカナは漢字に直しなさい。 | V162: 12 | W162: 「漢字の博士検定試験」練習問題 | AC162: ← | AD162: 10 | AE162: 問 | AF162: =AH147+1 -> 161 | AG162: ～ | AH162: =SUM($AD$2:$AD162)+10 -> 170 | AI162: 問まで | AJ162: =COUNTIF($A$1:$T$200,T163) -> 2
A163: =IF(A161="","",VLOOKUP(A161,漢字書き!$A$2:$N$506,6,0)) -> 北を［ム］く | B163: =IF(B161="","",VLOOKUP(B161,漢字書き!$A$2:$N$506,6,0)) -> ［シュウゴウ］する場所 | C163: =IF(C161="","",VLOOKUP(C161,漢字書き!$A$2:$N$506,6,0)) -> 宝を［シシュ］する | D163: =IF(D161="","",VLOOKUP(D161,漢字書き!$A$2:$N$506,6,0)) -> じょう［ダン］を言う | E163: =IF(E161="","",VLOOKUP(E161,漢字書き!$A$2:$N$506,6,0)) -> ［ケイ］かいなステップ | F163: =IF(F161="","",VLOOKUP(F161,漢字書き!$A$2:$N$506,6,0)) -> ［モウ］しこみ用紙 | G163: =IF(G161="","",VLOOKUP(G161,漢字書き!$A$2:$N$506,6,0)) -> れんらく［チョウ］ | H163: =IF(H161="","",VLOOKUP(H161,漢字書き!$A$2:$N$506,6,0)) -> 火が［キ］える | I163: =IF(I161="","",VLOOKUP(I161,漢字書き!$A$2:$N$506,6,0)) -> 南を［サ］す | J163: =IF(J161="","",VLOOKUP(J161,漢字書き!$A$2:$N$506,6,0)) -> うたがいが［フカ］まる | K163: =IF(K161="","",VLOOKUP(K161,漢字読み!$A$2:$O$506,6,0)) -> メイフラワー［号］に乗る | L163: =IF(L161="","",VLOOKUP(L161,漢字読み!$A$2:$O$506,6,0)) -> 国家の［君主］ | M163: =IF(M161="","",VLOOKUP(M161,漢字読み!$A$2:$O$506,6,0)) -> テストを［開始］する | N163: =IF(N161="","",VLOOKUP(N161,漢字読み!$A$2:$O$506,6,0)) -> 行事が［重］なる | O163: =IF(O161="","",VLOOKUP(O161,漢字読み!$A$2:$O$506,6,0)) -> ［昔］のくらし | P163: =IF(P161="","",VLOOKUP(P161,漢字読み!$A$2:$O$506,6,0)) -> ［都会］でくらす | Q163: =IF(Q161="","",VLOOKUP(Q161,漢字読み!$A$2:$O$506,6,0)) -> ［苦］は楽のたね | R163: =IF(R161="","",VLOOKUP(R161,漢字読み!$A$2:$O$506,6,0)) -> ［目次］からさがす | S163: =IF(S161="","",VLOOKUP(S161,漢字読み!$A$2:$O$506,6,0)) -> 王さまに［仕］える | T163: =IF(T161="","",VLOOKUP(T161,漢字読み!$A$2:$O$506,6,0)) -> 新年の［決意］ | V163: 級
V164: 名前
A165: =IF(A161="","",IF(VLOOKUP(A161,漢字書き!$A$2:$N$502,7,0)=0,"",VLOOKUP(A161,漢字書き!$A$2:$N$502,7,0))) -> く | B165: =IF(B161="","",IF(VLOOKUP(B161,漢字書き!$A$2:$N$502,7,0)=0,"",VLOOKUP(B161,漢字書き!$A$2:$N$502,7,0))) -> する | C165: =IF(C161="","",IF(VLOOKUP(C161,漢字書き!$A$2:$N$502,7,0)=0,"",VLOOKUP(C161,漢字書き!$A$2:$N$502,7,0))) -> する | D165: =IF(D161="","",IF(VLOOKUP(D161,漢字書き!$A$2:$N$502,7,0)=0,"",VLOOKUP(D161,漢字書き!$A$2:$N$502,7,0))) ->  | E165: =IF(E161="","",IF(VLOOKUP(E161,漢字書き!$A$2:$N$502,7,0)=0,"",VLOOKUP(E161,漢字書き!$A$2:$N$502,7,0))) -> かいな | F165: =IF(F161="","",IF(VLOOKUP(F161,漢字書き!$A$2:$N$502,7,0)=0,"",VLOOKUP(F161,漢字書き!$A$2:$N$502,7,0))) -> しこみ | G165: =IF(G161="","",IF(VLOOKUP(G161,漢字書き!$A$2:$N$502,7,0)=0,"",VLOOKUP(G161,漢字書き!$A$2:$N$502,7,0))) ->  | H165: =IF(H161="","",IF(VLOOKUP(H161,漢字書き!$A$2:$N$502,7,0)=0,"",VLOOKUP(H161,漢字書き!$A$2:$N$502,7,0))) -> える | I165: =IF(I161="","",IF(VLOOKUP(I161,漢字書き!$A$2:$N$502,7,0)=0,"",VLOOKUP(I161,漢字書き!$A$2:$N$502,7,0))) -> す | J165: =IF(J161="","",IF(VLOOKUP(J161,漢字書き!$A$2:$N$502,7,0)=0,"",VLOOKUP(J161,漢字書き!$A$2:$N$502,7,0))) -> まる | K165: =IF(K161="","",IF(VLOOKUP(K161,漢字読み!$A$2:$O$502,7,0)=0,"",VLOOKUP(K161,漢字読み!$A$2:$O$502,7,0))) ->  | L165: =IF(L161="","",IF(VLOOKUP(L161,漢字読み!$A$2:$O$502,7,0)=0,"",VLOOKUP(L161,漢字読み!$A$2:$O$502,7,0))) ->  | M165: =IF(M161="","",IF(VLOOKUP(M161,漢字読み!$A$2:$O$502,7,0)=0,"",VLOOKUP(M161,漢字読み!$A$2:$O$502,7,0))) -> する | N165: =IF(N161="","",IF(VLOOKUP(N161,漢字読み!$A$2:$O$502,7,0)=0,"",VLOOKUP(N161,漢字読み!$A$2:$O$502,7,0))) -> なる | O165: =IF(O161="","",IF(VLOOKUP(O161,漢字読み!$A$2:$O$502,7,0)=0,"",VLOOKUP(O161,漢字読み!$A$2:$O$502,7,0))) ->  | P165: =IF(P161="","",IF(VLOOKUP(P161,漢字読み!$A$2:$O$502,7,0)=0,"",VLOOKUP(P161,漢字読み!$A$2:$O$502,7,0))) ->  | Q165: =IF(Q161="","",IF(VLOOKUP(Q161,漢字読み!$A$2:$O$502,7,0)=0,"",VLOOKUP(Q161,漢字読み!$A$2:$O$502,7,0))) ->  | R165: =IF(R161="","",IF(VLOOKUP(R161,漢字読み!$A$2:$O$502,7,0)=0,"",VLOOKUP(R161,漢字読み!$A$2:$O$502,7,0))) ->  | S165: =IF(S161="","",IF(VLOOKUP(S161,漢字読み!$A$2:$O$502,7,0)=0,"",VLOOKUP(S161,漢字読み!$A$2:$O$502,7,0))) -> える | T165: =IF(T161="","",IF(VLOOKUP(T161,漢字読み!$A$2:$O$502,7,0)=0,"",VLOOKUP(T161,漢字読み!$A$2:$O$502,7,0))) ->  | W165: 和歌山県教育委員会
A166: =INDIRECT("'関数（書き）'!C" & COLUMN(B$1)+SUM($AD$2:$AD167)) -> 230 | B166: =INDIRECT("'関数（書き）'!C" & COLUMN(C$1)+SUM($AD$2:$AD167)) -> 172 | C166: =INDIRECT("'関数（書き）'!C" & COLUMN(D$1)+SUM($AD$2:$AD167)) -> 83 | D166: =INDIRECT("'関数（書き）'!C" & COLUMN(E$1)+SUM($AD$2:$AD167)) -> 81 | E166: =INDIRECT("'関数（書き）'!C" & COLUMN(F$1)+SUM($AD$2:$AD167)) -> 56 | F166: =INDIRECT("'関数（書き）'!C" & COLUMN(G$1)+SUM($AD$2:$AD167)) -> 23 | G166: =INDIRECT("'関数（書き）'!C" & COLUMN(H$1)+SUM($AD$2:$AD167)) -> 209 | H166: =INDIRECT("'関数（書き）'!C" & COLUMN(I$1)+SUM($AD$2:$AD167)) -> 61 | I166: =INDIRECT("'関数（書き）'!C" & COLUMN(J$1)+SUM($AD$2:$AD167)) -> 163 | J166: =INDIRECT("'関数（書き）'!C" & COLUMN(K$1)+SUM($AD$2:$AD167)) -> 115 | K166: =INDIRECT("'関数（読み）'!C" & COLUMN(B$1)+SUM($AD$2:$AD167)) -> 65 | L166: =INDIRECT("'関数（読み）'!C" & COLUMN(C$1)+SUM($AD$2:$AD167)) -> 4 | M166: =INDIRECT("'関数（読み）'!C" & COLUMN(D$1)+SUM($AD$2:$AD167)) -> 101 | N166: =INDIRECT("'関数（読み）'!C" & COLUMN(E$1)+SUM($AD$2:$AD167)) -> 46 | O166: =INDIRECT("'関数（読み）'!C" & COLUMN(F$1)+SUM($AD$2:$AD167)) -> 118 | P166: =INDIRECT("'関数（読み）'!C" & COLUMN(G$1)+SUM($AD$2:$AD167)) -> 132 | Q166: =INDIRECT("'関数（読み）'!C" & COLUMN(H$1)+SUM($AD$2:$AD167)) -> 191 | R166: =INDIRECT("'関数（読み）'!C" & COLUMN(I$1)+SUM($AD$2:$AD167)) -> 69 | S166: =INDIRECT("'関数（読み）'!C" & COLUMN(J$1)+SUM($AD$2:$AD167)) -> 21 | T166: =INDIRECT("'関数（読み）'!C" & COLUMN(K$1)+SUM($AD$2:$AD167)) -> 116
A167: ⑳ | B167: ⑲ | C167: ⑱ | D167: ⑰ | E167: ⑯ | F167: ⑮ | G167: ⑭ | H167: ⑬ | I167: ⑫ | J167: ⑪ | K167: ⑩ | L167: ⑨ | M167: ⑧ | N167: ⑦ | O167: ⑥ | P167: ⑤ | Q167: ④ | R167: ③ | S167: ② | T167: ① | U167: 次の［ ］の部分の漢字には読みがなをひらがなで書き、カタカナは漢字に直しなさい。 | V167: 12 | W167: 「漢字の博士検定試験」練習問題 | AC167: ← | AD167: 10 | AE167: 問 | AF167: =AH162+1 -> 171 | AG167: ～ | AH167: =SUM($AD$2:$AD167)+10 -> 180 | AI167: 問まで | AJ167: =COUNTIF($A$1:$T$200,T168) -> 2
A168: =IF(A166="","",VLOOKUP(A166,漢字書き!$A$2:$N$506,6,0)) -> 花の［ミヤコ］、パリ | B168: =IF(B166="","",VLOOKUP(B166,漢字書き!$A$2:$N$506,6,0)) -> 車の［ソクド］ | C168: =IF(C166="","",VLOOKUP(C166,漢字書き!$A$2:$N$506,6,0)) -> ［ガクシャ］になる | D168: =IF(D166="","",VLOOKUP(D166,漢字書き!$A$2:$N$506,6,0)) -> ［ショシャ］の時間 | E168: =IF(E166="","",VLOOKUP(E166,漢字書き!$A$2:$N$506,6,0)) -> 道具を［ツカ］う | F168: =IF(F166="","",VLOOKUP(F166,漢字書き!$A$2:$N$506,6,0)) -> やめようと［ケツイ］する | G168: =IF(G166="","",VLOOKUP(G166,漢字書き!$A$2:$N$506,6,0)) -> ほう［チョウ］で切る | H168: =IF(H166="","",VLOOKUP(H166,漢字書き!$A$2:$N$506,6,0)) -> ［オヤユビ］ひめ | I168: =IF(I166="","",VLOOKUP(I166,漢字書き!$A$2:$N$506,6,0)) -> ［スベ］てなくなる | J168: =IF(J166="","",VLOOKUP(J166,漢字書き!$A$2:$N$506,6,0)) -> ［オモ］たいかばん | K168: =IF(K166="","",VLOOKUP(K166,漢字読み!$A$2:$O$506,6,0)) -> ［歯科］けんしんの時間 | L168: =IF(L166="","",VLOOKUP(L166,漢字読み!$A$2:$O$506,6,0)) -> ［地区］のそうじ | M168: =IF(M166="","",VLOOKUP(M166,漢字読み!$A$2:$O$506,6,0)) -> 宿題を［終］える | N168: =IF(N166="","",VLOOKUP(N166,漢字読み!$A$2:$O$506,6,0)) -> ［体育祭］の行事 | O168: =IF(O166="","",VLOOKUP(O166,漢字読み!$A$2:$O$506,6,0)) -> たえられない［暑］さ | P168: =IF(P166="","",VLOOKUP(P166,漢字読み!$A$2:$O$506,6,0)) -> 船に［乗］る | Q168: =IF(Q166="","",VLOOKUP(Q166,漢字読み!$A$2:$O$506,6,0)) -> ［問題］がむずかしい | R168: =IF(R166="","",VLOOKUP(R166,漢字読み!$A$2:$O$506,6,0)) -> 長い［詩］を読む | S168: =IF(S166="","",VLOOKUP(S166,漢字読み!$A$2:$O$506,6,0)) -> ［決心］をする | T168: =IF(T166="","",VLOOKUP(T166,漢字読み!$A$2:$O$506,6,0)) -> すてきな［台所］ | V168: 級
V169: 名前
A170: =IF(A166="","",IF(VLOOKUP(A166,漢字書き!$A$2:$N$502,7,0)=0,"",VLOOKUP(A166,漢字書き!$A$2:$N$502,7,0))) ->  | B170: =IF(B166="","",IF(VLOOKUP(B166,漢字書き!$A$2:$N$502,7,0)=0,"",VLOOKUP(B166,漢字書き!$A$2:$N$502,7,0))) ->  | C170: =IF(C166="","",IF(VLOOKUP(C166,漢字書き!$A$2:$N$502,7,0)=0,"",VLOOKUP(C166,漢字書き!$A$2:$N$502,7,0))) ->  | D170: =IF(D166="","",IF(VLOOKUP(D166,漢字書き!$A$2:$N$502,7,0)=0,"",VLOOKUP(D166,漢字書き!$A$2:$N$502,7,0))) ->  | E170: =IF(E166="","",IF(VLOOKUP(E166,漢字書き!$A$2:$N$502,7,0)=0,"",VLOOKUP(E166,漢字書き!$A$2:$N$502,7,0))) -> う | F170: =IF(F166="","",IF(VLOOKUP(F166,漢字書き!$A$2:$N$502,7,0)=0,"",VLOOKUP(F166,漢字書き!$A$2:$N$502,7,0))) -> する | G170: =IF(G166="","",IF(VLOOKUP(G166,漢字書き!$A$2:$N$502,7,0)=0,"",VLOOKUP(G166,漢字書き!$A$2:$N$502,7,0))) ->  | H170: =IF(H166="","",IF(VLOOKUP(H166,漢字書き!$A$2:$N$502,7,0)=0,"",VLOOKUP(H166,漢字書き!$A$2:$N$502,7,0))) -> ひめ | I170: =IF(I166="","",IF(VLOOKUP(I166,漢字書き!$A$2:$N$502,7,0)=0,"",VLOOKUP(I166,漢字書き!$A$2:$N$502,7,0))) -> て | J170: =IF(J166="","",IF(VLOOKUP(J166,漢字書き!$A$2:$N$502,7,0)=0,"",VLOOKUP(J166,漢字書き!$A$2:$N$502,7,0))) -> たい | K170: =IF(K166="","",IF(VLOOKUP(K166,漢字読み!$A$2:$O$502,7,0)=0,"",VLOOKUP(K166,漢字読み!$A$2:$O$502,7,0))) ->  | L170: =IF(L166="","",IF(VLOOKUP(L166,漢字読み!$A$2:$O$502,7,0)=0,"",VLOOKUP(L166,漢字読み!$A$2:$O$502,7,0))) ->  | M170: =IF(M166="","",IF(VLOOKUP(M166,漢字読み!$A$2:$O$502,7,0)=0,"",VLOOKUP(M166,漢字読み!$A$2:$O$502,7,0))) -> える | N170: =IF(N166="","",IF(VLOOKUP(N166,漢字読み!$A$2:$O$502,7,0)=0,"",VLOOKUP(N166,漢字読み!$A$2:$O$502,7,0))) ->  | O170: =IF(O166="","",IF(VLOOKUP(O166,漢字読み!$A$2:$O$502,7,0)=0,"",VLOOKUP(O166,漢字読み!$A$2:$O$502,7,0))) -> さ | P170: =IF(P166="","",IF(VLOOKUP(P166,漢字読み!$A$2:$O$502,7,0)=0,"",VLOOKUP(P166,漢字読み!$A$2:$O$502,7,0))) -> る | Q170: =IF(Q166="","",IF(VLOOKUP(Q166,漢字読み!$A$2:$O$502,7,0)=0,"",VLOOKUP(Q166,漢字読み!$A$2:$O$502,7,0))) ->  | R170: =IF(R166="","",IF(VLOOKUP(R166,漢字読み!$A$2:$O$502,7,0)=0,"",VLOOKUP(R166,漢字読み!$A$2:$O$502,7,0))) ->  | S170: =IF(S166="","",IF(VLOOKUP(S166,漢字読み!$A$2:$O$502,7,0)=0,"",VLOOKUP(S166,漢字読み!$A$2:$O$502,7,0))) ->  | T170: =IF(T166="","",IF(VLOOKUP(T166,漢字読み!$A$2:$O$502,7,0)=0,"",VLOOKUP(T166,漢字読み!$A$2:$O$502,7,0))) ->  | W170: 和歌山県教育委員会
A171: =A161 -> 34 | B171: 109 | C171: 88 | D171: 198 | E171: 17 | F171: 140 | G171: 210 | H171: 129 | I171: 62 | J171: 151 | K171: 42 | L171: 12 | M171: 58 | N171: 112 | O171: 155 | P171: 234 | Q171: 6 | R171: 72 | S171: 51 | T171: 22
A172: ⑳ | B172: ⑲ | C172: ⑱ | D172: ⑰ | E172: ⑯ | F172: ⑮ | G172: ⑭ | H172: ⑬ | I172: ⑫ | J172: ⑪ | K172: ⑩ | L172: ⑨ | M172: ⑧ | N172: ⑦ | O172: ⑥ | P172: ⑤ | Q172: ④ | R172: ③ | S172: ② | T172: ① | U172: 次の［ ］の部分の漢字には読みがなをひらがなで書き、カタカナは漢字に直しなさい。 | V172: 12 | W172: 「漢字の博士検定試験」練習問題
A173: =IF(A171="","",VLOOKUP(A171,漢字書き!$A$2:$N$506,6,0)) -> 北を［ム］く | B173: =IF(B171="","",VLOOKUP(B171,漢字書き!$A$2:$N$506,6,0)) -> ［シュウゴウ］する場所 | C173: =IF(C171="","",VLOOKUP(C171,漢字書き!$A$2:$N$506,6,0)) -> 宝を［シシュ］する | D173: =IF(D171="","",VLOOKUP(D171,漢字書き!$A$2:$N$506,6,0)) -> じょう［ダン］を言う | E173: =IF(E171="","",VLOOKUP(E171,漢字書き!$A$2:$N$506,6,0)) -> ［ケイ］かいなステップ | F173: =IF(F171="","",VLOOKUP(F171,漢字書き!$A$2:$N$506,6,0)) -> ［モウ］しこみ用紙 | G173: =IF(G171="","",VLOOKUP(G171,漢字書き!$A$2:$N$506,6,0)) -> れんらく［チョウ］ | H173: =IF(H171="","",VLOOKUP(H171,漢字書き!$A$2:$N$506,6,0)) -> 火が［キ］える | I173: =IF(I171="","",VLOOKUP(I171,漢字書き!$A$2:$N$506,6,0)) -> 南を［サ］す | J173: =IF(J171="","",VLOOKUP(J171,漢字書き!$A$2:$N$506,6,0)) -> うたがいが［フカ］まる | K173: =IF(K171="","",VLOOKUP(K171,漢字読み!$A$2:$O$506,6,0)) -> メイフラワー［号］に乗る | L173: =IF(L171="","",VLOOKUP(L171,漢字読み!$A$2:$O$506,6,0)) -> 国家の［君主］ | M173: =IF(M171="","",VLOOKUP(M171,漢字読み!$A$2:$O$506,6,0)) -> テストを［開始］する | N173: =IF(N171="","",VLOOKUP(N171,漢字読み!$A$2:$O$506,6,0)) -> 行事が［重］なる | O173: =IF(O171="","",VLOOKUP(O171,漢字読み!$A$2:$O$506,6,0)) -> ［昔］のくらし | P173: =IF(P171="","",VLOOKUP(P171,漢字読み!$A$2:$O$506,6,0)) -> ［都会］でくらす | Q173: =IF(Q171="","",VLOOKUP(Q171,漢字読み!$A$2:$O$506,6,0)) -> ［苦］は楽のたね | R173: =IF(R171="","",VLOOKUP(R171,漢字読み!$A$2:$O$506,6,0)) -> ［目次］からさがす | S173: =IF(S171="","",VLOOKUP(S171,漢字読み!$A$2:$O$506,6,0)) -> 王さまに［仕］える | T173: =IF(T171="","",VLOOKUP(T171,漢字読み!$A$2:$O$506,6,0)) -> 新年の［決意］ | V173: 級
A174: =IF(A$11="","",VLOOKUP(A171,漢字書き!$A$2:$O$506,8,0)) -> 向 | B174: =IF(B$11="","",VLOOKUP(B171,漢字書き!$A$2:$O$506,8,0)) -> 集合 | C174: =IF(C$11="","",VLOOKUP(C171,漢字書き!$A$2:$O$506,8,0)) -> 死守 | D174: =IF(D$11="","",VLOOKUP(D171,漢字書き!$A$2:$O$506,8,0)) -> 談 | E174: =IF(E$11="","",VLOOKUP(E171,漢字書き!$A$2:$O$506,8,0)) -> 軽 | F174: =IF(F$11="","",VLOOKUP(F171,漢字書き!$A$2:$O$506,8,0)) -> 申 | G174: =IF(G$11="","",VLOOKUP(G171,漢字書き!$A$2:$O$506,8,0)) -> 帳 | H174: =IF(H$11="","",VLOOKUP(H171,漢字書き!$A$2:$O$506,8,0)) -> 消 | I174: =IF(I$11="","",VLOOKUP(I171,漢字書き!$A$2:$O$506,8,0)) -> 指 | J174: =IF(J$11="","",VLOOKUP(J171,漢字書き!$A$2:$O$506,8,0)) -> 深 | K174: =IF(K$11="","",VLOOKUP(K171,漢字読み!$A$2:$O$506,8,0)) -> ごう | L174: =IF(L$11="","",VLOOKUP(L171,漢字読み!$A$2:$O$506,8,0)) -> くんしゅ | M174: =IF(M$11="","",VLOOKUP(M171,漢字読み!$A$2:$O$506,8,0)) -> かいし | N174: =IF(N$11="","",VLOOKUP(N171,漢字読み!$A$2:$O$506,8,0)) -> かさ | O174: =IF(O$11="","",VLOOKUP(O171,漢字読み!$A$2:$O$506,8,0)) -> むかし | P174: =IF(P$11="","",VLOOKUP(P171,漢字読み!$A$2:$O$506,8,0)) -> とかい | Q174: =IF(Q$11="","",VLOOKUP(Q171,漢字読み!$A$2:$O$506,8,0)) -> く | R174: =IF(R$11="","",VLOOKUP(R171,漢字読み!$A$2:$O$506,8,0)) -> もくじ | S174: =IF(S$11="","",VLOOKUP(S171,漢字読み!$A$2:$O$506,8,0)) -> つか | T174: =IF(T$11="","",VLOOKUP(T171,漢字読み!$A$2:$O$506,8,0)) -> けつい | V174: 名前
A175: =IF(A171="","",IF(VLOOKUP(A171,漢字書き!$A$2:$N$502,7,0)=0,"",VLOOKUP(A171,漢字書き!$A$2:$N$502,7,0))) -> く | B175: =IF(B171="","",IF(VLOOKUP(B171,漢字書き!$A$2:$N$502,7,0)=0,"",VLOOKUP(B171,漢字書き!$A$2:$N$502,7,0))) -> する | C175: =IF(C171="","",IF(VLOOKUP(C171,漢字書き!$A$2:$N$502,7,0)=0,"",VLOOKUP(C171,漢字書き!$A$2:$N$502,7,0))) -> する | D175: =IF(D171="","",IF(VLOOKUP(D171,漢字書き!$A$2:$N$502,7,0)=0,"",VLOOKUP(D171,漢字書き!$A$2:$N$502,7,0))) ->  | E175: =IF(E171="","",IF(VLOOKUP(E171,漢字書き!$A$2:$N$502,7,0)=0,"",VLOOKUP(E171,漢字書き!$A$2:$N$502,7,0))) -> かいな | F175: =IF(F171="","",IF(VLOOKUP(F171,漢字書き!$A$2:$N$502,7,0)=0,"",VLOOKUP(F171,漢字書き!$A$2:$N$502,7,0))) -> しこみ | G175: =IF(G171="","",IF(VLOOKUP(G171,漢字書き!$A$2:$N$502,7,0)=0,"",VLOOKUP(G171,漢字書き!$A$2:$N$502,7,0))) ->  | H175: =IF(H171="","",IF(VLOOKUP(H171,漢字書き!$A$2:$N$502,7,0)=0,"",VLOOKUP(H171,漢字書き!$A$2:$N$502,7,0))) -> える | I175: =IF(I171="","",IF(VLOOKUP(I171,漢字書き!$A$2:$N$502,7,0)=0,"",VLOOKUP(I171,漢字書き!$A$2:$N$502,7,0))) -> す | J175: =IF(J171="","",IF(VLOOKUP(J171,漢字書き!$A$2:$N$502,7,0)=0,"",VLOOKUP(J171,漢字書き!$A$2:$N$502,7,0))) -> まる | K175: =IF(K171="","",IF(VLOOKUP(K171,漢字読み!$A$2:$O$502,7,0)=0,"",VLOOKUP(K171,漢字読み!$A$2:$O$502,7,0))) ->  | L175: =IF(L171="","",IF(VLOOKUP(L171,漢字読み!$A$2:$O$502,7,0)=0,"",VLOOKUP(L171,漢字読み!$A$2:$O$502,7,0))) ->  | M175: =IF(M171="","",IF(VLOOKUP(M171,漢字読み!$A$2:$O$502,7,0)=0,"",VLOOKUP(M171,漢字読み!$A$2:$O$502,7,0))) -> する | N175: =IF(N171="","",IF(VLOOKUP(N171,漢字読み!$A$2:$O$502,7,0)=0,"",VLOOKUP(N171,漢字読み!$A$2:$O$502,7,0))) -> なる | O175: =IF(O171="","",IF(VLOOKUP(O171,漢字読み!$A$2:$O$502,7,0)=0,"",VLOOKUP(O171,漢字読み!$A$2:$O$502,7,0))) ->  | P175: =IF(P171="","",IF(VLOOKUP(P171,漢字読み!$A$2:$O$502,7,0)=0,"",VLOOKUP(P171,漢字読み!$A$2:$O$502,7,0))) ->  | Q175: =IF(Q171="","",IF(VLOOKUP(Q171,漢字読み!$A$2:$O$502,7,0)=0,"",VLOOKUP(Q171,漢字読み!$A$2:$O$502,7,0))) ->  | R175: =IF(R171="","",IF(VLOOKUP(R171,漢字読み!$A$2:$O$502,7,0)=0,"",VLOOKUP(R171,漢字読み!$A$2:$O$502,7,0))) ->  | S175: =IF(S171="","",IF(VLOOKUP(S171,漢字読み!$A$2:$O$502,7,0)=0,"",VLOOKUP(S171,漢字読み!$A$2:$O$502,7,0))) -> える | T175: =IF(T171="","",IF(VLOOKUP(T171,漢字読み!$A$2:$O$502,7,0)=0,"",VLOOKUP(T171,漢字読み!$A$2:$O$502,7,0))) ->  | W175: 和歌山県教育委員会
A176: =A166 -> 230 | B176: 172 | C176: 83 | D176: 81 | E176: 56 | F176: 23 | G176: 209 | H176: 61 | I176: 163 | J176: 115 | K176: 65 | L176: 4 | M176: 101 | N176: 46 | O176: 118 | P176: 132 | Q176: 191 | R176: 69 | S176: 21 | T176: 116
A177: ⑳ | B177: ⑲ | C177: ⑱ | D177: ⑰ | E177: ⑯ | F177: ⑮ | G177: ⑭ | H177: ⑬ | I177: ⑫ | J177: ⑪ | K177: ⑩ | L177: ⑨ | M177: ⑧ | N177: ⑦ | O177: ⑥ | P177: ⑤ | Q177: ④ | R177: ③ | S177: ② | T177: ① | U177: 次の［ ］の部分の漢字には読みがなをひらがなで書き、カタカナは漢字に直しなさい。 | V177: 12 | W177: 「漢字の博士検定試験」練習問題
A178: =IF(A176="","",VLOOKUP(A176,漢字書き!$A$2:$N$506,6,0)) -> 花の［ミヤコ］、パリ | B178: =IF(B176="","",VLOOKUP(B176,漢字書き!$A$2:$N$506,6,0)) -> 車の［ソクド］ | C178: =IF(C176="","",VLOOKUP(C176,漢字書き!$A$2:$N$506,6,0)) -> ［ガクシャ］になる | D178: =IF(D176="","",VLOOKUP(D176,漢字書き!$A$2:$N$506,6,0)) -> ［ショシャ］の時間 | E178: =IF(E176="","",VLOOKUP(E176,漢字書き!$A$2:$N$506,6,0)) -> 道具を［ツカ］う | F178: =IF(F176="","",VLOOKUP(F176,漢字書き!$A$2:$N$506,6,0)) -> やめようと［ケツイ］する | G178: =IF(G176="","",VLOOKUP(G176,漢字書き!$A$2:$N$506,6,0)) -> ほう［チョウ］で切る | H178: =IF(H176="","",VLOOKUP(H176,漢字書き!$A$2:$N$506,6,0)) -> ［オヤユビ］ひめ | I178: =IF(I176="","",VLOOKUP(I176,漢字書き!$A$2:$N$506,6,0)) -> ［スベ］てなくなる | J178: =IF(J176="","",VLOOKUP(J176,漢字書き!$A$2:$N$506,6,0)) -> ［オモ］たいかばん | K178: =IF(K176="","",VLOOKUP(K176,漢字読み!$A$2:$O$506,6,0)) -> ［歯科］けんしんの時間 | L178: =IF(L176="","",VLOOKUP(L176,漢字読み!$A$2:$O$506,6,0)) -> ［地区］のそうじ | M178: =IF(M176="","",VLOOKUP(M176,漢字読み!$A$2:$O$506,6,0)) -> 宿題を［終］える | N178: =IF(N176="","",VLOOKUP(N176,漢字読み!$A$2:$O$506,6,0)) -> ［体育祭］の行事 | O178: =IF(O176="","",VLOOKUP(O176,漢字読み!$A$2:$O$506,6,0)) -> たえられない［暑］さ | P178: =IF(P176="","",VLOOKUP(P176,漢字読み!$A$2:$O$506,6,0)) -> 船に［乗］る | Q178: =IF(Q176="","",VLOOKUP(Q176,漢字読み!$A$2:$O$506,6,0)) -> ［問題］がむずかしい | R178: =IF(R176="","",VLOOKUP(R176,漢字読み!$A$2:$O$506,6,0)) -> 長い［詩］を読む | S178: =IF(S176="","",VLOOKUP(S176,漢字読み!$A$2:$O$506,6,0)) -> ［決心］をする | T178: =IF(T176="","",VLOOKUP(T176,漢字読み!$A$2:$O$506,6,0)) -> すてきな［台所］ | V178: 級
A179: =IF(A$16="","",VLOOKUP(A176,漢字書き!$A$2:$O$506,8,0)) -> 都 | B179: =IF(B$16="","",VLOOKUP(B176,漢字書き!$A$2:$O$506,8,0)) -> 速度 | C179: =IF(C$16="","",VLOOKUP(C176,漢字書き!$A$2:$O$506,8,0)) -> 学者 | D179: =IF(D$16="","",VLOOKUP(D176,漢字書き!$A$2:$O$506,8,0)) -> 書写 | E179: =IF(E$16="","",VLOOKUP(E176,漢字書き!$A$2:$O$506,8,0)) -> 使 | F179: =IF(F$16="","",VLOOKUP(F176,漢字書き!$A$2:$O$506,8,0)) -> 決意 | G179: =IF(G$16="","",VLOOKUP(G176,漢字書き!$A$2:$O$506,8,0)) -> 丁 | H179: =IF(H$16="","",VLOOKUP(H176,漢字書き!$A$2:$O$506,8,0)) -> 親指 | I179: =IF(I$16="","",VLOOKUP(I176,漢字書き!$A$2:$O$506,8,0)) -> 全 | J179: =IF(J$16="","",VLOOKUP(J176,漢字書き!$A$2:$O$506,8,0)) -> 重 | K179: =IF(K$16="","",VLOOKUP(K176,漢字読み!$A$2:$O$506,8,0)) -> しか | L179: =IF(L$16="","",VLOOKUP(L176,漢字読み!$A$2:$O$506,8,0)) -> ちく | M179: =IF(M$16="","",VLOOKUP(M176,漢字読み!$A$2:$O$506,8,0)) -> お | N179: =IF(N$16="","",VLOOKUP(N176,漢字読み!$A$2:$O$506,8,0)) -> たいいくさい | O179: =IF(O$16="","",VLOOKUP(O176,漢字読み!$A$2:$O$506,8,0)) -> あつ | P179: =IF(P$16="","",VLOOKUP(P176,漢字読み!$A$2:$O$506,8,0)) -> の | Q179: =IF(Q$16="","",VLOOKUP(Q176,漢字読み!$A$2:$O$506,8,0)) -> もんだい | R179: =IF(R$16="","",VLOOKUP(R176,漢字読み!$A$2:$O$506,8,0)) -> し | S179: =IF(S$16="","",VLOOKUP(S176,漢字読み!$A$2:$O$506,8,0)) -> けっしん | T179: =IF(T$16="","",VLOOKUP(T176,漢字読み!$A$2:$O$506,8,0)) -> だいどころ | V179: 名前
A180: =IF(A176="","",IF(VLOOKUP(A176,漢字書き!$A$2:$N$502,7,0)=0,"",VLOOKUP(A176,漢字書き!$A$2:$N$502,7,0))) ->  | B180: =IF(B176="","",IF(VLOOKUP(B176,漢字書き!$A$2:$N$502,7,0)=0,"",VLOOKUP(B176,漢字書き!$A$2:$N$502,7,0))) ->  | C180: =IF(C176="","",IF(VLOOKUP(C176,漢字書き!$A$2:$N$502,7,0)=0,"",VLOOKUP(C176,漢字書き!$A$2:$N$502,7,0))) ->  | D180: =IF(D176="","",IF(VLOOKUP(D176,漢字書き!$A$2:$N$502,7,0)=0,"",VLOOKUP(D176,漢字書き!$A$2:$N$502,7,0))) ->  | E180: =IF(E176="","",IF(VLOOKUP(E176,漢字書き!$A$2:$N$502,7,0)=0,"",VLOOKUP(E176,漢字書き!$A$2:$N$502,7,0))) -> う | F180: =IF(F176="","",IF(VLOOKUP(F176,漢字書き!$A$2:$N$502,7,0)=0,"",VLOOKUP(F176,漢字書き!$A$2:$N$502,7,0))) -> する | G180: =IF(G176="","",IF(VLOOKUP(G176,漢字書き!$A$2:$N$502,7,0)=0,"",VLOOKUP(G176,漢字書き!$A$2:$N$502,7,0))) ->  | H180: =IF(H176="","",IF(VLOOKUP(H176,漢字書き!$A$2:$N$502,7,0)=0,"",VLOOKUP(H176,漢字書き!$A$2:$N$502,7,0))) -> ひめ | I180: =IF(I176="","",IF(VLOOKUP(I176,漢字書き!$A$2:$N$502,7,0)=0,"",VLOOKUP(I176,漢字書き!$A$2:$N$502,7,0))) -> て | J180: =IF(J176="","",IF(VLOOKUP(J176,漢字書き!$A$2:$N$502,7,0)=0,"",VLOOKUP(J176,漢字書き!$A$2:$N$502,7,0))) -> たい | K180: =IF(K176="","",IF(VLOOKUP(K176,漢字読み!$A$2:$O$502,7,0)=0,"",VLOOKUP(K176,漢字読み!$A$2:$O$502,7,0))) ->  | L180: =IF(L176="","",IF(VLOOKUP(L176,漢字読み!$A$2:$O$502,7,0)=0,"",VLOOKUP(L176,漢字読み!$A$2:$O$502,7,0))) ->  | M180: =IF(M176="","",IF(VLOOKUP(M176,漢字読み!$A$2:$O$502,7,0)=0,"",VLOOKUP(M176,漢字読み!$A$2:$O$502,7,0))) -> える | N180: =IF(N176="","",IF(VLOOKUP(N176,漢字読み!$A$2:$O$502,7,0)=0,"",VLOOKUP(N176,漢字読み!$A$2:$O$502,7,0))) ->  | O180: =IF(O176="","",IF(VLOOKUP(O176,漢字読み!$A$2:$O$502,7,0)=0,"",VLOOKUP(O176,漢字読み!$A$2:$O$502,7,0))) -> さ | P180: =IF(P176="","",IF(VLOOKUP(P176,漢字読み!$A$2:$O$502,7,0)=0,"",VLOOKUP(P176,漢字読み!$A$2:$O$502,7,0))) -> る | Q180: =IF(Q176="","",IF(VLOOKUP(Q176,漢字読み!$A$2:$O$502,7,0)=0,"",VLOOKUP(Q176,漢字読み!$A$2:$O$502,7,0))) ->  | R180: =IF(R176="","",IF(VLOOKUP(R176,漢字読み!$A$2:$O$502,7,0)=0,"",VLOOKUP(R176,漢字読み!$A$2:$O$502,7,0))) ->  | S180: =IF(S176="","",IF(VLOOKUP(S176,漢字読み!$A$2:$O$502,7,0)=0,"",VLOOKUP(S176,漢字読み!$A$2:$O$502,7,0))) ->  | T180: =IF(T176="","",IF(VLOOKUP(T176,漢字読み!$A$2:$O$502,7,0)=0,"",VLOOKUP(T176,漢字読み!$A$2:$O$502,7,0))) ->  | W180: 和歌山県教育委員会
A181: =INDIRECT("'関数（書き）'!C" & COLUMN(B$1)+SUM($AD$2:$AD182)) -> 120 | B181: =INDIRECT("'関数（書き）'!C" & COLUMN(C$1)+SUM($AD$2:$AD182)) -> 121 | C181: =INDIRECT("'関数（書き）'!C" & COLUMN(D$1)+SUM($AD$2:$AD182)) -> 235 | D181: =INDIRECT("'関数（書き）'!C" & COLUMN(E$1)+SUM($AD$2:$AD182)) -> 3 | E181: =INDIRECT("'関数（書き）'!C" & COLUMN(F$1)+SUM($AD$2:$AD182)) -> 38 | F181: =INDIRECT("'関数（書き）'!C" & COLUMN(G$1)+SUM($AD$2:$AD182)) -> 89 | G181: =INDIRECT("'関数（書き）'!C" & COLUMN(H$1)+SUM($AD$2:$AD182)) -> 91 | H181: =INDIRECT("'関数（書き）'!C" & COLUMN(I$1)+SUM($AD$2:$AD182)) -> 124 | I181: =INDIRECT("'関数（書き）'!C" & COLUMN(J$1)+SUM($AD$2:$AD182)) -> 106 | J181: =INDIRECT("'関数（書き）'!C" & COLUMN(K$1)+SUM($AD$2:$AD182)) -> 28 | K181: =INDIRECT("'関数（読み）'!C" & COLUMN(B$1)+SUM($AD$2:$AD182)) -> 80 | L181: =INDIRECT("'関数（読み）'!C" & COLUMN(C$1)+SUM($AD$2:$AD182)) -> 85 | M181: =INDIRECT("'関数（読み）'!C" & COLUMN(D$1)+SUM($AD$2:$AD182)) -> 53 | N181: =INDIRECT("'関数（読み）'!C" & COLUMN(E$1)+SUM($AD$2:$AD182)) -> 229 | O181: =INDIRECT("'関数（読み）'!C" & COLUMN(F$1)+SUM($AD$2:$AD182)) -> 1 | P181: =INDIRECT("'関数（読み）'!C" & COLUMN(G$1)+SUM($AD$2:$AD182)) -> 50 | Q181: =INDIRECT("'関数（読み）'!C" & COLUMN(H$1)+SUM($AD$2:$AD182)) -> 83 | R181: =INDIRECT("'関数（読み）'!C" & COLUMN(I$1)+SUM($AD$2:$AD182)) -> 56 | S181: =INDIRECT("'関数（読み）'!C" & COLUMN(J$1)+SUM($AD$2:$AD182)) -> 45 | T181: =INDIRECT("'関数（読み）'!C" & COLUMN(K$1)+SUM($AD$2:$AD182)) -> 78
A182: ⑳ | B182: ⑲ | C182: ⑱ | D182: ⑰ | E182: ⑯ | F182: ⑮ | G182: ⑭ | H182: ⑬ | I182: ⑫ | J182: ⑪ | K182: ⑩ | L182: ⑨ | M182: ⑧ | N182: ⑦ | O182: ⑥ | P182: ⑤ | Q182: ④ | R182: ③ | S182: ② | T182: ① | U182: 次の［ ］の部分の漢字には読みがなをひらがなで書き、カタカナは漢字に直しなさい。 | V182: 12 | W182: 「漢字の博士検定試験」練習問題 | AC182: ← | AD182: 10 | AE182: 問 | AF182: =AH167+1 -> 181 | AG182: ～ | AH182: =SUM($AD$2:$AD182)+10 -> 190 | AI182: 問まで | AJ182: =COUNTIF($A$1:$T$200,T183) -> 2
A183: =IF(A181="","",VLOOKUP(A181,漢字書き!$A$2:$N$506,6,0)) -> わたしの［チョウショ］ | B183: =IF(B181="","",VLOOKUP(B181,漢字書き!$A$2:$N$506,6,0)) -> ［バショ］が悪い | C183: =IF(C181="","",VLOOKUP(C181,漢字書き!$A$2:$N$506,6,0)) -> 日本れっ［トウ］ | D183: =IF(D181="","",VLOOKUP(D181,漢字書き!$A$2:$N$506,6,0)) -> ［ギンコウ］の前 | E183: =IF(E181="","",VLOOKUP(E181,漢字書き!$A$2:$N$506,6,0)) -> ［シアワ］せな人 | F183: =IF(F181="","",VLOOKUP(F181,漢字書き!$A$2:$N$506,6,0)) -> 妹を［マモ］る | G183: =IF(G181="","",VLOOKUP(G181,漢字書き!$A$2:$N$506,6,0)) -> テレビの［シュ］ざい | H183: =IF(H181="","",VLOOKUP(H181,漢字書き!$A$2:$N$506,6,0)) -> ［ジョソウ］をつけてとぶ | I183: =IF(I181="","",VLOOKUP(I181,漢字書き!$A$2:$N$506,6,0)) -> 教科のふく［シュウ］ | J183: =IF(J181="","",VLOOKUP(J181,漢字書き!$A$2:$N$506,6,0)) -> 学級［ブンコ］ | K183: =IF(K181="","",VLOOKUP(K181,漢字読み!$A$2:$O$506,6,0)) -> ［実］けんはおもしろい | L183: =IF(L181="","",VLOOKUP(L181,漢字読み!$A$2:$O$506,6,0)) -> ［学者］の考え | M183: =IF(M181="","",VLOOKUP(M181,漢字読み!$A$2:$O$506,6,0)) -> ペットが［死］ぬ | N183: =IF(N181="","",VLOOKUP(N181,漢字読み!$A$2:$O$506,6,0)) -> ［転校］した友人 | O183: =IF(O181="","",VLOOKUP(O181,漢字読み!$A$2:$O$506,6,0)) -> ［銀］メダルをとる | P183: =IF(P181="","",VLOOKUP(P181,漢字読み!$A$2:$O$506,6,0)) -> ［仕事］を決める | Q183: =IF(Q181="","",VLOOKUP(Q181,漢字読み!$A$2:$O$506,6,0)) -> ［写真］をとる | R183: =IF(R181="","",VLOOKUP(R181,漢字読み!$A$2:$O$506,6,0)) -> 神の［使］い | S183: =IF(S181="","",VLOOKUP(S181,漢字読み!$A$2:$O$506,6,0)) -> ［根強］い人気 | T183: =IF(T181="","",VLOOKUP(T181,漢字読み!$A$2:$O$506,6,0)) -> 新しい［方式］ | V183: 級
V184: 名前
A185: =IF(A181="","",IF(VLOOKUP(A181,漢字書き!$A$2:$N$502,7,0)=0,"",VLOOKUP(A181,漢字書き!$A$2:$N$502,7,0))) ->  | B185: =IF(B181="","",IF(VLOOKUP(B181,漢字書き!$A$2:$N$502,7,0)=0,"",VLOOKUP(B181,漢字書き!$A$2:$N$502,7,0))) ->  | C185: =IF(C181="","",IF(VLOOKUP(C181,漢字書き!$A$2:$N$502,7,0)=0,"",VLOOKUP(C181,漢字書き!$A$2:$N$502,7,0))) ->  | D185: =IF(D181="","",IF(VLOOKUP(D181,漢字書き!$A$2:$N$502,7,0)=0,"",VLOOKUP(D181,漢字書き!$A$2:$N$502,7,0))) ->  | E185: =IF(E181="","",IF(VLOOKUP(E181,漢字書き!$A$2:$N$502,7,0)=0,"",VLOOKUP(E181,漢字書き!$A$2:$N$502,7,0))) -> せな | F185: =IF(F181="","",IF(VLOOKUP(F181,漢字書き!$A$2:$N$502,7,0)=0,"",VLOOKUP(F181,漢字書き!$A$2:$N$502,7,0))) -> る | G185: =IF(G181="","",IF(VLOOKUP(G181,漢字書き!$A$2:$N$502,7,0)=0,"",VLOOKUP(G181,漢字書き!$A$2:$N$502,7,0))) -> ざい | H185: =IF(H181="","",IF(VLOOKUP(H181,漢字書き!$A$2:$N$502,7,0)=0,"",VLOOKUP(H181,漢字書き!$A$2:$N$502,7,0))) ->  | I185: =IF(I181="","",IF(VLOOKUP(I181,漢字書き!$A$2:$N$502,7,0)=0,"",VLOOKUP(I181,漢字書き!$A$2:$N$502,7,0))) ->  | J185: =IF(J181="","",IF(VLOOKUP(J181,漢字書き!$A$2:$N$502,7,0)=0,"",VLOOKUP(J181,漢字書き!$A$2:$N$502,7,0))) ->  | K185: =IF(K181="","",IF(VLOOKUP(K181,漢字読み!$A$2:$O$502,7,0)=0,"",VLOOKUP(K181,漢字読み!$A$2:$O$502,7,0))) -> けん | L185: =IF(L181="","",IF(VLOOKUP(L181,漢字読み!$A$2:$O$502,7,0)=0,"",VLOOKUP(L181,漢字読み!$A$2:$O$502,7,0))) ->  | M185: =IF(M181="","",IF(VLOOKUP(M181,漢字読み!$A$2:$O$502,7,0)=0,"",VLOOKUP(M181,漢字読み!$A$2:$O$502,7,0))) -> ぬ | N185: =IF(N181="","",IF(VLOOKUP(N181,漢字読み!$A$2:$O$502,7,0)=0,"",VLOOKUP(N181,漢字読み!$A$2:$O$502,7,0))) -> した | O185: =IF(O181="","",IF(VLOOKUP(O181,漢字読み!$A$2:$O$502,7,0)=0,"",VLOOKUP(O181,漢字読み!$A$2:$O$502,7,0))) ->  | P185: =IF(P181="","",IF(VLOOKUP(P181,漢字読み!$A$2:$O$502,7,0)=0,"",VLOOKUP(P181,漢字読み!$A$2:$O$502,7,0))) ->  | Q185: =IF(Q181="","",IF(VLOOKUP(Q181,漢字読み!$A$2:$O$502,7,0)=0,"",VLOOKUP(Q181,漢字読み!$A$2:$O$502,7,0))) ->  | R185: =IF(R181="","",IF(VLOOKUP(R181,漢字読み!$A$2:$O$502,7,0)=0,"",VLOOKUP(R181,漢字読み!$A$2:$O$502,7,0))) -> い | S185: =IF(S181="","",IF(VLOOKUP(S181,漢字読み!$A$2:$O$502,7,0)=0,"",VLOOKUP(S181,漢字読み!$A$2:$O$502,7,0))) -> い | T185: =IF(T181="","",IF(VLOOKUP(T181,漢字読み!$A$2:$O$502,7,0)=0,"",VLOOKUP(T181,漢字読み!$A$2:$O$502,7,0))) ->  | W185: 和歌山県教育委員会
A186: =INDIRECT("'関数（書き）'!C" & COLUMN(B$1)+SUM($AD$2:$AD187)) -> 192 | B186: =INDIRECT("'関数（書き）'!C" & COLUMN(C$1)+SUM($AD$2:$AD187)) -> 55 | C186: =INDIRECT("'関数（書き）'!C" & COLUMN(D$1)+SUM($AD$2:$AD187)) -> 135 | D186: =INDIRECT("'関数（書き）'!C" & COLUMN(E$1)+SUM($AD$2:$AD187)) -> 161 | E186: =INDIRECT("'関数（書き）'!C" & COLUMN(F$1)+SUM($AD$2:$AD187)) -> 41 | F186: =INDIRECT("'関数（書き）'!C" & COLUMN(G$1)+SUM($AD$2:$AD187)) -> 104 | G186: =INDIRECT("'関数（書き）'!C" & COLUMN(H$1)+SUM($AD$2:$AD187)) -> 64 | H186: =INDIRECT("'関数（書き）'!C" & COLUMN(I$1)+SUM($AD$2:$AD187)) -> 82 | I186: =INDIRECT("'関数（書き）'!C" & COLUMN(J$1)+SUM($AD$2:$AD187)) -> 51 | J186: =INDIRECT("'関数（書き）'!C" & COLUMN(K$1)+SUM($AD$2:$AD187)) -> 200 | K186: =INDIRECT("'関数（読み）'!C" & COLUMN(B$1)+SUM($AD$2:$AD187)) -> 241 | L186: =INDIRECT("'関数（読み）'!C" & COLUMN(C$1)+SUM($AD$2:$AD187)) -> 182 | M186: =INDIRECT("'関数（読み）'!C" & COLUMN(D$1)+SUM($AD$2:$AD187)) -> 161 | N186: =INDIRECT("'関数（読み）'!C" & COLUMN(E$1)+SUM($AD$2:$AD187)) -> 131 | O186: =INDIRECT("'関数（読み）'!C" & COLUMN(F$1)+SUM($AD$2:$AD187)) -> 125 | P186: =INDIRECT("'関数（読み）'!C" & COLUMN(G$1)+SUM($AD$2:$AD187)) -> 154 | Q186: =INDIRECT("'関数（読み）'!C" & COLUMN(H$1)+SUM($AD$2:$AD187)) -> 117 | R186: =INDIRECT("'関数（読み）'!C" & COLUMN(I$1)+SUM($AD$2:$AD187)) -> 190 | S186: =INDIRECT("'関数（読み）'!C" & COLUMN(J$1)+SUM($AD$2:$AD187)) -> 90 | T186: =INDIRECT("'関数（読み）'!C" & COLUMN(K$1)+SUM($AD$2:$AD187)) -> 212
A187: ⑳ | B187: ⑲ | C187: ⑱ | D187: ⑰ | E187: ⑯ | F187: ⑮ | G187: ⑭ | H187: ⑬ | I187: ⑫ | J187: ⑪ | K187: ⑩ | L187: ⑨ | M187: ⑧ | N187: ⑦ | O187: ⑥ | P187: ⑤ | Q187: ④ | R187: ③ | S187: ② | T187: ① | U187: 次の［ ］の部分の漢字には読みがなをひらがなで書き、カタカナは漢字に直しなさい。 | V187: 12 | W187: 「漢字の博士検定試験」練習問題 | AC187: ← | AD187: 10 | AE187: 問 | AF187: =AH182+1 -> 191 | AG187: ～ | AH187: =SUM($AD$2:$AD187)+10 -> 200 | AI187: 問まで | AJ187: =COUNTIF($A$1:$T$200,T188) -> 2
A188: =IF(A186="","",VLOOKUP(A186,漢字書き!$A$2:$N$506,6,0)) -> ［スミ］を買う | B188: =IF(B186="","",VLOOKUP(B186,漢字書き!$A$2:$N$506,6,0)) -> 運どう場を［シヨウ］する | C188: =IF(C186="","",VLOOKUP(C186,漢字書き!$A$2:$N$506,6,0)) -> バスに［ジョウシャ］する | D188: =IF(D186="","",VLOOKUP(D186,漢字書き!$A$2:$N$506,6,0)) -> 今と［ムカシ］のちがい | E188: =IF(E186="","",VLOOKUP(E186,漢字書き!$A$2:$N$506,6,0)) -> 船が［ミナト］に着く | F188: =IF(F186="","",VLOOKUP(F186,漢字書き!$A$2:$N$506,6,0)) -> やっと［オ］わった | G188: =IF(G186="","",VLOOKUP(G186,漢字書き!$A$2:$N$506,6,0)) -> ［ハ］がいたい | H188: =IF(H186="","",VLOOKUP(H186,漢字書き!$A$2:$N$506,6,0)) -> 文字を書き［ウツ］す | I188: =IF(I186="","",VLOOKUP(I186,漢字書き!$A$2:$N$506,6,0)) -> 父母の［シゴト］ | J188: =IF(J186="","",VLOOKUP(J186,漢字書き!$A$2:$N$506,6,0)) -> ユニフォームを［キ］る | K188: =IF(K186="","",VLOOKUP(K186,漢字読み!$A$2:$O$506,6,0)) -> ［豆］の木 | L188: =IF(L186="","",VLOOKUP(L186,漢字読み!$A$2:$O$506,6,0)) -> 母親の［代理］ | M188: =IF(M186="","",VLOOKUP(M186,漢字読み!$A$2:$O$506,6,0)) -> ［相手］にしない | N188: =IF(N186="","",VLOOKUP(N186,漢字読み!$A$2:$O$506,6,0)) -> ［乗馬］をたのしむ | O188: =IF(O186="","",VLOOKUP(O186,漢字読み!$A$2:$O$506,6,0)) -> ［商店］がいへ行く | P188: =IF(P186="","",VLOOKUP(P186,漢字読み!$A$2:$O$506,6,0)) -> [昔話]を聞く | Q188: =IF(Q186="","",VLOOKUP(Q186,漢字読み!$A$2:$O$506,6,0)) -> ［暑中］見まい | R188: =IF(R186="","",VLOOKUP(R186,漢字読み!$A$2:$O$506,6,0)) -> すきな本の［題名］ | S188: =IF(S186="","",VLOOKUP(S186,漢字読み!$A$2:$O$506,6,0)) -> ボールを［死守］する | T188: =IF(T186="","",VLOOKUP(T186,漢字読み!$A$2:$O$506,6,0)) -> ［温度］を調べる | V188: 級
V189: 名前
A190: =IF(A186="","",IF(VLOOKUP(A186,漢字書き!$A$2:$N$502,7,0)=0,"",VLOOKUP(A186,漢字書き!$A$2:$N$502,7,0))) ->  | B190: =IF(B186="","",IF(VLOOKUP(B186,漢字書き!$A$2:$N$502,7,0)=0,"",VLOOKUP(B186,漢字書き!$A$2:$N$502,7,0))) -> する | C190: =IF(C186="","",IF(VLOOKUP(C186,漢字書き!$A$2:$N$502,7,0)=0,"",VLOOKUP(C186,漢字書き!$A$2:$N$502,7,0))) -> する | D190: =IF(D186="","",IF(VLOOKUP(D186,漢字書き!$A$2:$N$502,7,0)=0,"",VLOOKUP(D186,漢字書き!$A$2:$N$502,7,0))) ->  | E190: =IF(E186="","",IF(VLOOKUP(E186,漢字書き!$A$2:$N$502,7,0)=0,"",VLOOKUP(E186,漢字書き!$A$2:$N$502,7,0))) ->  | F190: =IF(F186="","",IF(VLOOKUP(F186,漢字書き!$A$2:$N$502,7,0)=0,"",VLOOKUP(F186,漢字書き!$A$2:$N$502,7,0))) -> わった | G190: =IF(G186="","",IF(VLOOKUP(G186,漢字書き!$A$2:$N$502,7,0)=0,"",VLOOKUP(G186,漢字書き!$A$2:$N$502,7,0))) ->  | H190: =IF(H186="","",IF(VLOOKUP(H186,漢字書き!$A$2:$N$502,7,0)=0,"",VLOOKUP(H186,漢字書き!$A$2:$N$502,7,0))) -> す | I190: =IF(I186="","",IF(VLOOKUP(I186,漢字書き!$A$2:$N$502,7,0)=0,"",VLOOKUP(I186,漢字書き!$A$2:$N$502,7,0))) ->  | J190: =IF(J186="","",IF(VLOOKUP(J186,漢字書き!$A$2:$N$502,7,0)=0,"",VLOOKUP(J186,漢字書き!$A$2:$N$502,7,0))) -> る | K190: =IF(K186="","",IF(VLOOKUP(K186,漢字読み!$A$2:$O$502,7,0)=0,"",VLOOKUP(K186,漢字読み!$A$2:$O$502,7,0))) ->  | L190: =IF(L186="","",IF(VLOOKUP(L186,漢字読み!$A$2:$O$502,7,0)=0,"",VLOOKUP(L186,漢字読み!$A$2:$O$502,7,0))) ->  | M190: =IF(M186="","",IF(VLOOKUP(M186,漢字読み!$A$2:$O$502,7,0)=0,"",VLOOKUP(M186,漢字読み!$A$2:$O$502,7,0))) ->  | N190: =IF(N186="","",IF(VLOOKUP(N186,漢字読み!$A$2:$O$502,7,0)=0,"",VLOOKUP(N186,漢字読み!$A$2:$O$502,7,0))) ->  | O190: =IF(O186="","",IF(VLOOKUP(O186,漢字読み!$A$2:$O$502,7,0)=0,"",VLOOKUP(O186,漢字読み!$A$2:$O$502,7,0))) -> がい | P190: =IF(P186="","",IF(VLOOKUP(P186,漢字読み!$A$2:$O$502,7,0)=0,"",VLOOKUP(P186,漢字読み!$A$2:$O$502,7,0))) ->  | Q190: =IF(Q186="","",IF(VLOOKUP(Q186,漢字読み!$A$2:$O$502,7,0)=0,"",VLOOKUP(Q186,漢字読み!$A$2:$O$502,7,0))) ->  | R190: =IF(R186="","",IF(VLOOKUP(R186,漢字読み!$A$2:$O$502,7,0)=0,"",VLOOKUP(R186,漢字読み!$A$2:$O$502,7,0))) ->  | S190: =IF(S186="","",IF(VLOOKUP(S186,漢字読み!$A$2:$O$502,7,0)=0,"",VLOOKUP(S186,漢字読み!$A$2:$O$502,7,0))) -> する | T190: =IF(T186="","",IF(VLOOKUP(T186,漢字読み!$A$2:$O$502,7,0)=0,"",VLOOKUP(T186,漢字読み!$A$2:$O$502,7,0))) ->  | W190: 和歌山県教育委員会
A191: =A181 -> 120 | B191: 121 | C191: 235 | D191: 3 | E191: 38 | F191: 89 | G191: 91 | H191: 124 | I191: 106 | J191: 28 | K191: 80 | L191: 85 | M191: 53 | N191: 229 | O191: 1 | P191: 50 | Q191: 83 | R191: 56 | S191: 45 | T191: 78
A192: ⑳ | B192: ⑲ | C192: ⑱ | D192: ⑰ | E192: ⑯ | F192: ⑮ | G192: ⑭ | H192: ⑬ | I192: ⑫ | J192: ⑪ | K192: ⑩ | L192: ⑨ | M192: ⑧ | N192: ⑦ | O192: ⑥ | P192: ⑤ | Q192: ④ | R192: ③ | S192: ② | T192: ① | U192: 次の［ ］の部分の漢字には読みがなをひらがなで書き、カタカナは漢字に直しなさい。 | V192: 12 | W192: 「漢字の博士検定試験」練習問題
A193: =IF(A191="","",VLOOKUP(A191,漢字書き!$A$2:$N$506,6,0)) -> わたしの［チョウショ］ | B193: =IF(B191="","",VLOOKUP(B191,漢字書き!$A$2:$N$506,6,0)) -> ［バショ］が悪い | C193: =IF(C191="","",VLOOKUP(C191,漢字書き!$A$2:$N$506,6,0)) -> 日本れっ［トウ］ | D193: =IF(D191="","",VLOOKUP(D191,漢字書き!$A$2:$N$506,6,0)) -> ［ギンコウ］の前 | E193: =IF(E191="","",VLOOKUP(E191,漢字書き!$A$2:$N$506,6,0)) -> ［シアワ］せな人 | F193: =IF(F191="","",VLOOKUP(F191,漢字書き!$A$2:$N$506,6,0)) -> 妹を［マモ］る | G193: =IF(G191="","",VLOOKUP(G191,漢字書き!$A$2:$N$506,6,0)) -> テレビの［シュ］ざい | H193: =IF(H191="","",VLOOKUP(H191,漢字書き!$A$2:$N$506,6,0)) -> ［ジョソウ］をつけてとぶ | I193: =IF(I191="","",VLOOKUP(I191,漢字書き!$A$2:$N$506,6,0)) -> 教科のふく［シュウ］ | J193: =IF(J191="","",VLOOKUP(J191,漢字書き!$A$2:$N$506,6,0)) -> 学級［ブンコ］ | K193: =IF(K191="","",VLOOKUP(K191,漢字読み!$A$2:$O$506,6,0)) -> ［実］けんはおもしろい | L193: =IF(L191="","",VLOOKUP(L191,漢字読み!$A$2:$O$506,6,0)) -> ［学者］の考え | M193: =IF(M191="","",VLOOKUP(M191,漢字読み!$A$2:$O$506,6,0)) -> ペットが［死］ぬ | N193: =IF(N191="","",VLOOKUP(N191,漢字読み!$A$2:$O$506,6,0)) -> ［転校］した友人 | O193: =IF(O191="","",VLOOKUP(O191,漢字読み!$A$2:$O$506,6,0)) -> ［銀］メダルをとる | P193: =IF(P191="","",VLOOKUP(P191,漢字読み!$A$2:$O$506,6,0)) -> ［仕事］を決める | Q193: =IF(Q191="","",VLOOKUP(Q191,漢字読み!$A$2:$O$506,6,0)) -> ［写真］をとる | R193: =IF(R191="","",VLOOKUP(R191,漢字読み!$A$2:$O$506,6,0)) -> 神の［使］い | S193: =IF(S191="","",VLOOKUP(S191,漢字読み!$A$2:$O$506,6,0)) -> ［根強］い人気 | T193: =IF(T191="","",VLOOKUP(T191,漢字読み!$A$2:$O$506,6,0)) -> 新しい［方式］ | V193: 級
A194: =IF(A$11="","",VLOOKUP(A191,漢字書き!$A$2:$O$506,8,0)) -> 長所 | B194: =IF(B$11="","",VLOOKUP(B191,漢字書き!$A$2:$O$506,8,0)) -> 場所 | C194: =IF(C$11="","",VLOOKUP(C191,漢字書き!$A$2:$O$506,8,0)) -> 島 | D194: =IF(D$11="","",VLOOKUP(D191,漢字書き!$A$2:$O$506,8,0)) -> 銀行 | E194: =IF(E$11="","",VLOOKUP(E191,漢字書き!$A$2:$O$506,8,0)) -> 幸 | F194: =IF(F$11="","",VLOOKUP(F191,漢字書き!$A$2:$O$506,8,0)) -> 守 | G194: =IF(G$11="","",VLOOKUP(G191,漢字書き!$A$2:$O$506,8,0)) -> 取 | H194: =IF(H$11="","",VLOOKUP(H191,漢字書き!$A$2:$O$506,8,0)) -> 助走 | I194: =IF(I$11="","",VLOOKUP(I191,漢字書き!$A$2:$O$506,8,0)) -> 習 | J194: =IF(J$11="","",VLOOKUP(J191,漢字書き!$A$2:$O$506,8,0)) -> 文庫 | K194: =IF(K$11="","",VLOOKUP(K191,漢字読み!$A$2:$O$506,8,0)) -> じっ | L194: =IF(L$11="","",VLOOKUP(L191,漢字読み!$A$2:$O$506,8,0)) -> がくしゃ | M194: =IF(M$11="","",VLOOKUP(M191,漢字読み!$A$2:$O$506,8,0)) -> し | N194: =IF(N$11="","",VLOOKUP(N191,漢字読み!$A$2:$O$506,8,0)) -> てんこう | O194: =IF(O$11="","",VLOOKUP(O191,漢字読み!$A$2:$O$506,8,0)) -> ぎん | P194: =IF(P$11="","",VLOOKUP(P191,漢字読み!$A$2:$O$506,8,0)) -> しごと | Q194: =IF(Q$11="","",VLOOKUP(Q191,漢字読み!$A$2:$O$506,8,0)) -> しゃしん | R194: =IF(R$11="","",VLOOKUP(R191,漢字読み!$A$2:$O$506,8,0)) -> つか | S194: =IF(S$11="","",VLOOKUP(S191,漢字読み!$A$2:$O$506,8,0)) -> ねづよ | T194: =IF(T$11="","",VLOOKUP(T191,漢字読み!$A$2:$O$506,8,0)) -> ほうしき | V194: 名前
A195: =IF(A191="","",IF(VLOOKUP(A191,漢字書き!$A$2:$N$502,7,0)=0,"",VLOOKUP(A191,漢字書き!$A$2:$N$502,7,0))) ->  | B195: =IF(B191="","",IF(VLOOKUP(B191,漢字書き!$A$2:$N$502,7,0)=0,"",VLOOKUP(B191,漢字書き!$A$2:$N$502,7,0))) ->  | C195: =IF(C191="","",IF(VLOOKUP(C191,漢字書き!$A$2:$N$502,7,0)=0,"",VLOOKUP(C191,漢字書き!$A$2:$N$502,7,0))) ->  | D195: =IF(D191="","",IF(VLOOKUP(D191,漢字書き!$A$2:$N$502,7,0)=0,"",VLOOKUP(D191,漢字書き!$A$2:$N$502,7,0))) ->  | E195: =IF(E191="","",IF(VLOOKUP(E191,漢字書き!$A$2:$N$502,7,0)=0,"",VLOOKUP(E191,漢字書き!$A$2:$N$502,7,0))) -> せな | F195: =IF(F191="","",IF(VLOOKUP(F191,漢字書き!$A$2:$N$502,7,0)=0,"",VLOOKUP(F191,漢字書き!$A$2:$N$502,7,0))) -> る | G195: =IF(G191="","",IF(VLOOKUP(G191,漢字書き!$A$2:$N$502,7,0)=0,"",VLOOKUP(G191,漢字書き!$A$2:$N$502,7,0))) -> ざい | H195: =IF(H191="","",IF(VLOOKUP(H191,漢字書き!$A$2:$N$502,7,0)=0,"",VLOOKUP(H191,漢字書き!$A$2:$N$502,7,0))) ->  | I195: =IF(I191="","",IF(VLOOKUP(I191,漢字書き!$A$2:$N$502,7,0)=0,"",VLOOKUP(I191,漢字書き!$A$2:$N$502,7,0))) ->  | J195: =IF(J191="","",IF(VLOOKUP(J191,漢字書き!$A$2:$N$502,7,0)=0,"",VLOOKUP(J191,漢字書き!$A$2:$N$502,7,0))) ->  | K195: =IF(K191="","",IF(VLOOKUP(K191,漢字読み!$A$2:$O$502,7,0)=0,"",VLOOKUP(K191,漢字読み!$A$2:$O$502,7,0))) -> けん | L195: =IF(L191="","",IF(VLOOKUP(L191,漢字読み!$A$2:$O$502,7,0)=0,"",VLOOKUP(L191,漢字読み!$A$2:$O$502,7,0))) ->  | M195: =IF(M191="","",IF(VLOOKUP(M191,漢字読み!$A$2:$O$502,7,0)=0,"",VLOOKUP(M191,漢字読み!$A$2:$O$502,7,0))) -> ぬ | N195: =IF(N191="","",IF(VLOOKUP(N191,漢字読み!$A$2:$O$502,7,0)=0,"",VLOOKUP(N191,漢字読み!$A$2:$O$502,7,0))) -> した | O195: =IF(O191="","",IF(VLOOKUP(O191,漢字読み!$A$2:$O$502,7,0)=0,"",VLOOKUP(O191,漢字読み!$A$2:$O$502,7,0))) ->  | P195: =IF(P191="","",IF(VLOOKUP(P191,漢字読み!$A$2:$O$502,7,0)=0,"",VLOOKUP(P191,漢字読み!$A$2:$O$502,7,0))) ->  | Q195: =IF(Q191="","",IF(VLOOKUP(Q191,漢字読み!$A$2:$O$502,7,0)=0,"",VLOOKUP(Q191,漢字読み!$A$2:$O$502,7,0))) ->  | R195: =IF(R191="","",IF(VLOOKUP(R191,漢字読み!$A$2:$O$502,7,0)=0,"",VLOOKUP(R191,漢字読み!$A$2:$O$502,7,0))) -> い | S195: =IF(S191="","",IF(VLOOKUP(S191,漢字読み!$A$2:$O$502,7,0)=0,"",VLOOKUP(S191,漢字読み!$A$2:$O$502,7,0))) -> い | T195: =IF(T191="","",IF(VLOOKUP(T191,漢字読み!$A$2:$O$502,7,0)=0,"",VLOOKUP(T191,漢字読み!$A$2:$O$502,7,0))) ->  | W195: 和歌山県教育委員会
A196: =A186 -> 192 | B196: 55 | C196: 135 | D196: 161 | E196: 41 | F196: 104 | G196: 64 | H196: 82 | I196: 51 | J196: 200 | K196: 241 | L196: 182 | M196: 161 | N196: 131 | O196: 125 | P196: 154 | Q196: 117 | R196: 190 | S196: 90 | T196: 212
A197: ⑳ | B197: ⑲ | C197: ⑱ | D197: ⑰ | E197: ⑯ | F197: ⑮ | G197: ⑭ | H197: ⑬ | I197: ⑫ | J197: ⑪ | K197: ⑩ | L197: ⑨ | M197: ⑧ | N197: ⑦ | O197: ⑥ | P197: ⑤ | Q197: ④ | R197: ③ | S197: ② | T197: ① | U197: 次の［ ］の部分の漢字には読みがなをひらがなで書き、カタカナは漢字に直しなさい。 | V197: 12 | W197: 「漢字の博士検定試験」練習問題
A198: =IF(A196="","",VLOOKUP(A196,漢字書き!$A$2:$N$506,6,0)) -> ［スミ］を買う | B198: =IF(B196="","",VLOOKUP(B196,漢字書き!$A$2:$N$506,6,0)) -> 運どう場を［シヨウ］する | C198: =IF(C196="","",VLOOKUP(C196,漢字書き!$A$2:$N$506,6,0)) -> バスに［ジョウシャ］する | D198: =IF(D196="","",VLOOKUP(D196,漢字書き!$A$2:$N$506,6,0)) -> 今と［ムカシ］のちがい | E198: =IF(E196="","",VLOOKUP(E196,漢字書き!$A$2:$N$506,6,0)) -> 船が［ミナト］に着く | F198: =IF(F196="","",VLOOKUP(F196,漢字書き!$A$2:$N$506,6,0)) -> やっと［オ］わった | G198: =IF(G196="","",VLOOKUP(G196,漢字書き!$A$2:$N$506,6,0)) -> ［ハ］がいたい | H198: =IF(H196="","",VLOOKUP(H196,漢字書き!$A$2:$N$506,6,0)) -> 文字を書き［ウツ］す | I198: =IF(I196="","",VLOOKUP(I196,漢字書き!$A$2:$N$506,6,0)) -> 父母の［シゴト］ | J198: =IF(J196="","",VLOOKUP(J196,漢字書き!$A$2:$N$506,6,0)) -> ユニフォームを［キ］る | K198: =IF(K196="","",VLOOKUP(K196,漢字読み!$A$2:$O$506,6,0)) -> ［豆］の木 | L198: =IF(L196="","",VLOOKUP(L196,漢字読み!$A$2:$O$506,6,0)) -> 母親の［代理］ | M198: =IF(M196="","",VLOOKUP(M196,漢字読み!$A$2:$O$506,6,0)) -> ［相手］にしない | N198: =IF(N196="","",VLOOKUP(N196,漢字読み!$A$2:$O$506,6,0)) -> ［乗馬］をたのしむ | O198: =IF(O196="","",VLOOKUP(O196,漢字読み!$A$2:$O$506,6,0)) -> ［商店］がいへ行く | P198: =IF(P196="","",VLOOKUP(P196,漢字読み!$A$2:$O$506,6,0)) -> [昔話]を聞く | Q198: =IF(Q196="","",VLOOKUP(Q196,漢字読み!$A$2:$O$506,6,0)) -> ［暑中］見まい | R198: =IF(R196="","",VLOOKUP(R196,漢字読み!$A$2:$O$506,6,0)) -> すきな本の［題名］ | S198: =IF(S196="","",VLOOKUP(S196,漢字読み!$A$2:$O$506,6,0)) -> ボールを［死守］する | T198: =IF(T196="","",VLOOKUP(T196,漢字読み!$A$2:$O$506,6,0)) -> ［温度］を調べる | V198: 級
A199: =IF(A$16="","",VLOOKUP(A196,漢字書き!$A$2:$O$506,8,0)) -> 炭 | B199: =IF(B$16="","",VLOOKUP(B196,漢字書き!$A$2:$O$506,8,0)) -> 使用 | C199: =IF(C$16="","",VLOOKUP(C196,漢字書き!$A$2:$O$506,8,0)) -> 乗車 | D199: =IF(D$16="","",VLOOKUP(D196,漢字書き!$A$2:$O$506,8,0)) -> 昔 | E199: =IF(E$16="","",VLOOKUP(E196,漢字書き!$A$2:$O$506,8,0)) -> 港 | F199: =IF(F$16="","",VLOOKUP(F196,漢字書き!$A$2:$O$506,8,0)) -> 終 | G199: =IF(G$16="","",VLOOKUP(G196,漢字書き!$A$2:$O$506,8,0)) -> 歯 | H199: =IF(H$16="","",VLOOKUP(H196,漢字書き!$A$2:$O$506,8,0)) -> 写 | I199: =IF(I$16="","",VLOOKUP(I196,漢字書き!$A$2:$O$506,8,0)) -> 仕事 | J199: =IF(J$16="","",VLOOKUP(J196,漢字書き!$A$2:$O$506,8,0)) -> 着 | K199: =IF(K$16="","",VLOOKUP(K196,漢字読み!$A$2:$O$506,8,0)) -> まめ | L199: =IF(L$16="","",VLOOKUP(L196,漢字読み!$A$2:$O$506,8,0)) -> だいり | M199: =IF(M$16="","",VLOOKUP(M196,漢字読み!$A$2:$O$506,8,0)) -> あいて | N199: =IF(N$16="","",VLOOKUP(N196,漢字読み!$A$2:$O$506,8,0)) -> じょうば | O199: =IF(O$16="","",VLOOKUP(O196,漢字読み!$A$2:$O$506,8,0)) -> しょうてん | P199: =IF(P$16="","",VLOOKUP(P196,漢字読み!$A$2:$O$506,8,0)) -> むかしばなし | Q199: =IF(Q$16="","",VLOOKUP(Q196,漢字読み!$A$2:$O$506,8,0)) -> しょちゅう | R199: =IF(R$16="","",VLOOKUP(R196,漢字読み!$A$2:$O$506,8,0)) -> だいめい | S199: =IF(S$16="","",VLOOKUP(S196,漢字読み!$A$2:$O$506,8,0)) -> ししゅ | T199: =IF(T$16="","",VLOOKUP(T196,漢字読み!$A$2:$O$506,8,0)) -> おんど | V199: 名前
A200: =IF(A196="","",IF(VLOOKUP(A196,漢字書き!$A$2:$N$502,7,0)=0,"",VLOOKUP(A196,漢字書き!$A$2:$N$502,7,0))) ->  | B200: =IF(B196="","",IF(VLOOKUP(B196,漢字書き!$A$2:$N$502,7,0)=0,"",VLOOKUP(B196,漢字書き!$A$2:$N$502,7,0))) -> する | C200: =IF(C196="","",IF(VLOOKUP(C196,漢字書き!$A$2:$N$502,7,0)=0,"",VLOOKUP(C196,漢字書き!$A$2:$N$502,7,0))) -> する | D200: =IF(D196="","",IF(VLOOKUP(D196,漢字書き!$A$2:$N$502,7,0)=0,"",VLOOKUP(D196,漢字書き!$A$2:$N$502,7,0))) ->  | E200: =IF(E196="","",IF(VLOOKUP(E196,漢字書き!$A$2:$N$502,7,0)=0,"",VLOOKUP(E196,漢字書き!$A$2:$N$502,7,0))) ->  | F200: =IF(F196="","",IF(VLOOKUP(F196,漢字書き!$A$2:$N$502,7,0)=0,"",VLOOKUP(F196,漢字書き!$A$2:$N$502,7,0))) -> わった | G200: =IF(G196="","",IF(VLOOKUP(G196,漢字書き!$A$2:$N$502,7,0)=0,"",VLOOKUP(G196,漢字書き!$A$2:$N$502,7,0))) ->  | H200: =IF(H196="","",IF(VLOOKUP(H196,漢字書き!$A$2:$N$502,7,0)=0,"",VLOOKUP(H196,漢字書き!$A$2:$N$502,7,0))) -> す | I200: =IF(I196="","",IF(VLOOKUP(I196,漢字書き!$A$2:$N$502,7,0)=0,"",VLOOKUP(I196,漢字書き!$A$2:$N$502,7,0))) ->  | J200: =IF(J196="","",IF(VLOOKUP(J196,漢字書き!$A$2:$N$502,7,0)=0,"",VLOOKUP(J196,漢字書き!$A$2:$N$502,7,0))) -> る | K200: =IF(K196="","",IF(VLOOKUP(K196,漢字読み!$A$2:$O$502,7,0)=0,"",VLOOKUP(K196,漢字読み!$A$2:$O$502,7,0))) ->  | L200: =IF(L196="","",IF(VLOOKUP(L196,漢字読み!$A$2:$O$502,7,0)=0,"",VLOOKUP(L196,漢字読み!$A$2:$O$502,7,0))) ->  | M200: =IF(M196="","",IF(VLOOKUP(M196,漢字読み!$A$2:$O$502,7,0)=0,"",VLOOKUP(M196,漢字読み!$A$2:$O$502,7,0))) ->  | N200: =IF(N196="","",IF(VLOOKUP(N196,漢字読み!$A$2:$O$502,7,0)=0,"",VLOOKUP(N196,漢字読み!$A$2:$O$502,7,0))) ->  | O200: =IF(O196="","",IF(VLOOKUP(O196,漢字読み!$A$2:$O$502,7,0)=0,"",VLOOKUP(O196,漢字読み!$A$2:$O$502,7,0))) -> がい | P200: =IF(P196="","",IF(VLOOKUP(P196,漢字読み!$A$2:$O$502,7,0)=0,"",VLOOKUP(P196,漢字読み!$A$2:$O$502,7,0))) ->  | Q200: =IF(Q196="","",IF(VLOOKUP(Q196,漢字読み!$A$2:$O$502,7,0)=0,"",VLOOKUP(Q196,漢字読み!$A$2:$O$502,7,0))) ->  | R200: =IF(R196="","",IF(VLOOKUP(R196,漢字読み!$A$2:$O$502,7,0)=0,"",VLOOKUP(R196,漢字読み!$A$2:$O$502,7,0))) ->  | S200: =IF(S196="","",IF(VLOOKUP(S196,漢字読み!$A$2:$O$502,7,0)=0,"",VLOOKUP(S196,漢字読み!$A$2:$O$502,7,0))) -> する | T200: =IF(T196="","",IF(VLOOKUP(T196,漢字読み!$A$2:$O$502,7,0)=0,"",VLOOKUP(T196,漢字読み!$A$2:$O$502,7,0))) ->  | W200: 和歌山県教育委員会
... 220 more rows

Sheet 漢字読み
A1: 通し番号 | B1: 問題番号 | C1: 漢字 | D1: 読み | E1: 音訓 | F1: 問題 | G1: 送り仮名 | H1: 読み | I1: 間違いやすい漢字
A2: 1 | B2: 1 | C2: 銀 | D2: ギン | E2: 1 | F2: ［銀］メダルをとる | H2: ぎん
A3: 2 | B3: 1 | C3: 銀 | D3: ギン | E3: 1 | F3: 一めんの［銀世界］ | H3: ぎんせかい
A4: 3 | B4: 1 | C4: 銀 | D4: ギン | E4: 1 | F4: ［金銀］のメダル | H4: きんぎん
A5: 4 | B5: 2 | C5: 区 | D5: ク | E5: 1 | F5: ［地区］のそうじ | H5: ちく
A6: 5 | B6: 2 | C6: 区 | D6: ク | E6: 1 | F6: ［区切］りがよい | G6: り | H6: くぎ
A7: 6 | B7: 3 | C7: 苦 | D7: ク | E7: 1 | F7: ［苦］は楽のたね | H7: く
A8: 7 | B8: 3 | C8: 苦 | D8: ク | E8: 2 | F8: 息が［苦］しい | G8: しい | H8: くる
A9: 8 | B9: 3 | C9: 苦 | D9: クン | E9: 2 | F9: ［苦］いくすり | G9: い | H9: にが
A10: 9 | B10: 4 | C10: 具 | D10: グ | E10: 1 | F10: ［道具］を使う | H10: どうぐ
A11: 10 | B11: 4 | C11: 具 | D11: グ | E11: 1 | F11: ［雨具］を使う | H11: あまぐ | I11: ☆
A12: 11 | B12: 4 | C12: 具 | D12: グ | E12: 1 | F12: ［家具］を買う | H12: かぐ
A13: 12 | B13: 5 | C13: 君 | D13: クン | E13: 1 | F13: 国家の［君主］ | H13: くんしゅ | I13: ☆
A14: 13 | B14: 5 | C14: 君 | D14: クン | E14: 2 | F14: ［君］のとなり | H14: きみ
A15: 14 | B15: 6 | C15: 係 | D15: ケイ | E15: 1 | F15: 自分にかん［係］ない | G15: ない | H15: けい
A16: 15 | B16: 6 | C16: 係 | D16: ケイ | E16: 2 | F16: 図書［係］になる | H16: がかり
A17: 16 | B17: 6 | C17: 係 | D17: ケイ | E17: 2 | F17: この語は下の語に［係］る | G17: る | H17: かか
A18: 17 | B18: 7 | C18: 軽 | D18: ケイ | E18: 1 | F18: ［軽音楽］を聞く | H18: けいおんがく | I18: ☆
A19: 18 | B19: 7 | C19: 軽 | D19: ケイ | E19: 2 | F19: ［軽］いかばん | G19: い | H19: かる
A20: 19 | B20: 8 | C20: 血 | D20: ケツ | E20: 1 | F20: けがで［出血］する | G20: する | H20: しゅっけつ
A21: 20 | B21: 8 | C21: 血 | D21: ケツ | E21: 2 | F21: ［血］が出る | H21: ち
A22: 21 | B22: 9 | C22: 決 | D22: ケツ | E22: 1 | F22: ［決心］をする | H22: けっしん
A23: 22 | B23: 9 | C23: 決 | D23: ケツ | E23: 1 | F23: 新年の［決意］ | H23: けつい
A24: 23 | B24: 9 | C24: 決 | D24: ケツ | E24: 2 | F24: ［決］まりを守る | G24: まり | H24: き
A25: 24 | B25: 10 | C25: 研 | D25: ケン | E25: 1 | F25: ことばの［研究］ | H25: けんきゅう
A26: 25 | B26: 10 | C26: 研 | D26: ケン | E26: 1 | F26: [研]しゅうを受ける | G26: しゅう | H26: けん
A27: 26 | B27: 11 | C27: 県 | D27: ケン | E27: 1 | F27: ［県］の公園 | H27: けん
A28: 27 | B28: 11 | C28: 県 | D28: ケン | E28: 1 | F28: ［県立］体育館 | H28: けんりつ
A29: 28 | B29: 12 | C29: 庫 | D29: コ | E29: 1 | F29: ［車庫］に入れる | H29: しゃこ
A30: 29 | B30: 12 | C30: 庫 | D30: コ | E30: 1 | F30: 学級［文庫］ | H30: ぶんこ
A31: 30 | B31: 13 | C31: 湖 | D31: コ | E31: 1 | F31: ［湖上］の船 | H31: こじょう | I31: ☆
A32: 31 | B32: 13 | C32: 湖 | D32: コ | E32: 2 | F32: 大きな［湖］ | H32: みずうみ
A33: 32 | B33: 13 | C33: 湖 | D33: コ | E33: 2 | F33: ［湖］のほとり | H33: みずうみ
A34: 33 | B34: 14 | C34: 向 | D34: コウ | E34: 1 | F34: 意よくの［向上］ | H34: こうじょう
A35: 34 | B35: 14 | C35: 向 | D35: コウ | E35: 2 | F35: ［向］かい風の中 | G35: かい | H35: む
A36: 35 | B36: 14 | C36: 向 | D36: コウ | E36: 2 | F36: そっぽを［向］く | G36: く | H36: む
A37: 36 | B37: 15 | C37: 幸 | D37: コウ | E37: 1 | F37: ふ幸中の［幸］いだ | G37: い | H37: さいわ
A38: 37 | B38: 15 | C38: 幸 | D38: コウ | E38: 2 | F38: ［幸］せにくらす | G38: せ | H38: しあわ
A39: 38 | B39: 16 | C39: 港 | D39: コウ | E39: 1 | F39: 船が［入港］する | G39: する | H39: にゅうこう
A40: 39 | B40: 16 | C40: 港 | D40: コウ | E40: 1 | F40: ［空港］につく | H40: くうこう
A41: 40 | B41: 16 | C41: 港 | D41: コウ | E41: 2 | F41: ［港町］の人々 | H41: みなとまち
A42: 41 | B42: 17 | C42: 号 | D42: ゴウ | E42: 1 | F42: バスの［一号］車 | G42: 車 | H42: いちごう
A43: 42 | B43: 17 | C43: 号 | D43: ゴウ | E43: 1 | F43: メイフラワー［号］に乗る | H43: ごう
A44: 43 | B44: 18 | C44: 根 | D44: コン | E44: 1 | F44: チューリップの［球根］ | H44: きゅうこん
A45: 44 | B45: 18 | C45: 根 | D45: コン | E45: 2 | F45: ［根］をはる | H45: ね
A46: 45 | B46: 18 | C46: 根 | D46: コン | E46: 2 | F46: ［根強］い人気 | G46: い | H46: ねづよ
A47: 46 | B47: 19 | C47: 祭 | D47: サイ | E47: 1 | F47: ［体育祭］の行事 | H47: たいいくさい
A48: 47 | B48: 19 | C48: 祭 | D48: サイ | E48: 2 | F48: ［祭］りばやし | G48: り | H48: まつ
A49: 48 | B49: 20 | C49: 皿 | D49: さら | E49: 2 | F49: ［皿］をわる | H49: さら
A50: 49 | B50: 20 | C50: 皿 | D50: さら | E50: 2 | F50: スープ［皿］ | H50: ざら
A51: 50 | B51: 21 | C51: 仕 | D51: シ | E51: 1 | F51: ［仕事］を決める | H51: しごと
A52: 51 | B52: 21 | C52: 仕 | D52: シ | E52: 2 | F52: 王さまに［仕］える | G52: える | H52: つか
A53: 52 | B53: 22 | C53: 死 | D53: シ | E53: 1 | F53: ［生死］のさかいめ | H53: せいし
A54: 53 | B54: 22 | C54: 死 | D54: シ | E54: 2 | F54: ペットが［死］ぬ | G54: ぬ | H54: し
A55: 54 | B55: 23 | C55: 使 | D55: シ | E55: 1 | F55: ［天使］が下りてくる | H55: てんし
A56: 55 | B56: 23 | C56: 使 | D56: シ | E56: 1 | F56: 祭りの［使者］ | H56: ししゃ
A57: 56 | B57: 23 | C57: 使 | D57: シ | E57: 2 | F57: 神の［使］い | G57: い | H57: つか
A58: 57 | B58: 23 | C58: 使 | D58: シ | E58: 2 | F58: 運動場を［使］う | G58: う | H58: つか
A59: 58 | B59: 24 | C59: 始 | D59: シ | E59: 1 | F59: テストを［開始］する | G59: する | H59: かいし
A60: 59 | B60: 24 | C60: 始 | D60: シ | E60: 1 | F60: 工場が［始動］する | G60: する | H60: しどう | I60: ☆
A61: 60 | B61: 24 | C61: 始 | D61: シ | E61: 2 | F61: じゅぎょうを［始］める | G61: める | H61: はじ
A62: 61 | B62: 25 | C62: 指 | D62: シ | E62: 1 | F62: オーケストラの［指］き | G62: き | H62: し
A63: 62 | B63: 25 | C63: 指 | D63: ショウ | E63: 1 | F63: 相手を［指名］する | G63: する | H63: しめい
A64: 63 | B64: 25 | C64: 指 | D64: シ | E64: 2 | F64: つき［指］をする | H64: ゆび
A65: 64 | B65: 25 | C65: 指 | D65: シ | E65: 2 | F65: コンパスが北を［指］す | G65: す | H65: さ
A66: 65 | B66: 26 | C66: 歯 | D66: シ | E66: 1 | F66: ［歯科］けんしんの時間 | H66: しか
A67: 66 | B67: 26 | C67: 歯 | D67: シ | E67: 2 | F67: ［歯医者］に行く | H67: はいしゃ
A68: 67 | B68: 26 | C68: 歯 | D68: シ | E68: 1 | F68: にゅう［歯］が生える | H68: し
A69: 68 | B69: 26 | C69: 歯 | D69: シ | E69: 2 | F69: ［歯］がいたむ | H69: は
A70: 69 | B70: 27 | C70: 詩 | D70: シ | E70: 1 | F70: 長い［詩］を読む | H70: し
A71: 70 | B71: 27 | C71: 詩 | D71: シ | E71: 1 | F71: ［詩］を書く | H71: し
A72: 71 | B72: 28 | C72: 次 | D72: ジ | E72: 1 | F72: [次回]ちょうせんする | H72: じかい
A73: 72 | B73: 28 | C73: 次 | D73: ジ | E73: 1 | F73: ［目次］からさがす | H73: もくじ
A74: 73 | B74: 28 | C74: 次 | D74: ジ | E74: 2 | F74: ［次］のページ | H74: つぎ
A75: 74 | B75: 29 | C75: 事 | D75: ジ | E75: 1 | F75: 先生の［仕事］ | H75: しごと
A76: 75 | B76: 29 | C76: 事 | D76: ジ | E76: 2 | F76: 新しい［事］がら | G76: がら | H76: こと
A77: 76 | B77: 31 | C77: 式 | D77: シキ | E77: 1 | F77: 入学［式］のあいさつ | H77: しき
A78: 77 | B78: 31 | C78: 式 | D78: シキ | E78: 1 | F78: かけ算の［式］ | H78: しき
A79: 78 | B79: 31 | C79: 式 | D79: シキ | E79: 1 | F79: 新しい［方式］ | H79: ほうしき
A80: 79 | B80: 32 | C80: 実 | D80: ジツ | E80: 1 | F80: ［事実］をたしかめる | H80: じじつ
A81: 80 | B81: 32 | C81: 実 | D81: ジツ | E81: 1 | F81: ［実］けんはおもしろい | G81: けん | H81: じっ
A82: 81 | B82: 32 | C82: 実 | D82: ジツ | E82: 2 | F82: 木の［実］をとる | H82: み
A83: 82 | B83: 32 | C83: 実 | D83: ジツ | E83: 2 | F83: ［実］がなる | H83: み
A84: 83 | B84: 33 | C84: 写 | D84: シャ | E84: 1 | F84: ［写真］をとる | H84: しゃしん
A85: 84 | B85: 33 | C85: 写 | D85: シャ | E85: 1 | F85: 書き［写］した文字 | G85: した | H85: うつ
A86: 85 | B86: 34 | C86: 者 | D86: シャ | E86: 1 | F86: ［学者］の考え | H86: がくしゃ
A87: 86 | B87: 34 | C87: 者 | D87: シャ | E87: 2 | F87: ［何者］かがいる | H87: なにもの
A88: 87 | B88: 35 | C88: 主 | D88: シュ | E88: 1 | F88: 店の［主人］ | H88: しゅじん
A89: 88 | B89: 35 | C89: 主 | D89: シュ | E89: 2 | F89: ［主］な生きもの | G89: な | H89: おも
A90: 89 | B90: 35 | C90: 主 | D90: シュ | E90: 2 | F90: 池の［主］の大ナマズ | H90: ぬし | I90: ☆
A91: 90 | B91: 36 | C91: 守 | D91: シュ | E91: 1 | F91: ボールを［死守］する | G91: する | H91: ししゅ | I91: ☆
A92: 91 | B92: 36 | C92: 守 | D92: シュ | E92: 2 | F92: 決まりを［守］る | G92: る | H92: まも
A93: 92 | B93: 36 | C93: 守 | D93: シュ | E93: 2 | F93: お[守]りを持つ | G93: り | H93: まも
A94: 93 | B94: 37 | C94: 取 | D94: シュ | E94: 1 | F94: テレビの［取］ざい | G94: ざい | H94: しゅ
A95: 94 | B95: 37 | C95: 取 | D95: シュ | E95: 2 | F95: おもちゃを［取］る | G95: る | H95: と
A96: 95 | B96: 38 | C96: 酒 | D96: シュ | E96: 1 | F96: うめ［酒］を飲む | H96: しゅ
A97: 96 | B97: 38 | C97: 酒 | D97: シュ | E97: 2 | F97: ［酒］のさかな | H97: さけ
A98: 97 | B98: 40 | C98: 州 | D98: シュウ | E98: 1 | F98: ［九州］のいとこ | H98: きゅうしゅう
A99: 98 | B99: 40 | C99: 州 | D99: シュウ | E99: 1 | F99: [本州]へわたる | H99: ほんしゅう
A100: 99 | B100: 41 | C100: 拾 | D100: シュウ | E100: 2 | F100: さいふを［拾］う | G100: う | H100: ひろ
A101: 100 | B101: 42 | C101: 終 | D101: シュウ | E101: 1 | F101: ［終点］まで行く | H101: しゅうてん
A102: 101 | B102: 42 | C102: 終 | D102: シュウ | E102: 2 | F102: 宿題を［終］える | G102: える | H102: お
A103: 102 | B103: 43 | C103: 習 | D103: シュウ | E103: 1 | F103: 毎日の［習］かん | G103: かん | H103: しゅう
A104: 103 | B104: 43 | C104: 習 | D104: シュウ | E104: 2 | F104: ピアノを［習］う | G104: う | H104: なら
A105: 104 | B105: 43 | C105: 習 | D105: シュウ | E105: 2 | F105: 土地の［習］わし | G105: わし | H105: なら | I105: ☆
A106: 105 | B106: 44 | C106: 集 | D106: シュウ | E106: 1 | F106: ［集合］場所を決める | H106: しゅうごう
A107: 106 | B107: 44 | C107: 集 | D107: シュウ | E107: 1 | F107: プルタブを［集］める | G107: める | H107: あつ
A108: 107 | B108: 44 | C108: 集 | D108: シュウ | E108: 2 | F108: 人がたくさん［集］まる | G108: まる | H108: あつ
A109: 108 | B109: 44 | C109: 集 | D109: シュウ | E109: 1 | F109: 文学[全集]を買う | H109: ぜんしゅう | I109: ☆
A110: 109 | B110: 45 | C110: 住 | D110: ジュウ | E110: 1 | F110: ［住所］と名前を書く | H110: じゅうしょ
A111: 110 | B111: 45 | C111: 住 | D111: ジュウ | E111: 2 | F111: マンションに［住］む | G111: む | H111: す
A112: 111 | B112: 46 | C112: 重 | D112: ジュウ | E112: 1 | F112: ［体重］をはかる | H112: たいじゅう
A113: 112 | B113: 46 | C113: 重 | D113: ジュウ | E113: 2 | F113: 行事が［重］なる | G113: なる | H113: かさ
A114: 113 | B114: 47 | C114: 宿 | D114: シュク | E114: 1 | F114: ［宿］はく先をさがす | G114: はく | H114: しゅく
A115: 114 | B115: 47 | C115: 宿 | D115: シュク | E115: 2 | F115: ［宿］にとまる | H115: やど
A116: 115 | B116: 48 | C116: 所 | D116: ショ | E116: 1 | F116: ［所定］の場所におく | H116: しょてい
A117: 116 | B117: 48 | C117: 所 | D117: ショ | E117: 2 | F117: すてきな［台所］ | H117: だいどころ
A118: 117 | B118: 49 | C118: 暑 | D118: ショ | E118: 1 | F118: ［暑中］見まい | H118: しょちゅう
A119: 118 | B119: 49 | C119: 暑 | D119: ショ | E119: 2 | F119: たえられない［暑］さ | G119: さ | H119: あつ
A120: 119 | B120: 50 | C120: 助 | D120: ジョ | E120: 1 | F120: ［助手］が来る | H120: じょしゅ
A121: 120 | B121: 50 | C121: 助 | D121: ジョ | E121: 2 | F121: 友だちを［助］ける | G121: ける | H121: たす
A122: 121 | B122: 50 | C122: 助 | D122: ジョ | E122: 2 | F122: ［助］けをもとめる | G122: け | H122: たす
A123: 122 | B123: 51 | C123: 昭 | D123: ショウ | E123: 1 | F123: ［昭］わ時代 | G123: わ | H123: しょう
A124: 123 | B124: 52 | C124: 消 | D124: ショウ | E124: 1 | F124: 早く［消火］する | G124: する | H124: しょうか
A125: 124 | B125: 52 | C125: 消 | D125: ショウ | E125: 2 | F125: 火が［消］える | G125: える | H125: き
A126: 125 | B126: 53 | C126: 商 | D126: ショウ | E126: 1 | F126: ［商店］がいへ行く | G126: がい | H126: しょうてん
A127: 126 | B127: 53 | C127: 商 | D127: ショウ | E127: 1 | F127: ［商売］をする | H127: しょうばい
A128: 127 | B128: 53 | C128: 商 | D128: ショウ | E128: 1 | F128: [商人]に会う | H128: しょうにん
A129: 128 | B129: 54 | C129: 章 | D129: ショウ | E129: 1 | F129: お話のさい終［章］ | H129: しょう
A130: 129 | B130: 55 | C130: 勝 | D130: ショウ | E130: 1 | F130: ［全勝］をする | H130: ぜんしょう
A131: 130 | B131: 55 | C131: 勝 | D131: ショウ | E131: 2 | F131: 大会で［勝］つ | G131: つ | H131: か
A132: 131 | B132: 56 | C132: 乗 | D132: ジョウ | E132: 1 | F132: ［乗馬］をたのしむ | H132: じょうば
A133: 132 | B133: 56 | C133: 乗 | D133: ジョウ | E133: 2 | F133: 船に［乗］る | G133: る | H133: の
A134: 133 | B134: 57 | C134: 植 | D134: ショク | E134: 1 | F134: 森林の［植］ぶつ | G134: ぶつ | H134: しょく
A135: 134 | B135: 57 | C135: 植 | D135: ショク | E135: 2 | F135: 木を［植］える | G135: える | H135: う
A136: 135 | B136: 58 | C136: 申 | D136: シン | E136: 2 | F136: 一言［申］し上げる | G136: し | H136: もう
A137: 136 | B137: 58 | C137: 申 | D137: シン | E137: 2 | F137: 入会を［申］しこむ | G137: しこむ | H137: もう
A138: 137 | B138: 59 | C138: 身 | D138: シン | E138: 1 | F138: ［長身］の人 | H138: ちょうしん
A139: 138 | B139: 59 | C139: 身 | D139: シン | E139: 2 | F139: ［身］の上話 | G139: の上 | H139: み
A140: 139 | B140: 60 | C140: 神 | D140: シン | E140: 1 | F140: ギリシア［神話］ | H140: しんわ
A141: 140 | B141: 60 | C141: 神 | D141: シン | E141: 1 | F141: ［神社］にまいる | H141: じんじゃ
A142: 141 | B142: 60 | C142: 神 | D142: シン | E142: 2 | F142: トイレの［神］さま | G142: さま | H142: かみ
A143: 142 | B143: 61 | C143: 真 | D143: シン | E143: 1 | F143: ［真］けんにがんばる | G143: けん | H143: しん
A144: 143 | B144: 61 | C144: 真 | D144: シン | E144: 2 | F144: ［真］っ暗やみ | G144: っ暗 | H144: ま
A145: 144 | B145: 61 | C145: 真 | D145: シン | E145: 2 | F145: ［真心］をこめる | H145: まごころ
A146: 145 | B146: 62 | C146: 深 | D146: シン | E146: 1 | F146: ［深夜］の町 | H146: しんや | I146: ☆
A147: 146 | B147: 62 | C147: 深 | D147: シン | E147: 2 | F147: ［深］い谷のそこ | G147: い | H147: ふか
A148: 147 | B148: 63 | C148: 進 | D148: シン | E148: 1 | F148: 日々［進歩］する | G148: する | H148: しんぽ
A149: 148 | B149: 63 | C149: 進 | D149: シン | E149: 2 | F149: どんどん［進］む | G149: む | H149: すす
A150: 149 | B150: 64 | C150: 世 | D150: セ | E150: 1 | F150: ［世］の中に出る | G150: の中 | H150: よ
A151: 150 | B151: 64 | C151: 世 | D151: セ | E151: 2 | F151: ［世界］の子どもたち | H151: せかい
A152: 151 | B152: 65 | C152: 整 | D152: セイ | E152: 1 | F152: 本の［整理］をする | H152: せいり
A153: 152 | B153: 65 | C153: 整 | D153: セイ | E153: 2 | F153: 本を［整］える | G153: える | H153: ととの
A154: 153 | B154: 65 | C154: 整 | D154: セイ | E154: 2 | F154: じゅんびが［整］う | G154: う | H154: ととの
A155: 154 | B155: 66 | C155: 昔 | D155: セキ | E155: 2 | F155: [昔話]を聞く | H155: むかしばなし
A156: 155 | B156: 66 | C156: 昔 | D156: セキ | E156: 2 | F156: ［昔］のくらし | H156: むかし
A157: 156 | B157: 67 | C157: 全 | D157: ゼン | E157: 1 | F157: ［全体］にわたる | H157: ぜんたい
A158: 157 | B158: 67 | C158: 全 | D158: ゼン | E158: 1 | F158: クラス［全員］ | H158: ぜんいん
A159: 158 | B159: 67 | C159: 全 | D159: ゼン | E159: 2 | F159: ［全］く知らない | G159: く | H159: まった
A160: 159 | B160: 67 | C160: 全 | D160: ゼン | E160: 2 | F160: ［全］て手ばなす | G160: て | H160: すべ
A161: 160 | B161: 68 | C161: 相 | D161: ソウ | E161: 1 | F161: グループで［相談］する | G161: する | H161: そうだん
A162: 161 | B162: 68 | C162: 相 | D162: ソウ | E162: 2 | F162: ［相手］にしない | H162: あいて
A163: 162 | B163: 69 | C163: 送 | D163: ソウ | E163: 1 | F163: 車で［送］げいしてもらう | G163: げい | H163: そう
A164: 163 | B164: 69 | C164: 送 | D164: ソウ | E164: 2 | F164: プレゼントを［送］る | G164: る | H164: おく
A165: 164 | B165: 70 | C165: 想 | D165: ソウ | E165: 1 | F165: ［感想］をのべる | H165: かんそう
A166: 165 | B166: 71 | C166: 息 | D166: ソク | E166: 1 | F166: ［休息］をとる | H166: きゅうそく
A167: 166 | B167: 71 | C167: 息 | D167: ソク | E167: 1 | F167: ［安息］日をとる | G167: 日 | H167: あんそく | I167: ☆
A168: 167 | B168: 71 | C168: 息 | D168: ソク | E168: 2 | F168: ［息］をはく | H168: いき
A169: 168 | B169: 72 | C169: 速 | D169: ソク | E169: 1 | F169: ［時速］六十キロ | H169: じそく
A170: 169 | B170: 72 | C170: 速 | D170: ソク | E170: 2 | F170: ［速］く走る | G170: く | H170: はや
A171: 170 | B171: 73 | C171: 族 | D171: ゾク | E171: 1 | F171: ［家族］と出かける | H171: かぞく
A172: 171 | B172: 73 | C172: 族 | D172: ゾク | E172: 1 | F172: ［水族館］に行く | H172: すいぞくかん
A173: 172 | B173: 74 | C173: 他 | D173: タ | E173: 1 | F173: その［他］の意見 | H173: た
A174: 173 | B174: 74 | C174: 他 | D174: タ | E174: 2 | F174: ［他］にありませんか | H174: ほか
A175: 174 | B175: 75 | C175: 打 | D175: ダ | E175: 1 | F175: ［打開］さくを考える | G175: さく | H175: だかい | I175: ☆
A176: 175 | B176: 75 | C176: 打 | D176: ダ | E176: 2 | F176: くぎを［打］つ | G176: つ | H176: う
A177: 176 | B177: 76 | C177: 対 | D177: タイ | E177: 1 | F177: ［対立］した意見 | G177: した | H177: たいりつ
A178: 177 | B178: 76 | C178: 対 | D178: タイ | E178: 1 | F178: ３［対］１で勝つ | H178: たい
A179: 178 | B179: 76 | C179: 対 | D179: タイ | E179: 1 | F179: はん[対]の意見 | H179: たい
A180: 179 | B180: 77 | C180: 待 | D180: タイ | E180: 1 | F180: ［期待］して見守る | G180: して | H180: きたい
A181: 180 | B181: 77 | C181: 待 | D181: タイ | E181: 2 | F181: ［待］ちぼうけをくらう | G181: ち | H181: ま
A182: 181 | B182: 77 | C182: 待 | D182: タイ | E182: 2 | F182: ［待］ち遠しい思い | G182: ち | H182: ま
A183: 182 | B183: 78 | C183: 代 | D183: ダイ | E183: 1 | F183: 母親の［代理］ | H183: だいり
A184: 183 | B184: 78 | C184: 代 | D184: ダイ | E184: 1 | F184: ［世代］がちがう | H184: せだい
A185: 184 | B185: 78 | C185: 代 | D185: ダイ | E185: 1 | F185: ［交代］をする | H185: こうたい
A186: 185 | B186: 78 | C186: 代 | D186: ダイ | E186: 2 | F186: 君が［代］を歌う | H186: よ
A187: 186 | B187: 78 | C187: 代 | D187: ダイ | E187: 2 | F187: ピッチャーを［代］える | G187: える | H187: か
A188: 187 | B188: 78 | C188: 代 | D188: ダイ | E188: 2 | F188: ［代］わりに行きます | G188: わり | H188: か
A189: 188 | B189: 79 | C189: 第 | D189: ダイ | E189: 1 | F189: ［第一号］のホームラン | H189: だいいちごう
A190: 189 | B190: 80 | C190: 題 | D190: ダイ | E190: 1 | F190: ［宿題］をする | H190: しゅくだい
A191: 190 | B191: 80 | C191: 題 | D191: ダイ | E191: 1 | F191: すきな本の［題名］ | H191: だいめい
A192: 191 | B192: 80 | C192: 題 | D192: ダイ | E192: 1 | F192: ［問題］がむずかしい | H192: もんだい
A193: 192 | B193: 81 | C193: 炭 | D193: タン | E193: 1 | F193: ［石炭］をもやす | H193: せきたん
A194: 193 | B194: 81 | C194: 炭 | D194: タン | E194: 2 | F194: ［炭］をやく | H194: すみ
A195: 194 | B195: 82 | C195: 短 | D195: タン | E195: 1 | F195: 一長［一短］ある | H195: いったん
A196: 195 | B196: 82 | C196: 短 | D196: タン | E196: 2 | F196: ［短］いひも | G196: い | H196: みじか
A197: 196 | B197: 83 | C197: 談 | D197: ダン | E197: 1 | F197: 先生に［相談］をする | H197: そうだん
A198: 197 | B198: 84 | C198: 着 | D198: チャク | E198: 1 | F198: 上手に［着地］する | G198: する | H198: ちゃくち
A199: 198 | B199: 84 | C199: 着 | D199: チャク | E199: 2 | F199: 駅に［着］く | G199: く | H199: つ
A200: 199 | B200: 84 | C200: 着 | D200: チャク | E200: 2 | F200: ふくを［着］る | G200: る | H200: き
... 45 more rows

Sheet 漢字書き
A1: 通し番号 | B1: 問題番号 | C1: 漢字 | D1: 読み | E1: 音訓 | F1: 問題 | G1: 送り仮名 | H1: 漢字 | I1: 間違えやすい漢字
A2: 1 | B2: 1 | C2: 銀 | D2: ギン | E2: 1 | F2: ［ギン］メダルをとる | G2: メダル | H2: 銀
A3: 2 | B3: 1 | C3: 銀 | D3: ギン | E3: 1 | F3: ［ギン］のスプーン | H3: 銀
A4: 3 | B4: 1 | C4: 銀 | D4: ギン | E4: 1 | F4: ［ギンコウ］の前 | H4: 銀行
A5: 4 | B5: 2 | C5: 区 | D5: ク | E5: 1 | F5: ［クギ］りをつける | G5: り | H5: 区切
A6: 5 | B6: 2 | C6: 区 | D6: ク | E6: 1 | F6: ［チク］の会合に出る | H6: 地区
A7: 6 | B7: 3 | C7: 苦 | D7: ク | E7: 1 | F7: ［クシン］して作る | G7: して | H7: 苦心 | I7: ☆
A8: 7 | B8: 3 | C8: 苦 | D8: ク | E8: 2 | F8: ［クル］しい思いをする | G8: しい | H8: 苦
A9: 8 | B9: 3 | C9: 苦 | D9: ク | E9: 2 | F9: ［ニガ］いくすり | G9: い | H9: 苦
A10: 9 | B10: 4 | C10: 具 | D10: グ | E10: 1 | F10: ［ドウグ］を大切にする | H10: 道具
A11: 10 | B11: 4 | C11: 具 | D11: グ | E11: 1 | F11: 絵の［グ］でぬる | H11: 具
A12: 11 | B12: 5 | C12: 君 | D12: クン | E12: 1 | F12: ［クンシュ］せいの国 | G12: せい | H12: 君主 | I12: ☆
A13: 12 | B13: 5 | C13: 君 | D13: クン | E13: 2 | F13: ［キミ］も来ないか | H13: 君
A14: 13 | B14: 6 | C14: 係 | D14: ケイ | E14: 1 | F14: 君とはかん［ケイ］ない | G14: ない | H14: 係
A15: 14 | B15: 6 | C15: 係 | D15: ケイ | E15: 2 | F15: 教科の［カカリ］を決める | H15: 係
A16: 15 | B16: 6 | C16: 係 | D16: ケイ | E16: 2 | F16: 安全に［カカ］る | G16: る | H16: 係
A17: 16 | B17: 7 | C17: 軽 | D17: ケイ | E17: 1 | F17: ［ケイ］自どう車 | H17: 軽
A18: 17 | B18: 7 | C18: 軽 | D18: ケイ | E18: 1 | F18: ［ケイ］かいなステップ | G18: かいな | H18: 軽 | I18: ☆
A19: 18 | B19: 7 | C19: 軽 | D19: ケイ | E19: 2 | F19: ［カル］く考えすぎた | G19: く | H19: 軽
A20: 19 | B20: 7 | C20: 軽 | D20: ケイ | E20: 2 | F20: ［カル］い運どう | G20: い | H20: 軽
A21: 20 | B21: 7 | C21: 軽 | D21: ケイ | E21: 2 | F21: [テガル]に持ち運ぶ | G21: に | H21: 手軽
A22: 21 | B22: 8 | C22: 血 | D22: ケツ | E22: 1 | F22: けがで［シュッケツ］する | G22: する | H22: 出血
A23: 22 | B23: 8 | C23: 血 | D23: ケツ | E23: 2 | F23: けがで［チ］が出る | H23: 血
A24: 23 | B24: 9 | C24: 決 | D24: ケツ | E24: 1 | F24: やめようと［ケツイ］する | G24: する | H24: 決意
A25: 24 | B25: 9 | C25: 決 | D25: ケツ | E25: 2 | F25: せきを［キ］める | G25: める | H25: 決
A26: 25 | B26: 10 | C26: 研 | D26: ケン | E26: 1 | F26: 自由［ケンキュウ］をする | H26: 研究
A27: 26 | B27: 10 | C27: 研 | D27: ケン | E27: 1 | F27: [ケン]しゅうを受ける | G27: しゅう | H27: 研
A28: 27 | B28: 11 | C28: 県 | D28: ケン | E28: 1 | F28: 広島［ケン］の町 | H28: 県
A29: 28 | B29: 12 | C29: 庫 | D29: コ | E29: 1 | F29: 学級［ブンコ］ | H29: 文庫
A30: 29 | B30: 12 | C30: 庫 | D30: コン | E30: 1 | F30: そう［コ］にかたづける | H30: 庫
A31: 30 | B31: 13 | C31: 湖 | D31: コ | E31: 1 | F31: 日本さい大のびわ［コ］ | H31: 湖
A32: 31 | B32: 13 | C32: 湖 | D32: コ | E32: 2 | F32: ［ミズウミ］にうかぶ島 | H32: 湖
A33: 32 | B33: 13 | C33: 湖 | D33: コ | E33: 2 | F33: 白鳥の［ミズウミ］ | H33: 湖
A34: 33 | B34: 14 | C34: 向 | D34: コウ | E34: 1 | F34: 学力の［コウジョウ］ | H34: 向上
A35: 34 | B35: 14 | C35: 向 | D35: コウ | E35: 2 | F35: 北を［ム］く | G35: く | H35: 向
A36: 35 | B36: 14 | C36: 向 | D36: コウ | E36: 2 | F36: せを［ム］ける | G36: ける | H36: 向
A37: 36 | B37: 14 | C37: 向 | D37: コウ | E37: 2 | F37: 学校に［ム］かう | G37: かう | H37: 向
A38: 37 | B38: 15 | C38: 幸 | D38: コウ | E38: 1 | F38: ［コウ］ふくをまねくネコ | G38: ふく | H38: 幸
A39: 38 | B39: 15 | C39: 幸 | D39: コウ | E39: 2 | F39: ［シアワ］せな人 | G39: せな | H39: 幸
A40: 39 | B40: 16 | C40: 港 | D40: コウ | E40: 1 | F40: 船が［シュッコウ］する | G40: する | H40: 出航
A41: 40 | B41: 16 | C41: 港 | D41: コウ | E41: 1 | F41: ［ミナト］めぐり | H41: 港
A42: 41 | B42: 16 | C42: 港 | D42: コウ | E42: 2 | F42: 船が［ミナト］に着く | H42: 港
A43: 42 | B43: 17 | C43: 号 | D43: ゴウ | E43: 1 | F43: ［ゴウ］れいをかける | G43: れい | H43: 号
A44: 43 | B44: 17 | C44: 号 | D44: ゴウ | E44: 1 | F44: 台風三［ゴウ］が来る | H44: 号
A45: 44 | B45: 18 | C45: 根 | D45: コン | E45: 1 | F45: 花の［キュウコン］ | H45: 球根 | I45: ☆
A46: 45 | B46: 18 | C46: 根 | D46: コン | E46: 2 | F46: ［ネモト］のざっ草をぬく | H46: 根元
A47: 46 | B47: 18 | C47: 根 | D47: コン | E47: 2 | F47: 草が［ネ］をはる | H47: 根
A48: 47 | B48: 19 | C48: 祭 | D48: サイ | E48: 1 | F48: ［ブンカサイ］へのさんか | H48: 文化祭
A49: 48 | B49: 19 | C49: 祭 | D49: サイ | E49: 2 | F49: ［マツ］りにさんかする | G49: り | H49: 祭
A50: 49 | B50: 20 | C50: 皿 | D50: さら | E50: 2 | F50: ［サラ］回しの曲げい | G50: 回し | H50: 皿
A51: 50 | B51: 20 | C51: 皿 | D51: さら | E51: 2 | F51: ［サラ］にもりつける | H51: 皿
A52: 51 | B52: 21 | C52: 仕 | D52: シ | E52: 1 | F52: 父母の［シゴト］ | H52: 仕事
A53: 52 | B53: 22 | C53: 死 | D53: シ | E53: 1 | F53: 火事で［シシャ］が出る | H53: 死者
A54: 53 | B54: 22 | C54: 死 | D54: ｼ | E54: 1 | F54: ひっ［シ］で走る | H54: 死
A55: 54 | B55: 22 | C55: 死 | D55: ｼ | E55: 2 | F55: ［シ］に水を取る | G55: に水 | H55: 死 | I55: ☆
A56: 55 | B56: 23 | C56: 使 | D56: シ | E56: 1 | F56: 運どう場を［シヨウ］する | G56: する | H56: 使用
A57: 56 | B57: 23 | C57: 使 | D57: シ | E57: 2 | F57: 道具を［ツカ］う | G57: う | H57: 使
A58: 57 | B58: 24 | C58: 始 | D58: シ | E58: 1 | F58: 作業を［カイシ］する | G58: する | H58: 開始
A59: 58 | B59: 24 | C59: 始 | D59: シ | E59: 2 | F59: そうじを［ハジ］める | G59: める | H59: 始
A60: 59 | B60: 24 | C60: 始 | D60: シ | E60: 2 | F60: ゲームが［ハジ］まる | G60: まる | H60: 始
A61: 60 | B61: 25 | C61: 指 | D61: シ | E61: 1 | F61: 動きを［シ］じする | G61: じ | H61: 指
A62: 61 | B62: 25 | C62: 指 | D62: シ | E62: 2 | F62: ［オヤユビ］ひめ | G62: ひめ | H62: 親指
A63: 62 | B63: 25 | C63: 指 | D63: シ | E63: 2 | F63: 南を［サ］す | G63: す | H63: 指
A64: 63 | B64: 26 | C64: 歯 | D64: シ | E64: 1 | F64: にゅう［シ］がぬける | H64: 歯
A65: 64 | B65: 26 | C65: 歯 | D65: シ | E65: 2 | F65: ［ハ］がいたい | H65: 歯
A66: 65 | B66: 26 | C66: 歯 | D66: シ | E66: 2 | F66: ［ハ］医者に行く | G66: 医者 | H66: 歯
A67: 66 | B67: 27 | C67: 詩 | D67: シ | E67: 1 | F67: ［シ］を書く | H67: 詩
A68: 67 | B68: 28 | C68: 次 | D68: ジ | E68: 1 | F68: ［ジキ］会長になる | G68: 会長 | H68: 次期
A69: 68 | B69: 28 | C69: 次 | D69: ジ | E69: 2 | F69: ［ツギ］の人をよぶ | H69: 次
A70: 69 | B70: 28 | C70: 次 | D70: ジ | E70: 2 | F70: 去年に［ツ］ぐ出場 | G70: ぐ | H70: 次
A71: 70 | B71: 29 | C71: 事 | D71: ジ | E71: 1 | F71: 県［チジ］をつとめる | H71: 知事 | I71: ☆
A72: 71 | B72: 29 | C72: 事 | D72: ジ | E72: 1 | F72: 道ろ［コウジ］ | H72: 工事
A73: 72 | B73: 29 | C73: 事 | D73: ジ | E73: 2 | F73: ［オオゴト］になる | H73: 大事 | I73: ☆
A74: 73 | B74: 30 | C74: 持 | D74: ジ | E74: 2 | F74: にもつを［モ］つ | G74: つ | H74: 持
A75: 74 | B75: 31 | C75: 式 | D75: シキ | E75: 1 | F75: ［ニュウガクシキ］に出る | H75: 入学式
A76: 75 | B76: 31 | C76: 式 | D76: シキ | E76: 1 | F76: わり算の［シキ］ | H76: 式
A77: 76 | B77: 31 | C77: 式 | D77: シキ | E77: 1 | F77: ［シキジョウ］に入る | H77: 式場
A78: 77 | B78: 32 | C78: 実 | D78: ジツ | E78: 1 | F78: ［ジツリョク］を出し切る | H78: 実力
A79: 78 | B79: 32 | C79: 実 | D79: ジツ | E79: 2 | F79: くだものの［ミ］がなる | H79: 実
A80: 79 | B80: 32 | C80: 実 | D80: ジツ | E80: 2 | F80: ［ミノ］りの秋 | G80: り | H80: 実
A81: 80 | B81: 33 | C81: 写 | D81: シャ | E81: 1 | F81: 記ねん［シャシン］ | H81: 写真
A82: 81 | B82: 33 | C82: 写 | D82: シャ | E82: 1 | F82: ［ショシャ］の時間 | H82: 書写
A83: 82 | B83: 33 | C83: 写 | D83: シャ | E83: 1 | F83: 文字を書き［ウツ］す | G83: す | H83: 写
A84: 83 | B84: 34 | C84: 者 | D84: シャ | E84: 1 | F84: ［ガクシャ］になる | H84: 学者
A85: 84 | B85: 34 | C85: 者 | D85: シャ | E85: 2 | F85: あわて［モノ］だ | H85: 者
A86: 85 | B86: 35 | C86: 主 | D86: シュ | E86: 1 | F86: ［シュジン］にしたがう | H86: 主人
A87: 86 | B87: 35 | C87: 主 | D87: シュ | E87: 2 | F87: ［オモ］な仕事 | G87: な | H87: 主
A88: 87 | B88: 35 | C88: 主 | D88: シュ | E88: 2 | F88: 池の［ヌシ］のなまず | H88: 主
A89: 88 | B89: 36 | C89: 守 | D89: シュ | E89: 1 | F89: 宝を［シシュ］する | G89: する | H89: 死守 | I89: ☆
A90: 89 | B90: 36 | C90: 守 | D90: シュ | E90: 2 | F90: 妹を［マモ］る | G90: る | H90: 守
A91: 90 | B91: 36 | C91: 守 | D91: シュ | E91: 2 | F91: お［マモ]りをつける | G91: り | H91: 守
A92: 91 | B92: 37 | C92: 取 | D92: シュ | E92: 1 | F92: テレビの［シュ］ざい | G92: ざい | H92: 取
A93: 92 | B93: 37 | C93: 取 | D93: シュ | E93: 2 | F93: 話題に［ト］り上げる | G93: り | H93: 取
A94: 93 | B94: 38 | C94: 酒 | D94: シュ | E94: 1 | F94: うめ［シュ］を作る | H94: 酒
A95: 94 | B95: 38 | C95: 酒 | D95: シュ | E95: 2 | F95: お［サケ］を飲む | H95: 酒
A96: 95 | B96: 38 | C96: 酒 | D96: シュ | E96: 2 | F96: ［サカヤ］に買いに行く | H96: 酒屋
A97: 96 | B97: 39 | C97: 受 | D97: ジュ | E97: 1 | F97: 書るいを［ジュリ］する | G97: する | H97: 受理 | I97: ☆
A98: 97 | B98: 39 | C98: 受 | D98: ジュ | E98: 2 | F98: しけんに［ウ］かる | G98: かる | H98: 受
A99: 98 | B99: 39 | C99: 受 | D99: ジュ | E99: 2 | F99: 仕事を引き［ウ］ける | G99: ける | H99: 受
A100: 99 | B100: 40 | C100: 州 | D100: シュウ | E100: 1 | F100: ［キュウシュウ］地方 | H100: 九州
A101: 100 | B101: 40 | C101: 州 | D101: シュウ | E101: 1 | F101: [ホンシュウ]にわたる | H101: 本州
A102: 101 | B102: 41 | C102: 拾 | D102: シュウ | E102: 2 | F102: ごみを［ヒロ］う | G102: う | H102: 拾
A103: 102 | B103: 41 | C103: 拾 | D103: シュウ | E103: 2 | F103: ［ヒロ］い集める | G103: い | H103: 拾
A104: 103 | B104: 42 | C104: 終 | D104: シュウ | E104: 1 | F104: ［シュウテン］の駅 | H104: 終点
A105: 104 | B105: 42 | C105: 終 | D105: シュウ | E105: 2 | F105: やっと［オ］わった | G105: わった | H105: 終
A106: 105 | B106: 43 | C106: 習 | D106: シュウ | E106: 1 | F106: ［シュウジ］の手本 | H106: 習字
A107: 106 | B107: 43 | C107: 習 | D107: シュウ | E107: 1 | F107: 教科のふく［シュウ］ | H107: 習
A108: 107 | B108: 43 | C108: 習 | D108: シュウ | E108: 2 | F108: 空手を［ナラ］う | G108: う | H108: 習
A109: 108 | B109: 43 | C109: 習 | D109: シュウ | E109: 2 | F109: ［テナラ］いをする | G109: い | H109: 手習
A110: 109 | B110: 44 | C110: 集 | D110: シュウ | E110: 1 | F110: ［シュウゴウ］する場所 | G110: する | H110: 集合
A111: 110 | B111: 44 | C111: 集 | D111: シュウ | E111: 2 | F111: 公園に［アツ］まる | G111: まる | H111: 集
A112: 111 | B112: 45 | C112: 住 | D112: ジュウ | E112: 1 | F112: ［ジュウショ］を書く | H112: 住所
A113: 112 | B113: 45 | C113: 住 | D113: ジュウ | E113: 2 | F113: 町に［ス］む | G113: む | H113: 住
A114: 113 | B114: 46 | C114: 重 | D114: ジュウ | E114: 1 | F114: ［タイジュウ］をはかる | H114: 体重
A115: 114 | B115: 46 | C115: 重 | D115: ジュウ | E115: 2 | F115: ［オモ］い石を持つ | G115: い | H115: 重
A116: 115 | B116: 46 | C116: 重 | D116: ジュウ | E116: 2 | F116: ［オモ］たいかばん | G116: たい | H116: 重
A117: 116 | B117: 46 | C117: 重 | D117: ジュウ | E117: 2 | F117: 茶わんを［カサ］ねる | G117: ねる | H117: 重
A118: 117 | B118: 47 | C118: 宿 | D118: シュク | E118: 1 | F118: ［シュクダイ］をすませる | H118: 宿題
A119: 118 | B119: 47 | C119: 宿 | D119: シュク | E119: 2 | F119: ［ヤド］で一休みする | H119: 宿
A120: 119 | B120: 47 | C120: 宿 | D120: シュク | E120: 2 | F120: ［ヤド］り木に鳥がとまる | G120: り木 | H120: 宿
A121: 120 | B121: 48 | C121: 所 | D121: ショ | E121: 1 | F121: わたしの［チョウショ］ | H121: 長所
A122: 121 | B122: 48 | C122: 所 | D122: ショ | E122: 1 | F122: ［バショ］が悪い | H122: 場所
A123: 122 | B123: 48 | C123: 所 | D123: ショ | E123: 2 | F123: ［トコロ］によって雨 | H123: 所
A124: 123 | B124: 49 | C124: 暑 | D124: ショウ | E124: 2 | F124: ［アツ］い日がつづく | G124: い | H124: 暑
A125: 124 | B125: 50 | C125: 助 | D125: ジョ | E125: 1 | F125: ［ジョソウ］をつけてとぶ | H125: 助走 | I125: ☆
A126: 125 | B126: 50 | C126: 助 | D126: ジョ | E126: 2 | F126: 妹を［タス］ける | G126: ける | H126: 助
A127: 126 | B127: 50 | C127: 助 | D127: ジョ | E127: 2 | F127: ［ジョソウ］をつける | H127: 助走 | I127: ☆
A128: 127 | B128: 51 | C128: 昭 | D128: ショウ | E128: 1 | F128: ［ショウ］わ生まれ | G128: わ | H128: 昭
A129: 128 | B129: 52 | C129: 消 | D129: ショウ | E129: 1 | F129: ［ショウカ］活どうをする | H129: 消火
A130: 129 | B130: 52 | C130: 消 | D130: ショウ | E130: 2 | F130: 火が［キ］える | G130: える | H130: 消
A131: 130 | B131: 53 | C131: 商 | D131: ショウ | E131: 1 | F131: ［ショウバイ］がうまくいく | H131: 商売
A132: 131 | B132: 54 | C132: 章 | D132: ショウ | E132: 1 | F132: うつくしい［ブンショウ］ | H132: 文章
A133: 132 | B133: 55 | C133: 勝 | D133: ショウ | E133: 1 | F133: ［ショウ］ぶをつける | G133: ぶ | H133: 勝
A134: 133 | B134: 55 | C134: 勝 | D134: ショウ | E134: 2 | F134: まけるが[カ]ち | G134: ち | H134: 勝
A135: 134 | B135: 55 | C135: 勝 | D135: ショウ | E135: 2 | F135: ジャンケンに［カ］つ | G135: つ | H135: 勝
A136: 135 | B136: 56 | C136: 乗 | D136: ジョウ | E136: 1 | F136: バスに［ジョウシャ］する | G136: する | H136: 乗車
A137: 136 | B137: 56 | C137: 乗 | D137: ジョウ | E137: 2 | F137: バスに［ノ］る | G137: る | H137: 乗
A138: 137 | B138: 56 | C138: 乗 | D138: ジョウ | E138: 2 | F138: 車に［ノ］せる | G138: せる | H138: 乗
A139: 138 | B139: 57 | C139: 植 | D139: ショク | E139: 1 | F139: ［ショクブツ］が育つ | H139: 植物
A140: 139 | B140: 57 | C140: 植 | D140: ショク | E140: 2 | F140: たねを［ウ］える | G140: える | H140: 植
A141: 140 | B141: 58 | C141: 申 | D141: シン | E141: 2 | F141: ［モウ］しこみ用紙 | G141: しこみ | H141: 申
A142: 141 | B142: 59 | C142: 身 | D142: シン | E142: 1 | F142: ［シンチョウ］がのびる | H142: 身長
A143: 142 | B143: 59 | C143: 身 | D143: シン | E143: 2 | F143: ［ミ］をすくめる | H143: 身
A144: 143 | B144: 60 | C144: 神 | D144: シン | E144: 1 | F144: ［シンワ］を読む | H144: 神話
A145: 144 | B145: 60 | C145: 神 | D145: シン | E145: 1 | F145: ［ジンジャ］にまいる | H145: 神社
A146: 145 | B146: 60 | C146: 神 | D146: シン | E146: 2 | F146: ［カミ］さまをおがむ | G146: さま | H146: 神
A147: 146 | B147: 60 | C147: 神 | D147: シン | E147: 2 | F147: 苦しい時の[カミ]だのみ | G147: だのみ | H147: 神
A148: 147 | B148: 61 | C148: 真 | D148: シン | E148: 1 | F148: ［シンジツ］を知る | H148: 真実
A149: 148 | B149: 61 | C149: 真 | D149: シン | E149: 2 | F149: ［マゴコロ］がつたわる | H149: 真心
A150: 149 | B150: 62 | C150: 深 | D150: シン | E150: 1 | F150: ［シンカイ］にすむ魚 | H150: 深海
A151: 150 | B151: 62 | C151: 深 | D151: シン | E151: 2 | F151: 友じょうを［フカ］める | G151: める | H151: 深
A152: 151 | B152: 62 | C152: 深 | D152: シン | E152: 2 | F152: うたがいが［フカ］まる | G152: まる | H152: 深
A153: 152 | B153: 62 | C153: 深 | D153: シン | E153: 2 | F153: ［フカ］い海のそこ | G153: い | H153: 深
A154: 153 | B154: 63 | C154: 進 | D154: シン | E154: 1 | F154: 科学が［シンポ］する | G154: する | H154: 進歩
A155: 154 | B155: 63 | C155: 進 | D155: シン | E155: 2 | F155: 話を［スス］める | G155: める | H155: 進
A156: 155 | B156: 63 | C156: 進 | D156: シン | E156: 2 | F156: 前に［スス］む | G156: む | H156: 進
A157: 156 | B157: 64 | C157: 世 | D157: セ | E157: 1 | F157: ［セカイ］いさん | H157: 世界
A158: 157 | B158: 64 | C158: 世 | D158: セ | E158: 2 | F158: ［ヨ］の中の仕組み | G158: の中 | H158: 世
A159: 158 | B159: 65 | C159: 整 | D159: セイ | E159: 1 | F159: つくえを［セイ］とんする | G159: とん | H159: 整
A160: 159 | B160: 65 | C160: 整 | D160: セイ | E160: 2 | F160: ふくそうを［トトノ］える | G160: える | H160: 整
A161: 160 | B161: 66 | C161: 昔 | D161: セキ | E161: 2 | F161: すきな［ムカシバナシ］ | H161: 昔話
A162: 161 | B162: 66 | C162: 昔 | D162: セキ | E162: 2 | F162: 今と［ムカシ］のちがい | H162: 昔
A163: 162 | B163: 67 | C163: 全 | D163: ゼン | E163: 1 | F163: ［ゼンタイ］を考える | H163: 全体
A164: 163 | B164: 67 | C164: 全 | D164: ゼン | E164: 2 | F164: ［スベ］てなくなる | G164: て | H164: 全
A165: 164 | B165: 67 | C165: 全 | D165: ゼン | E165: 2 | F165: ［マッタ］くわからない | G165: く | H165: 全
A166: 165 | B166: 68 | C166: 相 | D166: ソウ | E166: 1 | F166: ［テソウ］を見てうらなう | H166: 手相 | I166: ☆
A167: 166 | B167: 68 | C167: 相 | D167: ソウ | E167: 2 | F167: ［アイテ］の名前 | H167: 相手
A168: 167 | B168: 69 | C168: 送 | D168: ソウ | E168: 1 | F168: メールを［ソウ］しんする | G168: しん | H168: 送
A169: 168 | B169: 69 | C169: 送 | D169: ソウ | E169: 2 | F169: 駅まで［オク］る | G169: る | H169: 送
A170: 169 | B170: 70 | C170: 想 | D170: ソウ | E170: 1 | F170: いろいろな［クウソウ］ | H170: 空想
A171: 170 | B171: 71 | C171: 息 | D171: ソク | E171: 1 | F171: ［キュウソク］をとる | H171: 休息
A172: 171 | B172: 71 | C172: 息 | D172: ソク | E172: 2 | F172: ［イキ］がはずむ | H172: 息
A173: 172 | B173: 72 | C173: 速 | D173: ソク | E173: 1 | F173: 車の［ソクド］ | H173: 速度
A174: 173 | B174: 72 | C174: 速 | D174: ソク | E174: 2 | F174: 走る［ハヤ］さ | G174: さ | H174: 速
A175: 174 | B175: 72 | C175: 速 | D175: ソク | E175: 2 | F175: スピードが［ハヤ］まる | G175: まる | H175: 速
A176: 175 | B176: 73 | C176: 族 | D176: ゾク | E176: 1 | F176: ［カゾク］で出かける | H176: 家族
A177: 176 | B177: 73 | C177: 族 | D177: ゾク | E177: 1 | F177: 同じ［イチゾク］ | H177: 一族 | I177: ☆
A178: 177 | B178: 74 | C178: 他 | D178: タ | E178: 1 | F178: 赤の［タニン］ | H178: 他人
A179: 178 | B179: 74 | C179: 他 | D179: タ | E179: 1 | F179: その［タ］大ぜい | H179: 他
A180: 179 | B180: 74 | C180: 他 | D180: タ | E180: 2 | F180: ［ホカ］の考えを聞く | H180: 他
A181: 180 | B181: 75 | C181: 打 | D181: ダ | E181: 1 | F181: ［ダシャ］が交代する | H181: 打者
A182: 181 | B182: 75 | C182: 打 | D182: ダ | E182: 2 | F182: ヒットを［ウ］つ | G182: つ | H182: 打
A183: 182 | B183: 76 | C183: 対 | D183: タイ | E183: 1 | F183: はん［タイ］の意見 | H183: 対
A184: 183 | B184: 76 | C184: 対 | D184: タイ | E184: 1 | F184: 親子の［タイワ］ | H184: 対話
A185: 184 | B185: 77 | C185: 待 | D185: タイ | E185: 1 | F185: ［キタイ］をよせる | H185: 期待
A186: 185 | B186: 77 | C186: 待 | D186: タイ | E186: 2 | F186: 人を［マ］つ | G186: つ | H186: 待
A187: 186 | B187: 78 | C187: 代 | D187: ダイ | E187: 1 | F187: ［ダイキン］をはらう | H187: 代金
A188: 187 | B188: 78 | C188: 代 | D188: ダイ | E188: 1 | F188: クラスの［ダイヒョウ］ | H188: 代表
A189: 188 | B189: 78 | C189: 代 | D189: ダイ | E189: 2 | F189: 友だちの［カ］わり | G189: わり | H189: 代
A190: 189 | B190: 79 | C190: 第 | D190: ダイ | E190: 1 | F190: ［ダイ］一回の大会 | G190: 一回 | H190: 第
A191: 190 | B191: 80 | C191: 題 | D191: ダイ | E191: 1 | F191: 作文の［ダイメイ］ | H191: 題名
A192: 191 | B192: 81 | C192: 炭 | D192: タン | E192: 1 | F192: ［セキタン］をもやす | H192: 石炭 | I192: ☆
A193: 192 | B193: 81 | C193: 炭 | D193: タン | E193: 2 | F193: ［スミ］を買う | H193: 炭
A194: 193 | B194: 81 | C194: 炭 | D194: タン | E194: 2 | F194: ［スミビ］で魚をやく | H194: 炭火
A195: 194 | B195: 82 | C195: 短 | D195: タン | E195: 1 | F195: 長所と［タンショ］ | H195: 短所
A196: 195 | B196: 82 | C196: 短 | D196: タン | E196: 2 | F196: ［ミジカ］いえんぴつ | G196: い | H196: 短
A197: 196 | B197: 83 | C197: 談 | D197: ダン | E197: 1 | F197: ［ダンワ］室に入る | G197: 室 | H197: 談話 | I197: ☆
A198: 197 | B198: 83 | C198: 談 | D198: ダン | E198: 1 | F198: 兄に［ソウダン］する | G198: する | H198: 相談
A199: 198 | B199: 83 | C199: 談 | D199: ダン | E199: 1 | F199: じょう［ダン］を言う | H199: 談
A200: 199 | B200: 84 | C200: 着 | D200: チャク | E200: 1 | F200: ［イッチャク］でゴールだ | H200: 一着
... 37 more rows

Sheet 関数（読み）
B1: ランダム | C1: 順位
A2: 1 | B2: =RAND() -> 0.354047285 | C2: =RANK(B2,$B$2:$B$244) -> 167
A3: 2 | B3: =RAND() -> 0.03458179803 | C3: =RANK(B3,$B$2:$B$244) -> 240
A4: 3 | B4: 0.1438688297 | C4: 215
A5: 4 | B5: 0.2315715489 | C5: 198
A6: 5 | B6: 0.440673362 | C6: 143
A7: 6 | B7: 0.2026718857 | C7: 207
A8: 7 | B8: 0.2857940474 | C8: 184
A9: 8 | B9: 0.06084289436 | C9: 235
A10: 9 | B10: 0.1240302495 | C10: 224
A11: 10 | B11: 0.4161573206 | C11: 146
A12: 11 | B12: 0.3651044419 | C12: 162
A13: 12 | B13: 0.3171158353 | C13: 177
A14: 13 | B14: 0.9987643274 | C14: 2
A15: 14 | B15: 0.2995355446 | C15: 179
A16: 15 | B16: 0.4136219337 | C16: 148
A17: 16 | B17: 0.3668259284 | C17: 160
A18: 17 | B18: 0.765027065 | C18: 71
A19: 18 | B19: 0.6110259653 | C19: 107
A20: 19 | B20: 0.8252935013 | C20: 55
A21: 20 | B21: 0.3260910324 | C21: 174
A22: 21 | B22: 0.7876970924 | C22: 66
A23: 22 | B23: 0.05900980402 | C23: 236
A24: 23 | B24: 0.1795427682 | C24: 208
A25: 24 | B25: 0.3356904314 | C25: 172
A26: 25 | B26: 0.9668772063 | C26: 18
A27: 26 | B27: 0.4065714401 | C27: 152
A28: 27 | B28: 0.8983958759 | C28: 33
A29: 28 | B29: 0.652847775 | C29: 97
A30: 29 | B30: 0.163492171 | C30: 213
A31: 30 | B31: 0.5731862564 | C31: 121
A32: 31 | B32: 0.6077270914 | C32: 108
A33: 32 | B33: 0.1198067113 | C33: 225
A34: 33 | B34: 0.1292079812 | C34: 222
A35: 34 | B35: 0.3631221843 | C35: 163
A36: 35 | B36: 0.9083255242 | C36: 28
A37: 36 | B37: 0.9276635088 | C37: 25
A38: 37 | B38: 0.903227774 | C38: 31
A39: 38 | B39: 0.5970571001 | C39: 114
A40: 39 | B40: 0.007535683928 | C40: 243
A41: 40 | B41: 0.2318312745 | C41: 197
A42: 41 | B42: 0.2432673043 | C42: 195
A43: 42 | B43: 0.2286026621 | C43: 200
A44: 43 | B44: 0.4909648156 | C44: 136
A45: 44 | B45: 0.5393798122 | C45: 126
A46: 45 | B46: 0.5501450601 | C46: 124
A47: 46 | B47: 0.2269756734 | C47: 201
A48: 47 | B48: 0.07080366914 | C48: 233
A49: 48 | B49: 0.4297873793 | C49: 144
A50: 49 | B50: 0.8748620506 | C50: 40
A51: 50 | B51: 0.3763490062 | C51: 157
A52: 51 | B52: 0.4050652222 | C52: 153
A53: 52 | B53: 0.4791445847 | C53: 138
A54: 53 | B54: 0.1277394577 | C54: 223
A55: 54 | B55: 0.7153813663 | C55: 82
A56: 55 | B56: 0.6795598602 | C56: 91
A57: 56 | B57: 0.8150050309 | C57: 59
A58: 57 | B58: 0.04407675475 | C58: 239
A59: 58 | B59: 0.8494467296 | C59: 49
A60: 59 | B60: 0.7400302155 | C60: 76
A61: 60 | B61: 0.1156477032 | C61: 226
A62: 61 | B62: 0.9722125505 | C62: 14
A63: 62 | B63: 0.2340161809 | C63: 196
A64: 63 | B64: 0.9805838818 | C64: 7
A65: 64 | B65: 0.04781597072 | C65: 238
A66: 65 | B66: 0.8965241751 | C66: 34
A67: 66 | B67: =RAND() -> 0.1708091826 | C67: =RANK(B67,$B$2:$B$244) -> 211
A68: 67 | B68: 0.2214826817 | C68: 202
A69: 68 | B69: 0.6199514022 | C69: 104
A70: 69 | B70: 0.2886311988 | C70: 183
A71: 70 | B71: 0.421598518 | C71: 145
A72: 71 | B72: 0.3444988923 | C72: 171
A73: 72 | B73: 0.5517128276 | C73: 123
A74: 73 | B74: 0.1338081428 | C74: 221
A75: 74 | B75: 0.09290692998 | C75: 230
A76: 75 | B76: 0.2973254295 | C76: 180
A77: 76 | B77: 0.9137257051 | C77: 26
A78: 77 | B78: 0.3521711091 | C78: 168
A79: 78 | B79: 0.6987196886 | C79: 86
A80: 79 | B80: 0.4146405846 | C80: 147
A81: 80 | B81: 0.9700028649 | C81: 16
A82: 81 | B82: 0.8730727197 | C82: 43
A83: 82 | B83: 0.04792188189 | C83: 237
A84: 83 | B84: 0.8499424077 | C84: 48
A85: 84 | B85: 0.742246383 | C85: 74
A86: 85 | B86: 0.97353944 | C86: 13
A87: 86 | B87: 0.1382725571 | C87: 218
A88: 87 | B88: 0.8622022283 | C88: 47
A89: 88 | B89: 0.7935461107 | C89: 64
A90: 89 | B90: 0.719489302 | C90: 81
A91: 90 | B91: 0.5203631274 | C91: 129
A92: 91 | B92: 0.3491306019 | C92: 169
A93: 92 | B93: 0.7409757338 | C93: 75
A94: 93 | B94: 0.5926146496 | C94: 115
A95: 94 | B95: 0.8330731289 | C95: 52
A96: 95 | B96: 0.4095207799 | C96: 151
A97: 96 | B97: 0.2567818366 | C97: 189
A98: 97 | B98: 0.9068596622 | C98: 29
A99: 98 | B99: 0.5793932605 | C99: 120
A100: 99 | B100: 0.3210443761 | C100: 176
A101: 100 | B101: 0.4132123309 | C101: 149
A102: 101 | B102: 0.8769881866 | C102: 39
A103: 102 | B103: 0.07962506839 | C103: 232
A104: 103 | B104: 0.2049510694 | C104: 206
A105: 104 | B105: 0.4702773383 | C105: 139
A106: 105 | B106: 0.3621243877 | C106: 164
A107: 106 | B107: 0.2211145781 | C107: 203
A108: 107 | B108: 0.1750581093 | C108: 210
A109: 108 | B109: 0.5796981371 | C109: 119
A110: 109 | B110: 0.635261773 | C110: 102
A111: 110 | B111: 0.2487150719 | C111: 192
A112: 111 | B112: 0.7346995213 | C112: 77
A113: 112 | B113: 0.6783918143 | C113: 92
A114: 113 | B114: 0.6127618715 | C114: 106
A115: 114 | B115: 0.1362027769 | C115: 219
A116: 115 | B116: 0.1412262689 | C116: 216
A117: 116 | B117: 0.6769735967 | C117: 94
A118: 117 | B118: 0.6724492028 | C118: 96
A119: 118 | B119: 0.3080744541 | C119: 178
A120: 119 | B120: 0.8086276481 | C120: 61
A121: 120 | B121: 0.9874173734 | C121: 5
A122: 121 | B122: 0.3461449995 | C122: 170
A123: 122 | B123: 0.9699952572 | C123: 17
A124: 123 | B124: 0.8995770452 | C124: 32
A125: 124 | B125: 0.5971812876 | C125: 113
A126: 125 | B126: 0.3588306592 | C126: 166
A127: 126 | B127: 0.5118579192 | C127: 134
A128: 127 | B128: 0.6428282247 | C128: 100
A129: 128 | B129: 0.1525081002 | C129: 214
A130: 129 | B130: 0.2661759064 | C130: 188
A131: 130 | B131: =RAND() -> 0.2176206287 | C131: =RANK(B131,$B$2:$B$244) -> 204
A132: 131 | B132: 0.8934497546 | C132: 35
A133: 132 | B133: 0.4511547634 | C133: 141
A134: 133 | B134: 0.8133824194 | C134: 60
A135: 134 | B135: 0.5277695256 | C135: 127
A136: 135 | B136: 0.6865326261 | C136: 89
A137: 136 | B137: 0.6726532166 | C137: 95
A138: 137 | B138: 0.9795015042 | C138: 8
A139: 138 | B139: 0.2761446203 | C139: 187
A140: 139 | B140: 0.9756970352 | C140: 10
A141: 140 | B141: 0.9753689082 | C141: 11
A142: 141 | B142: 0.1407142563 | C142: 217
A143: 142 | B143: 0.5224923989 | C143: 128
A144: 143 | B144: 0.9435108564 | C144: 23
A145: 144 | B145: 0.1779320647 | C145: 209
A146: 145 | B146: 0.6514770881 | C146: 98
A147: 146 | B147: 0.4644490629 | C147: 140
A148: 147 | B148: 0.7095139537 | C148: 84
A149: 148 | B149: 0.3693020826 | C149: 159
A150: 149 | B150: 0.009341538102 | C150: 242
A151: 150 | B151: 0.7287281846 | C151: 79
A152: 151 | B152: 0.2444712565 | C152: 194
A153: 152 | B153: 0.213863507 | C153: 205
A154: 153 | B154: 0.883714467 | C154: 38
A155: 154 | B155: 0.6010812773 | C155: 111
A156: 155 | B156: 0.8924063959 | C156: 36
A157: 156 | B157: 0.378323117 | C157: 156
A158: 157 | B158: 0.486812026 | C158: 137
A159: 158 | B159: 0.9905706384 | C159: 3
A160: 159 | B160: 0.6934143001 | C160: 88
A161: 160 | B161: 0.7776766396 | C161: 68
A162: 161 | B162: 0.8738309147 | C162: 42
A163: 162 | B163: 0.9746715169 | C163: 12
A164: 163 | B164: 0.8164785124 | C164: 58
A165: 164 | B165: 0.5985448388 | C165: 112
A166: 165 | B166: 0.3877597277 | C166: 155
A167: 166 | B167: 0.07062950841 | C167: 234
A168: 167 | B168: 0.9870021057 | C168: 6
A169: 168 | B169: 0.7577337476 | C169: 72
A170: 169 | B170: 0.8464658635 | C170: 51
A171: 170 | B171: 0.9508947439 | C171: 22
A172: 171 | B172: 0.7882132425 | C172: 65
A173: 172 | B173: 0.9882170501 | C173: 4
A174: 173 | B174: 0.6359236482 | C174: 101
A175: 174 | B175: 0.8650920269 | C175: 46
A176: 175 | B176: 0.585858047 | C176: 118
A177: 176 | B177: 0.5161305747 | C177: 132
A178: 177 | B178: 0.2533906341 | C178: 191
A179: 178 | B179: 0.7747711081 | C179: 69
A180: 179 | B180: 0.953331742 | C180: 21
A181: 180 | B181: 0.5923313515 | C181: 116
A182: 181 | B182: 0.7232591757 | C182: 80
A183: 182 | B183: 0.7052798292 | C183: 85
A184: 183 | B184: 0.8322916771 | C184: 53
A185: 184 | B185: 0.09526972423 | C185: 229
A186: 185 | B186: 0.9990749929 | C186: 1
A187: 186 | B187: 0.8475438276 | C187: 50
A188: 187 | B188: 0.712532142 | C188: 83
A189: 188 | B189: 0.8238067155 | C189: 56
A190: 189 | B190: 0.8696999314 | C190: 45
A191: 190 | B191: 0.7338734129 | C191: 78
A192: 191 | B192: 0.02741529189 | C192: 241
A193: 192 | B193: 0.2893082401 | C193: 182
A194: 193 | B194: 0.3651402968 | C194: 161
A195: 194 | B195: =RAND() -> 0.5178824448 | C195: =RANK(B195,$B$2:$B$244) -> 131
A196: 195 | B196: 0.5500175334 | C196: 125
A197: 196 | B197: 0.3960106202 | C197: 154
A198: 197 | B198: 0.586864353 | C198: 117
A199: 198 | B199: 0.2561155992 | C199: 190
A200: 199 | B200: 0.6800401276 | C200: 90
... 44 more rows

Sheet 関数（書き）
A1: 番号 | B1: ランダム | C1: 順位
A2: 1 | B2: =RAND() -> 0.9524792354 | C2: =RANK(B2,$B$2:$B$237) -> 13
A3: 2 | B3: =RAND() -> 0.1783311853 | C3: =RANK(B3,$B$2:$B$237) -> 182
A4: 3 | B4: 0.9019219352 | C4: 26
A5: 4 | B5: 0.1445863133 | C5: 191
A6: 5 | B6: 0.2685923677 | C6: 159
A7: 6 | B7: 0.6771944748 | C7: 74
A8: 7 | B8: 0.1793480139 | C8: 181
A9: 8 | B9: 0.76135098 | C9: 58
A10: 9 | B10: 0.9207561993 | C10: 24
A11: 10 | B11: 0.508517325 | C11: 107
A12: 11 | B12: 0.5834794444 | C12: 93
A13: 12 | B13: 0.6294412376 | C13: 78
A14: 13 | B14: 0.1346252699 | C14: 194
A15: 14 | B15: 0.1306521706 | C15: 196
A16: 15 | B16: 0.5978923843 | C16: 85
A17: 16 | B17: 0.2353266508 | C17: 170
A18: 17 | B18: 0.1410250732 | C18: 193
A19: 18 | B19: 0.187570726 | C19: 178
A20: 19 | B20: 0.6284121751 | C20: 79
A21: 20 | B21: 0.1648314465 | C21: 184
A22: 21 | B22: 0.08714672122 | C22: 207
A23: 22 | B23: 0.3911631939 | C23: 138
A24: 23 | B24: 0.7318608782 | C24: 66
A25: 24 | B25: 0.3706854472 | C25: 141
A26: 25 | B26: 0.5418556346 | C26: 100
A27: 26 | B27: 0.4471356003 | C27: 118
A28: 27 | B28: 0.08098560254 | C28: 211
A29: 28 | B29: 0.5614202595 | C29: 96
A30: 29 | B30: 0.2427862611 | C30: 168
A31: 30 | B31: 0.1502346503 | C31: 189
A32: 31 | B32: 0.5933171575 | C32: 86
A33: 32 | B33: 0.04288726213 | C33: 228
A34: 33 | B34: 0.5684703872 | C34: 95
A35: 34 | B35: 0.0548266607 | C35: 224
A36: 35 | B36: 0.2853544936 | C36: 156
A37: 36 | B37: 0.1852903662 | C37: 179
A38: 37 | B38: 0.437494988 | C38: 123
A39: 38 | B39: 0.07573757853 | C39: 216
A40: 39 | B40: 0.1451474065 | C40: 190
A41: 40 | B41: 0.5387555912 | C41: 101
A42: 41 | B42: 0.1187897392 | C42: 201
A43: 42 | B43: 0.8504449961 | C43: 39
A44: 43 | B44: 0.7060451394 | C44: 70
A45: 44 | B45: 0.9776364637 | C45: 5
A46: 45 | B46: 0.07728819573 | C46: 214
A47: 46 | B47: 0.9512159397 | C47: 14
A48: 47 | B48: 0.7972226395 | C48: 52
A49: 48 | B49: 0.7266295305 | C49: 68
A50: 49 | B50: 0.6753247174 | C50: 75
A51: 50 | B51: 0.1177448144 | C51: 202
A52: 51 | B52: 0.0452353249 | C52: 226
A53: 52 | B53: 0.357654462 | C53: 144
A54: 53 | B54: 0.3282591081 | C54: 150
A55: 54 | B55: 0.9529851483 | C55: 11
A56: 55 | B56: 0.1666189623 | C56: 183
A57: 56 | B57: 0.8829166424 | C57: 30
A58: 57 | B58: 0.8483125094 | C58: 40
A59: 58 | B59: 0.6022192677 | C59: 84
A60: 59 | B60: 0.9285753476 | C60: 21
A61: 60 | B61: 0.2469761136 | C61: 166
A62: 61 | B62: 0.8264346216 | C62: 43
A63: 62 | B63: 0.9488276544 | C63: 15
A64: 63 | B64: 0.7183823008 | C64: 69
A65: 64 | B65: 0.911118516 | C65: 25
A66: 65 | B66: 0.9759527788 | C66: 6
A67: 66 | B67: =RAND() -> 0.6784101526 | C67: =RANK(B67,$B$2:$B$237) -> 73
A68: 67 | B68: 0.02528859103 | C68: 232
A69: 68 | B69: 0.0770120834 | C69: 215
A70: 69 | B70: 0.07555998264 | C70: 217
A71: 70 | B71: 0.5831194859 | C71: 94
A72: 71 | B72: 0.2604721997 | C72: 162
A73: 72 | B73: 0.8239472641 | C73: 44
A74: 73 | B74: 0.2448593353 | C74: 167
A75: 74 | B75: 0.2992170211 | C75: 154
A76: 75 | B76: 0.4619512654 | C76: 116
A77: 76 | B77: 0.2094701607 | C77: 174
A78: 77 | B78: 0.3540690242 | C78: 145
A79: 78 | B79: 0.4832252387 | C79: 113
A80: 79 | B80: 0.02844075553 | C80: 231
A81: 80 | B81: 0.6273983195 | C81: 80
A82: 81 | B82: 0.9436625777 | C82: 18
A83: 82 | B83: 0.06461843325 | C83: 221
A84: 83 | B84: 0.2071613954 | C84: 175
A85: 84 | B85: 0.8740234403 | C85: 33
A86: 85 | B86: 0.1317668723 | C86: 195
A87: 86 | B87: 0.3446205663 | C87: 148
A88: 87 | B88: 0.4944125034 | C88: 111
A89: 88 | B89: 0.7920531012 | C89: 53
A90: 89 | B90: 0.4392422135 | C90: 122
A91: 90 | B91: 0.960422601 | C91: 8
A92: 91 | B92: 0.9250195035 | C92: 22
A93: 92 | B93: 0.3976144178 | C93: 134
A94: 93 | B94: 0.188110833 | C94: 177
A95: 94 | B95: 0.8665125854 | C95: 36
A96: 95 | B96: 0.8830952444 | C96: 29
A97: 96 | B97: 0.9385575306 | C97: 20
A98: 97 | B98: 0.2476326041 | C98: 165
A99: 98 | B99: 0.3941622736 | C99: 136
A100: 99 | B100: 0.4347859066 | C100: 126
A101: 100 | B101: 0.2824334886 | C101: 157
A102: 101 | B102: 0.04475141543 | C102: 227
A103: 102 | B103: 0.6443119838 | C103: 77
A104: 103 | B104: 0.8163805166 | C104: 45
A105: 104 | B105: 0.9648193825 | C105: 7
A106: 105 | B106: 0.0003623246708 | C106: 236
A107: 106 | B107: 0.5073433552 | C107: 108
A108: 107 | B108: 0.4367917502 | C108: 125
A109: 108 | B109: 0.3626672261 | C109: 143
A110: 109 | B110: 0.1891942069 | C110: 176
A111: 110 | B111: 0.06195080873 | C111: 222
A112: 111 | B112: 0.1833020898 | C112: 180
A113: 112 | B113: 0.1587651661 | C113: 187
A114: 113 | B114: 0.1106989175 | C114: 204
A115: 114 | B115: 0.1539444171 | C115: 188
A116: 115 | B116: 0.7507888195 | C116: 59
A117: 116 | B117: 0.7287726113 | C117: 67
A118: 117 | B118: 0.07892780556 | C118: 212
A119: 118 | B119: 0.9596530936 | C119: 9
A120: 119 | B120: 0.08869604812 | C120: 205
A121: 120 | B121: 0.952680655 | C121: 12
A122: 121 | B122: 0.5865880358 | C122: 90
A123: 122 | B123: 0.6566971656 | C123: 76
A124: 123 | B124: 0.01452249285 | C124: 234
A125: 124 | B125: 0.278746135 | C125: 158
A126: 125 | B126: 0.03614209438 | C126: 229
A127: 126 | B127: 0.3536838463 | C127: 146
A128: 127 | B128: 0.3452831539 | C128: 147
A129: 128 | B129: 0.5184015895 | C129: 105
A130: 129 | B130: 0.06150670328 | C130: 223
A131: 130 | B131: =RAND() -> 0.1596113648 | C131: =RANK(B131,$B$2:$B$237) -> 186
A132: 131 | B132: 0.07504959326 | C132: 218
A133: 132 | B133: 0.02515570892 | C133: 233
A134: 133 | B134: 0.4333894579 | C134: 127
A135: 134 | B135: 0.8630311559 | C135: 37
A136: 135 | B136: 0.364078134 | C136: 142
A137: 136 | B137: 0.2411192497 | C137: 169
A138: 137 | B138: 0.545909382 | C138: 99
A139: 138 | B139: 0.248528119 | C139: 164
A140: 139 | B140: 0.493852695 | C140: 112
A141: 140 | B141: 0.07883405348 | C141: 213
A142: 141 | B142: 0.3050794805 | C142: 152
A143: 142 | B143: 0.4470868583 | C143: 119
A144: 143 | B144: 0.7860217338 | C144: 54
A145: 144 | B145: 0.8050080583 | C145: 49
A146: 145 | B146: 0.7473055908 | C146: 63
A147: 146 | B147: 0.5607426106 | C147: 97
A148: 147 | B148: 0.4071064301 | C148: 131
A149: 148 | B149: 0.2668501313 | C149: 160
A150: 149 | B150: 0.8331569279 | C150: 42
A151: 150 | B151: 0.4028643483 | C151: 132
A152: 151 | B152: 0.3813271078 | C152: 139
A153: 152 | B153: 0.1222434809 | C153: 199
A154: 153 | B154: 0.9889602994 | C154: 2
A155: 154 | B155: 0.7629833878 | C155: 57
A156: 155 | B156: 0.9474535069 | C156: 16
A157: 156 | B157: 0.1150879559 | C157: 203
A158: 157 | B158: 0.8799063298 | C158: 31
A159: 158 | B159: 0.0667980665 | C159: 219
A160: 159 | B160: 0.3444925255 | C160: 149
A161: 160 | B161: 0.9800362453 | C161: 4
A162: 161 | B162: 0.8733021597 | C162: 34
A163: 162 | B163: 0.5067385217 | C163: 109
A164: 163 | B164: 0.5906329307 | C164: 88
A165: 164 | B165: 0.1223580205 | C165: 198
A166: 165 | B166: 0.9471384817 | C166: 17
A167: 166 | B167: 0.3751165554 | C167: 140
A168: 167 | B168: 0.08112655142 | C168: 210
A169: 168 | B169: 0.4225831507 | C169: 129
A170: 169 | B170: 0.74799707 | C170: 62
A171: 170 | B171: 0.3069590172 | C171: 151
A172: 171 | B172: 0.03068843721 | C172: 230
A173: 172 | B173: 0.2241718703 | C173: 172
A174: 173 | B174: 0.6037062633 | C174: 83
A175: 174 | B175: 0.6197118884 | C175: 81
A176: 175 | B176: 0.772016815 | C176: 56
A177: 176 | B177: 0.9218253537 | C177: 23
A178: 177 | B178: 0.08123714988 | C178: 209
A179: 178 | B179: 0.7488322866 | C179: 61
A180: 179 | B180: 0.2496239925 | C180: 163
A181: 180 | B181: 0.4725927555 | C181: 115
A182: 181 | B182: 0.4452775813 | C182: 120
A183: 182 | B183: 0.440810599 | C183: 121
A184: 183 | B184: 0.005744143569 | C184: 235
A185: 184 | B185: 0.9801754268 | C185: 3
A186: 185 | B186: 0.8589044394 | C186: 38
A187: 186 | B187: 0.5900890692 | C187: 89
A188: 187 | B188: 0.5860057761 | C188: 91
A189: 188 | B189: 0.4372332753 | C189: 124
A190: 189 | B190: 0.5183733272 | C190: 106
A191: 190 | B191: 0.8884903323 | C191: 28
A192: 191 | B192: 0.1434518978 | C192: 192
A193: 192 | B193: 0.7791816709 | C193: 55
A194: 193 | B194: 0.3950075829 | C194: 135
A195: 194 | B195: =RAND() -> 0.2631683465 | C195: =RANK(B195,$B$2:$B$237) -> 161
A196: 195 | B196: 0.8448392205 | C196: 41
A197: 196 | B197: 0.5210500444 | C197: 104
A198: 197 | B198: 0.7426445702 | C198: 64
A199: 198 | B199: 0.604926492 | C199: 82
A200: 199 | B200: 0.7996779832 | C200: 51
... 37 more rows
